Workbook

Sheet Master 2012 Main Page
D1: Team Member 1 | G1: Team Member 2 | M1: Day 1 Input Data Fish Length ",s | Z1: Day 1 Input Data Converted Weights | AC1: Day 2 Input Data Lenth "'s | AJ1: Day 2 Input Data Converted Weights | BD1: Team # | BG1: Team # | BJ1: Team # | CL1: Team #'s | CQ1: Team #'s | DS1: Team #'s
B2: Team # | C2: ALS # | D2: Name | E2: Home Town | F2: ALS # | G2: Name | H2: Home Town | I2: Type AT=Adult Team, MC=Mixed Couple AC=Adult Child | J2: Boat Brand | K2: Motor Brand | L2: Tow vehicle | M2: 1st Fish | N2: 2nd Fish | O2: 3rd Fish | P2: 4th Fish | Q2: 5th Fish | R2: Northern lb | S2: Northern No | T2: Species No | U2: Carp inches | V2: Perch lb | W2: Perch No | X2: 1st Fish #'s | Y2: 2nd Fish #'s | Z2: 3rd Fish #'s | AA2: 4th Fish #'s | AB2: 5th Fish #'s | AC2: 1st Fish | AD2: 2nd Fish | AE2: 3rd Fish | AF2: 4th Fish | AG2: 5th Fish | AH2: 1st Fish #'s | AI2: 2nd Fish #'s | AJ2: 3rd Fish #'s | AK2: 4th Fish #'s | AL2: 5th Fish #'s | AM2: D2 Northern lb | AN2: D2 Northern No | AO2: Species No | AP2: Carp inches | AQ2: Perch lb | AR2: Perch No | AS2: Total Day 1 | AT2: Place Day 1 | AU2: Pay Day 1 | AV2: Total Day 2 | AW2: Place Day 2 | AX2: Pay Day 2 | AY2: Total Wt | AZ2: Final Place | BA2: Final Place Pay | BB2: Total Tourney Pay | BC2: Improve places | BD2: Cool Under Pressure | BE2: Count D1eye | BF2: Large D1 eye | BG2: Team Large D1 eye | BH2: Count D2 eye | BI2: Large D2 eye | BJ2: Team Large D2 eye | BK2: Count eye total | BL2: North No D1 | BM2: North No Team D1 | BN2: North No D2 | BO2: North No Team D2 | BP2: Large North D1 | BQ2: Team Max North D1 | BR2: Large North D2 | BS2: Team Max North D2 | BT2: Large perch D1 | BU2: Large Perch team D1 | BV2: Most perch D1 | BW2: Most perch team D1 | BX2: Large perch D2 | BY2: Large perch team D2 | BZ2: Most perch D2 | CA2: Most perch team D2 | CB2: Carp in. D! | CC2: Carp team D1 | CD2: Carp in. D2 | CE2: Carp team D2 | CF2: Most species D1 | CG2: Team Most Sp D1 | CH2: Most Species D2 | CI2: Team Most Sp D2 | CJ2: Adult Child Place | CK2: AC Rank | CL2: AC 1st | CM2: AC 2nd | CN2: AC 3rd | CO2: Mixed Couple Place | CP2: MC Rank | CQ2: MC 1st | CR2: MC 2nd | CS2: MC 3rd | CT2: D1=0 | CU2: D1=1 | CV2: D1=2 | CW2: D1=3 | CX2: D1=4 | CY2: D1=5 | CZ2: D2=0 | DA2: D2=1 | DB2: D2=2 | DC2: D2=3 | DD2: D2=4 | DE2: D2=5 | DF2: T=0 | DG2: T=1 | DH2: T=2 | DI2: T=3 | DJ2: T=4 | DK2: T=5 | DL2: T=6 | DM2: T=7 | DN2: T=8 | DO2: T=9 | DP2: T=10 | DQ2: Lund Place | DR2: Lund Rank | DS2: Lund 1st | DT2: Adult Team | DU2: Mixed Couples | DV2: Adult Child | DW2: Circuit Points | DX2: Scheels Hardest Charger
B3: 1 | D3: Schroeder, Dennis | E3: Miles City, MT | G3: Marcil, Dale | I3: AT | M3: 16 | N3: 24.25 | O3: 17.25 | P3: 25.75 | X3: =IF(M3>0,VLOOKUP(M3,$DY$8:$DZ$95,2)," ") -> 1.38 | Y3: =IF(N3>0,VLOOKUP(N3,$DY$8:$DZ$95,2)," ") -> 5.28 | Z3: =IF(O3>0,VLOOKUP(O3,$DY$8:$DZ$95,2)," ") -> 1.72 | AA3: =IF(P3>0,VLOOKUP(P3,$DY$8:$DZ$95,2)," ") -> 6.46 | AB3: =IF(Q3>0,VLOOKUP(Q3,$DY$8:$DZ$95,2)," ") ->  | AC3: 20.5 | AD3: 16 | AE3: 17 | AH3: =IF(AC3>0,VLOOKUP(AC3,$DY$8:$DZ$95,2)," ") -> 3 | AI3: =IF(AD3>0,VLOOKUP(AD3,$DY$8:$DZ$95,2)," ") -> 1.38 | AJ3: 1.64 | AS3: =IF(D3="","",SUM(X3:AB3)) -> 14.84 | AT3: =IF(D3="","",RANK(AS3,$AS$3:$AS$202,0)) -> 19 | AU3: =IF(D3="","",IF(LOOKUP(AT3,'Master 2012 Pay Sheet'!$A$5:$A$35,'Master 2012 Pay Sheet'!$B$5:$B$35)>0,LOOKUP(AT3,'Master 2012 Pay Sheet'!$A$5:$A$35,'Master 2012 Pay Sheet'!$B$5:$B$35),0)) -> 0 | AV3: =IF(D3="","",SUM(AH3:AL3)) -> 6.02 | AW3: =IF(D3="","",RANK(AV3,$AV$3:$AV$202,0)) -> 53 | AX3: =IF(D3="","",IF(LOOKUP(AW3,'Master 2012 Pay Sheet'!$C$5:$C$35,'Master 2012 Pay Sheet'!$D$5:$D$35)>0,LOOKUP(AW3,'Master 2012 Pay Sheet'!$C$5:$C$35,'Master 2012 Pay Sheet'!$D$5:$D$35),0)) -> 0 | AY3: =IF(D3="","",AS3+AV3) -> 20.86 | AZ3: =IF(D3="","",RANK(AY3,$AY$3:$AY$202,0)) -> 36 | BA3: =IF(D3="","",IF(LOOKUP(AZ3,'Master 2012 Pay Sheet'!$E$5:$E$35,'Master 2012 Pay Sheet'!$F$5:$F$35)>0,LOOKUP(AZ3,'Master 2012 Pay Sheet'!$E$5:$E$35,'Master 2012 Pay Sheet'!$F$5:$F$35),0)) -> 0 | BB3: =IF(D3="","",SUM(AU3+AX3+BA3)) -> 0 | BC3: =IF(D3="","",AT3-AZ3) -> -17 | BD3: =IF(D3="","",IF(BC3=MAX($BC$3:$BC$202),B3,"")) ->  | BE3: =IF(D3="","",COUNT(M3:Q3)) -> 4 | BF3: =IF(D3="","",MAX(X3:AB3)) -> 6.46 | BG3: =IF(BF3=MAX($BF$3:$BF$202),B3,"") ->  | BH3: =IF(D3="","",COUNT(AC3:AG3)) -> 3 | BI3: =IF(D3="","",MAX(AH3:AL3)) -> 3 | BJ3: =IF(BI3=MAX($BI$3:$BI$202),B3,"") ->  | BK3: =IF(BE3="","",BE3+BH3) -> 7 | BL3: =IF(D3="","",IF(S3=MAX($S$3:$S$202),S3,"")) -> 0 | BM3: =IF(BL3=MAX($BL$3:$BL$202),B3,"") -> 1 | BN3: =IF(D3="","",IF(AN3=MAX($AN$3:$AN$202),AN3,"")) -> 0 | BO3: =IF(BN3=MAX($BN$3:$BN$202),B3,"") -> 1 | BP3: =IF(D3="","",IF(R3=MAX($R$3:$R$202),R3,"")) -> 0 | BQ3: =IF(BP3=MAX($BP$3:$BP$202),B3,"") -> 1 | BR3: =IF(D3="","",IF(AM3=MAX($AM$3:$AM$202),AM3,"")) -> 0 | BS3: =IF(BR3=MAX($BR$3:$BR$202),B3,"") -> 1 | BT3: =IF(D3="","",IF(V3=MAX($V$3:$V$202),V3,"")) -> 0 | BU3: =IF(BT3=MAX($BT$3:$BT$202),B3,"") -> 1 | BV3: =IF(D3="","",IF(W3=MAX($W$3:$W$202), W3,"")) -> 0 | BW3: =IF(BV3=MAX($BV$3:$BV$202),B3,"") -> 1 | BX3: =IF(D3="","",IF(AQ3=MAX($AQ$3:$AQ$202),AQ3,"")) -> 0 | BY3: =IF(BX3=MAX($BX$3:$BX$202),B3,"") -> 1 | BZ3: =IF(D3="","",IF(AR3=MAX($AR$3:$AR$202), AR3,"")) -> 0 | CA3: =IF(BZ3=MAX($BZ$3:$BZ$202),B3,"") -> 1 | CB3: =IF(D3="","",IF(U3=MAX($U$3:$U$202), U3,"")) -> 0 | CC3: =IF(CB3=MAX($CB$3:$CB$202),B3,"") -> 1 | CD3: =IF(D3="","",IF(AP3=MAX($AP$3:$AP$202),AP3,"")) -> 0 | CE3: =IF(CD3=MAX($CD$3:$CD$202),B3,"") -> 1 | CF3: =IF(D3="","",IF(T3=MAX($T$3:$T$202), T3,"")) -> 0 | CG3: =IF(CF3=MAX($CF$3:$CF$202),B3,"") -> 1 | CH3: =IF(D3="","",IF(AO3=MAX($AO$3:$AO$202),AO3,"")) -> 0 | CI3: =IF(CH3=MAX($CH$3:$CH$202),B3,"") -> 1 | CJ3: =IF(I3="AC",AZ3,"") ->  | CK3: =IF(CJ3="","",RANK(CJ3,$CJ$3:$CJ$202,1)) ->  | CL3: =IF(CK3=1,B3,"") ->  | CM3: =IF(CK3=2,B3,"") ->  | CN3: =IF(CK3=3,B3,"") ->  | CO3: =IF(I3="MC",AZ3,"") ->  | CP3: =IF(CO3="","",RANK(CO3,$CO$3:$CO$202,1)) ->  | CQ3: =IF(CP3=1,B3,"") ->  | CR3: =IF(CP3=2,B3,"") ->  | CS3: =IF(CP3=3,B3,"") ->  | CT3: =IF(BE3=0,BE3,"") ->  | CU3: =IF(BE3=1,1,"") ->  | CV3: =IF(BE3=2,2,"") ->  | CW3: =IF(BE3=3,3,"") ->  | CX3: =IF(BE3=4,4,"") -> 4 | CY3: =IF(BE3=5,5,"") ->  | CZ3: =IF(BH3=0,BH3,"") ->  | DA3: =IF(BH3=1,1,"") ->  | DB3: =IF(BH3=2,2,"") ->  | DC3: =IF(BH3=3,3,"") -> 3 | DD3: =IF(BH3=4,4,"") ->  | DE3: =IF(BH3=5,5,"") ->  | DF3: =IF(BK3=0,BK3,"") ->  | DG3: =IF(BK3=1,1,"") ->  | DH3: =IF(BK3=2,2,"") ->  | DI3: =IF(BK3=3,3,"") ->  | DJ3: =IF(BK3=4,4,"") ->  | DK3: =IF(BK3=5,5,"") ->  | DL3: =IF(BK3=6,6,"") ->  | DM3: =IF(BK3=7,7,"") -> 7 | DN3: =IF(BK3=8,8,"") ->  | DO3: =IF(BK3=9,9,"") ->  | DP3: =IF(BK3=10,10,"") ->  | DQ3: =IF(J3="Lund",AZ3,"") ->  | DR3: =IF(DQ3="","",RANK(DQ3,$DQ$3:$DQ$202,1)) ->  | DS3: =IF(DR3=1,B3,"") ->  | DT3: =IF(I3="AT",B3,"") -> 1 | DU3: =IF(I3="MC",B3,"") ->  | DV3: =IF(I3="AC",B3,"") ->  | DW3: =IF(BK3=0,0,IF(D3="","",$D$203-AZ3+1)/$D$203*100) -> 50.70422535 | DX3: =IF(AS3 = 0,AV3 - AS3,"") ->  | DY3: Montana Walleyes Unlimited Formula
B4: 2 | D4: Sillerud, Norm | E4: Glasgow, MT | G4: Rasmusan, JR | H4: Glasgow, MT | I4: AT | M4: 16.5 | N4: 18.5 | O4: 17.5 | P4: 19 | Q4: 29.5 | X4: 1.5 | Y4: 2.12 | Z4: 1.78 | AA4: 2.32 | AB4: 10.22 | AC4: 23 | AD4: 26 | AE4: 20.5 | AF4: 20 | AG4: 21 | AH4: =IF(AC4>0,VLOOKUP(AC4,$DY$8:$DZ$95,2)," ") -> 4.42 | AI4: 6.68 | AJ4: 3 | AK4: 2.76 | AL4: 3.24 | AS4: 17.94 | AT4: 10 | AU4: =IF(D4="","",IF(LOOKUP(AT4,'Master 2012 Pay Sheet'!$A$5:$A$35,'Master 2012 Pay Sheet'!$B$5:$B$35)>0,LOOKUP(AT4,'Master 2012 Pay Sheet'!$A$5:$A$35,'Master 2012 Pay Sheet'!$B$5:$B$35),0)) -> 0 | AV4: 20.1 | AW4: 4 | AX4: =IF(D4="","",IF(LOOKUP(AW4,'Master 2012 Pay Sheet'!$C$5:$C$35,'Master 2012 Pay Sheet'!$D$5:$D$35)>0,LOOKUP(AW4,'Master 2012 Pay Sheet'!$C$5:$C$35,'Master 2012 Pay Sheet'!$D$5:$D$35),0)) -> 0 | AY4: 38.04 | AZ4: 3 | BA4: =IF(D4="","",IF(LOOKUP(AZ4,'Master 2012 Pay Sheet'!$E$5:$E$35,'Master 2012 Pay Sheet'!$F$5:$F$35)>0,LOOKUP(AZ4,'Master 2012 Pay Sheet'!$E$5:$E$35,'Master 2012 Pay Sheet'!$F$5:$F$35),0)) -> 0 | BB4: 0 | BC4: 7 | BE4: 5 | BF4: 10.22 | BH4: 5 | BI4: 6.68 | BK4: =IF(BE4="","",BE4+BH4) -> 10 | BL4: 0 | BM4: 2 | BN4: 0 | BO4: 2 | BP4: 0 | BQ4: 2 | BR4: 0 | BS4: 2 | BT4: 0 | BU4: 2 | BV4: 0 | BW4: 2 | BX4: 0 | BY4: 2 | BZ4: 0 | CA4: 2 | CB4: 0 | CC4: 2 | CD4: 0 | CE4: 2 | CF4: 0 | CG4: 2 | CH4: 0 | CI4: 2 | CT4: =IF(BE4=0,BE4,"") ->  | CU4: =IF(BE4=1,1,"") ->  | CV4: =IF(BE4=2,2,"") ->  | CW4: =IF(BE4=3,3,"") ->  | CX4: =IF(BE4=4,4,"") ->  | CY4: =IF(BE4=5,5,"") -> 5 | CZ4: =IF(BH4=0,BH4,"") ->  | DA4: =IF(BH4=1,1,"") ->  | DB4: =IF(BH4=2,2,"") ->  | DC4: =IF(BH4=3,3,"") ->  | DD4: =IF(BH4=4,4,"") ->  | DE4: =IF(BH4=5,5,"") -> 5 | DF4: =IF(BK4=0,BK4,"") ->  | DG4: =IF(BK4=1,1,"") ->  | DH4: =IF(BK4=2,2,"") ->  | DI4: =IF(BK4=3,3,"") ->  | DJ4: =IF(BK4=4,4,"") ->  | DK4: =IF(BK4=5,5,"") ->  | DL4: =IF(BK4=6,6,"") ->  | DM4: =IF(BK4=7,7,"") ->  | DN4: =IF(BK4=8,8,"") ->  | DO4: =IF(BK4=9,9,"") ->  | DP4: =IF(BK4=10,10,"") -> 10 | DT4: 2 | DW4: 97.18309859 | DX4: =IF(AS4 = 0,AV4 - AS4,"") ->  | DY4: Montana Walleyes Unlimited
B5: 3 | D5: Judkins, Ernie | E5: Belgrade, MT | G5: Judkins,Tyler | H5: Belgrade, MT | I5: AT | M5: 14.75 | N5: 16 | O5: 18.25 | P5: 14.75 | X5: 1.09 | Y5: 1.38 | Z5: 2.02 | AA5: 1.09 | AC5: 26.75 | AD5: 16 | AE5: 16.5 | AF5: 17.5 | AG5: 18 | AH5: 7.36 | AI5: 1.38 | AJ5: 1.5 | AK5: 1.78 | AL5: 1.94 | AS5: 5.58 | AT5: 60 | AU5: =IF(D5="","",IF(LOOKUP(AT5,'Master 2012 Pay Sheet'!$A$5:$A$35,'Master 2012 Pay Sheet'!$B$5:$B$35)>0,LOOKUP(AT5,'Master 2012 Pay Sheet'!$A$5:$A$35,'Master 2012 Pay Sheet'!$B$5:$B$35),0)) -> 0 | AV5: 13.96 | AW5: 14 | AX5: =IF(D5="","",IF(LOOKUP(AW5,'Master 2012 Pay Sheet'!$C$5:$C$35,'Master 2012 Pay Sheet'!$D$5:$D$35)>0,LOOKUP(AW5,'Master 2012 Pay Sheet'!$C$5:$C$35,'Master 2012 Pay Sheet'!$D$5:$D$35),0)) -> 0 | AY5: 19.54 | AZ5: 46 | BA5: =IF(D5="","",IF(LOOKUP(AZ5,'Master 2012 Pay Sheet'!$E$5:$E$35,'Master 2012 Pay Sheet'!$F$5:$F$35)>0,LOOKUP(AZ5,'Master 2012 Pay Sheet'!$E$5:$E$35,'Master 2012 Pay Sheet'!$F$5:$F$35),0)) -> 0 | BB5: 0 | BC5: 14 | BE5: 4 | BF5: 2.02 | BH5: 5 | BI5: 7.36 | BK5: 9 | BL5: 0 | BM5: 3 | BN5: 0 | BO5: 3 | BP5: 0 | BQ5: 3 | BR5: 0 | BS5: 3 | BT5: 0 | BU5: 3 | BV5: 0 | BW5: 3 | BX5: 0 | BY5: 3 | BZ5: 0 | CA5: 3 | CB5: 0 | CC5: 3 | CD5: 0 | CE5: 3 | CF5: 0 | CG5: 3 | CH5: 0 | CI5: 3 | CX5: 4 | DE5: 5 | DO5: 9 | DT5: 3 | DW5: 36.61971831 | DY5: Fish Length to Weight Conversion Lookup Table
B6: 4 | D6: Williams, Mike | E6: Great Falls, MT | G6: Wohlers, Del | H6: Neola, IA | I6: AT | M6: 17.75 | N6: 18 | O6: 17.25 | P6: 16.75 | Q6: 16 | X6: 1.86 | Y6: 1.94 | Z6: 1.72 | AA6: 1.58 | AB6: 1.38 | AC6: 16 | AD6: 17.25 | AE6: 19.5 | AF6: 16 | AG6: 20 | AH6: 1.38 | AI6: 1.72 | AJ6: 2.52 | AK6: 1.38 | AL6: 2.76 | AS6: 8.48 | AT6: 51 | AU6: =IF(D6="","",IF(LOOKUP(AT6,'Master 2012 Pay Sheet'!$A$5:$A$35,'Master 2012 Pay Sheet'!$B$5:$B$35)>0,LOOKUP(AT6,'Master 2012 Pay Sheet'!$A$5:$A$35,'Master 2012 Pay Sheet'!$B$5:$B$35),0)) -> 0 | AV6: 9.76 | AW6: 33 | AX6: =IF(D6="","",IF(LOOKUP(AW6,'Master 2012 Pay Sheet'!$C$5:$C$35,'Master 2012 Pay Sheet'!$D$5:$D$35)>0,LOOKUP(AW6,'Master 2012 Pay Sheet'!$C$5:$C$35,'Master 2012 Pay Sheet'!$D$5:$D$35),0)) -> 0 | AY6: 18.24 | AZ6: 48 | BA6: =IF(D6="","",IF(LOOKUP(AZ6,'Master 2012 Pay Sheet'!$E$5:$E$35,'Master 2012 Pay Sheet'!$F$5:$F$35)>0,LOOKUP(AZ6,'Master 2012 Pay Sheet'!$E$5:$E$35,'Master 2012 Pay Sheet'!$F$5:$F$35),0)) -> 0 | BB6: 0 | BC6: 3 | BE6: 5 | BF6: 1.94 | BH6: 5 | BI6: 2.76 | BK6: 10 | BL6: 0 | BM6: 4 | BN6: 0 | BO6: 4 | BP6: 0 | BQ6: 4 | BR6: 0 | BS6: 4 | BT6: 0 | BU6: 4 | BV6: 0 | BW6: 4 | BX6: 0 | BY6: 4 | BZ6: 0 | CA6: 4 | CB6: 0 | CC6: 4 | CD6: 0 | CE6: 4 | CF6: 0 | CG6: 4 | CH6: 0 | CI6: 4 | CY6: 5 | DE6: 5 | DP6: 10 | DT6: 4 | DW6: 33.8028169
B7: 5 | D7: Keller, Kris | E7: Wolf Point, MT | G7: Johnson, Trevor | H7: Helena, MT | I7: AT | M7: 17.5 | N7: 20 | O7: 16.75 | P7: 15.75 | Q7: 21 | X7: 1.78 | Y7: 2.76 | Z7: 1.58 | AA7: 1.32 | AB7: 3.24 | AC7: 21 | AD7: 19.25 | AE7: 17.5 | AF7: 17.75 | AH7: 3.24 | AI7: 2.42 | AJ7: 1.78 | AK7: 1.86 | AS7: 10.68 | AT7: 40 | AU7: =IF(D7="","",IF(LOOKUP(AT7,'Master 2012 Pay Sheet'!$A$5:$A$35,'Master 2012 Pay Sheet'!$B$5:$B$35)>0,LOOKUP(AT7,'Master 2012 Pay Sheet'!$A$5:$A$35,'Master 2012 Pay Sheet'!$B$5:$B$35),0)) -> 0 | AV7: 9.3 | AW7: 38 | AX7: =IF(D7="","",IF(LOOKUP(AW7,'Master 2012 Pay Sheet'!$C$5:$C$35,'Master 2012 Pay Sheet'!$D$5:$D$35)>0,LOOKUP(AW7,'Master 2012 Pay Sheet'!$C$5:$C$35,'Master 2012 Pay Sheet'!$D$5:$D$35),0)) -> 0 | AY7: 19.98 | AZ7: 41 | BA7: =IF(D7="","",IF(LOOKUP(AZ7,'Master 2012 Pay Sheet'!$E$5:$E$35,'Master 2012 Pay Sheet'!$F$5:$F$35)>0,LOOKUP(AZ7,'Master 2012 Pay Sheet'!$E$5:$E$35,'Master 2012 Pay Sheet'!$F$5:$F$35),0)) -> 0 | BB7: 0 | BC7: -1 | BE7: 5 | BF7: 3.24 | BH7: 4 | BI7: 3.24 | BK7: 9 | BL7: 0 | BM7: 5 | BN7: 0 | BO7: 5 | BP7: 0 | BQ7: 5 | BR7: 0 | BS7: 5 | BT7: 0 | BU7: 5 | BV7: 0 | BW7: 5 | BX7: 0 | BY7: 5 | BZ7: 0 | CA7: 5 | CB7: 0 | CC7: 5 | CD7: 0 | CE7: 5 | CF7: 0 | CG7: 5 | CH7: 0 | CI7: 5 | CY7: 5 | DD7: 4 | DO7: 9 | DT7: 5 | DW7: 43.66197183 | DY7: length in. | DZ7: Weight in lbs.
B8: 6 | D8: McNary, Ron | E8: Williston, ND | G8: Papineau, Jerome | H8: Miles City, MT | I8: AT | M8: 16.25 | N8: 18 | O8: 17.5 | P8: 30 | Q8: 17 | X8: 1.44 | Y8: 1.94 | Z8: 1.78 | AA8: 10.82 | AB8: 1.64 | AC8: 17 | AD8: 18.5 | AE8: 19.5 | AF8: 17.5 | AG8: 19 | AH8: 1.64 | AI8: 2.12 | AJ8: 2.52 | AK8: 1.78 | AL8: 2.32 | AS8: 17.62 | AT8: 12 | AU8: =IF(D8="","",IF(LOOKUP(AT8,'Master 2012 Pay Sheet'!$A$5:$A$35,'Master 2012 Pay Sheet'!$B$5:$B$35)>0,LOOKUP(AT8,'Master 2012 Pay Sheet'!$A$5:$A$35,'Master 2012 Pay Sheet'!$B$5:$B$35),0)) -> 0 | AV8: 10.38 | AW8: 31 | AX8: =IF(D8="","",IF(LOOKUP(AW8,'Master 2012 Pay Sheet'!$C$5:$C$35,'Master 2012 Pay Sheet'!$D$5:$D$35)>0,LOOKUP(AW8,'Master 2012 Pay Sheet'!$C$5:$C$35,'Master 2012 Pay Sheet'!$D$5:$D$35),0)) -> 0 | AY8: 28 | AZ8: 17 | BA8: =IF(D8="","",IF(LOOKUP(AZ8,'Master 2012 Pay Sheet'!$E$5:$E$35,'Master 2012 Pay Sheet'!$F$5:$F$35)>0,LOOKUP(AZ8,'Master 2012 Pay Sheet'!$E$5:$E$35,'Master 2012 Pay Sheet'!$F$5:$F$35),0)) -> 0 | BB8: 0 | BC8: -5 | BE8: 5 | BF8: 10.82 | BH8: 5 | BI8: 2.52 | BK8: 10 | BL8: 0 | BM8: 6 | BN8: 0 | BO8: 6 | BP8: 0 | BQ8: 6 | BR8: 0 | BS8: 6 | BT8: 0 | BU8: 6 | BV8: 0 | BW8: 6 | BX8: 0 | BY8: 6 | BZ8: 0 | CA8: 6 | CB8: 0 | CC8: 6 | CD8: 0 | CE8: 6 | CF8: 0 | CG8: 6 | CH8: 0 | CI8: 6 | CY8: 5 | DE8: 5 | DP8: 10 | DT8: 6 | DW8: 77.46478873 | DY8: 14.25 | DZ8: 1.03
B9: 7 | D9: Oyloe, Marty | E9: Williston, ND | G9: Meidinger, Sheldon | H9: Bismarck, ND | I9: AT | M9: 18.25 | N9: 17.5 | O9: 17.5 | P9: 18.5 | Q9: 20.25 | X9: 2.02 | Y9: 1.78 | Z9: 1.78 | AA9: 2.12 | AB9: 2.88 | AC9: 19.25 | AD9: 19.5 | AE9: 17.5 | AF9: 18.25 | AG9: 22 | AH9: 2.42 | AI9: 2.52 | AJ9: 1.78 | AK9: 2.02 | AL9: 3.8 | AS9: 10.58 | AT9: 42 | AU9: =IF(D9="","",IF(LOOKUP(AT9,'Master 2012 Pay Sheet'!$A$5:$A$35,'Master 2012 Pay Sheet'!$B$5:$B$35)>0,LOOKUP(AT9,'Master 2012 Pay Sheet'!$A$5:$A$35,'Master 2012 Pay Sheet'!$B$5:$B$35),0)) -> 0 | AV9: 12.54 | AW9: 17 | AX9: =IF(D9="","",IF(LOOKUP(AW9,'Master 2012 Pay Sheet'!$C$5:$C$35,'Master 2012 Pay Sheet'!$D$5:$D$35)>0,LOOKUP(AW9,'Master 2012 Pay Sheet'!$C$5:$C$35,'Master 2012 Pay Sheet'!$D$5:$D$35),0)) -> 0 | AY9: 23.12 | AZ9: 29 | BA9: =IF(D9="","",IF(LOOKUP(AZ9,'Master 2012 Pay Sheet'!$E$5:$E$35,'Master 2012 Pay Sheet'!$F$5:$F$35)>0,LOOKUP(AZ9,'Master 2012 Pay Sheet'!$E$5:$E$35,'Master 2012 Pay Sheet'!$F$5:$F$35),0)) -> 0 | BB9: 0 | BC9: 13 | BE9: 5 | BF9: 2.88 | BH9: 5 | BI9: 3.8 | BK9: 10 | BL9: 0 | BM9: 7 | BN9: 0 | BO9: 7 | BP9: 0 | BQ9: 7 | BR9: 0 | BS9: 7 | BT9: 0 | BU9: 7 | BV9: 0 | BW9: 7 | BX9: 0 | BY9: 7 | BZ9: 0 | CA9: 7 | CB9: 0 | CC9: 7 | CD9: 0 | CE9: 7 | CF9: 0 | CG9: 7 | CH9: 0 | CI9: 7 | CY9: 5 | DE9: 5 | DP9: 10 | DT9: 7 | DW9: 60.56338028 | DY9: 14.5 | DZ9: 1.06
B10: 8 | D10: Eggebrecht, Jason | E10: Fort Peck, MT | G10: Lien, Ross | H10: Savage, MT | I10: AT | M10: 18.25 | N10: 17.5 | O10: 17 | P10: 16.75 | X10: 2.02 | Y10: 1.78 | Z10: 1.64 | AA10: 1.58 | AC10: 23.25 | AD10: 19.5 | AE10: 18 | AF10: 18.5 | AG10: 25.5 | AH10: 4.58 | AI10: 2.52 | AJ10: 1.94 | AK10: 2.12 | AL10: 6.26 | AS10: 7.02 | AT10: 54 | AU10: =IF(D10="","",IF(LOOKUP(AT10,'Master 2012 Pay Sheet'!$A$5:$A$35,'Master 2012 Pay Sheet'!$B$5:$B$35)>0,LOOKUP(AT10,'Master 2012 Pay Sheet'!$A$5:$A$35,'Master 2012 Pay Sheet'!$B$5:$B$35),0)) -> 0 | AV10: 17.42 | AW10: 10 | AX10: =IF(D10="","",IF(LOOKUP(AW10,'Master 2012 Pay Sheet'!$C$5:$C$35,'Master 2012 Pay Sheet'!$D$5:$D$35)>0,LOOKUP(AW10,'Master 2012 Pay Sheet'!$C$5:$C$35,'Master 2012 Pay Sheet'!$D$5:$D$35),0)) -> 0 | AY10: 24.44 | AZ10: 26 | BA10: =IF(D10="","",IF(LOOKUP(AZ10,'Master 2012 Pay Sheet'!$E$5:$E$35,'Master 2012 Pay Sheet'!$F$5:$F$35)>0,LOOKUP(AZ10,'Master 2012 Pay Sheet'!$E$5:$E$35,'Master 2012 Pay Sheet'!$F$5:$F$35),0)) -> 0 | BB10: 0 | BC10: 28 | BE10: 4 | BF10: 2.02 | BH10: 5 | BI10: 6.26 | BK10: 9 | BL10: 0 | BM10: 8 | BN10: 0 | BO10: 8 | BP10: 0 | BQ10: 8 | BR10: 0 | BS10: 8 | BT10: 0 | BU10: 8 | BV10: 0 | BW10: 8 | BX10: 0 | BY10: 8 | BZ10: 0 | CA10: 8 | CB10: 0 | CC10: 8 | CD10: 0 | CE10: 8 | CF10: 0 | CG10: 8 | CH10: 0 | CI10: 8 | CX10: 4 | DE10: 5 | DO10: 9 | DT10: 8 | DW10: 64.78873239 | DY10: 14.75 | DZ10: 1.09
B11: 9 | D11: Aten, Randy | E11: Sidney, MT | G11: Timlber, Tim | H11: Brentwood, CA | I11: AT | M11: 17.5 | N11: 17.25 | O11: 17.75 | P11: 20 | Q11: 23.5 | X11: 1.78 | Y11: 1.72 | Z11: 1.86 | AA11: 2.76 | AB11: 4.74 | AC11: 15.25 | AH11: 1.18 | AS11: 12.86 | AT11: 27 | AU11: =IF(D11="","",IF(LOOKUP(AT11,'Master 2012 Pay Sheet'!$A$5:$A$35,'Master 2012 Pay Sheet'!$B$5:$B$35)>0,LOOKUP(AT11,'Master 2012 Pay Sheet'!$A$5:$A$35,'Master 2012 Pay Sheet'!$B$5:$B$35),0)) -> 0 | AV11: 1.18 | AW11: 70 | AX11: =IF(D11="","",IF(LOOKUP(AW11,'Master 2012 Pay Sheet'!$C$5:$C$35,'Master 2012 Pay Sheet'!$D$5:$D$35)>0,LOOKUP(AW11,'Master 2012 Pay Sheet'!$C$5:$C$35,'Master 2012 Pay Sheet'!$D$5:$D$35),0)) -> 0 | AY11: 14.04 | AZ11: 58 | BA11: =IF(D11="","",IF(LOOKUP(AZ11,'Master 2012 Pay Sheet'!$E$5:$E$35,'Master 2012 Pay Sheet'!$F$5:$F$35)>0,LOOKUP(AZ11,'Master 2012 Pay Sheet'!$E$5:$E$35,'Master 2012 Pay Sheet'!$F$5:$F$35),0)) -> 0 | BB11: 0 | BC11: -31 | BE11: 5 | BF11: 4.74 | BH11: 1 | BI11: 1.18 | BK11: 6 | BL11: 0 | BM11: 9 | BN11: 0 | BO11: 9 | BP11: 0 | BQ11: 9 | BR11: 0 | BS11: 9 | BT11: 0 | BU11: 9 | BV11: 0 | BW11: 9 | BX11: 0 | BY11: 9 | BZ11: 0 | CA11: 9 | CB11: 0 | CC11: 9 | CD11: 0 | CE11: 9 | CF11: 0 | CG11: 9 | CH11: 0 | CI11: 9 | CY11: 5 | DA11: 1 | DL11: 6 | DT11: 9 | DW11: 19.71830986 | DY11: 15 | DZ11: 1.12
B12: 10 | D12: Harper, Kevin | E12: Billings, MT | G12: Harper, Austin | H12: Dickinson, ND | I12: AT | M12: 19.75 | N12: 18 | O12: 21.5 | P12: 19 | Q12: 22.5 | X12: 2.64 | Y12: 1.94 | Z12: 3.52 | AA12: 2.32 | AB12: 4.1 | AC12: 20.25 | AD12: 17.5 | AE12: 17.25 | AF12: 22.5 | AG12: 17.75 | AH12: 2.88 | AI12: 1.78 | AJ12: 1.72 | AK12: 4.1 | AL12: 1.86 | AS12: 14.52 | AT12: 20 | AU12: =IF(D12="","",IF(LOOKUP(AT12,'Master 2012 Pay Sheet'!$A$5:$A$35,'Master 2012 Pay Sheet'!$B$5:$B$35)>0,LOOKUP(AT12,'Master 2012 Pay Sheet'!$A$5:$A$35,'Master 2012 Pay Sheet'!$B$5:$B$35),0)) -> 0 | AV12: 12.34 | AW12: 19 | AX12: =IF(D12="","",IF(LOOKUP(AW12,'Master 2012 Pay Sheet'!$C$5:$C$35,'Master 2012 Pay Sheet'!$D$5:$D$35)>0,LOOKUP(AW12,'Master 2012 Pay Sheet'!$C$5:$C$35,'Master 2012 Pay Sheet'!$D$5:$D$35),0)) -> 0 | AY12: 26.86 | AZ12: 19 | BA12: =IF(D12="","",IF(LOOKUP(AZ12,'Master 2012 Pay Sheet'!$E$5:$E$35,'Master 2012 Pay Sheet'!$F$5:$F$35)>0,LOOKUP(AZ12,'Master 2012 Pay Sheet'!$E$5:$E$35,'Master 2012 Pay Sheet'!$F$5:$F$35),0)) -> 0 | BB12: 0 | BC12: 1 | BE12: 5 | BF12: 4.1 | BH12: 5 | BI12: 4.1 | BK12: 10 | BL12: 0 | BM12: 10 | BN12: 0 | BO12: 10 | BP12: 0 | BQ12: 10 | BR12: 0 | BS12: 10 | BT12: 0 | BU12: 10 | BV12: 0 | BW12: 10 | BX12: 0 | BY12: 10 | BZ12: 0 | CA12: 10 | CB12: 0 | CC12: 10 | CD12: 0 | CE12: 10 | CF12: 0 | CG12: 10 | CH12: 0 | CI12: 10 | CY12: 5 | DE12: 5 | DP12: 10 | DT12: 10 | DW12: 74.64788732 | DY12: 15.25 | DZ12: 1.18
B13: 11 | D13: Volbrecht, Clint | E13: Richey, MT | G13: Buller, Tim | H13: Richey, MT | I13: AT | M13: 17.25 | N13: 27.5 | O13: 17.5 | P13: 17 | Q13: 19 | X13: 1.72 | Y13: 8.08 | Z13: 1.78 | AA13: 1.64 | AB13: 2.32 | AC13: 21 | AD13: 18.25 | AH13: 3.24 | AI13: 2.02 | AS13: 15.54 | AT13: 16 | AU13: =IF(D13="","",IF(LOOKUP(AT13,'Master 2012 Pay Sheet'!$A$5:$A$35,'Master 2012 Pay Sheet'!$B$5:$B$35)>0,LOOKUP(AT13,'Master 2012 Pay Sheet'!$A$5:$A$35,'Master 2012 Pay Sheet'!$B$5:$B$35),0)) -> 0 | AV13: 5.26 | AW13: 57 | AX13: =IF(D13="","",IF(LOOKUP(AW13,'Master 2012 Pay Sheet'!$C$5:$C$35,'Master 2012 Pay Sheet'!$D$5:$D$35)>0,LOOKUP(AW13,'Master 2012 Pay Sheet'!$C$5:$C$35,'Master 2012 Pay Sheet'!$D$5:$D$35),0)) -> 0 | AY13: 20.8 | AZ13: 37 | BA13: =IF(D13="","",IF(LOOKUP(AZ13,'Master 2012 Pay Sheet'!$E$5:$E$35,'Master 2012 Pay Sheet'!$F$5:$F$35)>0,LOOKUP(AZ13,'Master 2012 Pay Sheet'!$E$5:$E$35,'Master 2012 Pay Sheet'!$F$5:$F$35),0)) -> 0 | BB13: 0 | BC13: -21 | BE13: 5 | BF13: 8.08 | BH13: 2 | BI13: 3.24 | BK13: =IF(BE13="","",BE13+BH13) -> 7 | BL13: 0 | BM13: 11 | BN13: 0 | BO13: 11 | BP13: 0 | BQ13: 11 | BR13: 0 | BS13: 11 | BT13: 0 | BU13: 11 | BV13: 0 | BW13: 11 | BX13: 0 | BY13: 11 | BZ13: 0 | CA13: 11 | CB13: 0 | CC13: 11 | CD13: 0 | CE13: 11 | CF13: 0 | CG13: 11 | CH13: 0 | CI13: 11 | CT13: =IF(BE13=0,BE13,"") ->  | CU13: =IF(BE13=1,1,"") ->  | CV13: =IF(BE13=2,2,"") ->  | CW13: =IF(BE13=3,3,"") ->  | CX13: =IF(BE13=4,4,"") ->  | CY13: =IF(BE13=5,5,"") -> 5 | CZ13: =IF(BH13=0,BH13,"") ->  | DA13: =IF(BH13=1,1,"") ->  | DB13: =IF(BH13=2,2,"") -> 2 | DC13: =IF(BH13=3,3,"") ->  | DD13: =IF(BH13=4,4,"") ->  | DE13: =IF(BH13=5,5,"") ->  | DF13: =IF(BK13=0,BK13,"") ->  | DG13: =IF(BK13=1,1,"") ->  | DH13: =IF(BK13=2,2,"") ->  | DI13: =IF(BK13=3,3,"") ->  | DJ13: =IF(BK13=4,4,"") ->  | DK13: =IF(BK13=5,5,"") ->  | DL13: =IF(BK13=6,6,"") ->  | DM13: =IF(BK13=7,7,"") -> 7 | DN13: =IF(BK13=8,8,"") ->  | DO13: =IF(BK13=9,9,"") ->  | DP13: =IF(BK13=10,10,"") ->  | DT13: 11 | DW13: 49.29577465 | DY13: 15.5 | DZ13: 1.24
B14: 12 | D14: Olson, Harlyn | E14: Richey, MT | G14: Olson, Jamie | H14: Richey, MT | I14: AT | M14: 19 | N14: 21.75 | O14: 16.25 | P14: 17.75 | Q14: 18 | X14: 2.32 | Y14: 3.66 | Z14: 1.44 | AA14: 1.86 | AB14: 1.94 | AC14: 15 | AD14: 22 | AE14: 17 | AF14: 17 | AG14: 15 | AH14: 1.12 | AI14: 3.8 | AJ14: 1.64 | AK14: 1.64 | AL14: 1.12 | AS14: 11.22 | AT14: 35 | AU14: =IF(D14="","",IF(LOOKUP(AT14,'Master 2012 Pay Sheet'!$A$5:$A$35,'Master 2012 Pay Sheet'!$B$5:$B$35)>0,LOOKUP(AT14,'Master 2012 Pay Sheet'!$A$5:$A$35,'Master 2012 Pay Sheet'!$B$5:$B$35),0)) -> 0 | AV14: 9.32 | AW14: 37 | AX14: =IF(D14="","",IF(LOOKUP(AW14,'Master 2012 Pay Sheet'!$C$5:$C$35,'Master 2012 Pay Sheet'!$D$5:$D$35)>0,LOOKUP(AW14,'Master 2012 Pay Sheet'!$C$5:$C$35,'Master 2012 Pay Sheet'!$D$5:$D$35),0)) -> 0 | AY14: 20.54 | AZ14: 38 | BA14: =IF(D14="","",IF(LOOKUP(AZ14,'Master 2012 Pay Sheet'!$E$5:$E$35,'Master 2012 Pay Sheet'!$F$5:$F$35)>0,LOOKUP(AZ14,'Master 2012 Pay Sheet'!$E$5:$E$35,'Master 2012 Pay Sheet'!$F$5:$F$35),0)) -> 0 | BB14: 0 | BC14: -3 | BE14: 5 | BF14: 3.66 | BH14: 5 | BI14: 3.8 | BK14: =IF(BE14="","",BE14+BH14) -> 10 | BL14: 0 | BM14: 12 | BN14: 0 | BO14: 12 | BP14: 0 | BQ14: 12 | BR14: 0 | BS14: 12 | BT14: 0 | BU14: 12 | BV14: 0 | BW14: 12 | BX14: 0 | BY14: 12 | BZ14: 0 | CA14: 12 | CB14: 0 | CC14: 12 | CD14: 0 | CE14: 12 | CF14: 0 | CG14: 12 | CH14: 0 | CI14: 12 | CT14: =IF(BE14=0,BE14,"") ->  | CU14: =IF(BE14=1,1,"") ->  | CV14: =IF(BE14=2,2,"") ->  | CW14: =IF(BE14=3,3,"") ->  | CX14: =IF(BE14=4,4,"") ->  | CY14: =IF(BE14=5,5,"") -> 5 | CZ14: =IF(BH14=0,BH14,"") ->  | DA14: =IF(BH14=1,1,"") ->  | DB14: =IF(BH14=2,2,"") ->  | DC14: =IF(BH14=3,3,"") ->  | DD14: =IF(BH14=4,4,"") ->  | DE14: =IF(BH14=5,5,"") -> 5 | DF14: =IF(BK14=0,BK14,"") ->  | DG14: =IF(BK14=1,1,"") ->  | DH14: =IF(BK14=2,2,"") ->  | DI14: =IF(BK14=3,3,"") ->  | DJ14: =IF(BK14=4,4,"") ->  | DK14: =IF(BK14=5,5,"") ->  | DL14: =IF(BK14=6,6,"") ->  | DM14: =IF(BK14=7,7,"") ->  | DN14: =IF(BK14=8,8,"") ->  | DO14: =IF(BK14=9,9,"") ->  | DP14: =IF(BK14=10,10,"") -> 10 | DT14: 12 | DW14: 47.88732394 | DY14: 15.75 | DZ14: 1.32
B15: 13 | D15: McElvain, Mike | E15: Billings, MT | G15: McElvain, Bobby | H15: Billings, MT | I15: AA | M15: 20 | N15: 24.25 | O15: 18 | P15: 22.25 | Q15: 22.5 | X15: 2.76 | Y15: 5.28 | Z15: 1.94 | AA15: 3.94 | AB15: 4.1 | AC15: 18.5 | AD15: 17 | AE15: 16.25 | AF15: 17 | AG15: 23.5 | AH15: 2.12 | AI15: 1.64 | AJ15: 1.44 | AK15: 1.64 | AL15: 4.74 | AS15: 18.02 | AT15: 9 | AU15: =IF(D15="","",IF(LOOKUP(AT15,'Master 2012 Pay Sheet'!$A$5:$A$35,'Master 2012 Pay Sheet'!$B$5:$B$35)>0,LOOKUP(AT15,'Master 2012 Pay Sheet'!$A$5:$A$35,'Master 2012 Pay Sheet'!$B$5:$B$35),0)) -> 0 | AV15: 11.58 | AW15: 22 | AX15: =IF(D15="","",IF(LOOKUP(AW15,'Master 2012 Pay Sheet'!$C$5:$C$35,'Master 2012 Pay Sheet'!$D$5:$D$35)>0,LOOKUP(AW15,'Master 2012 Pay Sheet'!$C$5:$C$35,'Master 2012 Pay Sheet'!$D$5:$D$35),0)) -> 0 | AY15: 29.6 | AZ15: 14 | BA15: =IF(D15="","",IF(LOOKUP(AZ15,'Master 2012 Pay Sheet'!$E$5:$E$35,'Master 2012 Pay Sheet'!$F$5:$F$35)>0,LOOKUP(AZ15,'Master 2012 Pay Sheet'!$E$5:$E$35,'Master 2012 Pay Sheet'!$F$5:$F$35),0)) -> 0 | BB15: 0 | BC15: -5 | BE15: 5 | BF15: 5.28 | BH15: 5 | BI15: 4.74 | BK15: 10 | BL15: 0 | BM15: 13 | BN15: 0 | BO15: 13 | BP15: 0 | BQ15: 13 | BR15: 0 | BS15: 13 | BT15: 0 | BU15: 13 | BV15: 0 | BW15: 13 | BX15: 0 | BY15: 13 | BZ15: 0 | CA15: 13 | CB15: 0 | CC15: 13 | CD15: 0 | CE15: 13 | CF15: 0 | CG15: 13 | CH15: 0 | CI15: 13 | CY15: 5 | DE15: 5 | DP15: 10 | DW15: 81.69014085 | DY15: 16 | DZ15: 1.38
B16: 14 | D16: Boulter, Rod | E16: Lewistown, MTt | G16: Hertel, Steve | H16: Moore, MT | I16: AT | M16: 20.5 | N16: 16.25 | O16: 15.75 | P16: 17.5 | Q16: 15.25 | X16: 3 | Y16: 1.44 | Z16: 1.32 | AA16: 1.78 | AB16: 1.18 | AC16: 16.5 | AD16: 18.5 | AE16: 15.5 | AF16: 16.5 | AG16: 16.5 | AH16: 1.5 | AI16: 2.12 | AJ16: 1.24 | AK16: 1.5 | AL16: 1.5 | AS16: 8.72 | AT16: 48 | AU16: =IF(D16="","",IF(LOOKUP(AT16,'Master 2012 Pay Sheet'!$A$5:$A$35,'Master 2012 Pay Sheet'!$B$5:$B$35)>0,LOOKUP(AT16,'Master 2012 Pay Sheet'!$A$5:$A$35,'Master 2012 Pay Sheet'!$B$5:$B$35),0)) -> 0 | AV16: 7.86 | AW16: 45 | AX16: =IF(D16="","",IF(LOOKUP(AW16,'Master 2012 Pay Sheet'!$C$5:$C$35,'Master 2012 Pay Sheet'!$D$5:$D$35)>0,LOOKUP(AW16,'Master 2012 Pay Sheet'!$C$5:$C$35,'Master 2012 Pay Sheet'!$D$5:$D$35),0)) -> 0 | AY16: 16.58 | AZ16: 52 | BA16: =IF(D16="","",IF(LOOKUP(AZ16,'Master 2012 Pay Sheet'!$E$5:$E$35,'Master 2012 Pay Sheet'!$F$5:$F$35)>0,LOOKUP(AZ16,'Master 2012 Pay Sheet'!$E$5:$E$35,'Master 2012 Pay Sheet'!$F$5:$F$35),0)) -> 0 | BB16: 0 | BC16: -4 | BE16: 5 | BF16: 3 | BH16: 5 | BI16: 2.12 | BK16: 10 | BL16: 0 | BM16: 14 | BN16: 0 | BO16: 14 | BP16: 0 | BQ16: 14 | BR16: 0 | BS16: 14 | BT16: 0 | BU16: 14 | BV16: 0 | BW16: 14 | BX16: 0 | BY16: 14 | BZ16: 0 | CA16: 14 | CB16: 0 | CC16: 14 | CD16: 0 | CE16: 14 | CF16: 0 | CG16: 14 | CH16: 0 | CI16: 14 | CY16: 5 | DE16: 5 | DP16: 10 | DT16: 14 | DW16: 28.16901408 | DY16: 16.25 | DZ16: 1.44
B17: 15 | D17: Vine, Kyle | E17: Vida, MT | G17: Tognetti, Colby | H17: Bismarck, ND | I17: AT | M17: 16.5 | N17: 20 | O17: 14.5 | P17: 15.5 | Q17: 16 | X17: 1.5 | Y17: 2.76 | Z17: 1.06 | AA17: 1.24 | AB17: 1.38 | AC17: 16.5 | AD17: 18 | AE17: 18 | AF17: 16 | AG17: 18.5 | AH17: 1.5 | AI17: 1.94 | AJ17: 1.94 | AK17: 1.38 | AL17: 2.12 | AS17: 7.94 | AT17: 52 | AU17: =IF(D17="","",IF(LOOKUP(AT17,'Master 2012 Pay Sheet'!$A$5:$A$35,'Master 2012 Pay Sheet'!$B$5:$B$35)>0,LOOKUP(AT17,'Master 2012 Pay Sheet'!$A$5:$A$35,'Master 2012 Pay Sheet'!$B$5:$B$35),0)) -> 0 | AV17: 8.88 | AW17: 42 | AX17: =IF(D17="","",IF(LOOKUP(AW17,'Master 2012 Pay Sheet'!$C$5:$C$35,'Master 2012 Pay Sheet'!$D$5:$D$35)>0,LOOKUP(AW17,'Master 2012 Pay Sheet'!$C$5:$C$35,'Master 2012 Pay Sheet'!$D$5:$D$35),0)) -> 0 | AY17: 16.82 | AZ17: 50 | BA17: =IF(D17="","",IF(LOOKUP(AZ17,'Master 2012 Pay Sheet'!$E$5:$E$35,'Master 2012 Pay Sheet'!$F$5:$F$35)>0,LOOKUP(AZ17,'Master 2012 Pay Sheet'!$E$5:$E$35,'Master 2012 Pay Sheet'!$F$5:$F$35),0)) -> 0 | BB17: 0 | BC17: 2 | BE17: 5 | BF17: 2.76 | BH17: 5 | BI17: 2.12 | BK17: 10 | BL17: 0 | BM17: 15 | BN17: 0 | BO17: 15 | BP17: 0 | BQ17: 15 | BR17: 0 | BS17: 15 | BT17: 0 | BU17: 15 | BV17: 0 | BW17: 15 | BX17: 0 | BY17: 15 | BZ17: 0 | CA17: 15 | CB17: 0 | CC17: 15 | CD17: 0 | CE17: 15 | CF17: 0 | CG17: 15 | CH17: 0 | CI17: 15 | CY17: 5 | DE17: 5 | DP17: 10 | DT17: 15 | DW17: 30.98591549 | DY17: 16.5 | DZ17: 1.5
B18: 16 | D18: Quast, Doug | E18: Billings, MT | G18: Martinez, Cody | H18: Billings, MT | I18: AT | M18: 25.25 | N18: 31.75 | O18: 17.25 | P18: 16.75 | Q18: 18.5 | X18: 6.06 | Y18: 13.02 | Z18: 1.72 | AA18: 1.58 | AB18: 2.12 | AC18: 17.5 | AD18: 18 | AE18: 16.5 | AF18: 17.75 | AG18: 29.25 | AH18: 1.78 | AI18: 1.94 | AJ18: 1.5 | AK18: 1.86 | AL18: 9.94 | AS18: 24.5 | AT18: 2 | AU18: =IF(D18="","",IF(LOOKUP(AT18,'Master 2012 Pay Sheet'!$A$5:$A$35,'Master 2012 Pay Sheet'!$B$5:$B$35)>0,LOOKUP(AT18,'Master 2012 Pay Sheet'!$A$5:$A$35,'Master 2012 Pay Sheet'!$B$5:$B$35),0)) -> 0 | AV18: 17.02 | AW18: 11 | AX18: =IF(D18="","",IF(LOOKUP(AW18,'Master 2012 Pay Sheet'!$C$5:$C$35,'Master 2012 Pay Sheet'!$D$5:$D$35)>0,LOOKUP(AW18,'Master 2012 Pay Sheet'!$C$5:$C$35,'Master 2012 Pay Sheet'!$D$5:$D$35),0)) -> 0 | AY18: 41.52 | AZ18: 1 | BA18: =IF(D18="","",IF(LOOKUP(AZ18,'Master 2012 Pay Sheet'!$E$5:$E$35,'Master 2012 Pay Sheet'!$F$5:$F$35)>0,LOOKUP(AZ18,'Master 2012 Pay Sheet'!$E$5:$E$35,'Master 2012 Pay Sheet'!$F$5:$F$35),0)) -> 0 | BB18: 0 | BC18: 1 | BE18: 5 | BF18: 13.02 | BG18: 16 | BH18: 5 | BI18: 9.94 | BK18: 10 | BL18: 0 | BM18: 16 | BN18: 0 | BO18: 16 | BP18: 0 | BQ18: 16 | BR18: 0 | BS18: 16 | BT18: 0 | BU18: 16 | BV18: 0 | BW18: 16 | BX18: 0 | BY18: 16 | BZ18: 0 | CA18: 16 | CB18: 0 | CC18: 16 | CD18: 0 | CE18: 16 | CF18: 0 | CG18: 16 | CH18: 0 | CI18: 16 | CY18: 5 | DE18: 5 | DP18: 10 | DT18: 16 | DW18: 100 | DY18: 16.75 | DZ18: 1.58
B19: 17 | D19: Mummey, Wally | E19: Harlem, MT | G19: Mummey, Cody | H19: Belgrade, MT | I19: AT | M19: 20.25 | N19: 17.75 | O19: 17 | X19: 2.88 | Y19: 1.86 | Z19: 1.64 | AC19: 17.5 | AD19: 15.25 | AE19: 14.5 | AF19: 16 | AG19: 15 | AH19: 1.78 | AI19: =IF(AD19>0,VLOOKUP(AD19,$DY$8:$DZ$95,2)," ") -> 1.18 | AJ19: =IF(AE19>0,VLOOKUP(AE19,$DY$8:$DZ$95,2)," ") -> 1.06 | AK19: =IF(AF19>0,VLOOKUP(AF19,$DY$8:$DZ$95,2)," ") -> 1.38 | AL19: =IF(AG19>0,VLOOKUP(AG19,$DY$8:$DZ$95,2)," ") -> 1.12 | AS19: 6.38 | AT19: 57 | AU19: =IF(D19="","",IF(LOOKUP(AT19,'Master 2012 Pay Sheet'!$A$5:$A$35,'Master 2012 Pay Sheet'!$B$5:$B$35)>0,LOOKUP(AT19,'Master 2012 Pay Sheet'!$A$5:$A$35,'Master 2012 Pay Sheet'!$B$5:$B$35),0)) -> 0 | AV19: 6.52 | AW19: 49 | AX19: =IF(D19="","",IF(LOOKUP(AW19,'Master 2012 Pay Sheet'!$C$5:$C$35,'Master 2012 Pay Sheet'!$D$5:$D$35)>0,LOOKUP(AW19,'Master 2012 Pay Sheet'!$C$5:$C$35,'Master 2012 Pay Sheet'!$D$5:$D$35),0)) -> 0 | AY19: 12.9 | AZ19: 60 | BA19: =IF(D19="","",IF(LOOKUP(AZ19,'Master 2012 Pay Sheet'!$E$5:$E$35,'Master 2012 Pay Sheet'!$F$5:$F$35)>0,LOOKUP(AZ19,'Master 2012 Pay Sheet'!$E$5:$E$35,'Master 2012 Pay Sheet'!$F$5:$F$35),0)) -> 0 | BB19: 0 | BC19: -3 | BE19: 3 | BF19: 2.88 | BH19: 5 | BI19: 1.78 | BK19: 8 | BL19: 0 | BM19: 17 | BN19: 0 | BO19: 17 | BP19: 0 | BQ19: 17 | BR19: 0 | BS19: 17 | BT19: 0 | BU19: 17 | BV19: 0 | BW19: 17 | BX19: 0 | BY19: 17 | BZ19: 0 | CA19: 17 | CB19: 0 | CC19: 17 | CD19: 0 | CE19: 17 | CF19: 0 | CG19: 17 | CH19: 0 | CI19: 17 | CW19: 3 | DE19: 5 | DN19: 8 | DT19: 17 | DW19: 16.90140845 | DY19: 17 | DZ19: 1.64
B20: 18 | D20: Wirth, Cole | E20: Sidney, MT | G20: Gurney, Steve | H20: Sidney, MT | I20: AT | M20: 18.5 | N20: 18.5 | O20: 24.5 | P20: 17.5 | Q20: 17 | X20: 2.12 | Y20: 2.12 | Z20: 5.46 | AA20: 1.78 | AB20: 1.64 | AC20: 20 | AD20: 16.75 | AE20: 17.5 | AF20: 16.5 | AG20: 16.75 | AH20: 2.76 | AI20: 1.58 | AJ20: 1.78 | AK20: 1.5 | AL20: 1.58 | AS20: 13.12 | AT20: 25 | AU20: =IF(D20="","",IF(LOOKUP(AT20,'Master 2012 Pay Sheet'!$A$5:$A$35,'Master 2012 Pay Sheet'!$B$5:$B$35)>0,LOOKUP(AT20,'Master 2012 Pay Sheet'!$A$5:$A$35,'Master 2012 Pay Sheet'!$B$5:$B$35),0)) -> 0 | AV20: 9.2 | AW20: 39 | AX20: =IF(D20="","",IF(LOOKUP(AW20,'Master 2012 Pay Sheet'!$C$5:$C$35,'Master 2012 Pay Sheet'!$D$5:$D$35)>0,LOOKUP(AW20,'Master 2012 Pay Sheet'!$C$5:$C$35,'Master 2012 Pay Sheet'!$D$5:$D$35),0)) -> 0 | AY20: 22.32 | AZ20: 31 | BA20: =IF(D20="","",IF(LOOKUP(AZ20,'Master 2012 Pay Sheet'!$E$5:$E$35,'Master 2012 Pay Sheet'!$F$5:$F$35)>0,LOOKUP(AZ20,'Master 2012 Pay Sheet'!$E$5:$E$35,'Master 2012 Pay Sheet'!$F$5:$F$35),0)) -> 0 | BB20: 0 | BC20: -6 | BE20: 5 | BF20: 5.46 | BH20: 5 | BI20: 2.76 | BK20: 10 | BL20: 0 | BM20: 18 | BN20: 0 | BO20: 18 | BP20: 0 | BQ20: 18 | BR20: 0 | BS20: 18 | BT20: 0 | BU20: 18 | BV20: 0 | BW20: 18 | BX20: 0 | BY20: 18 | BZ20: 0 | CA20: 18 | CB20: 0 | CC20: 18 | CD20: 0 | CE20: 18 | CF20: 0 | CG20: 18 | CH20: 0 | CI20: 18 | CY20: 5 | DE20: 5 | DP20: 10 | DT20: 18 | DW20: 57.74647887 | DY20: 17.25 | DZ20: 1.72
B21: 19 | D21: Dull, Paul | E21: Hinsdale, MT | G21: Simpson, Audie | H21: Saco, MT | I21: AT | M21: 14.5 | N21: 16 | X21: 1.06 | Y21: 1.38 | AC21: 21.75 | AD21: 19 | AE21: 18.75 | AF21: 16.75 | AG21: 17.75 | AH21: 3.66 | AI21: 2.32 | AJ21: 2.22 | AK21: 1.58 | AL21: 1.86 | AS21: 2.44 | AT21: 67 | AU21: =IF(D21="","",IF(LOOKUP(AT21,'Master 2012 Pay Sheet'!$A$5:$A$35,'Master 2012 Pay Sheet'!$B$5:$B$35)>0,LOOKUP(AT21,'Master 2012 Pay Sheet'!$A$5:$A$35,'Master 2012 Pay Sheet'!$B$5:$B$35),0)) -> 0 | AV21: 11.64 | AW21: 20 | AX21: =IF(D21="","",IF(LOOKUP(AW21,'Master 2012 Pay Sheet'!$C$5:$C$35,'Master 2012 Pay Sheet'!$D$5:$D$35)>0,LOOKUP(AW21,'Master 2012 Pay Sheet'!$C$5:$C$35,'Master 2012 Pay Sheet'!$D$5:$D$35),0)) -> 0 | AY21: 14.08 | AZ21: 57 | BA21: =IF(D21="","",IF(LOOKUP(AZ21,'Master 2012 Pay Sheet'!$E$5:$E$35,'Master 2012 Pay Sheet'!$F$5:$F$35)>0,LOOKUP(AZ21,'Master 2012 Pay Sheet'!$E$5:$E$35,'Master 2012 Pay Sheet'!$F$5:$F$35),0)) -> 0 | BB21: 0 | BC21: 10 | BE21: 2 | BF21: 1.38 | BH21: 5 | BI21: 3.66 | BK21: 7 | BL21: 0 | BM21: 19 | BN21: 0 | BO21: 19 | BP21: 0 | BQ21: 19 | BR21: 0 | BS21: 19 | BT21: 0 | BU21: 19 | BV21: 0 | BW21: 19 | BX21: 0 | BY21: 19 | BZ21: 0 | CA21: 19 | CB21: 0 | CC21: 19 | CD21: 0 | CE21: 19 | CF21: 0 | CG21: 19 | CH21: 0 | CI21: 19 | CV21: 2 | DE21: 5 | DM21: 7 | DT21: 19 | DW21: 21.12676056 | DY21: 17.5 | DZ21: 1.78
B22: 20 | D22: Wemmer, Paul | E22: Nashua, MT | G22: Toavs, Ted | H22: Wolf Point, MT | I22: AT | M22: 19 | N22: 19.25 | O22: 26.5 | P22: 18 | Q22: 28 | X22: 2.32 | Y22: 2.42 | Z22: 7.12 | AA22: 1.94 | AB22: 8.58 | AC22: 17 | AD22: 18.25 | AE22: 19.5 | AF22: 19.75 | AG22: 19 | AH22: 1.64 | AI22: 2.02 | AJ22: 2.52 | AK22: 2.64 | AL22: 2.32 | AS22: 22.38 | AT22: 5 | AU22: =IF(D22="","",IF(LOOKUP(AT22,'Master 2012 Pay Sheet'!$A$5:$A$35,'Master 2012 Pay Sheet'!$B$5:$B$35)>0,LOOKUP(AT22,'Master 2012 Pay Sheet'!$A$5:$A$35,'Master 2012 Pay Sheet'!$B$5:$B$35),0)) -> 0 | AV22: 11.14 | AW22: 28 | AX22: =IF(D22="","",IF(LOOKUP(AW22,'Master 2012 Pay Sheet'!$C$5:$C$35,'Master 2012 Pay Sheet'!$D$5:$D$35)>0,LOOKUP(AW22,'Master 2012 Pay Sheet'!$C$5:$C$35,'Master 2012 Pay Sheet'!$D$5:$D$35),0)) -> 0 | AY22: 33.52 | AZ22: 8 | BA22: =IF(D22="","",IF(LOOKUP(AZ22,'Master 2012 Pay Sheet'!$E$5:$E$35,'Master 2012 Pay Sheet'!$F$5:$F$35)>0,LOOKUP(AZ22,'Master 2012 Pay Sheet'!$E$5:$E$35,'Master 2012 Pay Sheet'!$F$5:$F$35),0)) -> 0 | BB22: 0 | BC22: -3 | BE22: 5 | BF22: 8.58 | BH22: 5 | BI22: 2.64 | BK22: 10 | BL22: 0 | BM22: 20 | BN22: 0 | BO22: 20 | BP22: 0 | BQ22: 20 | BR22: 0 | BS22: 20 | BT22: 0 | BU22: 20 | BV22: 0 | BW22: 20 | BX22: 0 | BY22: 20 | BZ22: 0 | CA22: 20 | CB22: 0 | CC22: 20 | CD22: 0 | CE22: 20 | CF22: 0 | CG22: 20 | CH22: 0 | CI22: 20 | CY22: 5 | DE22: 5 | DP22: 10 | DT22: 20 | DW22: 90.14084507 | DY22: 17.75 | DZ22: 1.86
B23: 21 | D23: Reuter, Jesse | E23: Sidney, MT | G23: Hippe, Jonathan | H23: Trenton, ND | I23: AT | M23: 16 | N23: 19.25 | O23: 15.75 | P23: 16.75 | Q23: 19 | X23: 1.38 | Y23: 2.42 | Z23: 1.32 | AA23: 1.58 | AB23: 2.32 | AC23: 21.25 | AD23: 17.5 | AE23: 17.5 | AF23: 18 | AG23: 17.5 | AH23: 3.38 | AI23: 1.78 | AJ23: 1.78 | AK23: 1.94 | AL23: 1.78 | AS23: 9.02 | AT23: 46 | AU23: =IF(D23="","",IF(LOOKUP(AT23,'Master 2012 Pay Sheet'!$A$5:$A$35,'Master 2012 Pay Sheet'!$B$5:$B$35)>0,LOOKUP(AT23,'Master 2012 Pay Sheet'!$A$5:$A$35,'Master 2012 Pay Sheet'!$B$5:$B$35),0)) -> 0 | AV23: 10.66 | AW23: 30 | AX23: =IF(D23="","",IF(LOOKUP(AW23,'Master 2012 Pay Sheet'!$C$5:$C$35,'Master 2012 Pay Sheet'!$D$5:$D$35)>0,LOOKUP(AW23,'Master 2012 Pay Sheet'!$C$5:$C$35,'Master 2012 Pay Sheet'!$D$5:$D$35),0)) -> 0 | AY23: 19.68 | AZ23: 45 | BA23: =IF(D23="","",IF(LOOKUP(AZ23,'Master 2012 Pay Sheet'!$E$5:$E$35,'Master 2012 Pay Sheet'!$F$5:$F$35)>0,LOOKUP(AZ23,'Master 2012 Pay Sheet'!$E$5:$E$35,'Master 2012 Pay Sheet'!$F$5:$F$35),0)) -> 0 | BB23: 0 | BC23: 1 | BE23: 5 | BF23: 2.42 | BH23: 5 | BI23: 3.38 | BK23: 10 | BL23: 0 | BM23: 21 | BN23: 0 | BO23: 21 | BP23: 0 | BQ23: 21 | BR23: 0 | BS23: 21 | BT23: 0 | BU23: 21 | BV23: 0 | BW23: 21 | BX23: 0 | BY23: 21 | BZ23: 0 | CA23: 21 | CB23: 0 | CC23: 21 | CD23: 0 | CE23: 21 | CF23: 0 | CG23: 21 | CH23: 0 | CI23: 21 | CY23: 5 | DE23: 5 | DP23: 10 | DT23: 21 | DW23: 38.02816901 | DY23: 18 | DZ23: 1.94
B24: 22 | D24: Patterson, Charles | E24: Sheridan, WY | G24: Gorm Steve | H24: Sheridan, WY | I24: AT | M24: 17.5 | N24: 15.5 | O24: 17 | P24: 17 | Q24: 16.5 | X24: 1.78 | Y24: 1.24 | Z24: 1.64 | AA24: 1.64 | AB24: 1.5 | AC24: 16 | AD24: 16.5 | AE24: 14.5 | AF24: 15.5 | AG24: 15.25 | AH24: 1.38 | AI24: 1.5 | AJ24: 1.06 | AK24: 1.24 | AL24: 1.18 | AS24: 7.8 | AT24: 53 | AU24: =IF(D24="","",IF(LOOKUP(AT24,'Master 2012 Pay Sheet'!$A$5:$A$35,'Master 2012 Pay Sheet'!$B$5:$B$35)>0,LOOKUP(AT24,'Master 2012 Pay Sheet'!$A$5:$A$35,'Master 2012 Pay Sheet'!$B$5:$B$35),0)) -> 0 | AV24: 6.36 | AW24: 51 | AX24: =IF(D24="","",IF(LOOKUP(AW24,'Master 2012 Pay Sheet'!$C$5:$C$35,'Master 2012 Pay Sheet'!$D$5:$D$35)>0,LOOKUP(AW24,'Master 2012 Pay Sheet'!$C$5:$C$35,'Master 2012 Pay Sheet'!$D$5:$D$35),0)) -> 0 | AY24: 14.16 | AZ24: 56 | BA24: =IF(D24="","",IF(LOOKUP(AZ24,'Master 2012 Pay Sheet'!$E$5:$E$35,'Master 2012 Pay Sheet'!$F$5:$F$35)>0,LOOKUP(AZ24,'Master 2012 Pay Sheet'!$E$5:$E$35,'Master 2012 Pay Sheet'!$F$5:$F$35),0)) -> 0 | BB24: 0 | BC24: -3 | BE24: 5 | BF24: 1.78 | BH24: 5 | BI24: 1.5 | BK24: 10 | BL24: 0 | BM24: 22 | BN24: 0 | BO24: 22 | BP24: 0 | BQ24: 22 | BR24: 0 | BS24: 22 | BT24: 0 | BU24: 22 | BV24: 0 | BW24: 22 | BX24: 0 | BY24: 22 | BZ24: 0 | CA24: 22 | CB24: 0 | CC24: 22 | CD24: 0 | CE24: 22 | CF24: 0 | CG24: 22 | CH24: 0 | CI24: 22 | CY24: 5 | DE24: 5 | DP24: 10 | DT24: 22 | DW24: 22.53521127 | DY24: 18.25 | DZ24: 2.02
B25: 23 | D25: Justice, Rick | E25: Dagmar, MT | G25: Justice, Colton | H25: Medicine Lake, MT | I25: AT | M25: 17.25 | N25: 25.5 | O25: 17.5 | P25: 17.5 | Q25: 17.5 | X25: 1.72 | Y25: 6.26 | Z25: 1.78 | AA25: 1.78 | AB25: 1.78 | AC25: 23.25 | AD25: 15 | AE25: 16.5 | AF25: 17.25 | AH25: 4.58 | AI25: 1.12 | AJ25: 1.5 | AK25: 1.72 | AS25: 13.32 | AT25: 24 | AU25: =IF(D25="","",IF(LOOKUP(AT25,'Master 2012 Pay Sheet'!$A$5:$A$35,'Master 2012 Pay Sheet'!$B$5:$B$35)>0,LOOKUP(AT25,'Master 2012 Pay Sheet'!$A$5:$A$35,'Master 2012 Pay Sheet'!$B$5:$B$35),0)) -> 0 | AV25: 8.92 | AW25: 41 | AX25: =IF(D25="","",IF(LOOKUP(AW25,'Master 2012 Pay Sheet'!$C$5:$C$35,'Master 2012 Pay Sheet'!$D$5:$D$35)>0,LOOKUP(AW25,'Master 2012 Pay Sheet'!$C$5:$C$35,'Master 2012 Pay Sheet'!$D$5:$D$35),0)) -> 0 | AY25: 22.24 | AZ25: 32 | BA25: =IF(D25="","",IF(LOOKUP(AZ25,'Master 2012 Pay Sheet'!$E$5:$E$35,'Master 2012 Pay Sheet'!$F$5:$F$35)>0,LOOKUP(AZ25,'Master 2012 Pay Sheet'!$E$5:$E$35,'Master 2012 Pay Sheet'!$F$5:$F$35),0)) -> 0 | BB25: 0 | BC25: -8 | BE25: 5 | BF25: 6.26 | BH25: 4 | BI25: 4.58 | BK25: 9 | BL25: 0 | BM25: 23 | BN25: 0 | BO25: 23 | BP25: 0 | BQ25: 23 | BR25: 0 | BS25: 23 | BT25: 0 | BU25: 23 | BV25: 0 | BW25: 23 | BX25: 0 | BY25: 23 | BZ25: 0 | CA25: 23 | CB25: 0 | CC25: 23 | CD25: 0 | CE25: 23 | CF25: 0 | CG25: 23 | CH25: 0 | CI25: 23 | CY25: 5 | DD25: 4 | DO25: 9 | DT25: 23 | DW25: 56.33802817 | DY25: 18.5 | DZ25: 2.12
B26: 24 | D26: Dahlquist, Kelly | E26: Billings, MT | G26: Dahlquist, Jennifer | H26: Billings, MT | I26: MC | M26: 19 | N26: 19.5 | O26: 17 | P26: 23.5 | X26: 2.32 | Y26: 2.52 | Z26: 1.64 | AA26: 4.74 | AC26: 21 | AD26: 22.25 | AE26: 20.5 | AF26: 14.75 | AH26: 3.24 | AI26: 3.94 | AJ26: 3 | AK26: 1.09 | AS26: 11.22 | AT26: 35 | AU26: =IF(D26="","",IF(LOOKUP(AT26,'Master 2012 Pay Sheet'!$A$5:$A$35,'Master 2012 Pay Sheet'!$B$5:$B$35)>0,LOOKUP(AT26,'Master 2012 Pay Sheet'!$A$5:$A$35,'Master 2012 Pay Sheet'!$B$5:$B$35),0)) -> 0 | AV26: 11.27 | AW26: 25 | AX26: =IF(D26="","",IF(LOOKUP(AW26,'Master 2012 Pay Sheet'!$C$5:$C$35,'Master 2012 Pay Sheet'!$D$5:$D$35)>0,LOOKUP(AW26,'Master 2012 Pay Sheet'!$C$5:$C$35,'Master 2012 Pay Sheet'!$D$5:$D$35),0)) -> 0 | AY26: 22.49 | AZ26: 30 | BA26: =IF(D26="","",IF(LOOKUP(AZ26,'Master 2012 Pay Sheet'!$E$5:$E$35,'Master 2012 Pay Sheet'!$F$5:$F$35)>0,LOOKUP(AZ26,'Master 2012 Pay Sheet'!$E$5:$E$35,'Master 2012 Pay Sheet'!$F$5:$F$35),0)) -> 0 | BB26: 0 | BC26: 5 | BE26: 4 | BF26: 4.74 | BH26: 4 | BI26: 3.94 | BK26: 8 | BL26: 0 | BM26: 24 | BN26: 0 | BO26: 24 | BP26: 0 | BQ26: 24 | BR26: 0 | BS26: 24 | BT26: 0 | BU26: 24 | BV26: 0 | BW26: 24 | BX26: 0 | BY26: 24 | BZ26: 0 | CA26: 24 | CB26: 0 | CC26: 24 | CD26: 0 | CE26: 24 | CF26: 0 | CG26: 24 | CH26: 0 | CI26: 24 | CO26: 30 | CP26: 5 | CX26: 4 | DD26: 4 | DN26: 8 | DU26: 24 | DW26: 59.15492958 | DY26: 18.75 | DZ26: 2.22
B27: 25 | D27: Strohm, Cody | E27: Richey, MT | G27: Montgomery, Keeley | H27: Miles City, MT | I27: AT | M27: 27.75 | N27: 14.25 | O27: 16.5 | P27: 15.5 | Q27: 17.75 | X27: 8.32 | Y27: 1.03 | Z27: 1.5 | AA27: 1.24 | AB27: 1.86 | AC27: 14.25 | AD27: 15 | AE27: 25.75 | AF27: 16.5 | AG27: 14.75 | AH27: 1.03 | AI27: 1.12 | AJ27: 6.46 | AK27: 1.5 | AL27: 1.09 | AS27: 13.95 | AT27: 23 | AU27: =IF(D27="","",IF(LOOKUP(AT27,'Master 2012 Pay Sheet'!$A$5:$A$35,'Master 2012 Pay Sheet'!$B$5:$B$35)>0,LOOKUP(AT27,'Master 2012 Pay Sheet'!$A$5:$A$35,'Master 2012 Pay Sheet'!$B$5:$B$35),0)) -> 0 | AV27: 11.2 | AW27: 27 | AX27: =IF(D27="","",IF(LOOKUP(AW27,'Master 2012 Pay Sheet'!$C$5:$C$35,'Master 2012 Pay Sheet'!$D$5:$D$35)>0,LOOKUP(AW27,'Master 2012 Pay Sheet'!$C$5:$C$35,'Master 2012 Pay Sheet'!$D$5:$D$35),0)) -> 0 | AY27: 25.15 | AZ27: 24 | BA27: =IF(D27="","",IF(LOOKUP(AZ27,'Master 2012 Pay Sheet'!$E$5:$E$35,'Master 2012 Pay Sheet'!$F$5:$F$35)>0,LOOKUP(AZ27,'Master 2012 Pay Sheet'!$E$5:$E$35,'Master 2012 Pay Sheet'!$F$5:$F$35),0)) -> 0 | BB27: 0 | BC27: -1 | BE27: 5 | BF27: 8.32 | BH27: 5 | BI27: 6.46 | BK27: 10 | BL27: 0 | BM27: 25 | BN27: 0 | BO27: 25 | BP27: 0 | BQ27: 25 | BR27: 0 | BS27: 25 | BT27: 0 | BU27: 25 | BV27: 0 | BW27: 25 | BX27: 0 | BY27: 25 | BZ27: 0 | CA27: 25 | CB27: 0 | CC27: 25 | CD27: 0 | CE27: 25 | CF27: 0 | CG27: 25 | CH27: 0 | CI27: 25 | CY27: 5 | DE27: 5 | DP27: 10 | DT27: 25 | DW27: 67.6056338 | DY27: 19 | DZ27: 2.32
B28: 26 | D28: Meier, Kristofer | E28: Townsend, MT | G28: Vogl, Dewey | H28: Townsend, MT | I28: AT | M28: 18.75 | N28: 21.5 | O28: 30.75 | P28: 17.5 | Q28: 18 | X28: 2.22 | Y28: 3.52 | Z28: 11.74 | AA28: 1.78 | AB28: 1.94 | AC28: 18.25 | AD28: 16.5 | AE28: 17 | AF28: 17.75 | AG28: 19 | AH28: 2.02 | AI28: 1.5 | AJ28: 1.64 | AK28: 1.86 | AL28: 2.32 | AS28: 21.2 | AT28: 7 | AU28: =IF(D28="","",IF(LOOKUP(AT28,'Master 2012 Pay Sheet'!$A$5:$A$35,'Master 2012 Pay Sheet'!$B$5:$B$35)>0,LOOKUP(AT28,'Master 2012 Pay Sheet'!$A$5:$A$35,'Master 2012 Pay Sheet'!$B$5:$B$35),0)) -> 0 | AV28: 9.34 | AW28: 36 | AX28: =IF(D28="","",IF(LOOKUP(AW28,'Master 2012 Pay Sheet'!$C$5:$C$35,'Master 2012 Pay Sheet'!$D$5:$D$35)>0,LOOKUP(AW28,'Master 2012 Pay Sheet'!$C$5:$C$35,'Master 2012 Pay Sheet'!$D$5:$D$35),0)) -> 0 | AY28: 30.54 | AZ28: 13 | BA28: =IF(D28="","",IF(LOOKUP(AZ28,'Master 2012 Pay Sheet'!$E$5:$E$35,'Master 2012 Pay Sheet'!$F$5:$F$35)>0,LOOKUP(AZ28,'Master 2012 Pay Sheet'!$E$5:$E$35,'Master 2012 Pay Sheet'!$F$5:$F$35),0)) -> 0 | BB28: 0 | BC28: -6 | BE28: 5 | BF28: 11.74 | BH28: 5 | BI28: 2.32 | BK28: 10 | BL28: 0 | BM28: 26 | BN28: 0 | BO28: 26 | BP28: 0 | BQ28: 26 | BR28: 0 | BS28: 26 | BT28: 0 | BU28: 26 | BV28: 0 | BW28: 26 | BX28: 0 | BY28: 26 | BZ28: 0 | CA28: 26 | CB28: 0 | CC28: 26 | CD28: 0 | CE28: 26 | CF28: 0 | CG28: 26 | CH28: 0 | CI28: 26 | CY28: 5 | DE28: 5 | DP28: 10 | DT28: 26 | DW28: 83.09859155 | DY28: 19.25 | DZ28: 2.42
B29: 27 | D29: Holte, Landon | E29: Fort Peck, MT | G29: Holte, David | H29: Littleton, CO | I29: AT | M29: 15.25 | N29: 17.25 | O29: 15 | P29: 21 | Q29: 17.75 | X29: 1.18 | Y29: 1.72 | Z29: 1.12 | AA29: 3.24 | AB29: 1.86 | AC29: 15 | AD29: 14.75 | AE29: 14.5 | AF29: 16.5 | AG29: 14.5 | AH29: 1.12 | AI29: 1.09 | AJ29: 1.06 | AK29: 1.5 | AL29: 1.06 | AS29: 9.12 | AT29: 45 | AU29: =IF(D29="","",IF(LOOKUP(AT29,'Master 2012 Pay Sheet'!$A$5:$A$35,'Master 2012 Pay Sheet'!$B$5:$B$35)>0,LOOKUP(AT29,'Master 2012 Pay Sheet'!$A$5:$A$35,'Master 2012 Pay Sheet'!$B$5:$B$35),0)) -> 0 | AV29: 5.83 | AW29: 54 | AX29: =IF(D29="","",IF(LOOKUP(AW29,'Master 2012 Pay Sheet'!$C$5:$C$35,'Master 2012 Pay Sheet'!$D$5:$D$35)>0,LOOKUP(AW29,'Master 2012 Pay Sheet'!$C$5:$C$35,'Master 2012 Pay Sheet'!$D$5:$D$35),0)) -> 0 | AY29: 14.95 | AZ29: 54 | BA29: =IF(D29="","",IF(LOOKUP(AZ29,'Master 2012 Pay Sheet'!$E$5:$E$35,'Master 2012 Pay Sheet'!$F$5:$F$35)>0,LOOKUP(AZ29,'Master 2012 Pay Sheet'!$E$5:$E$35,'Master 2012 Pay Sheet'!$F$5:$F$35),0)) -> 0 | BB29: 0 | BC29: -9 | BE29: 5 | BF29: 3.24 | BH29: 5 | BI29: 1.5 | BK29: 10 | BL29: 0 | BM29: 27 | BN29: 0 | BO29: 27 | BP29: 0 | BQ29: 27 | BR29: 0 | BS29: 27 | BT29: 0 | BU29: 27 | BV29: 0 | BW29: 27 | BX29: 0 | BY29: 27 | BZ29: 0 | CA29: 27 | CB29: 0 | CC29: 27 | CD29: 0 | CE29: 27 | CF29: 0 | CG29: 27 | CH29: 0 | CI29: 27 | CY29: 5 | DE29: 5 | DP29: 10 | DT29: 27 | DW29: 25.35211268 | DY29: 19.5 | DZ29: 2.52
B30: 28 | D30: Kennedy, Tayler | E30: Miles City, MT | G30: Trogden, Tyler | H30: Miles City, MT | I30: AT | M30: 17.5 | X30: 1.78 | AC30: 14.75 | AD30: 15.75 | AE30: 17.75 | AH30: 1.09 | AI30: 1.32 | AJ30: 1.86 | AS30: 1.78 | AT30: 69 | AU30: =IF(D30="","",IF(LOOKUP(AT30,'Master 2012 Pay Sheet'!$A$5:$A$35,'Master 2012 Pay Sheet'!$B$5:$B$35)>0,LOOKUP(AT30,'Master 2012 Pay Sheet'!$A$5:$A$35,'Master 2012 Pay Sheet'!$B$5:$B$35),0)) -> 0 | AV30: 4.27 | AW30: 62 | AX30: =IF(D30="","",IF(LOOKUP(AW30,'Master 2012 Pay Sheet'!$C$5:$C$35,'Master 2012 Pay Sheet'!$D$5:$D$35)>0,LOOKUP(AW30,'Master 2012 Pay Sheet'!$C$5:$C$35,'Master 2012 Pay Sheet'!$D$5:$D$35),0)) -> 0 | AY30: 6.05 | AZ30: 68 | BA30: =IF(D30="","",IF(LOOKUP(AZ30,'Master 2012 Pay Sheet'!$E$5:$E$35,'Master 2012 Pay Sheet'!$F$5:$F$35)>0,LOOKUP(AZ30,'Master 2012 Pay Sheet'!$E$5:$E$35,'Master 2012 Pay Sheet'!$F$5:$F$35),0)) -> 0 | BB30: 0 | BC30: 1 | BE30: 1 | BF30: 1.78 | BH30: 3 | BI30: 1.86 | BK30: 4 | BL30: 0 | BM30: 28 | BN30: 0 | BO30: 28 | BP30: 0 | BQ30: 28 | BR30: 0 | BS30: 28 | BT30: 0 | BU30: 28 | BV30: 0 | BW30: 28 | BX30: 0 | BY30: 28 | BZ30: 0 | CA30: 28 | CB30: 0 | CC30: 28 | CD30: 0 | CE30: 28 | CF30: 0 | CG30: 28 | CH30: 0 | CI30: 28 | CU30: 1 | DC30: 3 | DJ30: 4 | DT30: 28 | DW30: 5.633802817 | DY30: 19.75 | DZ30: 2.64
B31: 29 | D31: Pronto, Gary | E31: Harlem, MT | G31: Devaney, Kris | H31: Laurel, MT | I31: AT | M31: 0 | AC31: 16.5 | AD31: 16.75 | AH31: 1.5 | AI31: 1.58 | AS31: 0 | AT31: 71 | AU31: =IF(D31="","",IF(LOOKUP(AT31,'Master 2012 Pay Sheet'!$A$5:$A$35,'Master 2012 Pay Sheet'!$B$5:$B$35)>0,LOOKUP(AT31,'Master 2012 Pay Sheet'!$A$5:$A$35,'Master 2012 Pay Sheet'!$B$5:$B$35),0)) -> 0 | AV31: 3.08 | AW31: 66 | AX31: =IF(D31="","",IF(LOOKUP(AW31,'Master 2012 Pay Sheet'!$C$5:$C$35,'Master 2012 Pay Sheet'!$D$5:$D$35)>0,LOOKUP(AW31,'Master 2012 Pay Sheet'!$C$5:$C$35,'Master 2012 Pay Sheet'!$D$5:$D$35),0)) -> 0 | AY31: 3.08 | AZ31: 70 | BA31: =IF(D31="","",IF(LOOKUP(AZ31,'Master 2012 Pay Sheet'!$E$5:$E$35,'Master 2012 Pay Sheet'!$F$5:$F$35)>0,LOOKUP(AZ31,'Master 2012 Pay Sheet'!$E$5:$E$35,'Master 2012 Pay Sheet'!$F$5:$F$35),0)) -> 0 | BB31: 0 | BC31: 1 | BE31: 1 | BF31: 0 | BH31: 2 | BI31: 1.58 | BK31: 3 | BL31: 0 | BM31: 29 | BN31: 0 | BO31: 29 | BP31: 0 | BQ31: 29 | BR31: 0 | BS31: 29 | BT31: 0 | BU31: 29 | BV31: 0 | BW31: 29 | BX31: 0 | BY31: 29 | BZ31: 0 | CA31: 29 | CB31: 0 | CC31: 29 | CD31: 0 | CE31: 29 | CF31: 0 | CG31: 29 | CH31: 0 | CI31: 29 | CU31: 1 | DB31: 2 | DI31: 3 | DT31: 29 | DW31: 2.816901408 | DX31: 3.08 | DY31: 20 | DZ31: 2.76
B32: 30 | D32: Mindt, Eddie | E32: Lambert, MT | G32: Mindt, Larry | H32: Sidney, MT | I32: AT | M32: 18 | N32: 15.5 | O32: 18.75 | P32: 15.75 | X32: 1.94 | Y32: 1.24 | Z32: 2.22 | AA32: 1.32 | AC32: 21 | AD32: 16.25 | AE32: 23 | AF32: 15 | AG32: 20.5 | AH32: 3.24 | AI32: 1.44 | AJ32: 4.42 | AK32: 1.12 | AL32: 3 | AS32: 6.72 | AT32: 55 | AU32: =IF(D32="","",IF(LOOKUP(AT32,'Master 2012 Pay Sheet'!$A$5:$A$35,'Master 2012 Pay Sheet'!$B$5:$B$35)>0,LOOKUP(AT32,'Master 2012 Pay Sheet'!$A$5:$A$35,'Master 2012 Pay Sheet'!$B$5:$B$35),0)) -> 0 | AV32: 13.22 | AW32: 16 | AX32: =IF(D32="","",IF(LOOKUP(AW32,'Master 2012 Pay Sheet'!$C$5:$C$35,'Master 2012 Pay Sheet'!$D$5:$D$35)>0,LOOKUP(AW32,'Master 2012 Pay Sheet'!$C$5:$C$35,'Master 2012 Pay Sheet'!$D$5:$D$35),0)) -> 0 | AY32: 19.94 | AZ32: 42 | BA32: =IF(D32="","",IF(LOOKUP(AZ32,'Master 2012 Pay Sheet'!$E$5:$E$35,'Master 2012 Pay Sheet'!$F$5:$F$35)>0,LOOKUP(AZ32,'Master 2012 Pay Sheet'!$E$5:$E$35,'Master 2012 Pay Sheet'!$F$5:$F$35),0)) -> 0 | BB32: 0 | BC32: 13 | BE32: 4 | BF32: 2.22 | BH32: 5 | BI32: 4.42 | BK32: 9 | BL32: 0 | BM32: 30 | BN32: 0 | BO32: 30 | BP32: 0 | BQ32: 30 | BR32: 0 | BS32: 30 | BT32: 0 | BU32: 30 | BV32: 0 | BW32: 30 | BX32: 0 | BY32: 30 | BZ32: 0 | CA32: 30 | CB32: 0 | CC32: 30 | CD32: 0 | CE32: 30 | CF32: 0 | CG32: 30 | CH32: 0 | CI32: 30 | CX32: 4 | DE32: 5 | DO32: 9 | DT32: 30 | DW32: 42.25352113 | DY32: 20.25 | DZ32: 2.88
B33: 31 | D33: Eggebrecht, Doug | E33: Fort Peck, MT | G33: Mortenson, Austin | H33: Williston, ND | I33: AC | M33: 15 | N33: 23 | O33: 16.5 | P33: 17 | X33: 1.12 | Y33: 4.42 | Z33: 1.5 | AA33: 1.64 | AC33: 17.5 | AD33: 17 | AE33: 19.75 | AF33: 21.5 | AG33: 17 | AH33: 1.78 | AI33: 1.64 | AJ33: 2.64 | AK33: 3.52 | AL33: 1.64 | AS33: 8.68 | AT33: 49 | AU33: =IF(D33="","",IF(LOOKUP(AT33,'Master 2012 Pay Sheet'!$A$5:$A$35,'Master 2012 Pay Sheet'!$B$5:$B$35)>0,LOOKUP(AT33,'Master 2012 Pay Sheet'!$A$5:$A$35,'Master 2012 Pay Sheet'!$B$5:$B$35),0)) -> 0 | AV33: 11.22 | AW33: 26 | AX33: =IF(D33="","",IF(LOOKUP(AW33,'Master 2012 Pay Sheet'!$C$5:$C$35,'Master 2012 Pay Sheet'!$D$5:$D$35)>0,LOOKUP(AW33,'Master 2012 Pay Sheet'!$C$5:$C$35,'Master 2012 Pay Sheet'!$D$5:$D$35),0)) -> 0 | AY33: 19.9 | AZ33: 43 | BA33: =IF(D33="","",IF(LOOKUP(AZ33,'Master 2012 Pay Sheet'!$E$5:$E$35,'Master 2012 Pay Sheet'!$F$5:$F$35)>0,LOOKUP(AZ33,'Master 2012 Pay Sheet'!$E$5:$E$35,'Master 2012 Pay Sheet'!$F$5:$F$35),0)) -> 0 | BB33: 0 | BC33: 6 | BE33: 4 | BF33: 4.42 | BH33: 5 | BI33: 3.52 | BK33: 9 | BL33: 0 | BM33: 31 | BN33: 0 | BO33: 31 | BP33: 0 | BQ33: 31 | BR33: 0 | BS33: 31 | BT33: 0 | BU33: 31 | BV33: 0 | BW33: 31 | BX33: 0 | BY33: 31 | BZ33: 0 | CA33: 31 | CB33: 0 | CC33: 31 | CD33: 0 | CE33: 31 | CF33: 0 | CG33: 31 | CH33: 0 | CI33: 31 | CJ33: 43 | CK33: 5 | CX33: 4 | DE33: 5 | DO33: 9 | DV33: 31 | DW33: 40.84507042 | DY33: 20.5 | DZ33: 3
B34: 32 | D34: Thomas, Casey | E34: Jordan, MT | G34: Powell, Ben | H34: Shepherd, MT | I34: AT | M34: 15.5 | N34: 15 | O34: 14.25 | X34: 1.24 | Y34: 1.12 | Z34: 1.03 | AC34: 21 | AD34: 16.25 | AE34: 17 | AF34: 15 | AG34: 17.25 | AH34: 3.24 | AI34: 1.44 | AJ34: 1.64 | AK34: 1.12 | AL34: 1.72 | AS34: 3.39 | AT34: 65 | AU34: =IF(D34="","",IF(LOOKUP(AT34,'Master 2012 Pay Sheet'!$A$5:$A$35,'Master 2012 Pay Sheet'!$B$5:$B$35)>0,LOOKUP(AT34,'Master 2012 Pay Sheet'!$A$5:$A$35,'Master 2012 Pay Sheet'!$B$5:$B$35),0)) -> 0 | AV34: 9.16 | AW34: 40 | AX34: =IF(D34="","",IF(LOOKUP(AW34,'Master 2012 Pay Sheet'!$C$5:$C$35,'Master 2012 Pay Sheet'!$D$5:$D$35)>0,LOOKUP(AW34,'Master 2012 Pay Sheet'!$C$5:$C$35,'Master 2012 Pay Sheet'!$D$5:$D$35),0)) -> 0 | AY34: 12.55 | AZ34: 61 | BA34: =IF(D34="","",IF(LOOKUP(AZ34,'Master 2012 Pay Sheet'!$E$5:$E$35,'Master 2012 Pay Sheet'!$F$5:$F$35)>0,LOOKUP(AZ34,'Master 2012 Pay Sheet'!$E$5:$E$35,'Master 2012 Pay Sheet'!$F$5:$F$35),0)) -> 0 | BB34: 0 | BC34: 4 | BE34: 3 | BF34: 1.24 | BH34: 5 | BI34: 3.24 | BK34: 8 | BL34: 0 | BM34: 32 | BN34: 0 | BO34: 32 | BP34: 0 | BQ34: 32 | BR34: 0 | BS34: 32 | BT34: 0 | BU34: 32 | BV34: 0 | BW34: 32 | BX34: 0 | BY34: 32 | BZ34: 0 | CA34: 32 | CB34: 0 | CC34: 32 | CD34: 0 | CE34: 32 | CF34: 0 | CG34: 32 | CH34: 0 | CI34: 32 | CW34: 3 | DE34: 5 | DN34: 8 | DT34: 32 | DW34: 15.49295775 | DY34: 20.75 | DZ34: 3.12
B35: 33 | D35: Wemmer, Trenton | E35: Wolf Point, MT | G35: Toaves, Tukker | H35: Wolf Point, MT | I35: AT | M35: 18.5 | N35: 19 | O35: 16.5 | P35: 14.5 | Q35: 17 | X35: =IF(M35>0,VLOOKUP(M35,$DY$8:$DZ$95,2)," ") -> 2.12 | Y35: =IF(N35>0,VLOOKUP(N35,$DY$8:$DZ$95,2)," ") -> 2.32 | Z35: 1.5 | AA35: 1.06 | AB35: 1.64 | AC35: 16.5 | AD35: 16.75 | AE35: 16.5 | AF35: 17.25 | AG35: 17.75 | AH35: 1.5 | AI35: 1.58 | AJ35: 1.5 | AK35: 1.72 | AL35: 1.86 | AS35: =IF(D35="","",SUM(X35:AB35)) -> 8.64 | AT35: =IF(D35="","",RANK(AS35,$AS$3:$AS$202,0)) -> 50 | AU35: =IF(D35="","",IF(LOOKUP(AT35,'Master 2012 Pay Sheet'!$A$5:$A$35,'Master 2012 Pay Sheet'!$B$5:$B$35)>0,LOOKUP(AT35,'Master 2012 Pay Sheet'!$A$5:$A$35,'Master 2012 Pay Sheet'!$B$5:$B$35),0)) -> 0 | AV35: =IF(D35="","",SUM(AH35:AL35)) -> 8.16 | AW35: =IF(D35="","",RANK(AV35,$AV$3:$AV$202,0)) -> 44 | AX35: =IF(D35="","",IF(LOOKUP(AW35,'Master 2012 Pay Sheet'!$C$5:$C$35,'Master 2012 Pay Sheet'!$D$5:$D$35)>0,LOOKUP(AW35,'Master 2012 Pay Sheet'!$C$5:$C$35,'Master 2012 Pay Sheet'!$D$5:$D$35),0)) -> 0 | AY35: =IF(D35="","",AS35+AV35) -> 16.8 | AZ35: =IF(D35="","",RANK(AY35,$AY$3:$AY$202,0)) -> 51 | BA35: =IF(D35="","",IF(LOOKUP(AZ35,'Master 2012 Pay Sheet'!$E$5:$E$35,'Master 2012 Pay Sheet'!$F$5:$F$35)>0,LOOKUP(AZ35,'Master 2012 Pay Sheet'!$E$5:$E$35,'Master 2012 Pay Sheet'!$F$5:$F$35),0)) -> 0 | BB35: =IF(D35="","",SUM(AU35+AX35+BA35)) -> 0 | BC35: =IF(D35="","",AT35-AZ35) -> -1 | BD35: =IF(D35="","",IF(BC35=MAX($BC$3:$BC$202),B35,"")) ->  | BE35: =IF(D35="","",COUNT(M35:Q35)) -> 5 | BF35: =IF(D35="","",MAX(X35:AB35)) -> 2.32 | BG35: =IF(BF35=MAX($BF$3:$BF$202),B35,"") ->  | BH35: =IF(D35="","",COUNT(AC35:AG35)) -> 5 | BI35: =IF(D35="","",MAX(AH35:AL35)) -> 1.86 | BJ35: =IF(BI35=MAX($BI$3:$BI$202),B35,"") ->  | BK35: 10 | BL35: =IF(D35="","",IF(S35=MAX($S$3:$S$202),S35,"")) -> 0 | BM35: =IF(BL35=MAX($BL$3:$BL$202),B35,"") -> 33 | BN35: =IF(D35="","",IF(AN35=MAX($AN$3:$AN$202),AN35,"")) -> 0 | BO35: =IF(BN35=MAX($BN$3:$BN$202),B35,"") -> 33 | BP35: =IF(D35="","",IF(R35=MAX($R$3:$R$202),R35,"")) -> 0 | BQ35: =IF(BP35=MAX($BP$3:$BP$202),B35,"") -> 33 | BR35: =IF(D35="","",IF(AM35=MAX($AM$3:$AM$202),AM35,"")) -> 0 | BS35: =IF(BR35=MAX($BR$3:$BR$202),B35,"") -> 33 | BT35: =IF(D35="","",IF(V35=MAX($V$3:$V$202),V35,"")) -> 0 | BU35: =IF(BT35=MAX($BT$3:$BT$202),B35,"") -> 33 | BV35: =IF(D35="","",IF(W35=MAX($W$3:$W$202), W35,"")) -> 0 | BW35: =IF(BV35=MAX($BV$3:$BV$202),B35,"") -> 33 | BX35: =IF(D35="","",IF(AQ35=MAX($AQ$3:$AQ$202),AQ35,"")) -> 0 | BY35: =IF(BX35=MAX($BX$3:$BX$202),B35,"") -> 33 | BZ35: =IF(D35="","",IF(AR35=MAX($AR$3:$AR$202), AR35,"")) -> 0 | CA35: =IF(BZ35=MAX($BZ$3:$BZ$202),B35,"") -> 33 | CB35: =IF(D35="","",IF(U35=MAX($U$3:$U$202), U35,"")) -> 0 | CC35: =IF(CB35=MAX($CB$3:$CB$202),B35,"") -> 33 | CD35: =IF(D35="","",IF(AP35=MAX($AP$3:$AP$202),AP35,"")) -> 0 | CE35: =IF(CD35=MAX($CD$3:$CD$202),B35,"") -> 33 | CF35: =IF(D35="","",IF(T35=MAX($T$3:$T$202), T35,"")) -> 0 | CG35: =IF(CF35=MAX($CF$3:$CF$202),B35,"") -> 33 | CH35: =IF(D35="","",IF(AO35=MAX($AO$3:$AO$202),AO35,"")) -> 0 | CI35: =IF(CH35=MAX($CH$3:$CH$202),B35,"") -> 33 | CJ35: =IF(I35="AC",AZ35,"") ->  | CK35: =IF(CJ35="","",RANK(CJ35,$CJ$3:$CJ$202,1)) ->  | CL35: =IF(CK35=1,B35,"") ->  | CM35: =IF(CK35=2,B35,"") ->  | CN35: =IF(CK35=3,B35,"") ->  | CO35: =IF(I35="MC",AZ35,"") ->  | CP35: =IF(CO35="","",RANK(CO35,$CO$3:$CO$202,1)) ->  | CQ35: =IF(CP35=1,B35,"") ->  | CR35: =IF(CP35=2,B35,"") ->  | CS35: =IF(CP35=3,B35,"") ->  | CY35: 5 | DE35: 5 | DP35: 10 | DQ35: =IF(J35="Lund",AZ35,"") ->  | DR35: =IF(DQ35="","",RANK(DQ35,$DQ$3:$DQ$202,1)) ->  | DS35: =IF(DR35=1,B35,"") ->  | DT35: =IF(I35="AT",B35,"") -> 33 | DU35: =IF(I35="MC",B35,"") ->  | DV35: =IF(I35="AC",B35,"") ->  | DW35: =IF(BK35=0,0,IF(D35="","",$D$203-AZ35+1)/$D$203*100) -> 29.57746479 | DY35: 21 | DZ35: 3.24
B36: 34 | D36: Schlosser, Darell | E36: Glendive, MT | G36: Mettler, Mike | H36: Baker, MT | I36: AT | M36: 16 | N36: 16.25 | O36: 15.5 | P36: 16.5 | Q36: 14.75 | X36: 1.38 | Y36: 1.44 | Z36: 1.24 | AA36: 1.5 | AB36: 1.09 | AC36: 17.75 | AH36: 1.86 | AS36: 6.65 | AT36: 56 | AU36: =IF(D36="","",IF(LOOKUP(AT36,'Master 2012 Pay Sheet'!$A$5:$A$35,'Master 2012 Pay Sheet'!$B$5:$B$35)>0,LOOKUP(AT36,'Master 2012 Pay Sheet'!$A$5:$A$35,'Master 2012 Pay Sheet'!$B$5:$B$35),0)) -> 0 | AV36: 1.86 | AW36: 67 | AX36: =IF(D36="","",IF(LOOKUP(AW36,'Master 2012 Pay Sheet'!$C$5:$C$35,'Master 2012 Pay Sheet'!$D$5:$D$35)>0,LOOKUP(AW36,'Master 2012 Pay Sheet'!$C$5:$C$35,'Master 2012 Pay Sheet'!$D$5:$D$35),0)) -> 0 | AY36: 8.51 | AZ36: 66 | BA36: =IF(D36="","",IF(LOOKUP(AZ36,'Master 2012 Pay Sheet'!$E$5:$E$35,'Master 2012 Pay Sheet'!$F$5:$F$35)>0,LOOKUP(AZ36,'Master 2012 Pay Sheet'!$E$5:$E$35,'Master 2012 Pay Sheet'!$F$5:$F$35),0)) -> 0 | BB36: 0 | BC36: -10 | BE36: 5 | BF36: 1.5 | BH36: 1 | BI36: 1.86 | BK36: 6 | BL36: 0 | BM36: 34 | BN36: 0 | BO36: 34 | BP36: 0 | BQ36: 34 | BR36: 0 | BS36: 34 | BT36: 0 | BU36: 34 | BV36: 0 | BW36: 34 | BX36: 0 | BY36: 34 | BZ36: 0 | CA36: 34 | CB36: 0 | CC36: 34 | CD36: 0 | CE36: 34 | CF36: 0 | CG36: 34 | CH36: 0 | CI36: 34 | CY36: 5 | DA36: 1 | DL36: 6 | DT36: 34 | DW36: 8.450704225 | DY36: 21.25 | DZ36: 3.38
B37: 35 | D37: Glasoe, Rodney | E37: Nashua, MT | G37: Johnson, Tyler | H37: Nashua, MT | I37: AT | M37: 26.5 | N37: 30.5 | O37: 14.5 | P37: 15.75 | Q37: 16.75 | X37: 7.12 | Y37: 11.42 | Z37: 1.06 | AA37: 1.32 | AB37: 1.58 | AC37: 19 | AD37: 15.75 | AE37: 15.5 | AF37: 16 | AH37: 2.32 | AI37: 1.32 | AJ37: 1.24 | AK37: 1.38 | AS37: 22.5 | AT37: 4 | AU37: =IF(D37="","",IF(LOOKUP(AT37,'Master 2012 Pay Sheet'!$A$5:$A$35,'Master 2012 Pay Sheet'!$B$5:$B$35)>0,LOOKUP(AT37,'Master 2012 Pay Sheet'!$A$5:$A$35,'Master 2012 Pay Sheet'!$B$5:$B$35),0)) -> 0 | AV37: 6.26 | AW37: 52 | AX37: =IF(D37="","",IF(LOOKUP(AW37,'Master 2012 Pay Sheet'!$C$5:$C$35,'Master 2012 Pay Sheet'!$D$5:$D$35)>0,LOOKUP(AW37,'Master 2012 Pay Sheet'!$C$5:$C$35,'Master 2012 Pay Sheet'!$D$5:$D$35),0)) -> 0 | AY37: 28.76 | AZ37: 16 | BA37: =IF(D37="","",IF(LOOKUP(AZ37,'Master 2012 Pay Sheet'!$E$5:$E$35,'Master 2012 Pay Sheet'!$F$5:$F$35)>0,LOOKUP(AZ37,'Master 2012 Pay Sheet'!$E$5:$E$35,'Master 2012 Pay Sheet'!$F$5:$F$35),0)) -> 0 | BB37: 0 | BC37: -12 | BE37: 5 | BF37: 11.42 | BH37: 4 | BI37: 2.32 | BK37: 9 | BL37: 0 | BM37: 35 | BN37: 0 | BO37: 35 | BP37: 0 | BQ37: 35 | BR37: 0 | BS37: 35 | BT37: 0 | BU37: 35 | BV37: 0 | BW37: 35 | BX37: 0 | BY37: 35 | BZ37: 0 | CA37: 35 | CB37: 0 | CC37: 35 | CD37: 0 | CE37: 35 | CF37: 0 | CG37: 35 | CH37: 0 | CI37: 35 | CY37: 5 | DD37: 4 | DO37: 9 | DT37: 35 | DW37: 78.87323944 | DY37: 21.5 | DZ37: 3.52
B38: 36 | D38: Verhasselt, Trevor | E38: Sidney, MT | G38: Aamoth, Avery | H38: Sidney, MT | I38: AT | M38: 17 | N38: 27.75 | O38: 16.25 | P38: 15.75 | X38: 1.64 | Y38: 8.32 | Z38: 1.44 | AA38: 1.32 | AC38: 20 | AD38: 14.5 | AE38: 16 | AF38: 14.5 | AG38: 14.5 | AH38: 2.76 | AI38: 1.06 | AJ38: 1.38 | AK38: 1.06 | AL38: 1.06 | AS38: 12.72 | AT38: 28 | AU38: =IF(D38="","",IF(LOOKUP(AT38,'Master 2012 Pay Sheet'!$A$5:$A$35,'Master 2012 Pay Sheet'!$B$5:$B$35)>0,LOOKUP(AT38,'Master 2012 Pay Sheet'!$A$5:$A$35,'Master 2012 Pay Sheet'!$B$5:$B$35),0)) -> 0 | AV38: 7.32 | AW38: 47 | AX38: =IF(D38="","",IF(LOOKUP(AW38,'Master 2012 Pay Sheet'!$C$5:$C$35,'Master 2012 Pay Sheet'!$D$5:$D$35)>0,LOOKUP(AW38,'Master 2012 Pay Sheet'!$C$5:$C$35,'Master 2012 Pay Sheet'!$D$5:$D$35),0)) -> 0 | AY38: 20.04 | AZ38: 40 | BA38: =IF(D38="","",IF(LOOKUP(AZ38,'Master 2012 Pay Sheet'!$E$5:$E$35,'Master 2012 Pay Sheet'!$F$5:$F$35)>0,LOOKUP(AZ38,'Master 2012 Pay Sheet'!$E$5:$E$35,'Master 2012 Pay Sheet'!$F$5:$F$35),0)) -> 0 | BB38: 0 | BC38: -12 | BE38: 4 | BF38: 8.32 | BH38: 5 | BI38: 2.76 | BK38: 9 | BL38: 0 | BM38: 36 | BN38: 0 | BO38: 36 | BP38: 0 | BQ38: 36 | BR38: 0 | BS38: 36 | BT38: 0 | BU38: 36 | BV38: 0 | BW38: 36 | BX38: 0 | BY38: 36 | BZ38: 0 | CA38: 36 | CB38: 0 | CC38: 36 | CD38: 0 | CE38: 36 | CF38: 0 | CG38: 36 | CH38: 0 | CI38: 36 | CX38: 4 | DE38: 5 | DO38: 9 | DT38: 36 | DW38: 45.07042254 | DY38: 21.75 | DZ38: 3.66
B39: 37 | D39: Schlosser, Gabe | E39: Glendive, MT | G39: Henry Sharlee | H39: Glendive,MT | I39: MC | M39: 15.25 | N39: 17.75 | O39: 19.5 | X39: 1.18 | Y39: 1.86 | Z39: 2.52 | AC39: 17 | AD39: 15 | AE39: 19 | AH39: 1.64 | AI39: 1.12 | AJ39: 2.32 | AS39: 5.56 | AT39: 61 | AU39: =IF(D39="","",IF(LOOKUP(AT39,'Master 2012 Pay Sheet'!$A$5:$A$35,'Master 2012 Pay Sheet'!$B$5:$B$35)>0,LOOKUP(AT39,'Master 2012 Pay Sheet'!$A$5:$A$35,'Master 2012 Pay Sheet'!$B$5:$B$35),0)) -> 0 | AV39: 5.08 | AW39: 58 | AX39: =IF(D39="","",IF(LOOKUP(AW39,'Master 2012 Pay Sheet'!$C$5:$C$35,'Master 2012 Pay Sheet'!$D$5:$D$35)>0,LOOKUP(AW39,'Master 2012 Pay Sheet'!$C$5:$C$35,'Master 2012 Pay Sheet'!$D$5:$D$35),0)) -> 0 | AY39: 10.64 | AZ39: 62 | BA39: =IF(D39="","",IF(LOOKUP(AZ39,'Master 2012 Pay Sheet'!$E$5:$E$35,'Master 2012 Pay Sheet'!$F$5:$F$35)>0,LOOKUP(AZ39,'Master 2012 Pay Sheet'!$E$5:$E$35,'Master 2012 Pay Sheet'!$F$5:$F$35),0)) -> 0 | BB39: 0 | BC39: -1 | BE39: 3 | BF39: 2.52 | BH39: 3 | BI39: 2.32 | BK39: 6 | BL39: 0 | BM39: 37 | BN39: 0 | BO39: 37 | BP39: 0 | BQ39: 37 | BR39: 0 | BS39: 37 | BT39: 0 | BU39: 37 | BV39: 0 | BW39: 37 | BX39: 0 | BY39: 37 | BZ39: 0 | CA39: 37 | CB39: 0 | CC39: 37 | CD39: 0 | CE39: 37 | CF39: 0 | CG39: 37 | CH39: 0 | CI39: 37 | CO39: 62 | CP39: 8 | CW39: 3 | DC39: 3 | DL39: 6 | DU39: 37 | DW39: 14.08450704 | DY39: 22 | DZ39: 3.8
B40: 38 | D40: Vine, Jeff | E40: Vida, MT | G40: Vine, Tyler | H40: Bozeman, MT | I40: AC | M40: 27.5 | N40: 17.5 | O40: 15.25 | P40: 26.75 | Q40: 21.5 | X40: 8.08 | Y40: 1.78 | Z40: 1.18 | AA40: 7.36 | AB40: 3.52 | AC40: 17 | AD40: 16 | AE40: 16 | AH40: 1.64 | AI40: 1.38 | AJ40: 1.38 | AS40: 21.92 | AT40: 6 | AU40: =IF(D40="","",IF(LOOKUP(AT40,'Master 2012 Pay Sheet'!$A$5:$A$35,'Master 2012 Pay Sheet'!$B$5:$B$35)>0,LOOKUP(AT40,'Master 2012 Pay Sheet'!$A$5:$A$35,'Master 2012 Pay Sheet'!$B$5:$B$35),0)) -> 0 | AV40: 4.4 | AW40: 61 | AX40: =IF(D40="","",IF(LOOKUP(AW40,'Master 2012 Pay Sheet'!$C$5:$C$35,'Master 2012 Pay Sheet'!$D$5:$D$35)>0,LOOKUP(AW40,'Master 2012 Pay Sheet'!$C$5:$C$35,'Master 2012 Pay Sheet'!$D$5:$D$35),0)) -> 0 | AY40: 26.32 | AZ40: 21 | BA40: =IF(D40="","",IF(LOOKUP(AZ40,'Master 2012 Pay Sheet'!$E$5:$E$35,'Master 2012 Pay Sheet'!$F$5:$F$35)>0,LOOKUP(AZ40,'Master 2012 Pay Sheet'!$E$5:$E$35,'Master 2012 Pay Sheet'!$F$5:$F$35),0)) -> 0 | BB40: 0 | BC40: -15 | BE40: 5 | BF40: 8.08 | BH40: 3 | BI40: 1.64 | BK40: 8 | BL40: 0 | BM40: 38 | BN40: 0 | BO40: 38 | BP40: 0 | BQ40: 38 | BR40: 0 | BS40: 38 | BT40: 0 | BU40: 38 | BV40: 0 | BW40: 38 | BX40: 0 | BY40: 38 | BZ40: 0 | CA40: 38 | CB40: 0 | CC40: 38 | CD40: 0 | CE40: 38 | CF40: 0 | CG40: 38 | CH40: 0 | CI40: 38 | CJ40: 21 | CK40: 2 | CM40: 38 | CY40: 5 | DC40: 3 | DN40: 8 | DV40: 38 | DW40: 71.83098592 | DY40: 22.25 | DZ40: 3.94
B41: 39 | D41: Pronto, Gene | E41: Wolf Point, MT | G41: Pronto, Tanner | H41: Harlem, MT | I41: AT | M41: 19.75 | N41: 17.5 | O41: 16.5 | P41: 28.5 | Q41: 17.75 | X41: 2.64 | Y41: 1.78 | Z41: 1.5 | AA41: 9.1 | AB41: 1.86 | AC41: 29 | AD41: 18 | AE41: 19.25 | AF41: 19 | AG41: 19.75 | AH41: 9.64 | AI41: 1.94 | AJ41: 2.42 | AK41: 2.32 | AL41: 2.64 | AS41: 16.88 | AT41: 15 | AU41: =IF(D41="","",IF(LOOKUP(AT41,'Master 2012 Pay Sheet'!$A$5:$A$35,'Master 2012 Pay Sheet'!$B$5:$B$35)>0,LOOKUP(AT41,'Master 2012 Pay Sheet'!$A$5:$A$35,'Master 2012 Pay Sheet'!$B$5:$B$35),0)) -> 0 | AV41: 18.96 | AW41: 6 | AX41: =IF(D41="","",IF(LOOKUP(AW41,'Master 2012 Pay Sheet'!$C$5:$C$35,'Master 2012 Pay Sheet'!$D$5:$D$35)>0,LOOKUP(AW41,'Master 2012 Pay Sheet'!$C$5:$C$35,'Master 2012 Pay Sheet'!$D$5:$D$35),0)) -> 0 | AY41: 35.84 | AZ41: 5 | BA41: =IF(D41="","",IF(LOOKUP(AZ41,'Master 2012 Pay Sheet'!$E$5:$E$35,'Master 2012 Pay Sheet'!$F$5:$F$35)>0,LOOKUP(AZ41,'Master 2012 Pay Sheet'!$E$5:$E$35,'Master 2012 Pay Sheet'!$F$5:$F$35),0)) -> 0 | BB41: 0 | BC41: 10 | BE41: 5 | BF41: 9.1 | BH41: 5 | BI41: 9.64 | BK41: 10 | BL41: 0 | BM41: 39 | BN41: 0 | BO41: 39 | BP41: 0 | BQ41: 39 | BR41: 0 | BS41: 39 | BT41: 0 | BU41: 39 | BV41: 0 | BW41: 39 | BX41: 0 | BY41: 39 | BZ41: 0 | CA41: 39 | CB41: 0 | CC41: 39 | CD41: 0 | CE41: 39 | CF41: 0 | CG41: 39 | CH41: 0 | CI41: 39 | CY41: 5 | DE41: 5 | DP41: 10 | DT41: 39 | DW41: 94.36619718 | DY41: 22.5 | DZ41: 4.1
B42: 40 | D42: Egge, Troy | E42: Glendive, MT | G42: Egge, Jamie | H42: Glendive,MT | I42: MC | M42: 15.5 | N42: 16 | X42: 1.24 | Y42: 1.38 | AC42: 25.5 | AD42: 16 | AE42: 31.5 | AF42: 18.5 | AG42: 16 | AH42: 6.26 | AI42: 1.38 | AJ42: 12.7 | AK42: 2.12 | AL42: 1.38 | AS42: 2.62 | AT42: 66 | AU42: =IF(D42="","",IF(LOOKUP(AT42,'Master 2012 Pay Sheet'!$A$5:$A$35,'Master 2012 Pay Sheet'!$B$5:$B$35)>0,LOOKUP(AT42,'Master 2012 Pay Sheet'!$A$5:$A$35,'Master 2012 Pay Sheet'!$B$5:$B$35),0)) -> 0 | AV42: 23.84 | AW42: 1 | AX42: =IF(D42="","",IF(LOOKUP(AW42,'Master 2012 Pay Sheet'!$C$5:$C$35,'Master 2012 Pay Sheet'!$D$5:$D$35)>0,LOOKUP(AW42,'Master 2012 Pay Sheet'!$C$5:$C$35,'Master 2012 Pay Sheet'!$D$5:$D$35),0)) -> 0 | AY42: 26.46 | AZ42: 20 | BA42: =IF(D42="","",IF(LOOKUP(AZ42,'Master 2012 Pay Sheet'!$E$5:$E$35,'Master 2012 Pay Sheet'!$F$5:$F$35)>0,LOOKUP(AZ42,'Master 2012 Pay Sheet'!$E$5:$E$35,'Master 2012 Pay Sheet'!$F$5:$F$35),0)) -> 0 | BB42: 0 | BC42: 46 | BD42: 40 | BE42: 2 | BF42: 1.38 | BH42: 5 | BI42: 12.7 | BJ42: 40 | BK42: 7 | BL42: 0 | BM42: 40 | BN42: 0 | BO42: 40 | BP42: 0 | BQ42: 40 | BR42: 0 | BS42: 40 | BT42: 0 | BU42: 40 | BV42: 0 | BW42: 40 | BX42: 0 | BY42: 40 | BZ42: 0 | CA42: 40 | CB42: 0 | CC42: 40 | CD42: 0 | CE42: 40 | CF42: 0 | CG42: 40 | CH42: 0 | CI42: 40 | CO42: 20 | CP42: 2 | CR42: 40 | CV42: 2 | DE42: 5 | DM42: 7 | DU42: 40 | DW42: 73.23943662 | DY42: 22.75 | DZ42: 4.26
B43: 41 | D43: Roberts, Fred | E43: Billings, MT | G43: Roberts, Ryan | H43: Billings, MT | I43: AT | M43: 17 | N43: 19 | O43: 21.75 | P43: 16.5 | Q43: 19.75 | X43: 1.64 | Y43: 2.32 | Z43: 3.66 | AA43: 1.5 | AB43: 2.64 | AC43: 15 | AD43: 15 | AE43: 16.75 | AF43: 15.5 | AG43: 16.25 | AH43: 1.12 | AI43: 1.12 | AJ43: 1.58 | AK43: 1.24 | AL43: 1.44 | AS43: 11.76 | AT43: 33 | AU43: =IF(D43="","",IF(LOOKUP(AT43,'Master 2012 Pay Sheet'!$A$5:$A$35,'Master 2012 Pay Sheet'!$B$5:$B$35)>0,LOOKUP(AT43,'Master 2012 Pay Sheet'!$A$5:$A$35,'Master 2012 Pay Sheet'!$B$5:$B$35),0)) -> 0 | AV43: 6.5 | AW43: 50 | AX43: =IF(D43="","",IF(LOOKUP(AW43,'Master 2012 Pay Sheet'!$C$5:$C$35,'Master 2012 Pay Sheet'!$D$5:$D$35)>0,LOOKUP(AW43,'Master 2012 Pay Sheet'!$C$5:$C$35,'Master 2012 Pay Sheet'!$D$5:$D$35),0)) -> 0 | AY43: 18.26 | AZ43: 47 | BA43: =IF(D43="","",IF(LOOKUP(AZ43,'Master 2012 Pay Sheet'!$E$5:$E$35,'Master 2012 Pay Sheet'!$F$5:$F$35)>0,LOOKUP(AZ43,'Master 2012 Pay Sheet'!$E$5:$E$35,'Master 2012 Pay Sheet'!$F$5:$F$35),0)) -> 0 | BB43: 0 | BC43: -14 | BE43: 5 | BF43: 3.66 | BH43: 5 | BI43: 1.58 | BK43: 10 | BL43: 0 | BM43: 41 | BN43: 0 | BO43: 41 | BP43: 0 | BQ43: 41 | BR43: 0 | BS43: 41 | BT43: 0 | BU43: 41 | BV43: 0 | BW43: 41 | BX43: 0 | BY43: 41 | BZ43: 0 | CA43: 41 | CB43: 0 | CC43: 41 | CD43: 0 | CE43: 41 | CF43: 0 | CG43: 41 | CH43: 0 | CI43: 41 | CY43: 5 | DE43: 5 | DP43: 10 | DT43: 41 | DW43: 35.21126761 | DY43: 23 | DZ43: 4.42
B44: 42 | D44: Fisher, Steve | E44: Billings, MT | G44: Fisher, Ed | H44: Park City, MT | I44: AT | M44: 17.75 | N44: 23.5 | O44: 15.5 | P44: 17 | Q44: 15.5 | X44: 1.86 | Y44: 4.74 | Z44: 1.24 | AA44: 1.64 | AB44: 1.24 | AC44: 15.25 | AD44: 22.75 | AE44: 27.25 | AH44: 1.18 | AI44: 4.26 | AJ44: 7.82 | AS44: 10.72 | AT44: 39 | AU44: =IF(D44="","",IF(LOOKUP(AT44,'Master 2012 Pay Sheet'!$A$5:$A$35,'Master 2012 Pay Sheet'!$B$5:$B$35)>0,LOOKUP(AT44,'Master 2012 Pay Sheet'!$A$5:$A$35,'Master 2012 Pay Sheet'!$B$5:$B$35),0)) -> 0 | AV44: 13.26 | AW44: 15 | AX44: =IF(D44="","",IF(LOOKUP(AW44,'Master 2012 Pay Sheet'!$C$5:$C$35,'Master 2012 Pay Sheet'!$D$5:$D$35)>0,LOOKUP(AW44,'Master 2012 Pay Sheet'!$C$5:$C$35,'Master 2012 Pay Sheet'!$D$5:$D$35),0)) -> 0 | AY44: 23.98 | AZ44: 28 | BA44: =IF(D44="","",IF(LOOKUP(AZ44,'Master 2012 Pay Sheet'!$E$5:$E$35,'Master 2012 Pay Sheet'!$F$5:$F$35)>0,LOOKUP(AZ44,'Master 2012 Pay Sheet'!$E$5:$E$35,'Master 2012 Pay Sheet'!$F$5:$F$35),0)) -> 0 | BB44: 0 | BC44: 11 | BE44: 5 | BF44: 4.74 | BH44: 3 | BI44: 7.82 | BK44: 8 | BL44: 0 | BM44: 42 | BN44: 0 | BO44: 42 | BP44: 0 | BQ44: 42 | BR44: 0 | BS44: 42 | BT44: 0 | BU44: 42 | BV44: 0 | BW44: 42 | BX44: 0 | BY44: 42 | BZ44: 0 | CA44: 42 | CB44: 0 | CC44: 42 | CD44: 0 | CE44: 42 | CF44: 0 | CG44: 42 | CH44: 0 | CI44: 42 | CY44: 5 | DC44: 3 | DN44: 8 | DT44: 42 | DW44: 61.97183099 | DY44: 23.25 | DZ44: 4.58
B45: 43 | D45: Wellnitz, Ryan | E45: Miles City, MT | G45: Letexier, Monty | H45: Basin, MT | I45: AT | M45: 14.75 | X45: 1.09 | AC45: 15 | AH45: 1.12 | AS45: 1.09 | AT45: 70 | AU45: =IF(D45="","",IF(LOOKUP(AT45,'Master 2012 Pay Sheet'!$A$5:$A$35,'Master 2012 Pay Sheet'!$B$5:$B$35)>0,LOOKUP(AT45,'Master 2012 Pay Sheet'!$A$5:$A$35,'Master 2012 Pay Sheet'!$B$5:$B$35),0)) -> 0 | AV45: 1.12 | AW45: 71 | AX45: =IF(D45="","",IF(LOOKUP(AW45,'Master 2012 Pay Sheet'!$C$5:$C$35,'Master 2012 Pay Sheet'!$D$5:$D$35)>0,LOOKUP(AW45,'Master 2012 Pay Sheet'!$C$5:$C$35,'Master 2012 Pay Sheet'!$D$5:$D$35),0)) -> 0 | AY45: 2.21 | AZ45: 71 | BA45: =IF(D45="","",IF(LOOKUP(AZ45,'Master 2012 Pay Sheet'!$E$5:$E$35,'Master 2012 Pay Sheet'!$F$5:$F$35)>0,LOOKUP(AZ45,'Master 2012 Pay Sheet'!$E$5:$E$35,'Master 2012 Pay Sheet'!$F$5:$F$35),0)) -> 0 | BB45: 0 | BC45: -1 | BE45: 1 | BF45: 1.09 | BH45: 1 | BI45: 1.12 | BK45: 2 | BL45: 0 | BM45: 43 | BN45: 0 | BO45: 43 | BP45: 0 | BQ45: 43 | BR45: 0 | BS45: 43 | BT45: 0 | BU45: 43 | BV45: 0 | BW45: 43 | BX45: 0 | BY45: 43 | BZ45: 0 | CA45: 43 | CB45: 0 | CC45: 43 | CD45: 0 | CE45: 43 | CF45: 0 | CG45: 43 | CH45: 0 | CI45: 43 | CU45: 1 | DA45: 1 | DH45: 2 | DT45: 43 | DW45: 1.408450704 | DY45: 23.5 | DZ45: 4.74
B46: 44 | D46: Schilling, Rob | E46: Cartwright, ND | G46: Schilling, Tyler | H46: Cartwright, ND | I46: AT | M46: 15.5 | N46: 19.75 | X46: 1.24 | Y46: 2.64 | AC46: 15.75 | AD46: 15.5 | AE46: 16.75 | AF46: 16.5 | AH46: 1.32 | AI46: 1.24 | AJ46: 1.58 | AK46: 1.5 | AS46: 3.88 | AT46: 64 | AU46: =IF(D46="","",IF(LOOKUP(AT46,'Master 2012 Pay Sheet'!$A$5:$A$35,'Master 2012 Pay Sheet'!$B$5:$B$35)>0,LOOKUP(AT46,'Master 2012 Pay Sheet'!$A$5:$A$35,'Master 2012 Pay Sheet'!$B$5:$B$35),0)) -> 0 | AV46: 5.64 | AW46: 55 | AX46: =IF(D46="","",IF(LOOKUP(AW46,'Master 2012 Pay Sheet'!$C$5:$C$35,'Master 2012 Pay Sheet'!$D$5:$D$35)>0,LOOKUP(AW46,'Master 2012 Pay Sheet'!$C$5:$C$35,'Master 2012 Pay Sheet'!$D$5:$D$35),0)) -> 0 | AY46: 9.52 | AZ46: 64 | BA46: =IF(D46="","",IF(LOOKUP(AZ46,'Master 2012 Pay Sheet'!$E$5:$E$35,'Master 2012 Pay Sheet'!$F$5:$F$35)>0,LOOKUP(AZ46,'Master 2012 Pay Sheet'!$E$5:$E$35,'Master 2012 Pay Sheet'!$F$5:$F$35),0)) -> 0 | BB46: 0 | BC46: 0 | BE46: 2 | BF46: 2.64 | BH46: 4 | BI46: 1.58 | BK46: 6 | BL46: 0 | BM46: 44 | BN46: 0 | BO46: 44 | BP46: 0 | BQ46: 44 | BR46: 0 | BS46: 44 | BT46: 0 | BU46: 44 | BV46: 0 | BW46: 44 | BX46: 0 | BY46: 44 | BZ46: 0 | CA46: 44 | CB46: 0 | CC46: 44 | CD46: 0 | CE46: 44 | CF46: 0 | CG46: 44 | CH46: 0 | CI46: 44 | CV46: 2 | DD46: 4 | DL46: 6 | DT46: 44 | DW46: 11.26760563 | DY46: 23.75 | DZ46: 4.88
B47: 45 | D47: Killen, Brody | E47: Angela,MT | G47: Ross, Trevor | H47: Jordan, MT | I47: AT | M47: 18.5 | X47: 2.12 | AC47: 16.5 | AH47: 1.5 | AS47: 2.12 | AT47: 68 | AU47: =IF(D47="","",IF(LOOKUP(AT47,'Master 2012 Pay Sheet'!$A$5:$A$35,'Master 2012 Pay Sheet'!$B$5:$B$35)>0,LOOKUP(AT47,'Master 2012 Pay Sheet'!$A$5:$A$35,'Master 2012 Pay Sheet'!$B$5:$B$35),0)) -> 0 | AV47: 1.5 | AW47: 68 | AX47: =IF(D47="","",IF(LOOKUP(AW47,'Master 2012 Pay Sheet'!$C$5:$C$35,'Master 2012 Pay Sheet'!$D$5:$D$35)>0,LOOKUP(AW47,'Master 2012 Pay Sheet'!$C$5:$C$35,'Master 2012 Pay Sheet'!$D$5:$D$35),0)) -> 0 | AY47: 3.62 | AZ47: 69 | BA47: =IF(D47="","",IF(LOOKUP(AZ47,'Master 2012 Pay Sheet'!$E$5:$E$35,'Master 2012 Pay Sheet'!$F$5:$F$35)>0,LOOKUP(AZ47,'Master 2012 Pay Sheet'!$E$5:$E$35,'Master 2012 Pay Sheet'!$F$5:$F$35),0)) -> 0 | BB47: 0 | BC47: -1 | BE47: 1 | BF47: 2.12 | BH47: 1 | BI47: 1.5 | BK47: 2 | BL47: 0 | BM47: 45 | BN47: 0 | BO47: 45 | BP47: 0 | BQ47: 45 | BR47: 0 | BS47: 45 | BT47: 0 | BU47: 45 | BV47: 0 | BW47: 45 | BX47: 0 | BY47: 45 | BZ47: 0 | CA47: 45 | CB47: 0 | CC47: 45 | CD47: 0 | CE47: 45 | CF47: 0 | CG47: 45 | CH47: 0 | CI47: 45 | CU47: 1 | DA47: 1 | DH47: 2 | DT47: 45 | DW47: 4.225352113 | DY47: 24 | DZ47: 5.1
B48: 46 | D48: Stahl, Eric | E48: Laurel, MT | G48: Stahl, Dayle | H48: Laurel, MT | I48: MC | M48: 15.5 | N48: 16.75 | O48: 15.5 | P48: 18.25 | X48: 1.24 | Y48: 1.58 | Z48: 1.24 | AA48: 2.02 | AC48: 15 | AD48: 15 | AE48: 15.5 | AF48: 14.5 | AH48: 1.12 | AI48: 1.12 | AJ48: 1.24 | AK48: 1.06 | AS48: 6.08 | AT48: 58 | AU48: =IF(D48="","",IF(LOOKUP(AT48,'Master 2012 Pay Sheet'!$A$5:$A$35,'Master 2012 Pay Sheet'!$B$5:$B$35)>0,LOOKUP(AT48,'Master 2012 Pay Sheet'!$A$5:$A$35,'Master 2012 Pay Sheet'!$B$5:$B$35),0)) -> 0 | AV48: 4.54 | AW48: 59 | AX48: =IF(D48="","",IF(LOOKUP(AW48,'Master 2012 Pay Sheet'!$C$5:$C$35,'Master 2012 Pay Sheet'!$D$5:$D$35)>0,LOOKUP(AW48,'Master 2012 Pay Sheet'!$C$5:$C$35,'Master 2012 Pay Sheet'!$D$5:$D$35),0)) -> 0 | AY48: 10.62 | AZ48: 63 | BA48: =IF(D48="","",IF(LOOKUP(AZ48,'Master 2012 Pay Sheet'!$E$5:$E$35,'Master 2012 Pay Sheet'!$F$5:$F$35)>0,LOOKUP(AZ48,'Master 2012 Pay Sheet'!$E$5:$E$35,'Master 2012 Pay Sheet'!$F$5:$F$35),0)) -> 0 | BB48: 0 | BC48: -5 | BE48: 4 | BF48: 2.02 | BH48: 4 | BI48: 1.24 | BK48: 8 | BL48: 0 | BM48: 46 | BN48: 0 | BO48: 46 | BP48: 0 | BQ48: 46 | BR48: 0 | BS48: 46 | BT48: 0 | BU48: 46 | BV48: 0 | BW48: 46 | BX48: 0 | BY48: 46 | BZ48: 0 | CA48: 46 | CB48: 0 | CC48: 46 | CD48: 0 | CE48: 46 | CF48: 0 | CG48: 46 | CH48: 0 | CI48: 46 | CO48: 63 | CP48: 9 | CX48: 4 | DD48: 4 | DN48: 8 | DU48: 46 | DW48: 12.67605634 | DY48: 24.25 | DZ48: 5.28
B49: 47 | D49: Mortenson, Dustin | E49: Williston, ND | G49: Mortenson, Levi | H49: Williston, ND | I49: AC | M49: 17 | N49: 17.75 | O49: 16 | X49: 1.64 | Y49: 1.86 | Z49: 1.38 | AC49: 15.5 | AH49: 1.24 | AS49: 4.88 | AT49: 63 | AU49: =IF(D49="","",IF(LOOKUP(AT49,'Master 2012 Pay Sheet'!$A$5:$A$35,'Master 2012 Pay Sheet'!$B$5:$B$35)>0,LOOKUP(AT49,'Master 2012 Pay Sheet'!$A$5:$A$35,'Master 2012 Pay Sheet'!$B$5:$B$35),0)) -> 0 | AV49: 1.24 | AW49: 69 | AX49: =IF(D49="","",IF(LOOKUP(AW49,'Master 2012 Pay Sheet'!$C$5:$C$35,'Master 2012 Pay Sheet'!$D$5:$D$35)>0,LOOKUP(AW49,'Master 2012 Pay Sheet'!$C$5:$C$35,'Master 2012 Pay Sheet'!$D$5:$D$35),0)) -> 0 | AY49: 6.12 | AZ49: 67 | BA49: =IF(D49="","",IF(LOOKUP(AZ49,'Master 2012 Pay Sheet'!$E$5:$E$35,'Master 2012 Pay Sheet'!$F$5:$F$35)>0,LOOKUP(AZ49,'Master 2012 Pay Sheet'!$E$5:$E$35,'Master 2012 Pay Sheet'!$F$5:$F$35),0)) -> 0 | BB49: 0 | BC49: -4 | BE49: 3 | BF49: 1.86 | BH49: 1 | BI49: 1.24 | BK49: 4 | BL49: 0 | BM49: 47 | BN49: 0 | BO49: 47 | BP49: 0 | BQ49: 47 | BR49: 0 | BS49: 47 | BT49: 0 | BU49: 47 | BV49: 0 | BW49: 47 | BX49: 0 | BY49: 47 | BZ49: 0 | CA49: 47 | CB49: 0 | CC49: 47 | CD49: 0 | CE49: 47 | CF49: 0 | CG49: 47 | CH49: 0 | CI49: 47 | CJ49: 67 | CK49: 6 | CW49: 3 | DA49: 1 | DJ49: 4 | DV49: 47 | DW49: 7.042253521 | DY49: 24.5 | DZ49: 5.46
B50: 48 | D50: Dooley, Todd | E50: Sidney, MT | G50: Hurst, Randy | H50: Fairview, MT | I50: AT | M50: 20 | N50: 21.25 | O50: 19.75 | P50: 17 | Q50: 17 | X50: 2.76 | Y50: 3.38 | Z50: 2.64 | AA50: 1.64 | AB50: 1.64 | AC50: 18.5 | AD50: 16.75 | AE50: 19.25 | AF50: 23.75 | AG50: 27.5 | AH50: 2.12 | AI50: 1.58 | AJ50: 2.42 | AK50: 4.88 | AL50: 8.08 | AS50: 12.06 | AT50: 32 | AU50: =IF(D50="","",IF(LOOKUP(AT50,'Master 2012 Pay Sheet'!$A$5:$A$35,'Master 2012 Pay Sheet'!$B$5:$B$35)>0,LOOKUP(AT50,'Master 2012 Pay Sheet'!$A$5:$A$35,'Master 2012 Pay Sheet'!$B$5:$B$35),0)) -> 0 | AV50: 19.08 | AW50: 5 | AX50: =IF(D50="","",IF(LOOKUP(AW50,'Master 2012 Pay Sheet'!$C$5:$C$35,'Master 2012 Pay Sheet'!$D$5:$D$35)>0,LOOKUP(AW50,'Master 2012 Pay Sheet'!$C$5:$C$35,'Master 2012 Pay Sheet'!$D$5:$D$35),0)) -> 0 | AY50: 31.14 | AZ50: 11 | BA50: =IF(D50="","",IF(LOOKUP(AZ50,'Master 2012 Pay Sheet'!$E$5:$E$35,'Master 2012 Pay Sheet'!$F$5:$F$35)>0,LOOKUP(AZ50,'Master 2012 Pay Sheet'!$E$5:$E$35,'Master 2012 Pay Sheet'!$F$5:$F$35),0)) -> 0 | BB50: 0 | BC50: 21 | BE50: 5 | BF50: 3.38 | BH50: 5 | BI50: 8.08 | BK50: 10 | BL50: 0 | BM50: 48 | BN50: 0 | BO50: 48 | BP50: 0 | BQ50: 48 | BR50: 0 | BS50: 48 | BT50: 0 | BU50: 48 | BV50: 0 | BW50: 48 | BX50: 0 | BY50: 48 | BZ50: 0 | CA50: 48 | CB50: 0 | CC50: 48 | CD50: 0 | CE50: 48 | CF50: 0 | CG50: 48 | CH50: 0 | CI50: 48 | CY50: 5 | DE50: 5 | DP50: 10 | DT50: 48 | DW50: 85.91549296 | DY50: 24.75 | DZ50: 5.66
B51: 49 | D51: Filler, Doug | E51: Sidney, MT | G51: Nelson, Jonny | H51: Sidney, MT | I51: AT | M51: 21 | N51: 23.5 | O51: 18.5 | P51: 19.5 | Q51: 20 | X51: 3.24 | Y51: 4.74 | Z51: 2.12 | AA51: 2.52 | AB51: 2.76 | AC51: 15 | AD51: 14.5 | AE51: 15 | AF51: 15 | AH51: 1.12 | AI51: 1.06 | AJ51: 1.12 | AK51: 1.12 | AS51: 15.38 | AT51: 17 | AU51: =IF(D51="","",IF(LOOKUP(AT51,'Master 2012 Pay Sheet'!$A$5:$A$35,'Master 2012 Pay Sheet'!$B$5:$B$35)>0,LOOKUP(AT51,'Master 2012 Pay Sheet'!$A$5:$A$35,'Master 2012 Pay Sheet'!$B$5:$B$35),0)) -> 0 | AV51: 4.42 | AW51: 60 | AX51: =IF(D51="","",IF(LOOKUP(AW51,'Master 2012 Pay Sheet'!$C$5:$C$35,'Master 2012 Pay Sheet'!$D$5:$D$35)>0,LOOKUP(AW51,'Master 2012 Pay Sheet'!$C$5:$C$35,'Master 2012 Pay Sheet'!$D$5:$D$35),0)) -> 0 | AY51: 19.8 | AZ51: 44 | BA51: =IF(D51="","",IF(LOOKUP(AZ51,'Master 2012 Pay Sheet'!$E$5:$E$35,'Master 2012 Pay Sheet'!$F$5:$F$35)>0,LOOKUP(AZ51,'Master 2012 Pay Sheet'!$E$5:$E$35,'Master 2012 Pay Sheet'!$F$5:$F$35),0)) -> 0 | BB51: 0 | BC51: -27 | BE51: 5 | BF51: 4.74 | BH51: 4 | BI51: 1.12 | BK51: 9 | BL51: 0 | BM51: 49 | BN51: 0 | BO51: 49 | BP51: 0 | BQ51: 49 | BR51: 0 | BS51: 49 | BT51: 0 | BU51: 49 | BV51: 0 | BW51: 49 | BX51: 0 | BY51: 49 | BZ51: 0 | CA51: 49 | CB51: 0 | CC51: 49 | CD51: 0 | CE51: 49 | CF51: 0 | CG51: 49 | CH51: 0 | CI51: 49 | CY51: 5 | DD51: 4 | DO51: 9 | DT51: 49 | DW51: 39.43661972 | DY51: 25 | DZ51: 5.84
B52: 50 | D52: Murie, Randy | E52: Alexander,ND | G52: Redfield, William | H52: Sidney, MT | I52: AT | M52: 16.75 | N52: 29.25 | O52: 17.5 | P52: 17.75 | Q52: 17.75 | X52: 1.58 | Y52: 9.94 | Z52: 1.78 | AA52: 1.86 | AB52: 1.86 | AC52: 31.5 | AD52: 21.25 | AE52: 18 | AF52: 17.25 | AG52: 17.25 | AH52: 12.7 | AI52: 3.38 | AJ52: 1.94 | AK52: 1.72 | AL52: 1.72 | AS52: 17.02 | AT52: 14 | AU52: =IF(D52="","",IF(LOOKUP(AT52,'Master 2012 Pay Sheet'!$A$5:$A$35,'Master 2012 Pay Sheet'!$B$5:$B$35)>0,LOOKUP(AT52,'Master 2012 Pay Sheet'!$A$5:$A$35,'Master 2012 Pay Sheet'!$B$5:$B$35),0)) -> 0 | AV52: 21.46 | AW52: 3 | AX52: =IF(D52="","",IF(LOOKUP(AW52,'Master 2012 Pay Sheet'!$C$5:$C$35,'Master 2012 Pay Sheet'!$D$5:$D$35)>0,LOOKUP(AW52,'Master 2012 Pay Sheet'!$C$5:$C$35,'Master 2012 Pay Sheet'!$D$5:$D$35),0)) -> 0 | AY52: 38.48 | AZ52: 2 | BA52: =IF(D52="","",IF(LOOKUP(AZ52,'Master 2012 Pay Sheet'!$E$5:$E$35,'Master 2012 Pay Sheet'!$F$5:$F$35)>0,LOOKUP(AZ52,'Master 2012 Pay Sheet'!$E$5:$E$35,'Master 2012 Pay Sheet'!$F$5:$F$35),0)) -> 0 | BB52: 0 | BC52: 12 | BE52: 5 | BF52: 9.94 | BH52: 5 | BI52: 12.7 | BJ52: 50 | BK52: 10 | BL52: 0 | BM52: 50 | BN52: 0 | BO52: 50 | BP52: 0 | BQ52: 50 | BR52: 0 | BS52: 50 | BT52: 0 | BU52: 50 | BV52: 0 | BW52: 50 | BX52: 0 | BY52: 50 | BZ52: 0 | CA52: 50 | CB52: 0 | CC52: 50 | CD52: 0 | CE52: 50 | CF52: 0 | CG52: 50 | CH52: 0 | CI52: 50 | CY52: 5 | DE52: 5 | DP52: 10 | DT52: 50 | DW52: 98.5915493 | DY52: 25.25 | DZ52: 6.06
B53: 51 | D53: Kwasney, Chris | E53: Circle, MT | G53: Kwasney, Blake | H53: Circle, MT | I53: AC | M53: 18 | N53: 19 | O53: 17.5 | P53: 17.5 | Q53: 24 | X53: 1.94 | Y53: 2.32 | Z53: 1.78 | AA53: 1.78 | AB53: 5.1 | AC53: 16 | AD53: 17.25 | AE53: 17 | AF53: 18 | AG53: 17 | AH53: 1.38 | AI53: 1.72 | AJ53: 1.64 | AK53: 1.94 | AL53: 1.64 | AS53: 12.92 | AT53: 26 | AU53: =IF(D53="","",IF(LOOKUP(AT53,'Master 2012 Pay Sheet'!$A$5:$A$35,'Master 2012 Pay Sheet'!$B$5:$B$35)>0,LOOKUP(AT53,'Master 2012 Pay Sheet'!$A$5:$A$35,'Master 2012 Pay Sheet'!$B$5:$B$35),0)) -> 0 | AV53: 8.32 | AW53: 43 | AX53: =IF(D53="","",IF(LOOKUP(AW53,'Master 2012 Pay Sheet'!$C$5:$C$35,'Master 2012 Pay Sheet'!$D$5:$D$35)>0,LOOKUP(AW53,'Master 2012 Pay Sheet'!$C$5:$C$35,'Master 2012 Pay Sheet'!$D$5:$D$35),0)) -> 0 | AY53: 21.24 | AZ53: 34 | BA53: =IF(D53="","",IF(LOOKUP(AZ53,'Master 2012 Pay Sheet'!$E$5:$E$35,'Master 2012 Pay Sheet'!$F$5:$F$35)>0,LOOKUP(AZ53,'Master 2012 Pay Sheet'!$E$5:$E$35,'Master 2012 Pay Sheet'!$F$5:$F$35),0)) -> 0 | BB53: 0 | BC53: -8 | BE53: 5 | BF53: 5.1 | BH53: 5 | BI53: 1.94 | BK53: 10 | BL53: 0 | BM53: 51 | BN53: 0 | BO53: 51 | BP53: 0 | BQ53: 51 | BR53: 0 | BS53: 51 | BT53: 0 | BU53: 51 | BV53: 0 | BW53: 51 | BX53: 0 | BY53: 51 | BZ53: 0 | CA53: 51 | CB53: 0 | CC53: 51 | CD53: 0 | CE53: 51 | CF53: 0 | CG53: 51 | CH53: 0 | CI53: 51 | CJ53: 34 | CK53: 4 | CY53: 5 | DE53: 5 | DP53: 10 | DV53: 51 | DW53: 53.52112676 | DY53: 25.5 | DZ53: 6.26
B54: 52 | D54: Rush, Whit | E54: Wolf Point, MT | G54: Whit, Carly | H54: Wolf Point, MT | I54: MC | M54: 20.75 | N54: 15 | O54: 16.5 | P54: 16.75 | Q54: 16.75 | X54: 3.12 | Y54: 1.12 | Z54: 1.5 | AA54: 1.58 | AB54: 1.58 | AC54: 16 | AD54: 17.5 | AE54: 19 | AF54: 26 | AG54: 23 | AH54: 1.38 | AI54: 1.78 | AJ54: 2.32 | AK54: 6.68 | AL54: 4.42 | AS54: 8.9 | AT54: 47 | AU54: =IF(D54="","",IF(LOOKUP(AT54,'Master 2012 Pay Sheet'!$A$5:$A$35,'Master 2012 Pay Sheet'!$B$5:$B$35)>0,LOOKUP(AT54,'Master 2012 Pay Sheet'!$A$5:$A$35,'Master 2012 Pay Sheet'!$B$5:$B$35),0)) -> 0 | AV54: 16.58 | AW54: 12 | AX54: =IF(D54="","",IF(LOOKUP(AW54,'Master 2012 Pay Sheet'!$C$5:$C$35,'Master 2012 Pay Sheet'!$D$5:$D$35)>0,LOOKUP(AW54,'Master 2012 Pay Sheet'!$C$5:$C$35,'Master 2012 Pay Sheet'!$D$5:$D$35),0)) -> 0 | AY54: 25.48 | AZ54: 22 | BA54: =IF(D54="","",IF(LOOKUP(AZ54,'Master 2012 Pay Sheet'!$E$5:$E$35,'Master 2012 Pay Sheet'!$F$5:$F$35)>0,LOOKUP(AZ54,'Master 2012 Pay Sheet'!$E$5:$E$35,'Master 2012 Pay Sheet'!$F$5:$F$35),0)) -> 0 | BB54: 0 | BC54: 25 | BE54: 5 | BF54: 3.12 | BH54: 5 | BI54: 6.68 | BK54: 10 | BL54: 0 | BM54: 52 | BN54: 0 | BO54: 52 | BP54: 0 | BQ54: 52 | BR54: 0 | BS54: 52 | BT54: 0 | BU54: 52 | BV54: 0 | BW54: 52 | BX54: 0 | BY54: 52 | BZ54: 0 | CA54: 52 | CB54: 0 | CC54: 52 | CD54: 0 | CE54: 52 | CF54: 0 | CG54: 52 | CH54: 0 | CI54: 52 | CO54: 22 | CP54: 3 | CS54: 52 | CY54: 5 | DE54: 5 | DP54: 10 | DU54: 52 | DW54: 70.42253521 | DY54: 25.75 | DZ54: 6.46
B55: 53 | D55: Kleppelid, Todd | E55: Circle, MT | G55: Kleppelid, Trevor | H55: Circle, MT | I55: AT | M55: 20 | N55: 18 | O55: 18.25 | P55: 18.25 | Q55: 18 | X55: 2.76 | Y55: 1.94 | Z55: 2.02 | AA55: 2.02 | AB55: 1.94 | AC55: 15.75 | AD55: 15.5 | AE55: 18.5 | AF55: 20.5 | AG55: 18 | AH55: 1.32 | AI55: 1.24 | AJ55: 2.12 | AK55: 3 | AL55: 1.94 | AS55: 10.68 | AT55: 41 | AU55: =IF(D55="","",IF(LOOKUP(AT55,'Master 2012 Pay Sheet'!$A$5:$A$35,'Master 2012 Pay Sheet'!$B$5:$B$35)>0,LOOKUP(AT55,'Master 2012 Pay Sheet'!$A$5:$A$35,'Master 2012 Pay Sheet'!$B$5:$B$35),0)) -> 0 | AV55: 9.62 | AW55: 34 | AX55: =IF(D55="","",IF(LOOKUP(AW55,'Master 2012 Pay Sheet'!$C$5:$C$35,'Master 2012 Pay Sheet'!$D$5:$D$35)>0,LOOKUP(AW55,'Master 2012 Pay Sheet'!$C$5:$C$35,'Master 2012 Pay Sheet'!$D$5:$D$35),0)) -> 0 | AY55: 20.3 | AZ55: 39 | BA55: =IF(D55="","",IF(LOOKUP(AZ55,'Master 2012 Pay Sheet'!$E$5:$E$35,'Master 2012 Pay Sheet'!$F$5:$F$35)>0,LOOKUP(AZ55,'Master 2012 Pay Sheet'!$E$5:$E$35,'Master 2012 Pay Sheet'!$F$5:$F$35),0)) -> 0 | BB55: 0 | BC55: 2 | BE55: 5 | BF55: 2.76 | BH55: 5 | BI55: 3 | BK55: 10 | BL55: 0 | BM55: 53 | BN55: 0 | BO55: 53 | BP55: 0 | BQ55: 53 | BR55: 0 | BS55: 53 | BT55: 0 | BU55: 53 | BV55: 0 | BW55: 53 | BX55: 0 | BY55: 53 | BZ55: 0 | CA55: 53 | CB55: 0 | CC55: 53 | CD55: 0 | CE55: 53 | CF55: 0 | CG55: 53 | CH55: 0 | CI55: 53 | CY55: 5 | DE55: 5 | DP55: 10 | DT55: 53 | DW55: 46.47887324 | DY55: 26 | DZ55: 6.68
B56: 54 | D56: Olson, Ricci | E56: Glasgow, MT | G56: Morehouse, Seth | H56: Glasgow, MT | I56: AT | M56: 18.5 | N56: 17.75 | O56: 21.75 | P56: 20.5 | Q56: 18 | X56: 2.12 | Y56: 1.86 | Z56: 3.66 | AA56: 3 | AB56: 1.94 | AC56: 23 | AD56: 16 | AE56: 16.5 | AF56: 21 | AG56: 17.75 | AH56: 4.42 | AI56: 1.38 | AJ56: 1.5 | AK56: 3.24 | AL56: 1.86 | AS56: 12.58 | AT56: 29 | AU56: =IF(D56="","",IF(LOOKUP(AT56,'Master 2012 Pay Sheet'!$A$5:$A$35,'Master 2012 Pay Sheet'!$B$5:$B$35)>0,LOOKUP(AT56,'Master 2012 Pay Sheet'!$A$5:$A$35,'Master 2012 Pay Sheet'!$B$5:$B$35),0)) -> 0 | AV56: 12.4 | AW56: 18 | AX56: =IF(D56="","",IF(LOOKUP(AW56,'Master 2012 Pay Sheet'!$C$5:$C$35,'Master 2012 Pay Sheet'!$D$5:$D$35)>0,LOOKUP(AW56,'Master 2012 Pay Sheet'!$C$5:$C$35,'Master 2012 Pay Sheet'!$D$5:$D$35),0)) -> 0 | AY56: 24.98 | AZ56: 25 | BA56: =IF(D56="","",IF(LOOKUP(AZ56,'Master 2012 Pay Sheet'!$E$5:$E$35,'Master 2012 Pay Sheet'!$F$5:$F$35)>0,LOOKUP(AZ56,'Master 2012 Pay Sheet'!$E$5:$E$35,'Master 2012 Pay Sheet'!$F$5:$F$35),0)) -> 0 | BB56: 0 | BC56: 4 | BE56: 5 | BF56: 3.66 | BH56: 5 | BI56: 4.42 | BK56: 10 | BL56: 0 | BM56: 54 | BN56: 0 | BO56: 54 | BP56: 0 | BQ56: 54 | BR56: 0 | BS56: 54 | BT56: 0 | BU56: 54 | BV56: 0 | BW56: 54 | BX56: 0 | BY56: 54 | BZ56: 0 | CA56: 54 | CB56: 0 | CC56: 54 | CD56: 0 | CE56: 54 | CF56: 0 | CG56: 54 | CH56: 0 | CI56: 54 | CY56: 5 | DE56: 5 | DP56: 10 | DT56: 54 | DW56: 66.1971831 | DY56: 26.25 | DZ56: 6.9
B57: 55 | D57: Cayko, Gary | E57: Bismarck, ND | G57: Babb, Brandon | H57: Wolf Point, MT | I57: AT | M57: 18.75 | N57: 18 | O57: 18 | P57: 18.25 | Q57: 18 | X57: 2.22 | Y57: 1.94 | Z57: 1.94 | AA57: 2.02 | AB57: 1.94 | AC57: 21.25 | AD57: 18 | AE57: 18.5 | AF57: 28 | AG57: 16.5 | AH57: 3.38 | AI57: 1.94 | AJ57: 2.12 | AK57: 8.58 | AL57: 1.5 | AS57: 10.06 | AT57: 43 | AU57: =IF(D57="","",IF(LOOKUP(AT57,'Master 2012 Pay Sheet'!$A$5:$A$35,'Master 2012 Pay Sheet'!$B$5:$B$35)>0,LOOKUP(AT57,'Master 2012 Pay Sheet'!$A$5:$A$35,'Master 2012 Pay Sheet'!$B$5:$B$35),0)) -> 0 | AV57: 17.52 | AW57: 9 | AX57: =IF(D57="","",IF(LOOKUP(AW57,'Master 2012 Pay Sheet'!$C$5:$C$35,'Master 2012 Pay Sheet'!$D$5:$D$35)>0,LOOKUP(AW57,'Master 2012 Pay Sheet'!$C$5:$C$35,'Master 2012 Pay Sheet'!$D$5:$D$35),0)) -> 0 | AY57: 27.58 | AZ57: 18 | BA57: =IF(D57="","",IF(LOOKUP(AZ57,'Master 2012 Pay Sheet'!$E$5:$E$35,'Master 2012 Pay Sheet'!$F$5:$F$35)>0,LOOKUP(AZ57,'Master 2012 Pay Sheet'!$E$5:$E$35,'Master 2012 Pay Sheet'!$F$5:$F$35),0)) -> 0 | BB57: 0 | BC57: 25 | BE57: 5 | BF57: 2.22 | BH57: 5 | BI57: 8.58 | BK57: 10 | BL57: 0 | BM57: 55 | BN57: 0 | BO57: 55 | BP57: 0 | BQ57: 55 | BR57: 0 | BS57: 55 | BT57: 0 | BU57: 55 | BV57: 0 | BW57: 55 | BX57: 0 | BY57: 55 | BZ57: 0 | CA57: 55 | CB57: 0 | CC57: 55 | CD57: 0 | CE57: 55 | CF57: 0 | CG57: 55 | CH57: 0 | CI57: 55 | CY57: 5 | DE57: 5 | DP57: 10 | DT57: 55 | DW57: 76.05633803 | DY57: 26.5 | DZ57: 7.12
B58: 56 | D58: Rossol, Chris | E58: Sidney, MT | G58: Rossol, Kenneth | H58: Sidney, MT | I58: AT | M58: 18.25 | N58: 18.5 | O58: 17.5 | P58: 17.5 | Q58: 27 | X58: 2.02 | Y58: 2.12 | Z58: 1.78 | AA58: 1.78 | AB58: 7.58 | AC58: 27 | AD58: 14.25 | AE58: 16.5 | AH58: 7.58 | AI58: 1.03 | AJ58: 1.5 | AS58: 15.28 | AT58: 18 | AU58: =IF(D58="","",IF(LOOKUP(AT58,'Master 2012 Pay Sheet'!$A$5:$A$35,'Master 2012 Pay Sheet'!$B$5:$B$35)>0,LOOKUP(AT58,'Master 2012 Pay Sheet'!$A$5:$A$35,'Master 2012 Pay Sheet'!$B$5:$B$35),0)) -> 0 | AV58: 10.11 | AW58: 32 | AX58: =IF(D58="","",IF(LOOKUP(AW58,'Master 2012 Pay Sheet'!$C$5:$C$35,'Master 2012 Pay Sheet'!$D$5:$D$35)>0,LOOKUP(AW58,'Master 2012 Pay Sheet'!$C$5:$C$35,'Master 2012 Pay Sheet'!$D$5:$D$35),0)) -> 0 | AY58: 25.39 | AZ58: 23 | BA58: =IF(D58="","",IF(LOOKUP(AZ58,'Master 2012 Pay Sheet'!$E$5:$E$35,'Master 2012 Pay Sheet'!$F$5:$F$35)>0,LOOKUP(AZ58,'Master 2012 Pay Sheet'!$E$5:$E$35,'Master 2012 Pay Sheet'!$F$5:$F$35),0)) -> 0 | BB58: 0 | BC58: -5 | BE58: 5 | BF58: 7.58 | BH58: 3 | BI58: 7.58 | BK58: 8 | BL58: 0 | BM58: 56 | BN58: 0 | BO58: 56 | BP58: 0 | BQ58: 56 | BR58: 0 | BS58: 56 | BT58: 0 | BU58: 56 | BV58: 0 | BW58: 56 | BX58: 0 | BY58: 56 | BZ58: 0 | CA58: 56 | CB58: 0 | CC58: 56 | CD58: 0 | CE58: 56 | CF58: 0 | CG58: 56 | CH58: 0 | CI58: 56 | CY58: 5 | DC58: 3 | DN58: 8 | DT58: 56 | DW58: 69.01408451 | DY58: 26.75 | DZ58: 7.36
B59: 57 | D59: Linder, Tim | E59: Glendive, MT | G59: Linder, Steve | H59: Glendive,MT | I59: AT | M59: 19.25 | N59: 19 | O59: 18.5 | P59: 18 | Q59: 21.5 | X59: 2.42 | Y59: 2.32 | Z59: 2.12 | AA59: 1.94 | AB59: 3.52 | AC59: 29 | AD59: 19 | AE59: 19.5 | AF59: 19.5 | AG59: 17 | AH59: 9.64 | AI59: 2.32 | AJ59: 2.52 | AK59: 2.52 | AL59: 1.64 | AS59: 12.32 | AT59: 31 | AU59: =IF(D59="","",IF(LOOKUP(AT59,'Master 2012 Pay Sheet'!$A$5:$A$35,'Master 2012 Pay Sheet'!$B$5:$B$35)>0,LOOKUP(AT59,'Master 2012 Pay Sheet'!$A$5:$A$35,'Master 2012 Pay Sheet'!$B$5:$B$35),0)) -> 0 | AV59: 18.64 | AW59: 7 | AX59: =IF(D59="","",IF(LOOKUP(AW59,'Master 2012 Pay Sheet'!$C$5:$C$35,'Master 2012 Pay Sheet'!$D$5:$D$35)>0,LOOKUP(AW59,'Master 2012 Pay Sheet'!$C$5:$C$35,'Master 2012 Pay Sheet'!$D$5:$D$35),0)) -> 0 | AY59: 30.96 | AZ59: 12 | BA59: =IF(D59="","",IF(LOOKUP(AZ59,'Master 2012 Pay Sheet'!$E$5:$E$35,'Master 2012 Pay Sheet'!$F$5:$F$35)>0,LOOKUP(AZ59,'Master 2012 Pay Sheet'!$E$5:$E$35,'Master 2012 Pay Sheet'!$F$5:$F$35),0)) -> 0 | BB59: 0 | BC59: 19 | BE59: 5 | BF59: 3.52 | BH59: 5 | BI59: 9.64 | BK59: 10 | BL59: 0 | BM59: 57 | BN59: 0 | BO59: 57 | BP59: 0 | BQ59: 57 | BR59: 0 | BS59: 57 | BT59: 0 | BU59: 57 | BV59: 0 | BW59: 57 | BX59: 0 | BY59: 57 | BZ59: 0 | CA59: 57 | CB59: 0 | CC59: 57 | CD59: 0 | CE59: 57 | CF59: 0 | CG59: 57 | CH59: 0 | CI59: 57 | CY59: 5 | DE59: 5 | DP59: 10 | DT59: 57 | DW59: 84.50704225 | DY59: 27 | DZ59: 7.58
B60: 58 | D60: Sundby, Luke | E60: Williston, ND | G60: Hatzenbiler, Jake | H60: BelleFourche, SD | I60: AT | M60: 27 | N60: 29 | O60: 18.25 | P60: 22.5 | Q60: 17.5 | X60: 7.58 | Y60: 9.64 | Z60: 2.02 | AA60: 4.1 | AB60: 1.78 | AC60: 22.5 | AD60: 17.5 | AE60: 16.5 | AF60: 19.25 | AG60: 17.5 | AH60: 4.1 | AI60: 1.78 | AJ60: 1.5 | AK60: 2.42 | AL60: 1.78 | AS60: 25.12 | AT60: 1 | AU60: =IF(D60="","",IF(LOOKUP(AT60,'Master 2012 Pay Sheet'!$A$5:$A$35,'Master 2012 Pay Sheet'!$B$5:$B$35)>0,LOOKUP(AT60,'Master 2012 Pay Sheet'!$A$5:$A$35,'Master 2012 Pay Sheet'!$B$5:$B$35),0)) -> 0 | AV60: 11.58 | AW60: 21 | AX60: =IF(D60="","",IF(LOOKUP(AW60,'Master 2012 Pay Sheet'!$C$5:$C$35,'Master 2012 Pay Sheet'!$D$5:$D$35)>0,LOOKUP(AW60,'Master 2012 Pay Sheet'!$C$5:$C$35,'Master 2012 Pay Sheet'!$D$5:$D$35),0)) -> 0 | AY60: 36.7 | AZ60: 4 | BA60: =IF(D60="","",IF(LOOKUP(AZ60,'Master 2012 Pay Sheet'!$E$5:$E$35,'Master 2012 Pay Sheet'!$F$5:$F$35)>0,LOOKUP(AZ60,'Master 2012 Pay Sheet'!$E$5:$E$35,'Master 2012 Pay Sheet'!$F$5:$F$35),0)) -> 0 | BB60: 0 | BC60: -3 | BE60: 5 | BF60: 9.64 | BH60: 5 | BI60: 4.1 | BK60: 10 | BL60: 0 | BM60: 58 | BN60: 0 | BO60: 58 | BP60: 0 | BQ60: 58 | BR60: 0 | BS60: 58 | BT60: 0 | BU60: 58 | BV60: 0 | BW60: 58 | BX60: 0 | BY60: 58 | BZ60: 0 | CA60: 58 | CB60: 0 | CC60: 58 | CD60: 0 | CE60: 58 | CF60: 0 | CG60: 58 | CH60: 0 | CI60: 58 | CY60: 5 | DE60: 5 | DP60: 10 | DT60: 58 | DW60: 95.77464789 | DY60: 27.25 | DZ60: 7.82
B61: 59 | D61: Poole, Matt | E61: Glasgow, MT | G61: Bertram, Pete | H61: Sartell, MN | I61: AT | M61: 24.25 | N61: 19.5 | O61: 22.75 | P61: 15 | Q61: 15.5 | X61: 5.28 | Y61: 2.52 | Z61: 4.26 | AA61: 1.12 | AB61: 1.24 | AC61: 31.5 | AD61: 22 | AE61: 15.75 | AH61: 12.7 | AI61: 3.8 | AJ61: 1.32 | AS61: 14.42 | AT61: 21 | AU61: =IF(D61="","",IF(LOOKUP(AT61,'Master 2012 Pay Sheet'!$A$5:$A$35,'Master 2012 Pay Sheet'!$B$5:$B$35)>0,LOOKUP(AT61,'Master 2012 Pay Sheet'!$A$5:$A$35,'Master 2012 Pay Sheet'!$B$5:$B$35),0)) -> 0 | AV61: 17.82 | AW61: 8 | AX61: =IF(D61="","",IF(LOOKUP(AW61,'Master 2012 Pay Sheet'!$C$5:$C$35,'Master 2012 Pay Sheet'!$D$5:$D$35)>0,LOOKUP(AW61,'Master 2012 Pay Sheet'!$C$5:$C$35,'Master 2012 Pay Sheet'!$D$5:$D$35),0)) -> 0 | AY61: 32.24 | AZ61: 10 | BA61: =IF(D61="","",IF(LOOKUP(AZ61,'Master 2012 Pay Sheet'!$E$5:$E$35,'Master 2012 Pay Sheet'!$F$5:$F$35)>0,LOOKUP(AZ61,'Master 2012 Pay Sheet'!$E$5:$E$35,'Master 2012 Pay Sheet'!$F$5:$F$35),0)) -> 0 | BB61: 0 | BC61: 11 | BE61: 5 | BF61: 5.28 | BH61: 3 | BI61: 12.7 | BJ61: 59 | BK61: 8 | BL61: 0 | BM61: 59 | BN61: 0 | BO61: 59 | BP61: 0 | BQ61: 59 | BR61: 0 | BS61: 59 | BT61: 0 | BU61: 59 | BV61: 0 | BW61: 59 | BX61: 0 | BY61: 59 | BZ61: 0 | CA61: 59 | CB61: 0 | CC61: 59 | CD61: 0 | CE61: 59 | CF61: 0 | CG61: 59 | CH61: 0 | CI61: 59 | CY61: 5 | DC61: 3 | DN61: 8 | DT61: 59 | DW61: 87.32394366 | DY61: 27.5 | DZ61: 8.08
B62: 60 | D62: Bechtold, Justin | E62: Willard, MT | G62: Bechtold, Jason | H62: Willard, MT | I62: AT | M62: 17.5 | N62: 15.75 | O62: 16 | P62: 16.5 | Q62: 24.75 | X62: 1.78 | Y62: 1.32 | Z62: 1.38 | AA62: 1.5 | AB62: 5.66 | AC62: 23.5 | AD62: 14.5 | AE62: 15 | AF62: 19.75 | AH62: 4.74 | AI62: 1.06 | AJ62: 1.12 | AK62: 2.64 | AS62: 11.64 | AT62: 34 | AU62: =IF(D62="","",IF(LOOKUP(AT62,'Master 2012 Pay Sheet'!$A$5:$A$35,'Master 2012 Pay Sheet'!$B$5:$B$35)>0,LOOKUP(AT62,'Master 2012 Pay Sheet'!$A$5:$A$35,'Master 2012 Pay Sheet'!$B$5:$B$35),0)) -> 0 | AV62: 9.56 | AW62: 35 | AX62: =IF(D62="","",IF(LOOKUP(AW62,'Master 2012 Pay Sheet'!$C$5:$C$35,'Master 2012 Pay Sheet'!$D$5:$D$35)>0,LOOKUP(AW62,'Master 2012 Pay Sheet'!$C$5:$C$35,'Master 2012 Pay Sheet'!$D$5:$D$35),0)) -> 0 | AY62: 21.2 | AZ62: 35 | BA62: =IF(D62="","",IF(LOOKUP(AZ62,'Master 2012 Pay Sheet'!$E$5:$E$35,'Master 2012 Pay Sheet'!$F$5:$F$35)>0,LOOKUP(AZ62,'Master 2012 Pay Sheet'!$E$5:$E$35,'Master 2012 Pay Sheet'!$F$5:$F$35),0)) -> 0 | BB62: 0 | BC62: -1 | BE62: 5 | BF62: 5.66 | BH62: 4 | BI62: 4.74 | BK62: 9 | BL62: 0 | BM62: 60 | BN62: 0 | BO62: 60 | BP62: 0 | BQ62: 60 | BR62: 0 | BS62: 60 | BT62: 0 | BU62: 60 | BV62: 0 | BW62: 60 | BX62: 0 | BY62: 60 | BZ62: 0 | CA62: 60 | CB62: 0 | CC62: 60 | CD62: 0 | CE62: 60 | CF62: 0 | CG62: 60 | CH62: 0 | CI62: 60 | CY62: 5 | DD62: 4 | DO62: 9 | DT62: 60 | DW62: 52.11267606 | DY62: 27.75 | DZ62: 8.32
B63: 61 | D63: Dasinger, Bill | E63: Wolf Point, MT | G63: Dasinger, Marlys | H63: Wolf Point, MT | I63: MC | M63: 14.75 | N63: 19.75 | O63: 18 | X63: 1.09 | Y63: 2.64 | Z63: 1.94 | AC63: 15 | AD63: 23.5 | AE63: 17.5 | AH63: 1.12 | AI63: 4.74 | AJ63: 1.78 | AS63: 5.67 | AT63: 59 | AU63: =IF(D63="","",IF(LOOKUP(AT63,'Master 2012 Pay Sheet'!$A$5:$A$35,'Master 2012 Pay Sheet'!$B$5:$B$35)>0,LOOKUP(AT63,'Master 2012 Pay Sheet'!$A$5:$A$35,'Master 2012 Pay Sheet'!$B$5:$B$35),0)) -> 0 | AV63: 7.64 | AW63: 46 | AX63: =IF(D63="","",IF(LOOKUP(AW63,'Master 2012 Pay Sheet'!$C$5:$C$35,'Master 2012 Pay Sheet'!$D$5:$D$35)>0,LOOKUP(AW63,'Master 2012 Pay Sheet'!$C$5:$C$35,'Master 2012 Pay Sheet'!$D$5:$D$35),0)) -> 0 | AY63: 13.31 | AZ63: 59 | BA63: =IF(D63="","",IF(LOOKUP(AZ63,'Master 2012 Pay Sheet'!$E$5:$E$35,'Master 2012 Pay Sheet'!$F$5:$F$35)>0,LOOKUP(AZ63,'Master 2012 Pay Sheet'!$E$5:$E$35,'Master 2012 Pay Sheet'!$F$5:$F$35),0)) -> 0 | BB63: 0 | BC63: 0 | BE63: 3 | BF63: 2.64 | BH63: 3 | BI63: 4.74 | BK63: 6 | BL63: 0 | BM63: 61 | BN63: 0 | BO63: 61 | BP63: 0 | BQ63: 61 | BR63: 0 | BS63: 61 | BT63: 0 | BU63: 61 | BV63: 0 | BW63: 61 | BX63: 0 | BY63: 61 | BZ63: 0 | CA63: 61 | CB63: 0 | CC63: 61 | CD63: 0 | CE63: 61 | CF63: 0 | CG63: 61 | CH63: 0 | CI63: 61 | CO63: 59 | CP63: 7 | CW63: 3 | DC63: 3 | DL63: 6 | DU63: 61 | DW63: 18.30985915 | DY63: 28 | DZ63: 8.58
B64: 62 | D64: Hooks, Shawn | E64: Fort Peck, MT | G64: Jaeger, Eric | H64: Parshall, ND | I64: AT | M64: 30 | N64: 17.75 | O64: 17.75 | P64: 16.5 | Q64: 16.75 | X64: 10.82 | Y64: 1.86 | Z64: 1.86 | AA64: 1.5 | AB64: 1.58 | AC64: 19.25 | AD64: 20 | AE64: 20.25 | AF64: 23.25 | AG64: 21 | AH64: 2.42 | AI64: 2.76 | AJ64: 2.88 | AK64: 4.58 | AL64: 3.24 | AS64: 17.62 | AT64: 13 | AU64: =IF(D64="","",IF(LOOKUP(AT64,'Master 2012 Pay Sheet'!$A$5:$A$35,'Master 2012 Pay Sheet'!$B$5:$B$35)>0,LOOKUP(AT64,'Master 2012 Pay Sheet'!$A$5:$A$35,'Master 2012 Pay Sheet'!$B$5:$B$35),0)) -> 0 | AV64: 15.88 | AW64: 13 | AX64: =IF(D64="","",IF(LOOKUP(AW64,'Master 2012 Pay Sheet'!$C$5:$C$35,'Master 2012 Pay Sheet'!$D$5:$D$35)>0,LOOKUP(AW64,'Master 2012 Pay Sheet'!$C$5:$C$35,'Master 2012 Pay Sheet'!$D$5:$D$35),0)) -> 0 | AY64: 33.5 | AZ64: 9 | BA64: =IF(D64="","",IF(LOOKUP(AZ64,'Master 2012 Pay Sheet'!$E$5:$E$35,'Master 2012 Pay Sheet'!$F$5:$F$35)>0,LOOKUP(AZ64,'Master 2012 Pay Sheet'!$E$5:$E$35,'Master 2012 Pay Sheet'!$F$5:$F$35),0)) -> 0 | BB64: 0 | BC64: 4 | BE64: 5 | BF64: 10.82 | BH64: 5 | BI64: 4.58 | BK64: 10 | BL64: 0 | BM64: 62 | BN64: 0 | BO64: 62 | BP64: 0 | BQ64: 62 | BR64: 0 | BS64: 62 | BT64: 0 | BU64: 62 | BV64: 0 | BW64: 62 | BX64: 0 | BY64: 62 | BZ64: 0 | CA64: 62 | CB64: 0 | CC64: 62 | CD64: 0 | CE64: 62 | CF64: 0 | CG64: 62 | CH64: 0 | CI64: 62 | CY64: 5 | DE64: 5 | DP64: 10 | DT64: 62 | DW64: 88.73239437 | DY64: 28.25 | DZ64: 8.84
B65: 63 | D65: Woodward, Scott | E65: Glendive, MT | G65: Knudson, Kim | H65: Glendive,MT | I65: AT | M65: 21 | N65: 19.75 | O65: 17.25 | P65: 21 | Q65: 31.5 | X65: 3.24 | Y65: 2.64 | Z65: 1.72 | AA65: 3.24 | AB65: 12.7 | AC65: 17.75 | AD65: 23 | AE65: 17.5 | AF65: 17 | AG65: 16.75 | AH65: 1.86 | AI65: 4.42 | AJ65: 1.78 | AK65: 1.64 | AL65: 1.58 | AS65: 23.54 | AT65: 3 | AU65: =IF(D65="","",IF(LOOKUP(AT65,'Master 2012 Pay Sheet'!$A$5:$A$35,'Master 2012 Pay Sheet'!$B$5:$B$35)>0,LOOKUP(AT65,'Master 2012 Pay Sheet'!$A$5:$A$35,'Master 2012 Pay Sheet'!$B$5:$B$35),0)) -> 0 | AV65: 11.28 | AW65: 24 | AX65: =IF(D65="","",IF(LOOKUP(AW65,'Master 2012 Pay Sheet'!$C$5:$C$35,'Master 2012 Pay Sheet'!$D$5:$D$35)>0,LOOKUP(AW65,'Master 2012 Pay Sheet'!$C$5:$C$35,'Master 2012 Pay Sheet'!$D$5:$D$35),0)) -> 0 | AY65: 34.82 | AZ65: 6 | BA65: =IF(D65="","",IF(LOOKUP(AZ65,'Master 2012 Pay Sheet'!$E$5:$E$35,'Master 2012 Pay Sheet'!$F$5:$F$35)>0,LOOKUP(AZ65,'Master 2012 Pay Sheet'!$E$5:$E$35,'Master 2012 Pay Sheet'!$F$5:$F$35),0)) -> 0 | BB65: 0 | BC65: -3 | BE65: 5 | BF65: 12.7 | BH65: 5 | BI65: 4.42 | BK65: 10 | BL65: 0 | BM65: 63 | BN65: 0 | BO65: 63 | BP65: 0 | BQ65: 63 | BR65: 0 | BS65: 63 | BT65: 0 | BU65: 63 | BV65: 0 | BW65: 63 | BX65: 0 | BY65: 63 | BZ65: 0 | CA65: 63 | CB65: 0 | CC65: 63 | CD65: 0 | CE65: 63 | CF65: 0 | CG65: 63 | CH65: 0 | CI65: 63 | CY65: 5 | DE65: 5 | DP65: 10 | DT65: 63 | DW65: 92.95774648 | DY65: 28.5 | DZ65: 9.1
B66: 64 | D66: Jones, Mark | E66: Billings, MT | G66: Schmidt, Ken | H66: Glasgow, MT | I66: AT | M66: 18.5 | N66: 17.5 | O66: 18 | P66: 18 | Q66: 18 | X66: 2.12 | Y66: 1.78 | Z66: 1.94 | AA66: 1.94 | AB66: 1.94 | AC66: 16.25 | AD66: 15.75 | AE66: 22 | AH66: 1.44 | AI66: 1.32 | AJ66: 3.8 | AS66: 9.72 | AT66: 44 | AU66: =IF(D66="","",IF(LOOKUP(AT66,'Master 2012 Pay Sheet'!$A$5:$A$35,'Master 2012 Pay Sheet'!$B$5:$B$35)>0,LOOKUP(AT66,'Master 2012 Pay Sheet'!$A$5:$A$35,'Master 2012 Pay Sheet'!$B$5:$B$35),0)) -> 0 | AV66: 6.56 | AW66: 48 | AX66: =IF(D66="","",IF(LOOKUP(AW66,'Master 2012 Pay Sheet'!$C$5:$C$35,'Master 2012 Pay Sheet'!$D$5:$D$35)>0,LOOKUP(AW66,'Master 2012 Pay Sheet'!$C$5:$C$35,'Master 2012 Pay Sheet'!$D$5:$D$35),0)) -> 0 | AY66: 16.28 | AZ66: 53 | BA66: =IF(D66="","",IF(LOOKUP(AZ66,'Master 2012 Pay Sheet'!$E$5:$E$35,'Master 2012 Pay Sheet'!$F$5:$F$35)>0,LOOKUP(AZ66,'Master 2012 Pay Sheet'!$E$5:$E$35,'Master 2012 Pay Sheet'!$F$5:$F$35),0)) -> 0 | BB66: 0 | BC66: -9 | BE66: 5 | BF66: 2.12 | BH66: 3 | BI66: 3.8 | BK66: 8 | BL66: 0 | BM66: 64 | BN66: 0 | BO66: 64 | BP66: 0 | BQ66: 64 | BR66: 0 | BS66: 64 | BT66: 0 | BU66: 64 | BV66: 0 | BW66: 64 | BX66: 0 | BY66: 64 | BZ66: 0 | CA66: 64 | CB66: 0 | CC66: 64 | CD66: 0 | CE66: 64 | CF66: 0 | CG66: 64 | CH66: 0 | CI66: 64 | CY66: 5 | DC66: 3 | DN66: 8 | DT66: 64 | DW66: 26.76056338 | DY66: 28.75 | DZ66: 9.38
B67: 65 | D67: Cowen, Matt | E67: Billings, MT | G67: Cowen, Blake | H67: Billings, MT | I67: AC | M67: 21 | N67: 18.25 | O67: 19.5 | P67: 19.75 | Q67: 18.25 | X67: =IF(M67>0,VLOOKUP(M67,$DY$8:$DZ$95,2)," ") -> 3.24 | Y67: =IF(N67>0,VLOOKUP(N67,$DY$8:$DZ$95,2)," ") -> 2.02 | Z67: =IF(O67>0,VLOOKUP(O67,$DY$8:$DZ$95,2)," ") -> 2.52 | AA67: =IF(P67>0,VLOOKUP(P67,$DY$8:$DZ$95,2)," ") -> 2.64 | AB67: =IF(Q67>0,VLOOKUP(Q67,$DY$8:$DZ$95,2)," ") -> 2.02 | AC67: 18.5 | AD67: 27 | AE67: 26.75 | AF67: 18.5 | AG67: 19 | AH67: 2.12 | AI67: 7.58 | AJ67: 7.36 | AK67: 2.12 | AL67: 2.32 | AS67: 12.44 | AT67: =IF(D67="","",RANK(AS67,$AS$3:$AS$202,0)) -> 30 | AU67: =IF(D67="","",IF(LOOKUP(AT67,'Master 2012 Pay Sheet'!$A$5:$A$35,'Master 2012 Pay Sheet'!$B$5:$B$35)>0,LOOKUP(AT67,'Master 2012 Pay Sheet'!$A$5:$A$35,'Master 2012 Pay Sheet'!$B$5:$B$35),0)) -> 0 | AV67: 21.5 | AW67: =IF(D67="","",RANK(AV67,$AV$3:$AV$202,0)) -> 2 | AX67: =IF(D67="","",IF(LOOKUP(AW67,'Master 2012 Pay Sheet'!$C$5:$C$35,'Master 2012 Pay Sheet'!$D$5:$D$35)>0,LOOKUP(AW67,'Master 2012 Pay Sheet'!$C$5:$C$35,'Master 2012 Pay Sheet'!$D$5:$D$35),0)) -> 0 | AY67: =IF(D67="","",AS67+AV67) -> 33.94 | AZ67: =IF(D67="","",RANK(AY67,$AY$3:$AY$202,0)) -> 7 | BA67: =IF(D67="","",IF(LOOKUP(AZ67,'Master 2012 Pay Sheet'!$E$5:$E$35,'Master 2012 Pay Sheet'!$F$5:$F$35)>0,LOOKUP(AZ67,'Master 2012 Pay Sheet'!$E$5:$E$35,'Master 2012 Pay Sheet'!$F$5:$F$35),0)) -> 0 | BB67: =IF(D67="","",SUM(AU67+AX67+BA67)) -> 0 | BC67: =IF(D67="","",AT67-AZ67) -> 23 | BD67: =IF(D67="","",IF(BC67=MAX($BC$3:$BC$202),B67,"")) ->  | BE67: =IF(D67="","",COUNT(M67:Q67)) -> 5 | BF67: 3.24 | BG67: =IF(BF67=MAX($BF$3:$BF$202),B67,"") ->  | BH67: =IF(D67="","",COUNT(AC67:AG67)) -> 5 | BI67: 7.58 | BJ67: =IF(BI67=MAX($BI$3:$BI$202),B67,"") ->  | BK67: 10 | BL67: =IF(D67="","",IF(S67=MAX($S$3:$S$202),S67,"")) -> 0 | BM67: =IF(BL67=MAX($BL$3:$BL$202),B67,"") -> 65 | BN67: =IF(D67="","",IF(AN67=MAX($AN$3:$AN$202),AN67,"")) -> 0 | BO67: =IF(BN67=MAX($BN$3:$BN$202),B67,"") -> 65 | BP67: =IF(D67="","",IF(R67=MAX($R$3:$R$202),R67,"")) -> 0 | BQ67: =IF(BP67=MAX($BP$3:$BP$202),B67,"") -> 65 | BR67: =IF(D67="","",IF(AM67=MAX($AM$3:$AM$202),AM67,"")) -> 0 | BS67: =IF(BR67=MAX($BR$3:$BR$202),B67,"") -> 65 | BT67: =IF(D67="","",IF(V67=MAX($V$3:$V$202),V67,"")) -> 0 | BU67: =IF(BT67=MAX($BT$3:$BT$202),B67,"") -> 65 | BV67: =IF(D67="","",IF(W67=MAX($W$3:$W$202), W67,"")) -> 0 | BW67: =IF(BV67=MAX($BV$3:$BV$202),B67,"") -> 65 | BX67: =IF(D67="","",IF(AQ67=MAX($AQ$3:$AQ$202),AQ67,"")) -> 0 | BY67: =IF(BX67=MAX($BX$3:$BX$202),B67,"") -> 65 | BZ67: =IF(D67="","",IF(AR67=MAX($AR$3:$AR$202), AR67,"")) -> 0 | CA67: =IF(BZ67=MAX($BZ$3:$BZ$202),B67,"") -> 65 | CB67: =IF(D67="","",IF(U67=MAX($U$3:$U$202), U67,"")) -> 0 | CC67: =IF(CB67=MAX($CB$3:$CB$202),B67,"") -> 65 | CD67: =IF(D67="","",IF(AP67=MAX($AP$3:$AP$202),AP67,"")) -> 0 | CE67: =IF(CD67=MAX($CD$3:$CD$202),B67,"") -> 65 | CF67: =IF(D67="","",IF(T67=MAX($T$3:$T$202), T67,"")) -> 0 | CG67: =IF(CF67=MAX($CF$3:$CF$202),B67,"") -> 65 | CH67: =IF(D67="","",IF(AO67=MAX($AO$3:$AO$202),AO67,"")) -> 0 | CI67: =IF(CH67=MAX($CH$3:$CH$202),B67,"") -> 65 | CJ67: =IF(I67="AC",AZ67,"") -> 7 | CK67: =IF(CJ67="","",RANK(CJ67,$CJ$3:$CJ$202,1)) -> 1 | CL67: =IF(CK67=1,B67,"") -> 65 | CM67: =IF(CK67=2,B67,"") ->  | CN67: =IF(CK67=3,B67,"") ->  | CO67: =IF(I67="MC",AZ67,"") ->  | CP67: =IF(CO67="","",RANK(CO67,$CO$3:$CO$202,1)) ->  | CQ67: =IF(CP67=1,B67,"") ->  | CR67: =IF(CP67=2,B67,"") ->  | CS67: =IF(CP67=3,B67,"") ->  | CY67: 5 | DE67: 5 | DP67: 10 | DQ67: =IF(J67="Lund",AZ67,"") ->  | DR67: =IF(DQ67="","",RANK(DQ67,$DQ$3:$DQ$202,1)) ->  | DS67: =IF(DR67=1,B67,"") ->  | DT67: =IF(I67="AT",B67,"") ->  | DU67: =IF(I67="MC",B67,"") ->  | DV67: =IF(I67="AC",B67,"") -> 65 | DW67: =IF(BK67=0,0,IF(D67="","",$D$203-AZ67+1)/$D$203*100) -> 91.54929577 | DY67: 29 | DZ67: 9.64
B68: 66 | D68: Swanson, John | E68: Miles City, MT | G68: Lund, JR | H68: Lewistown, MT | I68: AT | M68: 21.25 | N68: 17.5 | X68: =IF(M68>0,VLOOKUP(M68,$DY$8:$DZ$95,2)," ") -> 3.38 | Y68: 1.78 | AC68: 15.5 | AD68: 15 | AE68: 16 | AH68: =IF(AC68>0,VLOOKUP(AC68,$DY$8:$DZ$95,2)," ") -> 1.24 | AI68: 1.12 | AJ68: 1.38 | AS68: =IF(D68="","",SUM(X68:AB68)) -> 5.16 | AT68: 62 | AU68: =IF(D68="","",IF(LOOKUP(AT68,'Master 2012 Pay Sheet'!$A$5:$A$35,'Master 2012 Pay Sheet'!$B$5:$B$35)>0,LOOKUP(AT68,'Master 2012 Pay Sheet'!$A$5:$A$35,'Master 2012 Pay Sheet'!$B$5:$B$35),0)) -> 0 | AV68: =IF(D68="","",SUM(AH68:AL68)) -> 3.74 | AW68: 63 | AX68: =IF(D68="","",IF(LOOKUP(AW68,'Master 2012 Pay Sheet'!$C$5:$C$35,'Master 2012 Pay Sheet'!$D$5:$D$35)>0,LOOKUP(AW68,'Master 2012 Pay Sheet'!$C$5:$C$35,'Master 2012 Pay Sheet'!$D$5:$D$35),0)) -> 0 | AY68: 8.9 | AZ68: 65 | BA68: =IF(D68="","",IF(LOOKUP(AZ68,'Master 2012 Pay Sheet'!$E$5:$E$35,'Master 2012 Pay Sheet'!$F$5:$F$35)>0,LOOKUP(AZ68,'Master 2012 Pay Sheet'!$E$5:$E$35,'Master 2012 Pay Sheet'!$F$5:$F$35),0)) -> 0 | BB68: 0 | BC68: -3 | BE68: 2 | BF68: =IF(D68="","",MAX(X68:AB68)) -> 3.38 | BH68: 3 | BI68: =IF(D68="","",MAX(AH68:AL68)) -> 1.38 | BK68: =IF(BE68="","",BE68+BH68) -> 5 | BL68: 0 | BM68: 66 | BN68: 0 | BO68: 66 | BP68: 0 | BQ68: 66 | BR68: 0 | BS68: 66 | BT68: 0 | BU68: 66 | BV68: 0 | BW68: 66 | BX68: 0 | BY68: 66 | BZ68: 0 | CA68: 66 | CB68: 0 | CC68: 66 | CD68: 0 | CE68: 66 | CF68: 0 | CG68: 66 | CH68: 0 | CI68: 66 | CT68: =IF(BE68=0,BE68,"") ->  | CU68: =IF(BE68=1,1,"") ->  | CV68: =IF(BE68=2,2,"") -> 2 | CW68: =IF(BE68=3,3,"") ->  | CX68: =IF(BE68=4,4,"") ->  | CY68: =IF(BE68=5,5,"") ->  | CZ68: =IF(BH68=0,BH68,"") ->  | DA68: =IF(BH68=1,1,"") ->  | DB68: =IF(BH68=2,2,"") ->  | DC68: =IF(BH68=3,3,"") -> 3 | DD68: =IF(BH68=4,4,"") ->  | DE68: =IF(BH68=5,5,"") ->  | DF68: =IF(BK68=0,BK68,"") ->  | DG68: =IF(BK68=1,1,"") ->  | DH68: =IF(BK68=2,2,"") ->  | DI68: =IF(BK68=3,3,"") ->  | DJ68: =IF(BK68=4,4,"") ->  | DK68: =IF(BK68=5,5,"") -> 5 | DL68: =IF(BK68=6,6,"") ->  | DM68: =IF(BK68=7,7,"") ->  | DN68: =IF(BK68=8,8,"") ->  | DO68: =IF(BK68=9,9,"") ->  | DP68: =IF(BK68=10,10,"") ->  | DT68: 66 | DW68: 9.85915493 | DX68: =IF(AS68 = 0,AV68 - AS68,"") ->  | DY68: 29.25 | DZ68: 9.94
B69: 67 | D69: Fuchs, Shane | E69: Billings, MT | G69: Fuchs, Alden | H69: Billings, MT | I69: AC | M69: 19 | N69: 19.25 | O69: 18.5 | P69: 18.25 | Q69: 17.75 | X69: 2.32 | Y69: 2.42 | Z69: 2.12 | AA69: 2.02 | AB69: 1.86 | AC69: 18.75 | AD69: 18 | AE69: 18.25 | AF69: 19.5 | AG69: 18.5 | AH69: 2.22 | AI69: 1.94 | AJ69: 2.02 | AK69: 2.52 | AL69: 2.12 | AS69: 10.74 | AT69: 38 | AU69: =IF(D69="","",IF(LOOKUP(AT69,'Master 2012 Pay Sheet'!$A$5:$A$35,'Master 2012 Pay Sheet'!$B$5:$B$35)>0,LOOKUP(AT69,'Master 2012 Pay Sheet'!$A$5:$A$35,'Master 2012 Pay Sheet'!$B$5:$B$35),0)) -> 0 | AV69: 10.82 | AW69: 29 | AX69: =IF(D69="","",IF(LOOKUP(AW69,'Master 2012 Pay Sheet'!$C$5:$C$35,'Master 2012 Pay Sheet'!$D$5:$D$35)>0,LOOKUP(AW69,'Master 2012 Pay Sheet'!$C$5:$C$35,'Master 2012 Pay Sheet'!$D$5:$D$35),0)) -> 0 | AY69: 21.56 | AZ69: 33 | BA69: =IF(D69="","",IF(LOOKUP(AZ69,'Master 2012 Pay Sheet'!$E$5:$E$35,'Master 2012 Pay Sheet'!$F$5:$F$35)>0,LOOKUP(AZ69,'Master 2012 Pay Sheet'!$E$5:$E$35,'Master 2012 Pay Sheet'!$F$5:$F$35),0)) -> 0 | BB69: 0 | BC69: 5 | BE69: 5 | BF69: 2.42 | BH69: 5 | BI69: 2.52 | BK69: 10 | BL69: 0 | BM69: 67 | BN69: 0 | BO69: 67 | BP69: 0 | BQ69: 67 | BR69: 0 | BS69: 67 | BT69: 0 | BU69: 67 | BV69: 0 | BW69: 67 | BX69: 0 | BY69: 67 | BZ69: 0 | CA69: 67 | CB69: 0 | CC69: 67 | CD69: 0 | CE69: 67 | CF69: 0 | CG69: 67 | CH69: 0 | CI69: 67 | CJ69: 33 | CK69: 3 | CN69: 67 | CY69: 5 | DE69: 5 | DP69: 10 | DV69: 67 | DW69: 54.92957746 | DY69: 29.5 | DZ69: 10.22
B70: 68 | D70: Atkinson, Georgia | E70: Poplar, MT | G70: Schwarzrock, Guy | H70: Poplar, MT | I70: MC | M70: 31 | N70: 16 | O70: 14.5 | P70: 15.5 | Q70: 20 | X70: 12.06 | Y70: 1.38 | Z70: 1.06 | AA70: 1.24 | AB70: 2.76 | AC70: 16 | AD70: 17 | AE70: 16.5 | AF70: 14.5 | AH70: 1.38 | AI70: 1.64 | AJ70: 1.5 | AK70: 1.06 | AS70: 18.5 | AT70: 8 | AU70: =IF(D70="","",IF(LOOKUP(AT70,'Master 2012 Pay Sheet'!$A$5:$A$35,'Master 2012 Pay Sheet'!$B$5:$B$35)>0,LOOKUP(AT70,'Master 2012 Pay Sheet'!$A$5:$A$35,'Master 2012 Pay Sheet'!$B$5:$B$35),0)) -> 0 | AV70: 5.58 | AW70: 56 | AX70: =IF(D70="","",IF(LOOKUP(AW70,'Master 2012 Pay Sheet'!$C$5:$C$35,'Master 2012 Pay Sheet'!$D$5:$D$35)>0,LOOKUP(AW70,'Master 2012 Pay Sheet'!$C$5:$C$35,'Master 2012 Pay Sheet'!$D$5:$D$35),0)) -> 0 | AY70: 24.08 | AZ70: 27 | BA70: =IF(D70="","",IF(LOOKUP(AZ70,'Master 2012 Pay Sheet'!$E$5:$E$35,'Master 2012 Pay Sheet'!$F$5:$F$35)>0,LOOKUP(AZ70,'Master 2012 Pay Sheet'!$E$5:$E$35,'Master 2012 Pay Sheet'!$F$5:$F$35),0)) -> 0 | BB70: 0 | BC70: -19 | BE70: 5 | BF70: 12.06 | BH70: 4 | BI70: 1.64 | BK70: 9 | BL70: 0 | BM70: 68 | BN70: 0 | BO70: 68 | BP70: 0 | BQ70: 68 | BR70: 0 | BS70: 68 | BT70: 0 | BU70: 68 | BV70: 0 | BW70: 68 | BX70: 0 | BY70: 68 | BZ70: 0 | CA70: 68 | CB70: 0 | CC70: 68 | CD70: 0 | CE70: 68 | CF70: 0 | CG70: 68 | CH70: 0 | CI70: 68 | CO70: 27 | CP70: 4 | CY70: 5 | DD70: 4 | DO70: 9 | DU70: 68 | DW70: 63.38028169 | DY70: 29.75 | DZ70: 10.52
B71: 69 | D71: Harada, Steve | E71: Wolf Point, MT | G71: Harada, Traci | H71: Wolf Point, MT | I71: MC | M71: 19 | N71: 20 | O71: 16 | P71: 16.25 | Q71: 21 | X71: 2.32 | Y71: 2.76 | Z71: 1.38 | AA71: 1.44 | AB71: 3.24 | AC71: 16.5 | AD71: 17.75 | AH71: 1.5 | AI71: 1.86 | AS71: 11.14 | AT71: 37 | AU71: =IF(D71="","",IF(LOOKUP(AT71,'Master 2012 Pay Sheet'!$A$5:$A$35,'Master 2012 Pay Sheet'!$B$5:$B$35)>0,LOOKUP(AT71,'Master 2012 Pay Sheet'!$A$5:$A$35,'Master 2012 Pay Sheet'!$B$5:$B$35),0)) -> 0 | AV71: 3.36 | AW71: 64 | AX71: =IF(D71="","",IF(LOOKUP(AW71,'Master 2012 Pay Sheet'!$C$5:$C$35,'Master 2012 Pay Sheet'!$D$5:$D$35)>0,LOOKUP(AW71,'Master 2012 Pay Sheet'!$C$5:$C$35,'Master 2012 Pay Sheet'!$D$5:$D$35),0)) -> 0 | AY71: 14.5 | AZ71: 55 | BA71: =IF(D71="","",IF(LOOKUP(AZ71,'Master 2012 Pay Sheet'!$E$5:$E$35,'Master 2012 Pay Sheet'!$F$5:$F$35)>0,LOOKUP(AZ71,'Master 2012 Pay Sheet'!$E$5:$E$35,'Master 2012 Pay Sheet'!$F$5:$F$35),0)) -> 0 | BB71: 0 | BC71: -18 | BE71: 5 | BF71: 3.24 | BH71: 2 | BI71: 1.86 | BK71: 7 | BL71: 0 | BM71: 69 | BN71: 0 | BO71: 69 | BP71: 0 | BQ71: 69 | BR71: 0 | BS71: 69 | BT71: 0 | BU71: 69 | BV71: 0 | BW71: 69 | BX71: 0 | BY71: 69 | BZ71: 0 | CA71: 69 | CB71: 0 | CC71: 69 | CD71: 0 | CE71: 69 | CF71: 0 | CG71: 69 | CH71: 0 | CI71: 69 | CO71: 55 | CP71: 6 | CY71: 5 | DB71: 2 | DM71: 7 | DU71: 69 | DW71: 23.94366197 | DY71: 30 | DZ71: 10.82
B72: 70 | D72: Seilstad, Carl | E72: Lewistown, MT | G72: Seilstad, Cathy | H72: Lewistown, MT | I72: MC | M72: 18 | N72: 18.25 | O72: 18.5 | P72: 21.75 | Q72: 27.5 | X72: 1.94 | Y72: 2.02 | Z72: 2.12 | AA72: 3.66 | AB72: 8.08 | AC72: 17.5 | AD72: 25 | AE72: 16 | AF72: 15.5 | AG72: 15 | AH72: 1.78 | AI72: 5.84 | AJ72: 1.38 | AK72: 1.24 | AL72: 1.12 | AS72: 17.82 | AT72: 11 | AU72: =IF(D72="","",IF(LOOKUP(AT72,'Master 2012 Pay Sheet'!$A$5:$A$35,'Master 2012 Pay Sheet'!$B$5:$B$35)>0,LOOKUP(AT72,'Master 2012 Pay Sheet'!$A$5:$A$35,'Master 2012 Pay Sheet'!$B$5:$B$35),0)) -> 0 | AV72: 11.36 | AW72: 23 | AX72: =IF(D72="","",IF(LOOKUP(AW72,'Master 2012 Pay Sheet'!$C$5:$C$35,'Master 2012 Pay Sheet'!$D$5:$D$35)>0,LOOKUP(AW72,'Master 2012 Pay Sheet'!$C$5:$C$35,'Master 2012 Pay Sheet'!$D$5:$D$35),0)) -> 0 | AY72: 29.18 | AZ72: 15 | BA72: =IF(D72="","",IF(LOOKUP(AZ72,'Master 2012 Pay Sheet'!$E$5:$E$35,'Master 2012 Pay Sheet'!$F$5:$F$35)>0,LOOKUP(AZ72,'Master 2012 Pay Sheet'!$E$5:$E$35,'Master 2012 Pay Sheet'!$F$5:$F$35),0)) -> 0 | BB72: 0 | BC72: -4 | BE72: 5 | BF72: 8.08 | BH72: 5 | BI72: 5.84 | BK72: 10 | BL72: 0 | BM72: 70 | BN72: 0 | BO72: 70 | BP72: 0 | BQ72: 70 | BR72: 0 | BS72: 70 | BT72: 0 | BU72: 70 | BV72: 0 | BW72: 70 | BX72: 0 | BY72: 70 | BZ72: 0 | CA72: 70 | CB72: 0 | CC72: 70 | CD72: 0 | CE72: 70 | CF72: 0 | CG72: 70 | CH72: 0 | CI72: 70 | CO72: 15 | CP72: 1 | CQ72: 70 | CY72: 5 | DE72: 5 | DP72: 10 | DU72: 70 | DW72: 80.28169014 | DY72: 30.25 | DZ72: 11.12
B73: 71 | D73: Atkinson, Jamie | E73: Poplar, MT | G73: Laroche, Ron | H73: Poplar, MT | I73: AT | M73: 22.25 | N73: 18 | O73: 23 | P73: 18 | Q73: 17.75 | X73: 3.94 | Y73: 1.94 | Z73: 4.42 | AA73: 1.94 | AB73: 1.86 | AC73: 15.5 | AD73: 17.75 | AH73: 1.24 | AI73: 1.86 | AS73: 14.1 | AT73: 22 | AU73: =IF(D73="","",IF(LOOKUP(AT73,'Master 2012 Pay Sheet'!$A$5:$A$35,'Master 2012 Pay Sheet'!$B$5:$B$35)>0,LOOKUP(AT73,'Master 2012 Pay Sheet'!$A$5:$A$35,'Master 2012 Pay Sheet'!$B$5:$B$35),0)) -> 0 | AV73: 3.1 | AW73: 65 | AX73: =IF(D73="","",IF(LOOKUP(AW73,'Master 2012 Pay Sheet'!$C$5:$C$35,'Master 2012 Pay Sheet'!$D$5:$D$35)>0,LOOKUP(AW73,'Master 2012 Pay Sheet'!$C$5:$C$35,'Master 2012 Pay Sheet'!$D$5:$D$35),0)) -> 0 | AY73: 17.2 | AZ73: 49 | BA73: =IF(D73="","",IF(LOOKUP(AZ73,'Master 2012 Pay Sheet'!$E$5:$E$35,'Master 2012 Pay Sheet'!$F$5:$F$35)>0,LOOKUP(AZ73,'Master 2012 Pay Sheet'!$E$5:$E$35,'Master 2012 Pay Sheet'!$F$5:$F$35),0)) -> 0 | BB73: 0 | BC73: -27 | BE73: 5 | BF73: 4.42 | BH73: 2 | BI73: 1.86 | BK73: 7 | BL73: 0 | BM73: 71 | BN73: 0 | BO73: 71 | BP73: 0 | BQ73: 71 | BR73: 0 | BS73: 71 | BT73: 0 | BU73: 71 | BV73: 0 | BW73: 71 | BX73: 0 | BY73: 71 | BZ73: 0 | CA73: 71 | CB73: 0 | CC73: 71 | CD73: 0 | CE73: 71 | CF73: 0 | CG73: 71 | CH73: 0 | CI73: 71 | CY73: 5 | DB73: 2 | DM73: 7 | DT73: 71 | DW73: 32.3943662 | DY73: 30.5 | DZ73: 11.42
B74: 72 | AU74: =IF(D74="","",IF(LOOKUP(AT74,'Master 2012 Pay Sheet'!$A$5:$A$35,'Master 2012 Pay Sheet'!$B$5:$B$35)>0,LOOKUP(AT74,'Master 2012 Pay Sheet'!$A$5:$A$35,'Master 2012 Pay Sheet'!$B$5:$B$35),0)) ->  | AX74: =IF(D74="","",IF(LOOKUP(AW74,'Master 2012 Pay Sheet'!$C$5:$C$35,'Master 2012 Pay Sheet'!$D$5:$D$35)>0,LOOKUP(AW74,'Master 2012 Pay Sheet'!$C$5:$C$35,'Master 2012 Pay Sheet'!$D$5:$D$35),0)) ->  | BA74: =IF(D74="","",IF(LOOKUP(AZ74,'Master 2012 Pay Sheet'!$E$5:$E$35,'Master 2012 Pay Sheet'!$F$5:$F$35)>0,LOOKUP(AZ74,'Master 2012 Pay Sheet'!$E$5:$E$35,'Master 2012 Pay Sheet'!$F$5:$F$35),0)) ->  | DY74: 30.75 | DZ74: 11.74
B75: 73 | AU75: =IF(D75="","",IF(LOOKUP(AT75,'Master 2012 Pay Sheet'!$A$5:$A$35,'Master 2012 Pay Sheet'!$B$5:$B$35)>0,LOOKUP(AT75,'Master 2012 Pay Sheet'!$A$5:$A$35,'Master 2012 Pay Sheet'!$B$5:$B$35),0)) ->  | AX75: =IF(D75="","",IF(LOOKUP(AW75,'Master 2012 Pay Sheet'!$C$5:$C$35,'Master 2012 Pay Sheet'!$D$5:$D$35)>0,LOOKUP(AW75,'Master 2012 Pay Sheet'!$C$5:$C$35,'Master 2012 Pay Sheet'!$D$5:$D$35),0)) ->  | BA75: =IF(D75="","",IF(LOOKUP(AZ75,'Master 2012 Pay Sheet'!$E$5:$E$35,'Master 2012 Pay Sheet'!$F$5:$F$35)>0,LOOKUP(AZ75,'Master 2012 Pay Sheet'!$E$5:$E$35,'Master 2012 Pay Sheet'!$F$5:$F$35),0)) ->  | DY75: 31 | DZ75: 12.06
B76: 74 | AU76: =IF(D76="","",IF(LOOKUP(AT76,'Master 2012 Pay Sheet'!$A$5:$A$35,'Master 2012 Pay Sheet'!$B$5:$B$35)>0,LOOKUP(AT76,'Master 2012 Pay Sheet'!$A$5:$A$35,'Master 2012 Pay Sheet'!$B$5:$B$35),0)) ->  | AX76: =IF(D76="","",IF(LOOKUP(AW76,'Master 2012 Pay Sheet'!$C$5:$C$35,'Master 2012 Pay Sheet'!$D$5:$D$35)>0,LOOKUP(AW76,'Master 2012 Pay Sheet'!$C$5:$C$35,'Master 2012 Pay Sheet'!$D$5:$D$35),0)) ->  | BA76: =IF(D76="","",IF(LOOKUP(AZ76,'Master 2012 Pay Sheet'!$E$5:$E$35,'Master 2012 Pay Sheet'!$F$5:$F$35)>0,LOOKUP(AZ76,'Master 2012 Pay Sheet'!$E$5:$E$35,'Master 2012 Pay Sheet'!$F$5:$F$35),0)) ->  | DY76: 31.25 | DZ76: 12.38
B77: 75 | AU77: =IF(D77="","",IF(LOOKUP(AT77,'Master 2012 Pay Sheet'!$A$5:$A$35,'Master 2012 Pay Sheet'!$B$5:$B$35)>0,LOOKUP(AT77,'Master 2012 Pay Sheet'!$A$5:$A$35,'Master 2012 Pay Sheet'!$B$5:$B$35),0)) ->  | AX77: =IF(D77="","",IF(LOOKUP(AW77,'Master 2012 Pay Sheet'!$C$5:$C$35,'Master 2012 Pay Sheet'!$D$5:$D$35)>0,LOOKUP(AW77,'Master 2012 Pay Sheet'!$C$5:$C$35,'Master 2012 Pay Sheet'!$D$5:$D$35),0)) ->  | BA77: =IF(D77="","",IF(LOOKUP(AZ77,'Master 2012 Pay Sheet'!$E$5:$E$35,'Master 2012 Pay Sheet'!$F$5:$F$35)>0,LOOKUP(AZ77,'Master 2012 Pay Sheet'!$E$5:$E$35,'Master 2012 Pay Sheet'!$F$5:$F$35),0)) ->  | DY77: 31.5 | DZ77: 12.7
B78: 76 | AU78: =IF(D78="","",IF(LOOKUP(AT78,'Master 2012 Pay Sheet'!$A$5:$A$35,'Master 2012 Pay Sheet'!$B$5:$B$35)>0,LOOKUP(AT78,'Master 2012 Pay Sheet'!$A$5:$A$35,'Master 2012 Pay Sheet'!$B$5:$B$35),0)) ->  | AX78: =IF(D78="","",IF(LOOKUP(AW78,'Master 2012 Pay Sheet'!$C$5:$C$35,'Master 2012 Pay Sheet'!$D$5:$D$35)>0,LOOKUP(AW78,'Master 2012 Pay Sheet'!$C$5:$C$35,'Master 2012 Pay Sheet'!$D$5:$D$35),0)) ->  | BA78: =IF(D78="","",IF(LOOKUP(AZ78,'Master 2012 Pay Sheet'!$E$5:$E$35,'Master 2012 Pay Sheet'!$F$5:$F$35)>0,LOOKUP(AZ78,'Master 2012 Pay Sheet'!$E$5:$E$35,'Master 2012 Pay Sheet'!$F$5:$F$35),0)) ->  | DY78: 31.75 | DZ78: 13.02
B79: 77 | AU79: =IF(D79="","",IF(LOOKUP(AT79,'Master 2012 Pay Sheet'!$A$5:$A$35,'Master 2012 Pay Sheet'!$B$5:$B$35)>0,LOOKUP(AT79,'Master 2012 Pay Sheet'!$A$5:$A$35,'Master 2012 Pay Sheet'!$B$5:$B$35),0)) ->  | AX79: =IF(D79="","",IF(LOOKUP(AW79,'Master 2012 Pay Sheet'!$C$5:$C$35,'Master 2012 Pay Sheet'!$D$5:$D$35)>0,LOOKUP(AW79,'Master 2012 Pay Sheet'!$C$5:$C$35,'Master 2012 Pay Sheet'!$D$5:$D$35),0)) ->  | BA79: =IF(D79="","",IF(LOOKUP(AZ79,'Master 2012 Pay Sheet'!$E$5:$E$35,'Master 2012 Pay Sheet'!$F$5:$F$35)>0,LOOKUP(AZ79,'Master 2012 Pay Sheet'!$E$5:$E$35,'Master 2012 Pay Sheet'!$F$5:$F$35),0)) ->  | DY79: 32 | DZ79: 13.25
B80: 78 | AU80: =IF(D80="","",IF(LOOKUP(AT80,'Master 2012 Pay Sheet'!$A$5:$A$35,'Master 2012 Pay Sheet'!$B$5:$B$35)>0,LOOKUP(AT80,'Master 2012 Pay Sheet'!$A$5:$A$35,'Master 2012 Pay Sheet'!$B$5:$B$35),0)) ->  | AX80: =IF(D80="","",IF(LOOKUP(AW80,'Master 2012 Pay Sheet'!$C$5:$C$35,'Master 2012 Pay Sheet'!$D$5:$D$35)>0,LOOKUP(AW80,'Master 2012 Pay Sheet'!$C$5:$C$35,'Master 2012 Pay Sheet'!$D$5:$D$35),0)) ->  | BA80: =IF(D80="","",IF(LOOKUP(AZ80,'Master 2012 Pay Sheet'!$E$5:$E$35,'Master 2012 Pay Sheet'!$F$5:$F$35)>0,LOOKUP(AZ80,'Master 2012 Pay Sheet'!$E$5:$E$35,'Master 2012 Pay Sheet'!$F$5:$F$35),0)) ->  | DY80: 32.25 | DZ80: 13.69
B81: 79 | AU81: =IF(D81="","",IF(LOOKUP(AT81,'Master 2012 Pay Sheet'!$A$5:$A$35,'Master 2012 Pay Sheet'!$B$5:$B$35)>0,LOOKUP(AT81,'Master 2012 Pay Sheet'!$A$5:$A$35,'Master 2012 Pay Sheet'!$B$5:$B$35),0)) ->  | AX81: =IF(D81="","",IF(LOOKUP(AW81,'Master 2012 Pay Sheet'!$C$5:$C$35,'Master 2012 Pay Sheet'!$D$5:$D$35)>0,LOOKUP(AW81,'Master 2012 Pay Sheet'!$C$5:$C$35,'Master 2012 Pay Sheet'!$D$5:$D$35),0)) ->  | BA81: =IF(D81="","",IF(LOOKUP(AZ81,'Master 2012 Pay Sheet'!$E$5:$E$35,'Master 2012 Pay Sheet'!$F$5:$F$35)>0,LOOKUP(AZ81,'Master 2012 Pay Sheet'!$E$5:$E$35,'Master 2012 Pay Sheet'!$F$5:$F$35),0)) ->  | DY81: 32.5 | DZ81: 14.03
B82: 80 | AU82: =IF(D82="","",IF(LOOKUP(AT82,'Master 2012 Pay Sheet'!$A$5:$A$35,'Master 2012 Pay Sheet'!$B$5:$B$35)>0,LOOKUP(AT82,'Master 2012 Pay Sheet'!$A$5:$A$35,'Master 2012 Pay Sheet'!$B$5:$B$35),0)) ->  | AX82: =IF(D82="","",IF(LOOKUP(AW82,'Master 2012 Pay Sheet'!$C$5:$C$35,'Master 2012 Pay Sheet'!$D$5:$D$35)>0,LOOKUP(AW82,'Master 2012 Pay Sheet'!$C$5:$C$35,'Master 2012 Pay Sheet'!$D$5:$D$35),0)) ->  | BA82: =IF(D82="","",IF(LOOKUP(AZ82,'Master 2012 Pay Sheet'!$E$5:$E$35,'Master 2012 Pay Sheet'!$F$5:$F$35)>0,LOOKUP(AZ82,'Master 2012 Pay Sheet'!$E$5:$E$35,'Master 2012 Pay Sheet'!$F$5:$F$35),0)) ->  | DY82: 32.75 | DZ82: 14.37
B83: 81 | AI83: =IF(AD83>0,VLOOKUP(AD83,$DY$8:$DZ$95,2)," ") ->  | AJ83: =IF(AE83>0,VLOOKUP(AE83,$DY$8:$DZ$95,2)," ") ->  | AK83: =IF(AF83>0,VLOOKUP(AF83,$DY$8:$DZ$95,2)," ") ->  | AL83: =IF(AG83>0,VLOOKUP(AG83,$DY$8:$DZ$95,2)," ") ->  | AU83: =IF(D83="","",IF(LOOKUP(AT83,'Master 2012 Pay Sheet'!$A$5:$A$35,'Master 2012 Pay Sheet'!$B$5:$B$35)>0,LOOKUP(AT83,'Master 2012 Pay Sheet'!$A$5:$A$35,'Master 2012 Pay Sheet'!$B$5:$B$35),0)) ->  | AX83: =IF(D83="","",IF(LOOKUP(AW83,'Master 2012 Pay Sheet'!$C$5:$C$35,'Master 2012 Pay Sheet'!$D$5:$D$35)>0,LOOKUP(AW83,'Master 2012 Pay Sheet'!$C$5:$C$35,'Master 2012 Pay Sheet'!$D$5:$D$35),0)) ->  | BA83: =IF(D83="","",IF(LOOKUP(AZ83,'Master 2012 Pay Sheet'!$E$5:$E$35,'Master 2012 Pay Sheet'!$F$5:$F$35)>0,LOOKUP(AZ83,'Master 2012 Pay Sheet'!$E$5:$E$35,'Master 2012 Pay Sheet'!$F$5:$F$35),0)) ->  | DY83: 33 | DZ83: 14.72
B84: 82 | AU84: =IF(D84="","",IF(LOOKUP(AT84,'Master 2012 Pay Sheet'!$A$5:$A$35,'Master 2012 Pay Sheet'!$B$5:$B$35)>0,LOOKUP(AT84,'Master 2012 Pay Sheet'!$A$5:$A$35,'Master 2012 Pay Sheet'!$B$5:$B$35),0)) ->  | AX84: =IF(D84="","",IF(LOOKUP(AW84,'Master 2012 Pay Sheet'!$C$5:$C$35,'Master 2012 Pay Sheet'!$D$5:$D$35)>0,LOOKUP(AW84,'Master 2012 Pay Sheet'!$C$5:$C$35,'Master 2012 Pay Sheet'!$D$5:$D$35),0)) ->  | BA84: =IF(D84="","",IF(LOOKUP(AZ84,'Master 2012 Pay Sheet'!$E$5:$E$35,'Master 2012 Pay Sheet'!$F$5:$F$35)>0,LOOKUP(AZ84,'Master 2012 Pay Sheet'!$E$5:$E$35,'Master 2012 Pay Sheet'!$F$5:$F$35),0)) ->  | DY84: 33.25 | DZ84: 15.08
B85: 83 | AU85: =IF(D85="","",IF(LOOKUP(AT85,'Master 2012 Pay Sheet'!$A$5:$A$35,'Master 2012 Pay Sheet'!$B$5:$B$35)>0,LOOKUP(AT85,'Master 2012 Pay Sheet'!$A$5:$A$35,'Master 2012 Pay Sheet'!$B$5:$B$35),0)) ->  | AX85: =IF(D85="","",IF(LOOKUP(AW85,'Master 2012 Pay Sheet'!$C$5:$C$35,'Master 2012 Pay Sheet'!$D$5:$D$35)>0,LOOKUP(AW85,'Master 2012 Pay Sheet'!$C$5:$C$35,'Master 2012 Pay Sheet'!$D$5:$D$35),0)) ->  | BA85: =IF(D85="","",IF(LOOKUP(AZ85,'Master 2012 Pay Sheet'!$E$5:$E$35,'Master 2012 Pay Sheet'!$F$5:$F$35)>0,LOOKUP(AZ85,'Master 2012 Pay Sheet'!$E$5:$E$35,'Master 2012 Pay Sheet'!$F$5:$F$35),0)) ->  | DY85: 33.5 | DZ85: 15.44
B86: 84 | AU86: =IF(D86="","",IF(LOOKUP(AT86,'Master 2012 Pay Sheet'!$A$5:$A$35,'Master 2012 Pay Sheet'!$B$5:$B$35)>0,LOOKUP(AT86,'Master 2012 Pay Sheet'!$A$5:$A$35,'Master 2012 Pay Sheet'!$B$5:$B$35),0)) ->  | AX86: =IF(D86="","",IF(LOOKUP(AW86,'Master 2012 Pay Sheet'!$C$5:$C$35,'Master 2012 Pay Sheet'!$D$5:$D$35)>0,LOOKUP(AW86,'Master 2012 Pay Sheet'!$C$5:$C$35,'Master 2012 Pay Sheet'!$D$5:$D$35),0)) ->  | BA86: =IF(D86="","",IF(LOOKUP(AZ86,'Master 2012 Pay Sheet'!$E$5:$E$35,'Master 2012 Pay Sheet'!$F$5:$F$35)>0,LOOKUP(AZ86,'Master 2012 Pay Sheet'!$E$5:$E$35,'Master 2012 Pay Sheet'!$F$5:$F$35),0)) ->  | DY86: 33.75 | DZ86: 15.8
B87: 85 | AU87: =IF(D87="","",IF(LOOKUP(AT87,'Master 2012 Pay Sheet'!$A$5:$A$35,'Master 2012 Pay Sheet'!$B$5:$B$35)>0,LOOKUP(AT87,'Master 2012 Pay Sheet'!$A$5:$A$35,'Master 2012 Pay Sheet'!$B$5:$B$35),0)) ->  | AX87: =IF(D87="","",IF(LOOKUP(AW87,'Master 2012 Pay Sheet'!$C$5:$C$35,'Master 2012 Pay Sheet'!$D$5:$D$35)>0,LOOKUP(AW87,'Master 2012 Pay Sheet'!$C$5:$C$35,'Master 2012 Pay Sheet'!$D$5:$D$35),0)) ->  | BA87: =IF(D87="","",IF(LOOKUP(AZ87,'Master 2012 Pay Sheet'!$E$5:$E$35,'Master 2012 Pay Sheet'!$F$5:$F$35)>0,LOOKUP(AZ87,'Master 2012 Pay Sheet'!$E$5:$E$35,'Master 2012 Pay Sheet'!$F$5:$F$35),0)) ->  | DY87: 34 | DZ87: 16.17
B88: 86 | AU88: =IF(D88="","",IF(LOOKUP(AT88,'Master 2012 Pay Sheet'!$A$5:$A$35,'Master 2012 Pay Sheet'!$B$5:$B$35)>0,LOOKUP(AT88,'Master 2012 Pay Sheet'!$A$5:$A$35,'Master 2012 Pay Sheet'!$B$5:$B$35),0)) ->  | AX88: =IF(D88="","",IF(LOOKUP(AW88,'Master 2012 Pay Sheet'!$C$5:$C$35,'Master 2012 Pay Sheet'!$D$5:$D$35)>0,LOOKUP(AW88,'Master 2012 Pay Sheet'!$C$5:$C$35,'Master 2012 Pay Sheet'!$D$5:$D$35),0)) ->  | BA88: =IF(D88="","",IF(LOOKUP(AZ88,'Master 2012 Pay Sheet'!$E$5:$E$35,'Master 2012 Pay Sheet'!$F$5:$F$35)>0,LOOKUP(AZ88,'Master 2012 Pay Sheet'!$E$5:$E$35,'Master 2012 Pay Sheet'!$F$5:$F$35),0)) ->  | DY88: 34.25 | DZ88: 16.55
B89: 87 | AU89: =IF(D89="","",IF(LOOKUP(AT89,'Master 2012 Pay Sheet'!$A$5:$A$35,'Master 2012 Pay Sheet'!$B$5:$B$35)>0,LOOKUP(AT89,'Master 2012 Pay Sheet'!$A$5:$A$35,'Master 2012 Pay Sheet'!$B$5:$B$35),0)) ->  | AX89: =IF(D89="","",IF(LOOKUP(AW89,'Master 2012 Pay Sheet'!$C$5:$C$35,'Master 2012 Pay Sheet'!$D$5:$D$35)>0,LOOKUP(AW89,'Master 2012 Pay Sheet'!$C$5:$C$35,'Master 2012 Pay Sheet'!$D$5:$D$35),0)) ->  | BA89: =IF(D89="","",IF(LOOKUP(AZ89,'Master 2012 Pay Sheet'!$E$5:$E$35,'Master 2012 Pay Sheet'!$F$5:$F$35)>0,LOOKUP(AZ89,'Master 2012 Pay Sheet'!$E$5:$E$35,'Master 2012 Pay Sheet'!$F$5:$F$35),0)) ->  | DY89: 34.5 | DZ89: 16.93
B90: 88 | AU90: =IF(D90="","",IF(LOOKUP(AT90,'Master 2012 Pay Sheet'!$A$5:$A$35,'Master 2012 Pay Sheet'!$B$5:$B$35)>0,LOOKUP(AT90,'Master 2012 Pay Sheet'!$A$5:$A$35,'Master 2012 Pay Sheet'!$B$5:$B$35),0)) ->  | AX90: =IF(D90="","",IF(LOOKUP(AW90,'Master 2012 Pay Sheet'!$C$5:$C$35,'Master 2012 Pay Sheet'!$D$5:$D$35)>0,LOOKUP(AW90,'Master 2012 Pay Sheet'!$C$5:$C$35,'Master 2012 Pay Sheet'!$D$5:$D$35),0)) ->  | BA90: =IF(D90="","",IF(LOOKUP(AZ90,'Master 2012 Pay Sheet'!$E$5:$E$35,'Master 2012 Pay Sheet'!$F$5:$F$35)>0,LOOKUP(AZ90,'Master 2012 Pay Sheet'!$E$5:$E$35,'Master 2012 Pay Sheet'!$F$5:$F$35),0)) ->  | DY90: 34.75 | DZ90: 17.31
B91: 89 | AU91: =IF(D91="","",IF(LOOKUP(AT91,'Master 2012 Pay Sheet'!$A$5:$A$35,'Master 2012 Pay Sheet'!$B$5:$B$35)>0,LOOKUP(AT91,'Master 2012 Pay Sheet'!$A$5:$A$35,'Master 2012 Pay Sheet'!$B$5:$B$35),0)) ->  | AX91: =IF(D91="","",IF(LOOKUP(AW91,'Master 2012 Pay Sheet'!$C$5:$C$35,'Master 2012 Pay Sheet'!$D$5:$D$35)>0,LOOKUP(AW91,'Master 2012 Pay Sheet'!$C$5:$C$35,'Master 2012 Pay Sheet'!$D$5:$D$35),0)) ->  | BA91: =IF(D91="","",IF(LOOKUP(AZ91,'Master 2012 Pay Sheet'!$E$5:$E$35,'Master 2012 Pay Sheet'!$F$5:$F$35)>0,LOOKUP(AZ91,'Master 2012 Pay Sheet'!$E$5:$E$35,'Master 2012 Pay Sheet'!$F$5:$F$35),0)) ->  | DY91: 35 | DZ91: 17.71
B92: 90 | AU92: =IF(D92="","",IF(LOOKUP(AT92,'Master 2012 Pay Sheet'!$A$5:$A$35,'Master 2012 Pay Sheet'!$B$5:$B$35)>0,LOOKUP(AT92,'Master 2012 Pay Sheet'!$A$5:$A$35,'Master 2012 Pay Sheet'!$B$5:$B$35),0)) ->  | AX92: =IF(D92="","",IF(LOOKUP(AW92,'Master 2012 Pay Sheet'!$C$5:$C$35,'Master 2012 Pay Sheet'!$D$5:$D$35)>0,LOOKUP(AW92,'Master 2012 Pay Sheet'!$C$5:$C$35,'Master 2012 Pay Sheet'!$D$5:$D$35),0)) ->  | BA92: =IF(D92="","",IF(LOOKUP(AZ92,'Master 2012 Pay Sheet'!$E$5:$E$35,'Master 2012 Pay Sheet'!$F$5:$F$35)>0,LOOKUP(AZ92,'Master 2012 Pay Sheet'!$E$5:$E$35,'Master 2012 Pay Sheet'!$F$5:$F$35),0)) ->  | DY92: 35.25 | DZ92: 18.11
B93: 91 | AU93: =IF(D93="","",IF(LOOKUP(AT93,'Master 2012 Pay Sheet'!$A$5:$A$35,'Master 2012 Pay Sheet'!$B$5:$B$35)>0,LOOKUP(AT93,'Master 2012 Pay Sheet'!$A$5:$A$35,'Master 2012 Pay Sheet'!$B$5:$B$35),0)) ->  | AX93: =IF(D93="","",IF(LOOKUP(AW93,'Master 2012 Pay Sheet'!$C$5:$C$35,'Master 2012 Pay Sheet'!$D$5:$D$35)>0,LOOKUP(AW93,'Master 2012 Pay Sheet'!$C$5:$C$35,'Master 2012 Pay Sheet'!$D$5:$D$35),0)) ->  | BA93: =IF(D93="","",IF(LOOKUP(AZ93,'Master 2012 Pay Sheet'!$E$5:$E$35,'Master 2012 Pay Sheet'!$F$5:$F$35)>0,LOOKUP(AZ93,'Master 2012 Pay Sheet'!$E$5:$E$35,'Master 2012 Pay Sheet'!$F$5:$F$35),0)) ->  | DY93: 35.5 | DZ93: 18.53
B94: 92 | AU94: =IF(D94="","",IF(LOOKUP(AT94,'Master 2012 Pay Sheet'!$A$5:$A$35,'Master 2012 Pay Sheet'!$B$5:$B$35)>0,LOOKUP(AT94,'Master 2012 Pay Sheet'!$A$5:$A$35,'Master 2012 Pay Sheet'!$B$5:$B$35),0)) ->  | AX94: =IF(D94="","",IF(LOOKUP(AW94,'Master 2012 Pay Sheet'!$C$5:$C$35,'Master 2012 Pay Sheet'!$D$5:$D$35)>0,LOOKUP(AW94,'Master 2012 Pay Sheet'!$C$5:$C$35,'Master 2012 Pay Sheet'!$D$5:$D$35),0)) ->  | BA94: =IF(D94="","",IF(LOOKUP(AZ94,'Master 2012 Pay Sheet'!$E$5:$E$35,'Master 2012 Pay Sheet'!$F$5:$F$35)>0,LOOKUP(AZ94,'Master 2012 Pay Sheet'!$E$5:$E$35,'Master 2012 Pay Sheet'!$F$5:$F$35),0)) ->  | DY94: 35.75 | DZ94: 18.95
B95: 93 | AU95: =IF(D95="","",IF(LOOKUP(AT95,'Master 2012 Pay Sheet'!$A$5:$A$35,'Master 2012 Pay Sheet'!$B$5:$B$35)>0,LOOKUP(AT95,'Master 2012 Pay Sheet'!$A$5:$A$35,'Master 2012 Pay Sheet'!$B$5:$B$35),0)) ->  | AX95: =IF(D95="","",IF(LOOKUP(AW95,'Master 2012 Pay Sheet'!$C$5:$C$35,'Master 2012 Pay Sheet'!$D$5:$D$35)>0,LOOKUP(AW95,'Master 2012 Pay Sheet'!$C$5:$C$35,'Master 2012 Pay Sheet'!$D$5:$D$35),0)) ->  | BA95: =IF(D95="","",IF(LOOKUP(AZ95,'Master 2012 Pay Sheet'!$E$5:$E$35,'Master 2012 Pay Sheet'!$F$5:$F$35)>0,LOOKUP(AZ95,'Master 2012 Pay Sheet'!$E$5:$E$35,'Master 2012 Pay Sheet'!$F$5:$F$35),0)) ->  | DY95: 36 | DZ95: 19.4
B96: 94 | AU96: =IF(D96="","",IF(LOOKUP(AT96,'Master 2012 Pay Sheet'!$A$5:$A$35,'Master 2012 Pay Sheet'!$B$5:$B$35)>0,LOOKUP(AT96,'Master 2012 Pay Sheet'!$A$5:$A$35,'Master 2012 Pay Sheet'!$B$5:$B$35),0)) ->  | AX96: =IF(D96="","",IF(LOOKUP(AW96,'Master 2012 Pay Sheet'!$C$5:$C$35,'Master 2012 Pay Sheet'!$D$5:$D$35)>0,LOOKUP(AW96,'Master 2012 Pay Sheet'!$C$5:$C$35,'Master 2012 Pay Sheet'!$D$5:$D$35),0)) ->  | BA96: =IF(D96="","",IF(LOOKUP(AZ96,'Master 2012 Pay Sheet'!$E$5:$E$35,'Master 2012 Pay Sheet'!$F$5:$F$35)>0,LOOKUP(AZ96,'Master 2012 Pay Sheet'!$E$5:$E$35,'Master 2012 Pay Sheet'!$F$5:$F$35),0)) -> 
B97: 95 | AU97: =IF(D97="","",IF(LOOKUP(AT97,'Master 2012 Pay Sheet'!$A$5:$A$35,'Master 2012 Pay Sheet'!$B$5:$B$35)>0,LOOKUP(AT97,'Master 2012 Pay Sheet'!$A$5:$A$35,'Master 2012 Pay Sheet'!$B$5:$B$35),0)) ->  | AX97: =IF(D97="","",IF(LOOKUP(AW97,'Master 2012 Pay Sheet'!$C$5:$C$35,'Master 2012 Pay Sheet'!$D$5:$D$35)>0,LOOKUP(AW97,'Master 2012 Pay Sheet'!$C$5:$C$35,'Master 2012 Pay Sheet'!$D$5:$D$35),0)) ->  | BA97: =IF(D97="","",IF(LOOKUP(AZ97,'Master 2012 Pay Sheet'!$E$5:$E$35,'Master 2012 Pay Sheet'!$F$5:$F$35)>0,LOOKUP(AZ97,'Master 2012 Pay Sheet'!$E$5:$E$35,'Master 2012 Pay Sheet'!$F$5:$F$35),0)) -> 
B98: 96 | AU98: =IF(D98="","",IF(LOOKUP(AT98,'Master 2012 Pay Sheet'!$A$5:$A$35,'Master 2012 Pay Sheet'!$B$5:$B$35)>0,LOOKUP(AT98,'Master 2012 Pay Sheet'!$A$5:$A$35,'Master 2012 Pay Sheet'!$B$5:$B$35),0)) ->  | AX98: =IF(D98="","",IF(LOOKUP(AW98,'Master 2012 Pay Sheet'!$C$5:$C$35,'Master 2012 Pay Sheet'!$D$5:$D$35)>0,LOOKUP(AW98,'Master 2012 Pay Sheet'!$C$5:$C$35,'Master 2012 Pay Sheet'!$D$5:$D$35),0)) ->  | BA98: =IF(D98="","",IF(LOOKUP(AZ98,'Master 2012 Pay Sheet'!$E$5:$E$35,'Master 2012 Pay Sheet'!$F$5:$F$35)>0,LOOKUP(AZ98,'Master 2012 Pay Sheet'!$E$5:$E$35,'Master 2012 Pay Sheet'!$F$5:$F$35),0)) -> 
B99: 97 | AT99: =IF(D99="","",RANK(AS99,$AS$3:$AS$202,0)) ->  | AU99: =IF(D99="","",IF(LOOKUP(AT99,'Master 2012 Pay Sheet'!$A$5:$A$35,'Master 2012 Pay Sheet'!$B$5:$B$35)>0,LOOKUP(AT99,'Master 2012 Pay Sheet'!$A$5:$A$35,'Master 2012 Pay Sheet'!$B$5:$B$35),0)) ->  | AW99: =IF(D99="","",RANK(AV99,$AV$3:$AV$202,0)) ->  | AX99: =IF(D99="","",IF(LOOKUP(AW99,'Master 2012 Pay Sheet'!$C$5:$C$35,'Master 2012 Pay Sheet'!$D$5:$D$35)>0,LOOKUP(AW99,'Master 2012 Pay Sheet'!$C$5:$C$35,'Master 2012 Pay Sheet'!$D$5:$D$35),0)) ->  | AZ99: =IF(D99="","",RANK(AY99,$AY$3:$AY$202,0)) ->  | BA99: =IF(D99="","",IF(LOOKUP(AZ99,'Master 2012 Pay Sheet'!$E$5:$E$35,'Master 2012 Pay Sheet'!$F$5:$F$35)>0,LOOKUP(AZ99,'Master 2012 Pay Sheet'!$E$5:$E$35,'Master 2012 Pay Sheet'!$F$5:$F$35),0)) ->  | BB99: =IF(D99="","",SUM(AU99+AX99+BA99)) ->  | BC99: =IF(D99="","",AT99-AZ99) ->  | BD99: =IF(D99="","",IF(BC99=MAX($BC$3:$BC$202),B99,"")) ->  | BG99: =IF(BF99=MAX($BF$3:$BF$202),B99,"") ->  | BJ99: =IF(BI99=MAX($BI$3:$BI$202),B99,"") ->  | BM99: =IF(BL99=MAX($BL$3:$BL$202),B99,"") ->  | BO99: =IF(BN99=MAX($BN$3:$BN$202),B99,"") ->  | BQ99: =IF(BP99=MAX($BP$3:$BP$202),B99,"") ->  | BS99: =IF(BR99=MAX($BR$3:$BR$202),B99,"") ->  | BU99: =IF(BT99=MAX($BT$3:$BT$202),B99,"") ->  | BW99: =IF(BV99=MAX($BV$3:$BV$202),B99,"") ->  | BY99: =IF(BX99=MAX($BX$3:$BX$202),B99,"") ->  | CA99: =IF(BZ99=MAX($BZ$3:$BZ$202),B99,"") ->  | CC99: =IF(CB99=MAX($CB$3:$CB$202),B99,"") ->  | CE99: =IF(CD99=MAX($CD$3:$CD$202),B99,"") ->  | CG99: =IF(CF99=MAX($CF$3:$CF$202),B99,"") ->  | CI99: =IF(CH99=MAX($CH$3:$CH$202),B99,"") ->  | CJ99: =IF(I99="AC",AZ99,"") ->  | CK99: =IF(CJ99="","",RANK(CJ99,$CJ$3:$CJ$202,1)) ->  | CL99: =IF(CK99=1,B99,"") ->  | CM99: =IF(CK99=2,B99,"") ->  | CN99: =IF(CK99=3,B99,"") ->  | CO99: =IF(I99="MC",AZ99,"") ->  | CP99: =IF(CO99="","",RANK(CO99,$CO$3:$CO$202,1)) ->  | CQ99: =IF(CP99=1,B99,"") ->  | CR99: =IF(CP99=2,B99,"") ->  | CS99: =IF(CP99=3,B99,"") ->  | DQ99: =IF(J99="Lund",AZ99,"") ->  | DR99: =IF(DQ99="","",RANK(DQ99,$DQ$3:$DQ$202,1)) ->  | DS99: =IF(DR99=1,B99,"") ->  | DW99: =IF(BK99=0,0,IF(D99="","",$D$203-AZ99+1)/$D$203*100) -> 
B100: 98 | AU100: =IF(D100="","",IF(LOOKUP(AT100,'Master 2012 Pay Sheet'!$A$5:$A$35,'Master 2012 Pay Sheet'!$B$5:$B$35)>0,LOOKUP(AT100,'Master 2012 Pay Sheet'!$A$5:$A$35,'Master 2012 Pay Sheet'!$B$5:$B$35),0)) ->  | AX100: =IF(D100="","",IF(LOOKUP(AW100,'Master 2012 Pay Sheet'!$C$5:$C$35,'Master 2012 Pay Sheet'!$D$5:$D$35)>0,LOOKUP(AW100,'Master 2012 Pay Sheet'!$C$5:$C$35,'Master 2012 Pay Sheet'!$D$5:$D$35),0)) ->  | BA100: =IF(D100="","",IF(LOOKUP(AZ100,'Master 2012 Pay Sheet'!$E$5:$E$35,'Master 2012 Pay Sheet'!$F$5:$F$35)>0,LOOKUP(AZ100,'Master 2012 Pay Sheet'!$E$5:$E$35,'Master 2012 Pay Sheet'!$F$5:$F$35),0)) -> 
B101: 99 | AU101: =IF(D101="","",IF(LOOKUP(AT101,'Master 2012 Pay Sheet'!$A$5:$A$35,'Master 2012 Pay Sheet'!$B$5:$B$35)>0,LOOKUP(AT101,'Master 2012 Pay Sheet'!$A$5:$A$35,'Master 2012 Pay Sheet'!$B$5:$B$35),0)) ->  | AX101: =IF(D101="","",IF(LOOKUP(AW101,'Master 2012 Pay Sheet'!$C$5:$C$35,'Master 2012 Pay Sheet'!$D$5:$D$35)>0,LOOKUP(AW101,'Master 2012 Pay Sheet'!$C$5:$C$35,'Master 2012 Pay Sheet'!$D$5:$D$35),0)) ->  | BA101: =IF(D101="","",IF(LOOKUP(AZ101,'Master 2012 Pay Sheet'!$E$5:$E$35,'Master 2012 Pay Sheet'!$F$5:$F$35)>0,LOOKUP(AZ101,'Master 2012 Pay Sheet'!$E$5:$E$35,'Master 2012 Pay Sheet'!$F$5:$F$35),0)) -> 
B102: 100 | AU102: =IF(D102="","",IF(LOOKUP(AT102,'Master 2012 Pay Sheet'!$A$5:$A$35,'Master 2012 Pay Sheet'!$B$5:$B$35)>0,LOOKUP(AT102,'Master 2012 Pay Sheet'!$A$5:$A$35,'Master 2012 Pay Sheet'!$B$5:$B$35),0)) ->  | AX102: =IF(D102="","",IF(LOOKUP(AW102,'Master 2012 Pay Sheet'!$C$5:$C$35,'Master 2012 Pay Sheet'!$D$5:$D$35)>0,LOOKUP(AW102,'Master 2012 Pay Sheet'!$C$5:$C$35,'Master 2012 Pay Sheet'!$D$5:$D$35),0)) ->  | BA102: =IF(D102="","",IF(LOOKUP(AZ102,'Master 2012 Pay Sheet'!$E$5:$E$35,'Master 2012 Pay Sheet'!$F$5:$F$35)>0,LOOKUP(AZ102,'Master 2012 Pay Sheet'!$E$5:$E$35,'Master 2012 Pay Sheet'!$F$5:$F$35),0)) -> 
B103: 101 | AU103: =IF(D103="","",IF(LOOKUP(AT103,'Master 2012 Pay Sheet'!$A$5:$A$35,'Master 2012 Pay Sheet'!$B$5:$B$35)>0,LOOKUP(AT103,'Master 2012 Pay Sheet'!$A$5:$A$35,'Master 2012 Pay Sheet'!$B$5:$B$35),0)) ->  | AX103: =IF(D103="","",IF(LOOKUP(AW103,'Master 2012 Pay Sheet'!$C$5:$C$35,'Master 2012 Pay Sheet'!$D$5:$D$35)>0,LOOKUP(AW103,'Master 2012 Pay Sheet'!$C$5:$C$35,'Master 2012 Pay Sheet'!$D$5:$D$35),0)) ->  | BA103: =IF(D103="","",IF(LOOKUP(AZ103,'Master 2012 Pay Sheet'!$E$5:$E$35,'Master 2012 Pay Sheet'!$F$5:$F$35)>0,LOOKUP(AZ103,'Master 2012 Pay Sheet'!$E$5:$E$35,'Master 2012 Pay Sheet'!$F$5:$F$35),0)) -> 
B104: 102 | AU104: =IF(D104="","",IF(LOOKUP(AT104,'Master 2012 Pay Sheet'!$A$5:$A$35,'Master 2012 Pay Sheet'!$B$5:$B$35)>0,LOOKUP(AT104,'Master 2012 Pay Sheet'!$A$5:$A$35,'Master 2012 Pay Sheet'!$B$5:$B$35),0)) ->  | AX104: =IF(D104="","",IF(LOOKUP(AW104,'Master 2012 Pay Sheet'!$C$5:$C$35,'Master 2012 Pay Sheet'!$D$5:$D$35)>0,LOOKUP(AW104,'Master 2012 Pay Sheet'!$C$5:$C$35,'Master 2012 Pay Sheet'!$D$5:$D$35),0)) ->  | BA104: =IF(D104="","",IF(LOOKUP(AZ104,'Master 2012 Pay Sheet'!$E$5:$E$35,'Master 2012 Pay Sheet'!$F$5:$F$35)>0,LOOKUP(AZ104,'Master 2012 Pay Sheet'!$E$5:$E$35,'Master 2012 Pay Sheet'!$F$5:$F$35),0)) -> 
B105: 103 | AU105: =IF(D105="","",IF(LOOKUP(AT105,'Master 2012 Pay Sheet'!$A$5:$A$35,'Master 2012 Pay Sheet'!$B$5:$B$35)>0,LOOKUP(AT105,'Master 2012 Pay Sheet'!$A$5:$A$35,'Master 2012 Pay Sheet'!$B$5:$B$35),0)) ->  | AX105: =IF(D105="","",IF(LOOKUP(AW105,'Master 2012 Pay Sheet'!$C$5:$C$35,'Master 2012 Pay Sheet'!$D$5:$D$35)>0,LOOKUP(AW105,'Master 2012 Pay Sheet'!$C$5:$C$35,'Master 2012 Pay Sheet'!$D$5:$D$35),0)) ->  | BA105: =IF(D105="","",IF(LOOKUP(AZ105,'Master 2012 Pay Sheet'!$E$5:$E$35,'Master 2012 Pay Sheet'!$F$5:$F$35)>0,LOOKUP(AZ105,'Master 2012 Pay Sheet'!$E$5:$E$35,'Master 2012 Pay Sheet'!$F$5:$F$35),0)) -> 
B106: 104 | AU106: =IF(D106="","",IF(LOOKUP(AT106,'Master 2012 Pay Sheet'!$A$5:$A$35,'Master 2012 Pay Sheet'!$B$5:$B$35)>0,LOOKUP(AT106,'Master 2012 Pay Sheet'!$A$5:$A$35,'Master 2012 Pay Sheet'!$B$5:$B$35),0)) ->  | AX106: =IF(D106="","",IF(LOOKUP(AW106,'Master 2012 Pay Sheet'!$C$5:$C$35,'Master 2012 Pay Sheet'!$D$5:$D$35)>0,LOOKUP(AW106,'Master 2012 Pay Sheet'!$C$5:$C$35,'Master 2012 Pay Sheet'!$D$5:$D$35),0)) ->  | BA106: =IF(D106="","",IF(LOOKUP(AZ106,'Master 2012 Pay Sheet'!$E$5:$E$35,'Master 2012 Pay Sheet'!$F$5:$F$35)>0,LOOKUP(AZ106,'Master 2012 Pay Sheet'!$E$5:$E$35,'Master 2012 Pay Sheet'!$F$5:$F$35),0)) -> 
B107: 105 | AU107: =IF(D107="","",IF(LOOKUP(AT107,'Master 2012 Pay Sheet'!$A$5:$A$35,'Master 2012 Pay Sheet'!$B$5:$B$35)>0,LOOKUP(AT107,'Master 2012 Pay Sheet'!$A$5:$A$35,'Master 2012 Pay Sheet'!$B$5:$B$35),0)) ->  | AX107: =IF(D107="","",IF(LOOKUP(AW107,'Master 2012 Pay Sheet'!$C$5:$C$35,'Master 2012 Pay Sheet'!$D$5:$D$35)>0,LOOKUP(AW107,'Master 2012 Pay Sheet'!$C$5:$C$35,'Master 2012 Pay Sheet'!$D$5:$D$35),0)) ->  | BA107: =IF(D107="","",IF(LOOKUP(AZ107,'Master 2012 Pay Sheet'!$E$5:$E$35,'Master 2012 Pay Sheet'!$F$5:$F$35)>0,LOOKUP(AZ107,'Master 2012 Pay Sheet'!$E$5:$E$35,'Master 2012 Pay Sheet'!$F$5:$F$35),0)) -> 
B108: 106 | AU108: =IF(D108="","",IF(LOOKUP(AT108,'Master 2012 Pay Sheet'!$A$5:$A$35,'Master 2012 Pay Sheet'!$B$5:$B$35)>0,LOOKUP(AT108,'Master 2012 Pay Sheet'!$A$5:$A$35,'Master 2012 Pay Sheet'!$B$5:$B$35),0)) ->  | AX108: =IF(D108="","",IF(LOOKUP(AW108,'Master 2012 Pay Sheet'!$C$5:$C$35,'Master 2012 Pay Sheet'!$D$5:$D$35)>0,LOOKUP(AW108,'Master 2012 Pay Sheet'!$C$5:$C$35,'Master 2012 Pay Sheet'!$D$5:$D$35),0)) ->  | BA108: =IF(D108="","",IF(LOOKUP(AZ108,'Master 2012 Pay Sheet'!$E$5:$E$35,'Master 2012 Pay Sheet'!$F$5:$F$35)>0,LOOKUP(AZ108,'Master 2012 Pay Sheet'!$E$5:$E$35,'Master 2012 Pay Sheet'!$F$5:$F$35),0)) -> 
B109: 107 | AU109: =IF(D109="","",IF(LOOKUP(AT109,'Master 2012 Pay Sheet'!$A$5:$A$35,'Master 2012 Pay Sheet'!$B$5:$B$35)>0,LOOKUP(AT109,'Master 2012 Pay Sheet'!$A$5:$A$35,'Master 2012 Pay Sheet'!$B$5:$B$35),0)) ->  | AX109: =IF(D109="","",IF(LOOKUP(AW109,'Master 2012 Pay Sheet'!$C$5:$C$35,'Master 2012 Pay Sheet'!$D$5:$D$35)>0,LOOKUP(AW109,'Master 2012 Pay Sheet'!$C$5:$C$35,'Master 2012 Pay Sheet'!$D$5:$D$35),0)) ->  | BA109: =IF(D109="","",IF(LOOKUP(AZ109,'Master 2012 Pay Sheet'!$E$5:$E$35,'Master 2012 Pay Sheet'!$F$5:$F$35)>0,LOOKUP(AZ109,'Master 2012 Pay Sheet'!$E$5:$E$35,'Master 2012 Pay Sheet'!$F$5:$F$35),0)) -> 
B110: 108 | AU110: =IF(D110="","",IF(LOOKUP(AT110,'Master 2012 Pay Sheet'!$A$5:$A$35,'Master 2012 Pay Sheet'!$B$5:$B$35)>0,LOOKUP(AT110,'Master 2012 Pay Sheet'!$A$5:$A$35,'Master 2012 Pay Sheet'!$B$5:$B$35),0)) ->  | AX110: =IF(D110="","",IF(LOOKUP(AW110,'Master 2012 Pay Sheet'!$C$5:$C$35,'Master 2012 Pay Sheet'!$D$5:$D$35)>0,LOOKUP(AW110,'Master 2012 Pay Sheet'!$C$5:$C$35,'Master 2012 Pay Sheet'!$D$5:$D$35),0)) ->  | BA110: =IF(D110="","",IF(LOOKUP(AZ110,'Master 2012 Pay Sheet'!$E$5:$E$35,'Master 2012 Pay Sheet'!$F$5:$F$35)>0,LOOKUP(AZ110,'Master 2012 Pay Sheet'!$E$5:$E$35,'Master 2012 Pay Sheet'!$F$5:$F$35),0)) -> 
B111: 109 | AU111: =IF(D111="","",IF(LOOKUP(AT111,'Master 2012 Pay Sheet'!$A$5:$A$35,'Master 2012 Pay Sheet'!$B$5:$B$35)>0,LOOKUP(AT111,'Master 2012 Pay Sheet'!$A$5:$A$35,'Master 2012 Pay Sheet'!$B$5:$B$35),0)) ->  | AX111: =IF(D111="","",IF(LOOKUP(AW111,'Master 2012 Pay Sheet'!$C$5:$C$35,'Master 2012 Pay Sheet'!$D$5:$D$35)>0,LOOKUP(AW111,'Master 2012 Pay Sheet'!$C$5:$C$35,'Master 2012 Pay Sheet'!$D$5:$D$35),0)) ->  | BA111: =IF(D111="","",IF(LOOKUP(AZ111,'Master 2012 Pay Sheet'!$E$5:$E$35,'Master 2012 Pay Sheet'!$F$5:$F$35)>0,LOOKUP(AZ111,'Master 2012 Pay Sheet'!$E$5:$E$35,'Master 2012 Pay Sheet'!$F$5:$F$35),0)) -> 
B112: 110 | AU112: =IF(D112="","",IF(LOOKUP(AT112,'Master 2012 Pay Sheet'!$A$5:$A$35,'Master 2012 Pay Sheet'!$B$5:$B$35)>0,LOOKUP(AT112,'Master 2012 Pay Sheet'!$A$5:$A$35,'Master 2012 Pay Sheet'!$B$5:$B$35),0)) ->  | AX112: =IF(D112="","",IF(LOOKUP(AW112,'Master 2012 Pay Sheet'!$C$5:$C$35,'Master 2012 Pay Sheet'!$D$5:$D$35)>0,LOOKUP(AW112,'Master 2012 Pay Sheet'!$C$5:$C$35,'Master 2012 Pay Sheet'!$D$5:$D$35),0)) ->  | BA112: =IF(D112="","",IF(LOOKUP(AZ112,'Master 2012 Pay Sheet'!$E$5:$E$35,'Master 2012 Pay Sheet'!$F$5:$F$35)>0,LOOKUP(AZ112,'Master 2012 Pay Sheet'!$E$5:$E$35,'Master 2012 Pay Sheet'!$F$5:$F$35),0)) -> 
B113: 111 | AU113: =IF(D113="","",IF(LOOKUP(AT113,'Master 2012 Pay Sheet'!$A$5:$A$35,'Master 2012 Pay Sheet'!$B$5:$B$35)>0,LOOKUP(AT113,'Master 2012 Pay Sheet'!$A$5:$A$35,'Master 2012 Pay Sheet'!$B$5:$B$35),0)) ->  | AX113: =IF(D113="","",IF(LOOKUP(AW113,'Master 2012 Pay Sheet'!$C$5:$C$35,'Master 2012 Pay Sheet'!$D$5:$D$35)>0,LOOKUP(AW113,'Master 2012 Pay Sheet'!$C$5:$C$35,'Master 2012 Pay Sheet'!$D$5:$D$35),0)) ->  | BA113: =IF(D113="","",IF(LOOKUP(AZ113,'Master 2012 Pay Sheet'!$E$5:$E$35,'Master 2012 Pay Sheet'!$F$5:$F$35)>0,LOOKUP(AZ113,'Master 2012 Pay Sheet'!$E$5:$E$35,'Master 2012 Pay Sheet'!$F$5:$F$35),0)) -> 
B114: 112 | AU114: =IF(D114="","",IF(LOOKUP(AT114,'Master 2012 Pay Sheet'!$A$5:$A$35,'Master 2012 Pay Sheet'!$B$5:$B$35)>0,LOOKUP(AT114,'Master 2012 Pay Sheet'!$A$5:$A$35,'Master 2012 Pay Sheet'!$B$5:$B$35),0)) ->  | AX114: =IF(D114="","",IF(LOOKUP(AW114,'Master 2012 Pay Sheet'!$C$5:$C$35,'Master 2012 Pay Sheet'!$D$5:$D$35)>0,LOOKUP(AW114,'Master 2012 Pay Sheet'!$C$5:$C$35,'Master 2012 Pay Sheet'!$D$5:$D$35),0)) ->  | BA114: =IF(D114="","",IF(LOOKUP(AZ114,'Master 2012 Pay Sheet'!$E$5:$E$35,'Master 2012 Pay Sheet'!$F$5:$F$35)>0,LOOKUP(AZ114,'Master 2012 Pay Sheet'!$E$5:$E$35,'Master 2012 Pay Sheet'!$F$5:$F$35),0)) -> 
B115: 113 | AU115: =IF(D115="","",IF(LOOKUP(AT115,'Master 2012 Pay Sheet'!$A$5:$A$35,'Master 2012 Pay Sheet'!$B$5:$B$35)>0,LOOKUP(AT115,'Master 2012 Pay Sheet'!$A$5:$A$35,'Master 2012 Pay Sheet'!$B$5:$B$35),0)) ->  | AX115: =IF(D115="","",IF(LOOKUP(AW115,'Master 2012 Pay Sheet'!$C$5:$C$35,'Master 2012 Pay Sheet'!$D$5:$D$35)>0,LOOKUP(AW115,'Master 2012 Pay Sheet'!$C$5:$C$35,'Master 2012 Pay Sheet'!$D$5:$D$35),0)) ->  | BA115: =IF(D115="","",IF(LOOKUP(AZ115,'Master 2012 Pay Sheet'!$E$5:$E$35,'Master 2012 Pay Sheet'!$F$5:$F$35)>0,LOOKUP(AZ115,'Master 2012 Pay Sheet'!$E$5:$E$35,'Master 2012 Pay Sheet'!$F$5:$F$35),0)) -> 
B116: 114 | AU116: =IF(D116="","",IF(LOOKUP(AT116,'Master 2012 Pay Sheet'!$A$5:$A$35,'Master 2012 Pay Sheet'!$B$5:$B$35)>0,LOOKUP(AT116,'Master 2012 Pay Sheet'!$A$5:$A$35,'Master 2012 Pay Sheet'!$B$5:$B$35),0)) ->  | AX116: =IF(D116="","",IF(LOOKUP(AW116,'Master 2012 Pay Sheet'!$C$5:$C$35,'Master 2012 Pay Sheet'!$D$5:$D$35)>0,LOOKUP(AW116,'Master 2012 Pay Sheet'!$C$5:$C$35,'Master 2012 Pay Sheet'!$D$5:$D$35),0)) ->  | BA116: =IF(D116="","",IF(LOOKUP(AZ116,'Master 2012 Pay Sheet'!$E$5:$E$35,'Master 2012 Pay Sheet'!$F$5:$F$35)>0,LOOKUP(AZ116,'Master 2012 Pay Sheet'!$E$5:$E$35,'Master 2012 Pay Sheet'!$F$5:$F$35),0)) -> 
B117: 115 | AU117: =IF(D117="","",IF(LOOKUP(AT117,'Master 2012 Pay Sheet'!$A$5:$A$35,'Master 2012 Pay Sheet'!$B$5:$B$35)>0,LOOKUP(AT117,'Master 2012 Pay Sheet'!$A$5:$A$35,'Master 2012 Pay Sheet'!$B$5:$B$35),0)) ->  | AX117: =IF(D117="","",IF(LOOKUP(AW117,'Master 2012 Pay Sheet'!$C$5:$C$35,'Master 2012 Pay Sheet'!$D$5:$D$35)>0,LOOKUP(AW117,'Master 2012 Pay Sheet'!$C$5:$C$35,'Master 2012 Pay Sheet'!$D$5:$D$35),0)) ->  | BA117: =IF(D117="","",IF(LOOKUP(AZ117,'Master 2012 Pay Sheet'!$E$5:$E$35,'Master 2012 Pay Sheet'!$F$5:$F$35)>0,LOOKUP(AZ117,'Master 2012 Pay Sheet'!$E$5:$E$35,'Master 2012 Pay Sheet'!$F$5:$F$35),0)) -> 
B118: 116 | AU118: =IF(D118="","",IF(LOOKUP(AT118,'Master 2012 Pay Sheet'!$A$5:$A$35,'Master 2012 Pay Sheet'!$B$5:$B$35)>0,LOOKUP(AT118,'Master 2012 Pay Sheet'!$A$5:$A$35,'Master 2012 Pay Sheet'!$B$5:$B$35),0)) ->  | AX118: =IF(D118="","",IF(LOOKUP(AW118,'Master 2012 Pay Sheet'!$C$5:$C$35,'Master 2012 Pay Sheet'!$D$5:$D$35)>0,LOOKUP(AW118,'Master 2012 Pay Sheet'!$C$5:$C$35,'Master 2012 Pay Sheet'!$D$5:$D$35),0)) ->  | BA118: =IF(D118="","",IF(LOOKUP(AZ118,'Master 2012 Pay Sheet'!$E$5:$E$35,'Master 2012 Pay Sheet'!$F$5:$F$35)>0,LOOKUP(AZ118,'Master 2012 Pay Sheet'!$E$5:$E$35,'Master 2012 Pay Sheet'!$F$5:$F$35),0)) -> 
B119: 117 | AU119: =IF(D119="","",IF(LOOKUP(AT119,'Master 2012 Pay Sheet'!$A$5:$A$35,'Master 2012 Pay Sheet'!$B$5:$B$35)>0,LOOKUP(AT119,'Master 2012 Pay Sheet'!$A$5:$A$35,'Master 2012 Pay Sheet'!$B$5:$B$35),0)) ->  | AX119: =IF(D119="","",IF(LOOKUP(AW119,'Master 2012 Pay Sheet'!$C$5:$C$35,'Master 2012 Pay Sheet'!$D$5:$D$35)>0,LOOKUP(AW119,'Master 2012 Pay Sheet'!$C$5:$C$35,'Master 2012 Pay Sheet'!$D$5:$D$35),0)) ->  | BA119: =IF(D119="","",IF(LOOKUP(AZ119,'Master 2012 Pay Sheet'!$E$5:$E$35,'Master 2012 Pay Sheet'!$F$5:$F$35)>0,LOOKUP(AZ119,'Master 2012 Pay Sheet'!$E$5:$E$35,'Master 2012 Pay Sheet'!$F$5:$F$35),0)) -> 
B120: 118 | AU120: =IF(D120="","",IF(LOOKUP(AT120,'Master 2012 Pay Sheet'!$A$5:$A$35,'Master 2012 Pay Sheet'!$B$5:$B$35)>0,LOOKUP(AT120,'Master 2012 Pay Sheet'!$A$5:$A$35,'Master 2012 Pay Sheet'!$B$5:$B$35),0)) ->  | AX120: =IF(D120="","",IF(LOOKUP(AW120,'Master 2012 Pay Sheet'!$C$5:$C$35,'Master 2012 Pay Sheet'!$D$5:$D$35)>0,LOOKUP(AW120,'Master 2012 Pay Sheet'!$C$5:$C$35,'Master 2012 Pay Sheet'!$D$5:$D$35),0)) ->  | BA120: =IF(D120="","",IF(LOOKUP(AZ120,'Master 2012 Pay Sheet'!$E$5:$E$35,'Master 2012 Pay Sheet'!$F$5:$F$35)>0,LOOKUP(AZ120,'Master 2012 Pay Sheet'!$E$5:$E$35,'Master 2012 Pay Sheet'!$F$5:$F$35),0)) -> 
B121: 119 | AU121: =IF(D121="","",IF(LOOKUP(AT121,'Master 2012 Pay Sheet'!$A$5:$A$35,'Master 2012 Pay Sheet'!$B$5:$B$35)>0,LOOKUP(AT121,'Master 2012 Pay Sheet'!$A$5:$A$35,'Master 2012 Pay Sheet'!$B$5:$B$35),0)) ->  | AX121: =IF(D121="","",IF(LOOKUP(AW121,'Master 2012 Pay Sheet'!$C$5:$C$35,'Master 2012 Pay Sheet'!$D$5:$D$35)>0,LOOKUP(AW121,'Master 2012 Pay Sheet'!$C$5:$C$35,'Master 2012 Pay Sheet'!$D$5:$D$35),0)) ->  | BA121: =IF(D121="","",IF(LOOKUP(AZ121,'Master 2012 Pay Sheet'!$E$5:$E$35,'Master 2012 Pay Sheet'!$F$5:$F$35)>0,LOOKUP(AZ121,'Master 2012 Pay Sheet'!$E$5:$E$35,'Master 2012 Pay Sheet'!$F$5:$F$35),0)) -> 
B122: 120 | AU122: =IF(D122="","",IF(LOOKUP(AT122,'Master 2012 Pay Sheet'!$A$5:$A$35,'Master 2012 Pay Sheet'!$B$5:$B$35)>0,LOOKUP(AT122,'Master 2012 Pay Sheet'!$A$5:$A$35,'Master 2012 Pay Sheet'!$B$5:$B$35),0)) ->  | AX122: =IF(D122="","",IF(LOOKUP(AW122,'Master 2012 Pay Sheet'!$C$5:$C$35,'Master 2012 Pay Sheet'!$D$5:$D$35)>0,LOOKUP(AW122,'Master 2012 Pay Sheet'!$C$5:$C$35,'Master 2012 Pay Sheet'!$D$5:$D$35),0)) ->  | BA122: =IF(D122="","",IF(LOOKUP(AZ122,'Master 2012 Pay Sheet'!$E$5:$E$35,'Master 2012 Pay Sheet'!$F$5:$F$35)>0,LOOKUP(AZ122,'Master 2012 Pay Sheet'!$E$5:$E$35,'Master 2012 Pay Sheet'!$F$5:$F$35),0)) -> 
B123: 121 | AU123: =IF(D123="","",IF(LOOKUP(AT123,'Master 2012 Pay Sheet'!$A$5:$A$35,'Master 2012 Pay Sheet'!$B$5:$B$35)>0,LOOKUP(AT123,'Master 2012 Pay Sheet'!$A$5:$A$35,'Master 2012 Pay Sheet'!$B$5:$B$35),0)) ->  | AX123: =IF(D123="","",IF(LOOKUP(AW123,'Master 2012 Pay Sheet'!$C$5:$C$35,'Master 2012 Pay Sheet'!$D$5:$D$35)>0,LOOKUP(AW123,'Master 2012 Pay Sheet'!$C$5:$C$35,'Master 2012 Pay Sheet'!$D$5:$D$35),0)) ->  | BA123: =IF(D123="","",IF(LOOKUP(AZ123,'Master 2012 Pay Sheet'!$E$5:$E$35,'Master 2012 Pay Sheet'!$F$5:$F$35)>0,LOOKUP(AZ123,'Master 2012 Pay Sheet'!$E$5:$E$35,'Master 2012 Pay Sheet'!$F$5:$F$35),0)) -> 
B124: 122 | AU124: =IF(D124="","",IF(LOOKUP(AT124,'Master 2012 Pay Sheet'!$A$5:$A$35,'Master 2012 Pay Sheet'!$B$5:$B$35)>0,LOOKUP(AT124,'Master 2012 Pay Sheet'!$A$5:$A$35,'Master 2012 Pay Sheet'!$B$5:$B$35),0)) ->  | AX124: =IF(D124="","",IF(LOOKUP(AW124,'Master 2012 Pay Sheet'!$C$5:$C$35,'Master 2012 Pay Sheet'!$D$5:$D$35)>0,LOOKUP(AW124,'Master 2012 Pay Sheet'!$C$5:$C$35,'Master 2012 Pay Sheet'!$D$5:$D$35),0)) ->  | BA124: =IF(D124="","",IF(LOOKUP(AZ124,'Master 2012 Pay Sheet'!$E$5:$E$35,'Master 2012 Pay Sheet'!$F$5:$F$35)>0,LOOKUP(AZ124,'Master 2012 Pay Sheet'!$E$5:$E$35,'Master 2012 Pay Sheet'!$F$5:$F$35),0)) -> 
B125: 123 | AU125: =IF(D125="","",IF(LOOKUP(AT125,'Master 2012 Pay Sheet'!$A$5:$A$35,'Master 2012 Pay Sheet'!$B$5:$B$35)>0,LOOKUP(AT125,'Master 2012 Pay Sheet'!$A$5:$A$35,'Master 2012 Pay Sheet'!$B$5:$B$35),0)) ->  | AX125: =IF(D125="","",IF(LOOKUP(AW125,'Master 2012 Pay Sheet'!$C$5:$C$35,'Master 2012 Pay Sheet'!$D$5:$D$35)>0,LOOKUP(AW125,'Master 2012 Pay Sheet'!$C$5:$C$35,'Master 2012 Pay Sheet'!$D$5:$D$35),0)) ->  | BA125: =IF(D125="","",IF(LOOKUP(AZ125,'Master 2012 Pay Sheet'!$E$5:$E$35,'Master 2012 Pay Sheet'!$F$5:$F$35)>0,LOOKUP(AZ125,'Master 2012 Pay Sheet'!$E$5:$E$35,'Master 2012 Pay Sheet'!$F$5:$F$35),0)) -> 
B126: 124 | AU126: =IF(D126="","",IF(LOOKUP(AT126,'Master 2012 Pay Sheet'!$A$5:$A$35,'Master 2012 Pay Sheet'!$B$5:$B$35)>0,LOOKUP(AT126,'Master 2012 Pay Sheet'!$A$5:$A$35,'Master 2012 Pay Sheet'!$B$5:$B$35),0)) ->  | AX126: =IF(D126="","",IF(LOOKUP(AW126,'Master 2012 Pay Sheet'!$C$5:$C$35,'Master 2012 Pay Sheet'!$D$5:$D$35)>0,LOOKUP(AW126,'Master 2012 Pay Sheet'!$C$5:$C$35,'Master 2012 Pay Sheet'!$D$5:$D$35),0)) ->  | BA126: =IF(D126="","",IF(LOOKUP(AZ126,'Master 2012 Pay Sheet'!$E$5:$E$35,'Master 2012 Pay Sheet'!$F$5:$F$35)>0,LOOKUP(AZ126,'Master 2012 Pay Sheet'!$E$5:$E$35,'Master 2012 Pay Sheet'!$F$5:$F$35),0)) -> 
B127: 125 | AU127: =IF(D127="","",IF(LOOKUP(AT127,'Master 2012 Pay Sheet'!$A$5:$A$35,'Master 2012 Pay Sheet'!$B$5:$B$35)>0,LOOKUP(AT127,'Master 2012 Pay Sheet'!$A$5:$A$35,'Master 2012 Pay Sheet'!$B$5:$B$35),0)) ->  | AX127: =IF(D127="","",IF(LOOKUP(AW127,'Master 2012 Pay Sheet'!$C$5:$C$35,'Master 2012 Pay Sheet'!$D$5:$D$35)>0,LOOKUP(AW127,'Master 2012 Pay Sheet'!$C$5:$C$35,'Master 2012 Pay Sheet'!$D$5:$D$35),0)) ->  | BA127: =IF(D127="","",IF(LOOKUP(AZ127,'Master 2012 Pay Sheet'!$E$5:$E$35,'Master 2012 Pay Sheet'!$F$5:$F$35)>0,LOOKUP(AZ127,'Master 2012 Pay Sheet'!$E$5:$E$35,'Master 2012 Pay Sheet'!$F$5:$F$35),0)) -> 
B128: 126 | AU128: =IF(D128="","",IF(LOOKUP(AT128,'Master 2012 Pay Sheet'!$A$5:$A$35,'Master 2012 Pay Sheet'!$B$5:$B$35)>0,LOOKUP(AT128,'Master 2012 Pay Sheet'!$A$5:$A$35,'Master 2012 Pay Sheet'!$B$5:$B$35),0)) ->  | AX128: =IF(D128="","",IF(LOOKUP(AW128,'Master 2012 Pay Sheet'!$C$5:$C$35,'Master 2012 Pay Sheet'!$D$5:$D$35)>0,LOOKUP(AW128,'Master 2012 Pay Sheet'!$C$5:$C$35,'Master 2012 Pay Sheet'!$D$5:$D$35),0)) ->  | BA128: =IF(D128="","",IF(LOOKUP(AZ128,'Master 2012 Pay Sheet'!$E$5:$E$35,'Master 2012 Pay Sheet'!$F$5:$F$35)>0,LOOKUP(AZ128,'Master 2012 Pay Sheet'!$E$5:$E$35,'Master 2012 Pay Sheet'!$F$5:$F$35),0)) -> 
B129: 127 | AU129: =IF(D129="","",IF(LOOKUP(AT129,'Master 2012 Pay Sheet'!$A$5:$A$35,'Master 2012 Pay Sheet'!$B$5:$B$35)>0,LOOKUP(AT129,'Master 2012 Pay Sheet'!$A$5:$A$35,'Master 2012 Pay Sheet'!$B$5:$B$35),0)) ->  | AX129: =IF(D129="","",IF(LOOKUP(AW129,'Master 2012 Pay Sheet'!$C$5:$C$35,'Master 2012 Pay Sheet'!$D$5:$D$35)>0,LOOKUP(AW129,'Master 2012 Pay Sheet'!$C$5:$C$35,'Master 2012 Pay Sheet'!$D$5:$D$35),0)) ->  | BA129: =IF(D129="","",IF(LOOKUP(AZ129,'Master 2012 Pay Sheet'!$E$5:$E$35,'Master 2012 Pay Sheet'!$F$5:$F$35)>0,LOOKUP(AZ129,'Master 2012 Pay Sheet'!$E$5:$E$35,'Master 2012 Pay Sheet'!$F$5:$F$35),0)) -> 
B130: 128 | AU130: =IF(D130="","",IF(LOOKUP(AT130,'Master 2012 Pay Sheet'!$A$5:$A$35,'Master 2012 Pay Sheet'!$B$5:$B$35)>0,LOOKUP(AT130,'Master 2012 Pay Sheet'!$A$5:$A$35,'Master 2012 Pay Sheet'!$B$5:$B$35),0)) ->  | AX130: =IF(D130="","",IF(LOOKUP(AW130,'Master 2012 Pay Sheet'!$C$5:$C$35,'Master 2012 Pay Sheet'!$D$5:$D$35)>0,LOOKUP(AW130,'Master 2012 Pay Sheet'!$C$5:$C$35,'Master 2012 Pay Sheet'!$D$5:$D$35),0)) ->  | BA130: =IF(D130="","",IF(LOOKUP(AZ130,'Master 2012 Pay Sheet'!$E$5:$E$35,'Master 2012 Pay Sheet'!$F$5:$F$35)>0,LOOKUP(AZ130,'Master 2012 Pay Sheet'!$E$5:$E$35,'Master 2012 Pay Sheet'!$F$5:$F$35),0)) -> 
B131: 129 | Y131: =IF(N131>0,VLOOKUP(N131,$DY$8:$DZ$95,2)," ") ->  | Z131: =IF(O131>0,VLOOKUP(O131,$DY$8:$DZ$95,2)," ") ->  | AA131: =IF(P131>0,VLOOKUP(P131,$DY$8:$DZ$95,2)," ") ->  | AB131: =IF(Q131>0,VLOOKUP(Q131,$DY$8:$DZ$95,2)," ") ->  | AT131: =IF(D131="","",RANK(AS131,$AS$3:$AS$202,0)) ->  | AU131: =IF(D131="","",IF(LOOKUP(AT131,'Master 2012 Pay Sheet'!$A$5:$A$35,'Master 2012 Pay Sheet'!$B$5:$B$35)>0,LOOKUP(AT131,'Master 2012 Pay Sheet'!$A$5:$A$35,'Master 2012 Pay Sheet'!$B$5:$B$35),0)) ->  | AW131: =IF(D131="","",RANK(AV131,$AV$3:$AV$202,0)) ->  | AX131: =IF(D131="","",IF(LOOKUP(AW131,'Master 2012 Pay Sheet'!$C$5:$C$35,'Master 2012 Pay Sheet'!$D$5:$D$35)>0,LOOKUP(AW131,'Master 2012 Pay Sheet'!$C$5:$C$35,'Master 2012 Pay Sheet'!$D$5:$D$35),0)) ->  | AY131: =IF(D131="","",AS131+AV131) ->  | AZ131: =IF(D131="","",RANK(AY131,$AY$3:$AY$202,0)) ->  | BA131: =IF(D131="","",IF(LOOKUP(AZ131,'Master 2012 Pay Sheet'!$E$5:$E$35,'Master 2012 Pay Sheet'!$F$5:$F$35)>0,LOOKUP(AZ131,'Master 2012 Pay Sheet'!$E$5:$E$35,'Master 2012 Pay Sheet'!$F$5:$F$35),0)) ->  | BB131: =IF(D131="","",SUM(AU131+AX131+BA131)) ->  | BC131: =IF(D131="","",AT131-AZ131) ->  | BD131: =IF(D131="","",IF(BC131=MAX($BC$3:$BC$202),B131,"")) ->  | BE131: =IF(D131="","",COUNT(M131:Q131)) ->  | BG131: =IF(BF131=MAX($BF$3:$BF$202),B131,"") ->  | BH131: =IF(D131="","",COUNT(AC131:AG131)) ->  | BJ131: =IF(BI131=MAX($BI$3:$BI$202),B131,"") ->  | BL131: =IF(D131="","",IF(S131=MAX($S$3:$S$202),S131,"")) ->  | BM131: =IF(BL131=MAX($BL$3:$BL$202),B131,"") ->  | BN131: =IF(D131="","",IF(AN131=MAX($AN$3:$AN$202),AN131,"")) ->  | BO131: =IF(BN131=MAX($BN$3:$BN$202),B131,"") ->  | BP131: =IF(D131="","",IF(R131=MAX($R$3:$R$202),R131,"")) ->  | BQ131: =IF(BP131=MAX($BP$3:$BP$202),B131,"") ->  | BR131: =IF(D131="","",IF(AM131=MAX($AM$3:$AM$202),AM131,"")) ->  | BS131: =IF(BR131=MAX($BR$3:$BR$202),B131,"") ->  | BT131: =IF(D131="","",IF(V131=MAX($V$3:$V$202),V131,"")) ->  | BU131: =IF(BT131=MAX($BT$3:$BT$202),B131,"") ->  | BV131: =IF(D131="","",IF(W131=MAX($W$3:$W$202), W131,"")) ->  | BW131: =IF(BV131=MAX($BV$3:$BV$202),B131,"") ->  | BX131: =IF(D131="","",IF(AQ131=MAX($AQ$3:$AQ$202),AQ131,"")) ->  | BY131: =IF(BX131=MAX($BX$3:$BX$202),B131,"") ->  | BZ131: =IF(D131="","",IF(AR131=MAX($AR$3:$AR$202), AR131,"")) ->  | CA131: =IF(BZ131=MAX($BZ$3:$BZ$202),B131,"") ->  | CB131: =IF(D131="","",IF(U131=MAX($U$3:$U$202), U131,"")) ->  | CC131: =IF(CB131=MAX($CB$3:$CB$202),B131,"") ->  | CD131: =IF(D131="","",IF(AP131=MAX($AP$3:$AP$202),AP131,"")) ->  | CE131: =IF(CD131=MAX($CD$3:$CD$202),B131,"") ->  | CF131: =IF(D131="","",IF(T131=MAX($T$3:$T$202), T131,"")) ->  | CG131: =IF(CF131=MAX($CF$3:$CF$202),B131,"") ->  | CH131: =IF(D131="","",IF(AO131=MAX($AO$3:$AO$202),AO131,"")) ->  | CI131: =IF(CH131=MAX($CH$3:$CH$202),B131,"") ->  | CJ131: =IF(I131="AC",AZ131,"") ->  | CK131: =IF(CJ131="","",RANK(CJ131,$CJ$3:$CJ$202,1)) ->  | CL131: =IF(CK131=1,B131,"") ->  | CM131: =IF(CK131=2,B131,"") ->  | CN131: =IF(CK131=3,B131,"") ->  | CO131: =IF(I131="MC",AZ131,"") ->  | CP131: =IF(CO131="","",RANK(CO131,$CO$3:$CO$202,1)) ->  | CQ131: =IF(CP131=1,B131,"") ->  | CR131: =IF(CP131=2,B131,"") ->  | CS131: =IF(CP131=3,B131,"") ->  | DQ131: =IF(J131="Lund",AZ131,"") ->  | DR131: =IF(DQ131="","",RANK(DQ131,$DQ$3:$DQ$202,1)) ->  | DS131: =IF(DR131=1,B131,"") ->  | DT131: =IF(I131="AT",B131,"") ->  | DU131: =IF(I131="MC",B131,"") ->  | DV131: =IF(I131="AC",B131,"") ->  | DW131: =IF(BK131=0,0,IF(D131="","",$D$203-AZ131+1)/$D$203*100) -> 
B132: 130 | X132: =IF(M132>0,VLOOKUP(M132,$DY$8:$DZ$95,2)," ") ->  | AH132: =IF(AC132>0,VLOOKUP(AC132,$DY$8:$DZ$95,2)," ") ->  | AS132: =IF(D132="","",SUM(X132:AB132)) ->  | AU132: =IF(D132="","",IF(LOOKUP(AT132,'Master 2012 Pay Sheet'!$A$5:$A$35,'Master 2012 Pay Sheet'!$B$5:$B$35)>0,LOOKUP(AT132,'Master 2012 Pay Sheet'!$A$5:$A$35,'Master 2012 Pay Sheet'!$B$5:$B$35),0)) ->  | AV132: =IF(D132="","",SUM(AH132:AL132)) ->  | AX132: =IF(D132="","",IF(LOOKUP(AW132,'Master 2012 Pay Sheet'!$C$5:$C$35,'Master 2012 Pay Sheet'!$D$5:$D$35)>0,LOOKUP(AW132,'Master 2012 Pay Sheet'!$C$5:$C$35,'Master 2012 Pay Sheet'!$D$5:$D$35),0)) ->  | BA132: =IF(D132="","",IF(LOOKUP(AZ132,'Master 2012 Pay Sheet'!$E$5:$E$35,'Master 2012 Pay Sheet'!$F$5:$F$35)>0,LOOKUP(AZ132,'Master 2012 Pay Sheet'!$E$5:$E$35,'Master 2012 Pay Sheet'!$F$5:$F$35),0)) ->  | BF132: =IF(D132="","",MAX(X132:AB132)) ->  | BI132: =IF(D132="","",MAX(AH132:AL132)) ->  | BK132: =IF(BE132="","",BE132+BH132) ->  | CT132: =IF(BE132=0,BE132,"") ->  | CU132: =IF(BE132=1,1,"") ->  | CV132: =IF(BE132=2,2,"") ->  | CW132: =IF(BE132=3,3,"") ->  | CX132: =IF(BE132=4,4,"") ->  | CY132: =IF(BE132=5,5,"") ->  | CZ132: =IF(BH132=0,BH132,"") ->  | DA132: =IF(BH132=1,1,"") ->  | DB132: =IF(BH132=2,2,"") ->  | DC132: =IF(BH132=3,3,"") ->  | DD132: =IF(BH132=4,4,"") ->  | DE132: =IF(BH132=5,5,"") ->  | DF132: =IF(BK132=0,BK132,"") ->  | DG132: =IF(BK132=1,1,"") ->  | DH132: =IF(BK132=2,2,"") ->  | DI132: =IF(BK132=3,3,"") ->  | DJ132: =IF(BK132=4,4,"") ->  | DK132: =IF(BK132=5,5,"") ->  | DL132: =IF(BK132=6,6,"") ->  | DM132: =IF(BK132=7,7,"") ->  | DN132: =IF(BK132=8,8,"") ->  | DO132: =IF(BK132=9,9,"") ->  | DP132: =IF(BK132=10,10,"") ->  | DX132: =IF(AS132 = 0,AV132 - AS132,"") -> 
B133: 131 | AU133: =IF(D133="","",IF(LOOKUP(AT133,'Master 2012 Pay Sheet'!$A$5:$A$35,'Master 2012 Pay Sheet'!$B$5:$B$35)>0,LOOKUP(AT133,'Master 2012 Pay Sheet'!$A$5:$A$35,'Master 2012 Pay Sheet'!$B$5:$B$35),0)) ->  | AX133: =IF(D133="","",IF(LOOKUP(AW133,'Master 2012 Pay Sheet'!$C$5:$C$35,'Master 2012 Pay Sheet'!$D$5:$D$35)>0,LOOKUP(AW133,'Master 2012 Pay Sheet'!$C$5:$C$35,'Master 2012 Pay Sheet'!$D$5:$D$35),0)) ->  | BA133: =IF(D133="","",IF(LOOKUP(AZ133,'Master 2012 Pay Sheet'!$E$5:$E$35,'Master 2012 Pay Sheet'!$F$5:$F$35)>0,LOOKUP(AZ133,'Master 2012 Pay Sheet'!$E$5:$E$35,'Master 2012 Pay Sheet'!$F$5:$F$35),0)) -> 
B134: 132 | AU134: =IF(D134="","",IF(LOOKUP(AT134,'Master 2012 Pay Sheet'!$A$5:$A$35,'Master 2012 Pay Sheet'!$B$5:$B$35)>0,LOOKUP(AT134,'Master 2012 Pay Sheet'!$A$5:$A$35,'Master 2012 Pay Sheet'!$B$5:$B$35),0)) ->  | AX134: =IF(D134="","",IF(LOOKUP(AW134,'Master 2012 Pay Sheet'!$C$5:$C$35,'Master 2012 Pay Sheet'!$D$5:$D$35)>0,LOOKUP(AW134,'Master 2012 Pay Sheet'!$C$5:$C$35,'Master 2012 Pay Sheet'!$D$5:$D$35),0)) ->  | BA134: =IF(D134="","",IF(LOOKUP(AZ134,'Master 2012 Pay Sheet'!$E$5:$E$35,'Master 2012 Pay Sheet'!$F$5:$F$35)>0,LOOKUP(AZ134,'Master 2012 Pay Sheet'!$E$5:$E$35,'Master 2012 Pay Sheet'!$F$5:$F$35),0)) -> 
B135: 133 | AU135: =IF(D135="","",IF(LOOKUP(AT135,'Master 2012 Pay Sheet'!$A$5:$A$35,'Master 2012 Pay Sheet'!$B$5:$B$35)>0,LOOKUP(AT135,'Master 2012 Pay Sheet'!$A$5:$A$35,'Master 2012 Pay Sheet'!$B$5:$B$35),0)) ->  | AX135: =IF(D135="","",IF(LOOKUP(AW135,'Master 2012 Pay Sheet'!$C$5:$C$35,'Master 2012 Pay Sheet'!$D$5:$D$35)>0,LOOKUP(AW135,'Master 2012 Pay Sheet'!$C$5:$C$35,'Master 2012 Pay Sheet'!$D$5:$D$35),0)) ->  | BA135: =IF(D135="","",IF(LOOKUP(AZ135,'Master 2012 Pay Sheet'!$E$5:$E$35,'Master 2012 Pay Sheet'!$F$5:$F$35)>0,LOOKUP(AZ135,'Master 2012 Pay Sheet'!$E$5:$E$35,'Master 2012 Pay Sheet'!$F$5:$F$35),0)) -> 
B136: 134 | AU136: =IF(D136="","",IF(LOOKUP(AT136,'Master 2012 Pay Sheet'!$A$5:$A$35,'Master 2012 Pay Sheet'!$B$5:$B$35)>0,LOOKUP(AT136,'Master 2012 Pay Sheet'!$A$5:$A$35,'Master 2012 Pay Sheet'!$B$5:$B$35),0)) ->  | AX136: =IF(D136="","",IF(LOOKUP(AW136,'Master 2012 Pay Sheet'!$C$5:$C$35,'Master 2012 Pay Sheet'!$D$5:$D$35)>0,LOOKUP(AW136,'Master 2012 Pay Sheet'!$C$5:$C$35,'Master 2012 Pay Sheet'!$D$5:$D$35),0)) ->  | BA136: =IF(D136="","",IF(LOOKUP(AZ136,'Master 2012 Pay Sheet'!$E$5:$E$35,'Master 2012 Pay Sheet'!$F$5:$F$35)>0,LOOKUP(AZ136,'Master 2012 Pay Sheet'!$E$5:$E$35,'Master 2012 Pay Sheet'!$F$5:$F$35),0)) -> 
B137: 135 | AU137: =IF(D137="","",IF(LOOKUP(AT137,'Master 2012 Pay Sheet'!$A$5:$A$35,'Master 2012 Pay Sheet'!$B$5:$B$35)>0,LOOKUP(AT137,'Master 2012 Pay Sheet'!$A$5:$A$35,'Master 2012 Pay Sheet'!$B$5:$B$35),0)) ->  | AX137: =IF(D137="","",IF(LOOKUP(AW137,'Master 2012 Pay Sheet'!$C$5:$C$35,'Master 2012 Pay Sheet'!$D$5:$D$35)>0,LOOKUP(AW137,'Master 2012 Pay Sheet'!$C$5:$C$35,'Master 2012 Pay Sheet'!$D$5:$D$35),0)) ->  | BA137: =IF(D137="","",IF(LOOKUP(AZ137,'Master 2012 Pay Sheet'!$E$5:$E$35,'Master 2012 Pay Sheet'!$F$5:$F$35)>0,LOOKUP(AZ137,'Master 2012 Pay Sheet'!$E$5:$E$35,'Master 2012 Pay Sheet'!$F$5:$F$35),0)) -> 
B138: 136 | AU138: =IF(D138="","",IF(LOOKUP(AT138,'Master 2012 Pay Sheet'!$A$5:$A$35,'Master 2012 Pay Sheet'!$B$5:$B$35)>0,LOOKUP(AT138,'Master 2012 Pay Sheet'!$A$5:$A$35,'Master 2012 Pay Sheet'!$B$5:$B$35),0)) ->  | AX138: =IF(D138="","",IF(LOOKUP(AW138,'Master 2012 Pay Sheet'!$C$5:$C$35,'Master 2012 Pay Sheet'!$D$5:$D$35)>0,LOOKUP(AW138,'Master 2012 Pay Sheet'!$C$5:$C$35,'Master 2012 Pay Sheet'!$D$5:$D$35),0)) ->  | BA138: =IF(D138="","",IF(LOOKUP(AZ138,'Master 2012 Pay Sheet'!$E$5:$E$35,'Master 2012 Pay Sheet'!$F$5:$F$35)>0,LOOKUP(AZ138,'Master 2012 Pay Sheet'!$E$5:$E$35,'Master 2012 Pay Sheet'!$F$5:$F$35),0)) -> 
B139: 137 | AU139: =IF(D139="","",IF(LOOKUP(AT139,'Master 2012 Pay Sheet'!$A$5:$A$35,'Master 2012 Pay Sheet'!$B$5:$B$35)>0,LOOKUP(AT139,'Master 2012 Pay Sheet'!$A$5:$A$35,'Master 2012 Pay Sheet'!$B$5:$B$35),0)) ->  | AX139: =IF(D139="","",IF(LOOKUP(AW139,'Master 2012 Pay Sheet'!$C$5:$C$35,'Master 2012 Pay Sheet'!$D$5:$D$35)>0,LOOKUP(AW139,'Master 2012 Pay Sheet'!$C$5:$C$35,'Master 2012 Pay Sheet'!$D$5:$D$35),0)) ->  | BA139: =IF(D139="","",IF(LOOKUP(AZ139,'Master 2012 Pay Sheet'!$E$5:$E$35,'Master 2012 Pay Sheet'!$F$5:$F$35)>0,LOOKUP(AZ139,'Master 2012 Pay Sheet'!$E$5:$E$35,'Master 2012 Pay Sheet'!$F$5:$F$35),0)) -> 
B140: 138 | AU140: =IF(D140="","",IF(LOOKUP(AT140,'Master 2012 Pay Sheet'!$A$5:$A$35,'Master 2012 Pay Sheet'!$B$5:$B$35)>0,LOOKUP(AT140,'Master 2012 Pay Sheet'!$A$5:$A$35,'Master 2012 Pay Sheet'!$B$5:$B$35),0)) ->  | AX140: =IF(D140="","",IF(LOOKUP(AW140,'Master 2012 Pay Sheet'!$C$5:$C$35,'Master 2012 Pay Sheet'!$D$5:$D$35)>0,LOOKUP(AW140,'Master 2012 Pay Sheet'!$C$5:$C$35,'Master 2012 Pay Sheet'!$D$5:$D$35),0)) ->  | BA140: =IF(D140="","",IF(LOOKUP(AZ140,'Master 2012 Pay Sheet'!$E$5:$E$35,'Master 2012 Pay Sheet'!$F$5:$F$35)>0,LOOKUP(AZ140,'Master 2012 Pay Sheet'!$E$5:$E$35,'Master 2012 Pay Sheet'!$F$5:$F$35),0)) -> 
B141: 139 | AU141: =IF(D141="","",IF(LOOKUP(AT141,'Master 2012 Pay Sheet'!$A$5:$A$35,'Master 2012 Pay Sheet'!$B$5:$B$35)>0,LOOKUP(AT141,'Master 2012 Pay Sheet'!$A$5:$A$35,'Master 2012 Pay Sheet'!$B$5:$B$35),0)) ->  | AX141: =IF(D141="","",IF(LOOKUP(AW141,'Master 2012 Pay Sheet'!$C$5:$C$35,'Master 2012 Pay Sheet'!$D$5:$D$35)>0,LOOKUP(AW141,'Master 2012 Pay Sheet'!$C$5:$C$35,'Master 2012 Pay Sheet'!$D$5:$D$35),0)) ->  | BA141: =IF(D141="","",IF(LOOKUP(AZ141,'Master 2012 Pay Sheet'!$E$5:$E$35,'Master 2012 Pay Sheet'!$F$5:$F$35)>0,LOOKUP(AZ141,'Master 2012 Pay Sheet'!$E$5:$E$35,'Master 2012 Pay Sheet'!$F$5:$F$35),0)) -> 
B142: 140 | AU142: =IF(D142="","",IF(LOOKUP(AT142,'Master 2012 Pay Sheet'!$A$5:$A$35,'Master 2012 Pay Sheet'!$B$5:$B$35)>0,LOOKUP(AT142,'Master 2012 Pay Sheet'!$A$5:$A$35,'Master 2012 Pay Sheet'!$B$5:$B$35),0)) ->  | AX142: =IF(D142="","",IF(LOOKUP(AW142,'Master 2012 Pay Sheet'!$C$5:$C$35,'Master 2012 Pay Sheet'!$D$5:$D$35)>0,LOOKUP(AW142,'Master 2012 Pay Sheet'!$C$5:$C$35,'Master 2012 Pay Sheet'!$D$5:$D$35),0)) ->  | BA142: =IF(D142="","",IF(LOOKUP(AZ142,'Master 2012 Pay Sheet'!$E$5:$E$35,'Master 2012 Pay Sheet'!$F$5:$F$35)>0,LOOKUP(AZ142,'Master 2012 Pay Sheet'!$E$5:$E$35,'Master 2012 Pay Sheet'!$F$5:$F$35),0)) -> 
B143: 141 | AU143: =IF(D143="","",IF(LOOKUP(AT143,'Master 2012 Pay Sheet'!$A$5:$A$35,'Master 2012 Pay Sheet'!$B$5:$B$35)>0,LOOKUP(AT143,'Master 2012 Pay Sheet'!$A$5:$A$35,'Master 2012 Pay Sheet'!$B$5:$B$35),0)) ->  | AX143: =IF(D143="","",IF(LOOKUP(AW143,'Master 2012 Pay Sheet'!$C$5:$C$35,'Master 2012 Pay Sheet'!$D$5:$D$35)>0,LOOKUP(AW143,'Master 2012 Pay Sheet'!$C$5:$C$35,'Master 2012 Pay Sheet'!$D$5:$D$35),0)) ->  | BA143: =IF(D143="","",IF(LOOKUP(AZ143,'Master 2012 Pay Sheet'!$E$5:$E$35,'Master 2012 Pay Sheet'!$F$5:$F$35)>0,LOOKUP(AZ143,'Master 2012 Pay Sheet'!$E$5:$E$35,'Master 2012 Pay Sheet'!$F$5:$F$35),0)) -> 
B144: 142 | AU144: =IF(D144="","",IF(LOOKUP(AT144,'Master 2012 Pay Sheet'!$A$5:$A$35,'Master 2012 Pay Sheet'!$B$5:$B$35)>0,LOOKUP(AT144,'Master 2012 Pay Sheet'!$A$5:$A$35,'Master 2012 Pay Sheet'!$B$5:$B$35),0)) ->  | AX144: =IF(D144="","",IF(LOOKUP(AW144,'Master 2012 Pay Sheet'!$C$5:$C$35,'Master 2012 Pay Sheet'!$D$5:$D$35)>0,LOOKUP(AW144,'Master 2012 Pay Sheet'!$C$5:$C$35,'Master 2012 Pay Sheet'!$D$5:$D$35),0)) ->  | BA144: =IF(D144="","",IF(LOOKUP(AZ144,'Master 2012 Pay Sheet'!$E$5:$E$35,'Master 2012 Pay Sheet'!$F$5:$F$35)>0,LOOKUP(AZ144,'Master 2012 Pay Sheet'!$E$5:$E$35,'Master 2012 Pay Sheet'!$F$5:$F$35),0)) -> 
B145: 143 | AU145: =IF(D145="","",IF(LOOKUP(AT145,'Master 2012 Pay Sheet'!$A$5:$A$35,'Master 2012 Pay Sheet'!$B$5:$B$35)>0,LOOKUP(AT145,'Master 2012 Pay Sheet'!$A$5:$A$35,'Master 2012 Pay Sheet'!$B$5:$B$35),0)) ->  | AX145: =IF(D145="","",IF(LOOKUP(AW145,'Master 2012 Pay Sheet'!$C$5:$C$35,'Master 2012 Pay Sheet'!$D$5:$D$35)>0,LOOKUP(AW145,'Master 2012 Pay Sheet'!$C$5:$C$35,'Master 2012 Pay Sheet'!$D$5:$D$35),0)) ->  | BA145: =IF(D145="","",IF(LOOKUP(AZ145,'Master 2012 Pay Sheet'!$E$5:$E$35,'Master 2012 Pay Sheet'!$F$5:$F$35)>0,LOOKUP(AZ145,'Master 2012 Pay Sheet'!$E$5:$E$35,'Master 2012 Pay Sheet'!$F$5:$F$35),0)) -> 
B146: 144 | AU146: =IF(D146="","",IF(LOOKUP(AT146,'Master 2012 Pay Sheet'!$A$5:$A$35,'Master 2012 Pay Sheet'!$B$5:$B$35)>0,LOOKUP(AT146,'Master 2012 Pay Sheet'!$A$5:$A$35,'Master 2012 Pay Sheet'!$B$5:$B$35),0)) ->  | AX146: =IF(D146="","",IF(LOOKUP(AW146,'Master 2012 Pay Sheet'!$C$5:$C$35,'Master 2012 Pay Sheet'!$D$5:$D$35)>0,LOOKUP(AW146,'Master 2012 Pay Sheet'!$C$5:$C$35,'Master 2012 Pay Sheet'!$D$5:$D$35),0)) ->  | BA146: =IF(D146="","",IF(LOOKUP(AZ146,'Master 2012 Pay Sheet'!$E$5:$E$35,'Master 2012 Pay Sheet'!$F$5:$F$35)>0,LOOKUP(AZ146,'Master 2012 Pay Sheet'!$E$5:$E$35,'Master 2012 Pay Sheet'!$F$5:$F$35),0)) -> 
B147: 145 | AI147: =IF(AD147>0,VLOOKUP(AD147,$DY$8:$DZ$95,2)," ") ->  | AJ147: =IF(AE147>0,VLOOKUP(AE147,$DY$8:$DZ$95,2)," ") ->  | AK147: =IF(AF147>0,VLOOKUP(AF147,$DY$8:$DZ$95,2)," ") ->  | AL147: =IF(AG147>0,VLOOKUP(AG147,$DY$8:$DZ$95,2)," ") ->  | AU147: =IF(D147="","",IF(LOOKUP(AT147,'Master 2012 Pay Sheet'!$A$5:$A$35,'Master 2012 Pay Sheet'!$B$5:$B$35)>0,LOOKUP(AT147,'Master 2012 Pay Sheet'!$A$5:$A$35,'Master 2012 Pay Sheet'!$B$5:$B$35),0)) ->  | AX147: =IF(D147="","",IF(LOOKUP(AW147,'Master 2012 Pay Sheet'!$C$5:$C$35,'Master 2012 Pay Sheet'!$D$5:$D$35)>0,LOOKUP(AW147,'Master 2012 Pay Sheet'!$C$5:$C$35,'Master 2012 Pay Sheet'!$D$5:$D$35),0)) ->  | BA147: =IF(D147="","",IF(LOOKUP(AZ147,'Master 2012 Pay Sheet'!$E$5:$E$35,'Master 2012 Pay Sheet'!$F$5:$F$35)>0,LOOKUP(AZ147,'Master 2012 Pay Sheet'!$E$5:$E$35,'Master 2012 Pay Sheet'!$F$5:$F$35),0)) -> 
B148: 146 | AU148: =IF(D148="","",IF(LOOKUP(AT148,'Master 2012 Pay Sheet'!$A$5:$A$35,'Master 2012 Pay Sheet'!$B$5:$B$35)>0,LOOKUP(AT148,'Master 2012 Pay Sheet'!$A$5:$A$35,'Master 2012 Pay Sheet'!$B$5:$B$35),0)) ->  | AX148: =IF(D148="","",IF(LOOKUP(AW148,'Master 2012 Pay Sheet'!$C$5:$C$35,'Master 2012 Pay Sheet'!$D$5:$D$35)>0,LOOKUP(AW148,'Master 2012 Pay Sheet'!$C$5:$C$35,'Master 2012 Pay Sheet'!$D$5:$D$35),0)) ->  | BA148: =IF(D148="","",IF(LOOKUP(AZ148,'Master 2012 Pay Sheet'!$E$5:$E$35,'Master 2012 Pay Sheet'!$F$5:$F$35)>0,LOOKUP(AZ148,'Master 2012 Pay Sheet'!$E$5:$E$35,'Master 2012 Pay Sheet'!$F$5:$F$35),0)) -> 
B149: 147 | AU149: =IF(D149="","",IF(LOOKUP(AT149,'Master 2012 Pay Sheet'!$A$5:$A$35,'Master 2012 Pay Sheet'!$B$5:$B$35)>0,LOOKUP(AT149,'Master 2012 Pay Sheet'!$A$5:$A$35,'Master 2012 Pay Sheet'!$B$5:$B$35),0)) ->  | AX149: =IF(D149="","",IF(LOOKUP(AW149,'Master 2012 Pay Sheet'!$C$5:$C$35,'Master 2012 Pay Sheet'!$D$5:$D$35)>0,LOOKUP(AW149,'Master 2012 Pay Sheet'!$C$5:$C$35,'Master 2012 Pay Sheet'!$D$5:$D$35),0)) ->  | BA149: =IF(D149="","",IF(LOOKUP(AZ149,'Master 2012 Pay Sheet'!$E$5:$E$35,'Master 2012 Pay Sheet'!$F$5:$F$35)>0,LOOKUP(AZ149,'Master 2012 Pay Sheet'!$E$5:$E$35,'Master 2012 Pay Sheet'!$F$5:$F$35),0)) -> 
B150: 148 | AU150: =IF(D150="","",IF(LOOKUP(AT150,'Master 2012 Pay Sheet'!$A$5:$A$35,'Master 2012 Pay Sheet'!$B$5:$B$35)>0,LOOKUP(AT150,'Master 2012 Pay Sheet'!$A$5:$A$35,'Master 2012 Pay Sheet'!$B$5:$B$35),0)) ->  | AX150: =IF(D150="","",IF(LOOKUP(AW150,'Master 2012 Pay Sheet'!$C$5:$C$35,'Master 2012 Pay Sheet'!$D$5:$D$35)>0,LOOKUP(AW150,'Master 2012 Pay Sheet'!$C$5:$C$35,'Master 2012 Pay Sheet'!$D$5:$D$35),0)) ->  | BA150: =IF(D150="","",IF(LOOKUP(AZ150,'Master 2012 Pay Sheet'!$E$5:$E$35,'Master 2012 Pay Sheet'!$F$5:$F$35)>0,LOOKUP(AZ150,'Master 2012 Pay Sheet'!$E$5:$E$35,'Master 2012 Pay Sheet'!$F$5:$F$35),0)) -> 
B151: 149 | AU151: =IF(D151="","",IF(LOOKUP(AT151,'Master 2012 Pay Sheet'!$A$5:$A$35,'Master 2012 Pay Sheet'!$B$5:$B$35)>0,LOOKUP(AT151,'Master 2012 Pay Sheet'!$A$5:$A$35,'Master 2012 Pay Sheet'!$B$5:$B$35),0)) ->  | AX151: =IF(D151="","",IF(LOOKUP(AW151,'Master 2012 Pay Sheet'!$C$5:$C$35,'Master 2012 Pay Sheet'!$D$5:$D$35)>0,LOOKUP(AW151,'Master 2012 Pay Sheet'!$C$5:$C$35,'Master 2012 Pay Sheet'!$D$5:$D$35),0)) ->  | BA151: =IF(D151="","",IF(LOOKUP(AZ151,'Master 2012 Pay Sheet'!$E$5:$E$35,'Master 2012 Pay Sheet'!$F$5:$F$35)>0,LOOKUP(AZ151,'Master 2012 Pay Sheet'!$E$5:$E$35,'Master 2012 Pay Sheet'!$F$5:$F$35),0)) -> 
B152: 150 | AU152: =IF(D152="","",IF(LOOKUP(AT152,'Master 2012 Pay Sheet'!$A$5:$A$35,'Master 2012 Pay Sheet'!$B$5:$B$35)>0,LOOKUP(AT152,'Master 2012 Pay Sheet'!$A$5:$A$35,'Master 2012 Pay Sheet'!$B$5:$B$35),0)) ->  | AX152: =IF(D152="","",IF(LOOKUP(AW152,'Master 2012 Pay Sheet'!$C$5:$C$35,'Master 2012 Pay Sheet'!$D$5:$D$35)>0,LOOKUP(AW152,'Master 2012 Pay Sheet'!$C$5:$C$35,'Master 2012 Pay Sheet'!$D$5:$D$35),0)) ->  | BA152: =IF(D152="","",IF(LOOKUP(AZ152,'Master 2012 Pay Sheet'!$E$5:$E$35,'Master 2012 Pay Sheet'!$F$5:$F$35)>0,LOOKUP(AZ152,'Master 2012 Pay Sheet'!$E$5:$E$35,'Master 2012 Pay Sheet'!$F$5:$F$35),0)) -> 
B153: 151 | AU153: =IF(D153="","",IF(LOOKUP(AT153,'Master 2012 Pay Sheet'!$A$5:$A$35,'Master 2012 Pay Sheet'!$B$5:$B$35)>0,LOOKUP(AT153,'Master 2012 Pay Sheet'!$A$5:$A$35,'Master 2012 Pay Sheet'!$B$5:$B$35),0)) ->  | AX153: =IF(D153="","",IF(LOOKUP(AW153,'Master 2012 Pay Sheet'!$C$5:$C$35,'Master 2012 Pay Sheet'!$D$5:$D$35)>0,LOOKUP(AW153,'Master 2012 Pay Sheet'!$C$5:$C$35,'Master 2012 Pay Sheet'!$D$5:$D$35),0)) ->  | BA153: =IF(D153="","",IF(LOOKUP(AZ153,'Master 2012 Pay Sheet'!$E$5:$E$35,'Master 2012 Pay Sheet'!$F$5:$F$35)>0,LOOKUP(AZ153,'Master 2012 Pay Sheet'!$E$5:$E$35,'Master 2012 Pay Sheet'!$F$5:$F$35),0)) -> 
B154: 152 | AU154: =IF(D154="","",IF(LOOKUP(AT154,'Master 2012 Pay Sheet'!$A$5:$A$35,'Master 2012 Pay Sheet'!$B$5:$B$35)>0,LOOKUP(AT154,'Master 2012 Pay Sheet'!$A$5:$A$35,'Master 2012 Pay Sheet'!$B$5:$B$35),0)) ->  | AX154: =IF(D154="","",IF(LOOKUP(AW154,'Master 2012 Pay Sheet'!$C$5:$C$35,'Master 2012 Pay Sheet'!$D$5:$D$35)>0,LOOKUP(AW154,'Master 2012 Pay Sheet'!$C$5:$C$35,'Master 2012 Pay Sheet'!$D$5:$D$35),0)) ->  | BA154: =IF(D154="","",IF(LOOKUP(AZ154,'Master 2012 Pay Sheet'!$E$5:$E$35,'Master 2012 Pay Sheet'!$F$5:$F$35)>0,LOOKUP(AZ154,'Master 2012 Pay Sheet'!$E$5:$E$35,'Master 2012 Pay Sheet'!$F$5:$F$35),0)) -> 
B155: 153 | AU155: =IF(D155="","",IF(LOOKUP(AT155,'Master 2012 Pay Sheet'!$A$5:$A$35,'Master 2012 Pay Sheet'!$B$5:$B$35)>0,LOOKUP(AT155,'Master 2012 Pay Sheet'!$A$5:$A$35,'Master 2012 Pay Sheet'!$B$5:$B$35),0)) ->  | AX155: =IF(D155="","",IF(LOOKUP(AW155,'Master 2012 Pay Sheet'!$C$5:$C$35,'Master 2012 Pay Sheet'!$D$5:$D$35)>0,LOOKUP(AW155,'Master 2012 Pay Sheet'!$C$5:$C$35,'Master 2012 Pay Sheet'!$D$5:$D$35),0)) ->  | BA155: =IF(D155="","",IF(LOOKUP(AZ155,'Master 2012 Pay Sheet'!$E$5:$E$35,'Master 2012 Pay Sheet'!$F$5:$F$35)>0,LOOKUP(AZ155,'Master 2012 Pay Sheet'!$E$5:$E$35,'Master 2012 Pay Sheet'!$F$5:$F$35),0)) -> 
B156: 154 | AU156: =IF(D156="","",IF(LOOKUP(AT156,'Master 2012 Pay Sheet'!$A$5:$A$35,'Master 2012 Pay Sheet'!$B$5:$B$35)>0,LOOKUP(AT156,'Master 2012 Pay Sheet'!$A$5:$A$35,'Master 2012 Pay Sheet'!$B$5:$B$35),0)) ->  | AX156: =IF(D156="","",IF(LOOKUP(AW156,'Master 2012 Pay Sheet'!$C$5:$C$35,'Master 2012 Pay Sheet'!$D$5:$D$35)>0,LOOKUP(AW156,'Master 2012 Pay Sheet'!$C$5:$C$35,'Master 2012 Pay Sheet'!$D$5:$D$35),0)) ->  | BA156: =IF(D156="","",IF(LOOKUP(AZ156,'Master 2012 Pay Sheet'!$E$5:$E$35,'Master 2012 Pay Sheet'!$F$5:$F$35)>0,LOOKUP(AZ156,'Master 2012 Pay Sheet'!$E$5:$E$35,'Master 2012 Pay Sheet'!$F$5:$F$35),0)) -> 
B157: 155 | AU157: =IF(D157="","",IF(LOOKUP(AT157,'Master 2012 Pay Sheet'!$A$5:$A$35,'Master 2012 Pay Sheet'!$B$5:$B$35)>0,LOOKUP(AT157,'Master 2012 Pay Sheet'!$A$5:$A$35,'Master 2012 Pay Sheet'!$B$5:$B$35),0)) ->  | AX157: =IF(D157="","",IF(LOOKUP(AW157,'Master 2012 Pay Sheet'!$C$5:$C$35,'Master 2012 Pay Sheet'!$D$5:$D$35)>0,LOOKUP(AW157,'Master 2012 Pay Sheet'!$C$5:$C$35,'Master 2012 Pay Sheet'!$D$5:$D$35),0)) ->  | BA157: =IF(D157="","",IF(LOOKUP(AZ157,'Master 2012 Pay Sheet'!$E$5:$E$35,'Master 2012 Pay Sheet'!$F$5:$F$35)>0,LOOKUP(AZ157,'Master 2012 Pay Sheet'!$E$5:$E$35,'Master 2012 Pay Sheet'!$F$5:$F$35),0)) -> 
B158: 156 | AU158: =IF(D158="","",IF(LOOKUP(AT158,'Master 2012 Pay Sheet'!$A$5:$A$35,'Master 2012 Pay Sheet'!$B$5:$B$35)>0,LOOKUP(AT158,'Master 2012 Pay Sheet'!$A$5:$A$35,'Master 2012 Pay Sheet'!$B$5:$B$35),0)) ->  | AX158: =IF(D158="","",IF(LOOKUP(AW158,'Master 2012 Pay Sheet'!$C$5:$C$35,'Master 2012 Pay Sheet'!$D$5:$D$35)>0,LOOKUP(AW158,'Master 2012 Pay Sheet'!$C$5:$C$35,'Master 2012 Pay Sheet'!$D$5:$D$35),0)) ->  | BA158: =IF(D158="","",IF(LOOKUP(AZ158,'Master 2012 Pay Sheet'!$E$5:$E$35,'Master 2012 Pay Sheet'!$F$5:$F$35)>0,LOOKUP(AZ158,'Master 2012 Pay Sheet'!$E$5:$E$35,'Master 2012 Pay Sheet'!$F$5:$F$35),0)) -> 
B159: 157 | AU159: =IF(D159="","",IF(LOOKUP(AT159,'Master 2012 Pay Sheet'!$A$5:$A$35,'Master 2012 Pay Sheet'!$B$5:$B$35)>0,LOOKUP(AT159,'Master 2012 Pay Sheet'!$A$5:$A$35,'Master 2012 Pay Sheet'!$B$5:$B$35),0)) ->  | AX159: =IF(D159="","",IF(LOOKUP(AW159,'Master 2012 Pay Sheet'!$C$5:$C$35,'Master 2012 Pay Sheet'!$D$5:$D$35)>0,LOOKUP(AW159,'Master 2012 Pay Sheet'!$C$5:$C$35,'Master 2012 Pay Sheet'!$D$5:$D$35),0)) ->  | BA159: =IF(D159="","",IF(LOOKUP(AZ159,'Master 2012 Pay Sheet'!$E$5:$E$35,'Master 2012 Pay Sheet'!$F$5:$F$35)>0,LOOKUP(AZ159,'Master 2012 Pay Sheet'!$E$5:$E$35,'Master 2012 Pay Sheet'!$F$5:$F$35),0)) -> 
B160: 158 | AU160: =IF(D160="","",IF(LOOKUP(AT160,'Master 2012 Pay Sheet'!$A$5:$A$35,'Master 2012 Pay Sheet'!$B$5:$B$35)>0,LOOKUP(AT160,'Master 2012 Pay Sheet'!$A$5:$A$35,'Master 2012 Pay Sheet'!$B$5:$B$35),0)) ->  | AX160: =IF(D160="","",IF(LOOKUP(AW160,'Master 2012 Pay Sheet'!$C$5:$C$35,'Master 2012 Pay Sheet'!$D$5:$D$35)>0,LOOKUP(AW160,'Master 2012 Pay Sheet'!$C$5:$C$35,'Master 2012 Pay Sheet'!$D$5:$D$35),0)) ->  | BA160: =IF(D160="","",IF(LOOKUP(AZ160,'Master 2012 Pay Sheet'!$E$5:$E$35,'Master 2012 Pay Sheet'!$F$5:$F$35)>0,LOOKUP(AZ160,'Master 2012 Pay Sheet'!$E$5:$E$35,'Master 2012 Pay Sheet'!$F$5:$F$35),0)) -> 
B161: 159 | AU161: =IF(D161="","",IF(LOOKUP(AT161,'Master 2012 Pay Sheet'!$A$5:$A$35,'Master 2012 Pay Sheet'!$B$5:$B$35)>0,LOOKUP(AT161,'Master 2012 Pay Sheet'!$A$5:$A$35,'Master 2012 Pay Sheet'!$B$5:$B$35),0)) ->  | AX161: =IF(D161="","",IF(LOOKUP(AW161,'Master 2012 Pay Sheet'!$C$5:$C$35,'Master 2012 Pay Sheet'!$D$5:$D$35)>0,LOOKUP(AW161,'Master 2012 Pay Sheet'!$C$5:$C$35,'Master 2012 Pay Sheet'!$D$5:$D$35),0)) ->  | BA161: =IF(D161="","",IF(LOOKUP(AZ161,'Master 2012 Pay Sheet'!$E$5:$E$35,'Master 2012 Pay Sheet'!$F$5:$F$35)>0,LOOKUP(AZ161,'Master 2012 Pay Sheet'!$E$5:$E$35,'Master 2012 Pay Sheet'!$F$5:$F$35),0)) -> 
B162: 160 | AU162: =IF(D162="","",IF(LOOKUP(AT162,'Master 2012 Pay Sheet'!$A$5:$A$35,'Master 2012 Pay Sheet'!$B$5:$B$35)>0,LOOKUP(AT162,'Master 2012 Pay Sheet'!$A$5:$A$35,'Master 2012 Pay Sheet'!$B$5:$B$35),0)) ->  | AX162: =IF(D162="","",IF(LOOKUP(AW162,'Master 2012 Pay Sheet'!$C$5:$C$35,'Master 2012 Pay Sheet'!$D$5:$D$35)>0,LOOKUP(AW162,'Master 2012 Pay Sheet'!$C$5:$C$35,'Master 2012 Pay Sheet'!$D$5:$D$35),0)) ->  | BA162: =IF(D162="","",IF(LOOKUP(AZ162,'Master 2012 Pay Sheet'!$E$5:$E$35,'Master 2012 Pay Sheet'!$F$5:$F$35)>0,LOOKUP(AZ162,'Master 2012 Pay Sheet'!$E$5:$E$35,'Master 2012 Pay Sheet'!$F$5:$F$35),0)) -> 
B163: 161 | AT163: =IF(D163="","",RANK(AS163,$AS$3:$AS$202,0)) ->  | AU163: =IF(D163="","",IF(LOOKUP(AT163,'Master 2012 Pay Sheet'!$A$5:$A$35,'Master 2012 Pay Sheet'!$B$5:$B$35)>0,LOOKUP(AT163,'Master 2012 Pay Sheet'!$A$5:$A$35,'Master 2012 Pay Sheet'!$B$5:$B$35),0)) ->  | AW163: =IF(D163="","",RANK(AV163,$AV$3:$AV$202,0)) ->  | AX163: =IF(D163="","",IF(LOOKUP(AW163,'Master 2012 Pay Sheet'!$C$5:$C$35,'Master 2012 Pay Sheet'!$D$5:$D$35)>0,LOOKUP(AW163,'Master 2012 Pay Sheet'!$C$5:$C$35,'Master 2012 Pay Sheet'!$D$5:$D$35),0)) ->  | AZ163: =IF(D163="","",RANK(AY163,$AY$3:$AY$202,0)) ->  | BA163: =IF(D163="","",IF(LOOKUP(AZ163,'Master 2012 Pay Sheet'!$E$5:$E$35,'Master 2012 Pay Sheet'!$F$5:$F$35)>0,LOOKUP(AZ163,'Master 2012 Pay Sheet'!$E$5:$E$35,'Master 2012 Pay Sheet'!$F$5:$F$35),0)) ->  | BB163: =IF(D163="","",SUM(AU163+AX163+BA163)) ->  | BC163: =IF(D163="","",AT163-AZ163) ->  | BD163: =IF(D163="","",IF(BC163=MAX($BC$3:$BC$202),B163,"")) ->  | BG163: =IF(BF163=MAX($BF$3:$BF$202),B163,"") ->  | BJ163: =IF(BI163=MAX($BI$3:$BI$202),B163,"") ->  | BM163: =IF(BL163=MAX($BL$3:$BL$202),B163,"") ->  | BO163: =IF(BN163=MAX($BN$3:$BN$202),B163,"") ->  | BQ163: =IF(BP163=MAX($BP$3:$BP$202),B163,"") ->  | BS163: =IF(BR163=MAX($BR$3:$BR$202),B163,"") ->  | BU163: =IF(BT163=MAX($BT$3:$BT$202),B163,"") ->  | BW163: =IF(BV163=MAX($BV$3:$BV$202),B163,"") ->  | BY163: =IF(BX163=MAX($BX$3:$BX$202),B163,"") ->  | CA163: =IF(BZ163=MAX($BZ$3:$BZ$202),B163,"") ->  | CC163: =IF(CB163=MAX($CB$3:$CB$202),B163,"") ->  | CE163: =IF(CD163=MAX($CD$3:$CD$202),B163,"") ->  | CG163: =IF(CF163=MAX($CF$3:$CF$202),B163,"") ->  | CI163: =IF(CH163=MAX($CH$3:$CH$202),B163,"") ->  | CJ163: =IF(I163="AC",AZ163,"") ->  | CK163: =IF(CJ163="","",RANK(CJ163,$CJ$3:$CJ$202,1)) ->  | CL163: =IF(CK163=1,B163,"") ->  | CM163: =IF(CK163=2,B163,"") ->  | CN163: =IF(CK163=3,B163,"") ->  | CO163: =IF(I163="MC",AZ163,"") ->  | CP163: =IF(CO163="","",RANK(CO163,$CO$3:$CO$202,1)) ->  | CQ163: =IF(CP163=1,B163,"") ->  | CR163: =IF(CP163=2,B163,"") ->  | CS163: =IF(CP163=3,B163,"") ->  | DQ163: =IF(J163="Lund",AZ163,"") ->  | DR163: =IF(DQ163="","",RANK(DQ163,$DQ$3:$DQ$202,1)) ->  | DS163: =IF(DR163=1,B163,"") ->  | DW163: =IF(BK163=0,0,IF(D163="","",$D$203-AZ163+1)/$D$203*100) -> 
B164: 162 | AU164: =IF(D164="","",IF(LOOKUP(AT164,'Master 2012 Pay Sheet'!$A$5:$A$35,'Master 2012 Pay Sheet'!$B$5:$B$35)>0,LOOKUP(AT164,'Master 2012 Pay Sheet'!$A$5:$A$35,'Master 2012 Pay Sheet'!$B$5:$B$35),0)) ->  | AX164: =IF(D164="","",IF(LOOKUP(AW164,'Master 2012 Pay Sheet'!$C$5:$C$35,'Master 2012 Pay Sheet'!$D$5:$D$35)>0,LOOKUP(AW164,'Master 2012 Pay Sheet'!$C$5:$C$35,'Master 2012 Pay Sheet'!$D$5:$D$35),0)) ->  | BA164: =IF(D164="","",IF(LOOKUP(AZ164,'Master 2012 Pay Sheet'!$E$5:$E$35,'Master 2012 Pay Sheet'!$F$5:$F$35)>0,LOOKUP(AZ164,'Master 2012 Pay Sheet'!$E$5:$E$35,'Master 2012 Pay Sheet'!$F$5:$F$35),0)) -> 
B165: 163 | AU165: =IF(D165="","",IF(LOOKUP(AT165,'Master 2012 Pay Sheet'!$A$5:$A$35,'Master 2012 Pay Sheet'!$B$5:$B$35)>0,LOOKUP(AT165,'Master 2012 Pay Sheet'!$A$5:$A$35,'Master 2012 Pay Sheet'!$B$5:$B$35),0)) ->  | AX165: =IF(D165="","",IF(LOOKUP(AW165,'Master 2012 Pay Sheet'!$C$5:$C$35,'Master 2012 Pay Sheet'!$D$5:$D$35)>0,LOOKUP(AW165,'Master 2012 Pay Sheet'!$C$5:$C$35,'Master 2012 Pay Sheet'!$D$5:$D$35),0)) ->  | BA165: =IF(D165="","",IF(LOOKUP(AZ165,'Master 2012 Pay Sheet'!$E$5:$E$35,'Master 2012 Pay Sheet'!$F$5:$F$35)>0,LOOKUP(AZ165,'Master 2012 Pay Sheet'!$E$5:$E$35,'Master 2012 Pay Sheet'!$F$5:$F$35),0)) -> 
B166: 164 | AU166: =IF(D166="","",IF(LOOKUP(AT166,'Master 2012 Pay Sheet'!$A$5:$A$35,'Master 2012 Pay Sheet'!$B$5:$B$35)>0,LOOKUP(AT166,'Master 2012 Pay Sheet'!$A$5:$A$35,'Master 2012 Pay Sheet'!$B$5:$B$35),0)) ->  | AX166: =IF(D166="","",IF(LOOKUP(AW166,'Master 2012 Pay Sheet'!$C$5:$C$35,'Master 2012 Pay Sheet'!$D$5:$D$35)>0,LOOKUP(AW166,'Master 2012 Pay Sheet'!$C$5:$C$35,'Master 2012 Pay Sheet'!$D$5:$D$35),0)) ->  | BA166: =IF(D166="","",IF(LOOKUP(AZ166,'Master 2012 Pay Sheet'!$E$5:$E$35,'Master 2012 Pay Sheet'!$F$5:$F$35)>0,LOOKUP(AZ166,'Master 2012 Pay Sheet'!$E$5:$E$35,'Master 2012 Pay Sheet'!$F$5:$F$35),0)) -> 
B167: 165 | AU167: =IF(D167="","",IF(LOOKUP(AT167,'Master 2012 Pay Sheet'!$A$5:$A$35,'Master 2012 Pay Sheet'!$B$5:$B$35)>0,LOOKUP(AT167,'Master 2012 Pay Sheet'!$A$5:$A$35,'Master 2012 Pay Sheet'!$B$5:$B$35),0)) ->  | AX167: =IF(D167="","",IF(LOOKUP(AW167,'Master 2012 Pay Sheet'!$C$5:$C$35,'Master 2012 Pay Sheet'!$D$5:$D$35)>0,LOOKUP(AW167,'Master 2012 Pay Sheet'!$C$5:$C$35,'Master 2012 Pay Sheet'!$D$5:$D$35),0)) ->  | BA167: =IF(D167="","",IF(LOOKUP(AZ167,'Master 2012 Pay Sheet'!$E$5:$E$35,'Master 2012 Pay Sheet'!$F$5:$F$35)>0,LOOKUP(AZ167,'Master 2012 Pay Sheet'!$E$5:$E$35,'Master 2012 Pay Sheet'!$F$5:$F$35),0)) -> 
B168: 166 | AU168: =IF(D168="","",IF(LOOKUP(AT168,'Master 2012 Pay Sheet'!$A$5:$A$35,'Master 2012 Pay Sheet'!$B$5:$B$35)>0,LOOKUP(AT168,'Master 2012 Pay Sheet'!$A$5:$A$35,'Master 2012 Pay Sheet'!$B$5:$B$35),0)) ->  | AX168: =IF(D168="","",IF(LOOKUP(AW168,'Master 2012 Pay Sheet'!$C$5:$C$35,'Master 2012 Pay Sheet'!$D$5:$D$35)>0,LOOKUP(AW168,'Master 2012 Pay Sheet'!$C$5:$C$35,'Master 2012 Pay Sheet'!$D$5:$D$35),0)) ->  | BA168: =IF(D168="","",IF(LOOKUP(AZ168,'Master 2012 Pay Sheet'!$E$5:$E$35,'Master 2012 Pay Sheet'!$F$5:$F$35)>0,LOOKUP(AZ168,'Master 2012 Pay Sheet'!$E$5:$E$35,'Master 2012 Pay Sheet'!$F$5:$F$35),0)) -> 
B169: 167 | AU169: =IF(D169="","",IF(LOOKUP(AT169,'Master 2012 Pay Sheet'!$A$5:$A$35,'Master 2012 Pay Sheet'!$B$5:$B$35)>0,LOOKUP(AT169,'Master 2012 Pay Sheet'!$A$5:$A$35,'Master 2012 Pay Sheet'!$B$5:$B$35),0)) ->  | AX169: =IF(D169="","",IF(LOOKUP(AW169,'Master 2012 Pay Sheet'!$C$5:$C$35,'Master 2012 Pay Sheet'!$D$5:$D$35)>0,LOOKUP(AW169,'Master 2012 Pay Sheet'!$C$5:$C$35,'Master 2012 Pay Sheet'!$D$5:$D$35),0)) ->  | BA169: =IF(D169="","",IF(LOOKUP(AZ169,'Master 2012 Pay Sheet'!$E$5:$E$35,'Master 2012 Pay Sheet'!$F$5:$F$35)>0,LOOKUP(AZ169,'Master 2012 Pay Sheet'!$E$5:$E$35,'Master 2012 Pay Sheet'!$F$5:$F$35),0)) -> 
B170: 168 | AU170: =IF(D170="","",IF(LOOKUP(AT170,'Master 2012 Pay Sheet'!$A$5:$A$35,'Master 2012 Pay Sheet'!$B$5:$B$35)>0,LOOKUP(AT170,'Master 2012 Pay Sheet'!$A$5:$A$35,'Master 2012 Pay Sheet'!$B$5:$B$35),0)) ->  | AX170: =IF(D170="","",IF(LOOKUP(AW170,'Master 2012 Pay Sheet'!$C$5:$C$35,'Master 2012 Pay Sheet'!$D$5:$D$35)>0,LOOKUP(AW170,'Master 2012 Pay Sheet'!$C$5:$C$35,'Master 2012 Pay Sheet'!$D$5:$D$35),0)) ->  | BA170: =IF(D170="","",IF(LOOKUP(AZ170,'Master 2012 Pay Sheet'!$E$5:$E$35,'Master 2012 Pay Sheet'!$F$5:$F$35)>0,LOOKUP(AZ170,'Master 2012 Pay Sheet'!$E$5:$E$35,'Master 2012 Pay Sheet'!$F$5:$F$35),0)) -> 
B171: 169 | AU171: =IF(D171="","",IF(LOOKUP(AT171,'Master 2012 Pay Sheet'!$A$5:$A$35,'Master 2012 Pay Sheet'!$B$5:$B$35)>0,LOOKUP(AT171,'Master 2012 Pay Sheet'!$A$5:$A$35,'Master 2012 Pay Sheet'!$B$5:$B$35),0)) ->  | AX171: =IF(D171="","",IF(LOOKUP(AW171,'Master 2012 Pay Sheet'!$C$5:$C$35,'Master 2012 Pay Sheet'!$D$5:$D$35)>0,LOOKUP(AW171,'Master 2012 Pay Sheet'!$C$5:$C$35,'Master 2012 Pay Sheet'!$D$5:$D$35),0)) ->  | BA171: =IF(D171="","",IF(LOOKUP(AZ171,'Master 2012 Pay Sheet'!$E$5:$E$35,'Master 2012 Pay Sheet'!$F$5:$F$35)>0,LOOKUP(AZ171,'Master 2012 Pay Sheet'!$E$5:$E$35,'Master 2012 Pay Sheet'!$F$5:$F$35),0)) -> 
B172: 170 | AU172: =IF(D172="","",IF(LOOKUP(AT172,'Master 2012 Pay Sheet'!$A$5:$A$35,'Master 2012 Pay Sheet'!$B$5:$B$35)>0,LOOKUP(AT172,'Master 2012 Pay Sheet'!$A$5:$A$35,'Master 2012 Pay Sheet'!$B$5:$B$35),0)) ->  | AX172: =IF(D172="","",IF(LOOKUP(AW172,'Master 2012 Pay Sheet'!$C$5:$C$35,'Master 2012 Pay Sheet'!$D$5:$D$35)>0,LOOKUP(AW172,'Master 2012 Pay Sheet'!$C$5:$C$35,'Master 2012 Pay Sheet'!$D$5:$D$35),0)) ->  | BA172: =IF(D172="","",IF(LOOKUP(AZ172,'Master 2012 Pay Sheet'!$E$5:$E$35,'Master 2012 Pay Sheet'!$F$5:$F$35)>0,LOOKUP(AZ172,'Master 2012 Pay Sheet'!$E$5:$E$35,'Master 2012 Pay Sheet'!$F$5:$F$35),0)) -> 
B173: 171 | AU173: =IF(D173="","",IF(LOOKUP(AT173,'Master 2012 Pay Sheet'!$A$5:$A$35,'Master 2012 Pay Sheet'!$B$5:$B$35)>0,LOOKUP(AT173,'Master 2012 Pay Sheet'!$A$5:$A$35,'Master 2012 Pay Sheet'!$B$5:$B$35),0)) ->  | AX173: =IF(D173="","",IF(LOOKUP(AW173,'Master 2012 Pay Sheet'!$C$5:$C$35,'Master 2012 Pay Sheet'!$D$5:$D$35)>0,LOOKUP(AW173,'Master 2012 Pay Sheet'!$C$5:$C$35,'Master 2012 Pay Sheet'!$D$5:$D$35),0)) ->  | BA173: =IF(D173="","",IF(LOOKUP(AZ173,'Master 2012 Pay Sheet'!$E$5:$E$35,'Master 2012 Pay Sheet'!$F$5:$F$35)>0,LOOKUP(AZ173,'Master 2012 Pay Sheet'!$E$5:$E$35,'Master 2012 Pay Sheet'!$F$5:$F$35),0)) -> 
B174: 172 | AU174: =IF(D174="","",IF(LOOKUP(AT174,'Master 2012 Pay Sheet'!$A$5:$A$35,'Master 2012 Pay Sheet'!$B$5:$B$35)>0,LOOKUP(AT174,'Master 2012 Pay Sheet'!$A$5:$A$35,'Master 2012 Pay Sheet'!$B$5:$B$35),0)) ->  | AX174: =IF(D174="","",IF(LOOKUP(AW174,'Master 2012 Pay Sheet'!$C$5:$C$35,'Master 2012 Pay Sheet'!$D$5:$D$35)>0,LOOKUP(AW174,'Master 2012 Pay Sheet'!$C$5:$C$35,'Master 2012 Pay Sheet'!$D$5:$D$35),0)) ->  | BA174: =IF(D174="","",IF(LOOKUP(AZ174,'Master 2012 Pay Sheet'!$E$5:$E$35,'Master 2012 Pay Sheet'!$F$5:$F$35)>0,LOOKUP(AZ174,'Master 2012 Pay Sheet'!$E$5:$E$35,'Master 2012 Pay Sheet'!$F$5:$F$35),0)) -> 
B175: 173 | AU175: =IF(D175="","",IF(LOOKUP(AT175,'Master 2012 Pay Sheet'!$A$5:$A$35,'Master 2012 Pay Sheet'!$B$5:$B$35)>0,LOOKUP(AT175,'Master 2012 Pay Sheet'!$A$5:$A$35,'Master 2012 Pay Sheet'!$B$5:$B$35),0)) ->  | AX175: =IF(D175="","",IF(LOOKUP(AW175,'Master 2012 Pay Sheet'!$C$5:$C$35,'Master 2012 Pay Sheet'!$D$5:$D$35)>0,LOOKUP(AW175,'Master 2012 Pay Sheet'!$C$5:$C$35,'Master 2012 Pay Sheet'!$D$5:$D$35),0)) ->  | BA175: =IF(D175="","",IF(LOOKUP(AZ175,'Master 2012 Pay Sheet'!$E$5:$E$35,'Master 2012 Pay Sheet'!$F$5:$F$35)>0,LOOKUP(AZ175,'Master 2012 Pay Sheet'!$E$5:$E$35,'Master 2012 Pay Sheet'!$F$5:$F$35),0)) -> 
B176: 174 | AU176: =IF(D176="","",IF(LOOKUP(AT176,'Master 2012 Pay Sheet'!$A$5:$A$35,'Master 2012 Pay Sheet'!$B$5:$B$35)>0,LOOKUP(AT176,'Master 2012 Pay Sheet'!$A$5:$A$35,'Master 2012 Pay Sheet'!$B$5:$B$35),0)) ->  | AX176: =IF(D176="","",IF(LOOKUP(AW176,'Master 2012 Pay Sheet'!$C$5:$C$35,'Master 2012 Pay Sheet'!$D$5:$D$35)>0,LOOKUP(AW176,'Master 2012 Pay Sheet'!$C$5:$C$35,'Master 2012 Pay Sheet'!$D$5:$D$35),0)) ->  | BA176: =IF(D176="","",IF(LOOKUP(AZ176,'Master 2012 Pay Sheet'!$E$5:$E$35,'Master 2012 Pay Sheet'!$F$5:$F$35)>0,LOOKUP(AZ176,'Master 2012 Pay Sheet'!$E$5:$E$35,'Master 2012 Pay Sheet'!$F$5:$F$35),0)) -> 
B177: 175 | AU177: =IF(D177="","",IF(LOOKUP(AT177,'Master 2012 Pay Sheet'!$A$5:$A$35,'Master 2012 Pay Sheet'!$B$5:$B$35)>0,LOOKUP(AT177,'Master 2012 Pay Sheet'!$A$5:$A$35,'Master 2012 Pay Sheet'!$B$5:$B$35),0)) ->  | AX177: =IF(D177="","",IF(LOOKUP(AW177,'Master 2012 Pay Sheet'!$C$5:$C$35,'Master 2012 Pay Sheet'!$D$5:$D$35)>0,LOOKUP(AW177,'Master 2012 Pay Sheet'!$C$5:$C$35,'Master 2012 Pay Sheet'!$D$5:$D$35),0)) ->  | BA177: =IF(D177="","",IF(LOOKUP(AZ177,'Master 2012 Pay Sheet'!$E$5:$E$35,'Master 2012 Pay Sheet'!$F$5:$F$35)>0,LOOKUP(AZ177,'Master 2012 Pay Sheet'!$E$5:$E$35,'Master 2012 Pay Sheet'!$F$5:$F$35),0)) -> 
B178: 176 | AU178: =IF(D178="","",IF(LOOKUP(AT178,'Master 2012 Pay Sheet'!$A$5:$A$35,'Master 2012 Pay Sheet'!$B$5:$B$35)>0,LOOKUP(AT178,'Master 2012 Pay Sheet'!$A$5:$A$35,'Master 2012 Pay Sheet'!$B$5:$B$35),0)) ->  | AX178: =IF(D178="","",IF(LOOKUP(AW178,'Master 2012 Pay Sheet'!$C$5:$C$35,'Master 2012 Pay Sheet'!$D$5:$D$35)>0,LOOKUP(AW178,'Master 2012 Pay Sheet'!$C$5:$C$35,'Master 2012 Pay Sheet'!$D$5:$D$35),0)) ->  | BA178: =IF(D178="","",IF(LOOKUP(AZ178,'Master 2012 Pay Sheet'!$E$5:$E$35,'Master 2012 Pay Sheet'!$F$5:$F$35)>0,LOOKUP(AZ178,'Master 2012 Pay Sheet'!$E$5:$E$35,'Master 2012 Pay Sheet'!$F$5:$F$35),0)) -> 
B179: 177 | AU179: =IF(D179="","",IF(LOOKUP(AT179,'Master 2012 Pay Sheet'!$A$5:$A$35,'Master 2012 Pay Sheet'!$B$5:$B$35)>0,LOOKUP(AT179,'Master 2012 Pay Sheet'!$A$5:$A$35,'Master 2012 Pay Sheet'!$B$5:$B$35),0)) ->  | AX179: =IF(D179="","",IF(LOOKUP(AW179,'Master 2012 Pay Sheet'!$C$5:$C$35,'Master 2012 Pay Sheet'!$D$5:$D$35)>0,LOOKUP(AW179,'Master 2012 Pay Sheet'!$C$5:$C$35,'Master 2012 Pay Sheet'!$D$5:$D$35),0)) ->  | BA179: =IF(D179="","",IF(LOOKUP(AZ179,'Master 2012 Pay Sheet'!$E$5:$E$35,'Master 2012 Pay Sheet'!$F$5:$F$35)>0,LOOKUP(AZ179,'Master 2012 Pay Sheet'!$E$5:$E$35,'Master 2012 Pay Sheet'!$F$5:$F$35),0)) -> 
B180: 178 | AU180: =IF(D180="","",IF(LOOKUP(AT180,'Master 2012 Pay Sheet'!$A$5:$A$35,'Master 2012 Pay Sheet'!$B$5:$B$35)>0,LOOKUP(AT180,'Master 2012 Pay Sheet'!$A$5:$A$35,'Master 2012 Pay Sheet'!$B$5:$B$35),0)) ->  | AX180: =IF(D180="","",IF(LOOKUP(AW180,'Master 2012 Pay Sheet'!$C$5:$C$35,'Master 2012 Pay Sheet'!$D$5:$D$35)>0,LOOKUP(AW180,'Master 2012 Pay Sheet'!$C$5:$C$35,'Master 2012 Pay Sheet'!$D$5:$D$35),0)) ->  | BA180: =IF(D180="","",IF(LOOKUP(AZ180,'Master 2012 Pay Sheet'!$E$5:$E$35,'Master 2012 Pay Sheet'!$F$5:$F$35)>0,LOOKUP(AZ180,'Master 2012 Pay Sheet'!$E$5:$E$35,'Master 2012 Pay Sheet'!$F$5:$F$35),0)) -> 
B181: 179 | AU181: =IF(D181="","",IF(LOOKUP(AT181,'Master 2012 Pay Sheet'!$A$5:$A$35,'Master 2012 Pay Sheet'!$B$5:$B$35)>0,LOOKUP(AT181,'Master 2012 Pay Sheet'!$A$5:$A$35,'Master 2012 Pay Sheet'!$B$5:$B$35),0)) ->  | AX181: =IF(D181="","",IF(LOOKUP(AW181,'Master 2012 Pay Sheet'!$C$5:$C$35,'Master 2012 Pay Sheet'!$D$5:$D$35)>0,LOOKUP(AW181,'Master 2012 Pay Sheet'!$C$5:$C$35,'Master 2012 Pay Sheet'!$D$5:$D$35),0)) ->  | BA181: =IF(D181="","",IF(LOOKUP(AZ181,'Master 2012 Pay Sheet'!$E$5:$E$35,'Master 2012 Pay Sheet'!$F$5:$F$35)>0,LOOKUP(AZ181,'Master 2012 Pay Sheet'!$E$5:$E$35,'Master 2012 Pay Sheet'!$F$5:$F$35),0)) -> 
B182: 180 | AU182: =IF(D182="","",IF(LOOKUP(AT182,'Master 2012 Pay Sheet'!$A$5:$A$35,'Master 2012 Pay Sheet'!$B$5:$B$35)>0,LOOKUP(AT182,'Master 2012 Pay Sheet'!$A$5:$A$35,'Master 2012 Pay Sheet'!$B$5:$B$35),0)) ->  | AX182: =IF(D182="","",IF(LOOKUP(AW182,'Master 2012 Pay Sheet'!$C$5:$C$35,'Master 2012 Pay Sheet'!$D$5:$D$35)>0,LOOKUP(AW182,'Master 2012 Pay Sheet'!$C$5:$C$35,'Master 2012 Pay Sheet'!$D$5:$D$35),0)) ->  | BA182: =IF(D182="","",IF(LOOKUP(AZ182,'Master 2012 Pay Sheet'!$E$5:$E$35,'Master 2012 Pay Sheet'!$F$5:$F$35)>0,LOOKUP(AZ182,'Master 2012 Pay Sheet'!$E$5:$E$35,'Master 2012 Pay Sheet'!$F$5:$F$35),0)) -> 
B183: 181 | AU183: =IF(D183="","",IF(LOOKUP(AT183,'Master 2012 Pay Sheet'!$A$5:$A$35,'Master 2012 Pay Sheet'!$B$5:$B$35)>0,LOOKUP(AT183,'Master 2012 Pay Sheet'!$A$5:$A$35,'Master 2012 Pay Sheet'!$B$5:$B$35),0)) ->  | AX183: =IF(D183="","",IF(LOOKUP(AW183,'Master 2012 Pay Sheet'!$C$5:$C$35,'Master 2012 Pay Sheet'!$D$5:$D$35)>0,LOOKUP(AW183,'Master 2012 Pay Sheet'!$C$5:$C$35,'Master 2012 Pay Sheet'!$D$5:$D$35),0)) ->  | BA183: =IF(D183="","",IF(LOOKUP(AZ183,'Master 2012 Pay Sheet'!$E$5:$E$35,'Master 2012 Pay Sheet'!$F$5:$F$35)>0,LOOKUP(AZ183,'Master 2012 Pay Sheet'!$E$5:$E$35,'Master 2012 Pay Sheet'!$F$5:$F$35),0)) -> 
B184: 182 | AU184: =IF(D184="","",IF(LOOKUP(AT184,'Master 2012 Pay Sheet'!$A$5:$A$35,'Master 2012 Pay Sheet'!$B$5:$B$35)>0,LOOKUP(AT184,'Master 2012 Pay Sheet'!$A$5:$A$35,'Master 2012 Pay Sheet'!$B$5:$B$35),0)) ->  | AX184: =IF(D184="","",IF(LOOKUP(AW184,'Master 2012 Pay Sheet'!$C$5:$C$35,'Master 2012 Pay Sheet'!$D$5:$D$35)>0,LOOKUP(AW184,'Master 2012 Pay Sheet'!$C$5:$C$35,'Master 2012 Pay Sheet'!$D$5:$D$35),0)) ->  | BA184: =IF(D184="","",IF(LOOKUP(AZ184,'Master 2012 Pay Sheet'!$E$5:$E$35,'Master 2012 Pay Sheet'!$F$5:$F$35)>0,LOOKUP(AZ184,'Master 2012 Pay Sheet'!$E$5:$E$35,'Master 2012 Pay Sheet'!$F$5:$F$35),0)) -> 
B185: 183 | AU185: =IF(D185="","",IF(LOOKUP(AT185,'Master 2012 Pay Sheet'!$A$5:$A$35,'Master 2012 Pay Sheet'!$B$5:$B$35)>0,LOOKUP(AT185,'Master 2012 Pay Sheet'!$A$5:$A$35,'Master 2012 Pay Sheet'!$B$5:$B$35),0)) ->  | AX185: =IF(D185="","",IF(LOOKUP(AW185,'Master 2012 Pay Sheet'!$C$5:$C$35,'Master 2012 Pay Sheet'!$D$5:$D$35)>0,LOOKUP(AW185,'Master 2012 Pay Sheet'!$C$5:$C$35,'Master 2012 Pay Sheet'!$D$5:$D$35),0)) ->  | BA185: =IF(D185="","",IF(LOOKUP(AZ185,'Master 2012 Pay Sheet'!$E$5:$E$35,'Master 2012 Pay Sheet'!$F$5:$F$35)>0,LOOKUP(AZ185,'Master 2012 Pay Sheet'!$E$5:$E$35,'Master 2012 Pay Sheet'!$F$5:$F$35),0)) -> 
B186: 184 | AU186: =IF(D186="","",IF(LOOKUP(AT186,'Master 2012 Pay Sheet'!$A$5:$A$35,'Master 2012 Pay Sheet'!$B$5:$B$35)>0,LOOKUP(AT186,'Master 2012 Pay Sheet'!$A$5:$A$35,'Master 2012 Pay Sheet'!$B$5:$B$35),0)) ->  | AX186: =IF(D186="","",IF(LOOKUP(AW186,'Master 2012 Pay Sheet'!$C$5:$C$35,'Master 2012 Pay Sheet'!$D$5:$D$35)>0,LOOKUP(AW186,'Master 2012 Pay Sheet'!$C$5:$C$35,'Master 2012 Pay Sheet'!$D$5:$D$35),0)) ->  | BA186: =IF(D186="","",IF(LOOKUP(AZ186,'Master 2012 Pay Sheet'!$E$5:$E$35,'Master 2012 Pay Sheet'!$F$5:$F$35)>0,LOOKUP(AZ186,'Master 2012 Pay Sheet'!$E$5:$E$35,'Master 2012 Pay Sheet'!$F$5:$F$35),0)) -> 
B187: 185 | AU187: =IF(D187="","",IF(LOOKUP(AT187,'Master 2012 Pay Sheet'!$A$5:$A$35,'Master 2012 Pay Sheet'!$B$5:$B$35)>0,LOOKUP(AT187,'Master 2012 Pay Sheet'!$A$5:$A$35,'Master 2012 Pay Sheet'!$B$5:$B$35),0)) ->  | AX187: =IF(D187="","",IF(LOOKUP(AW187,'Master 2012 Pay Sheet'!$C$5:$C$35,'Master 2012 Pay Sheet'!$D$5:$D$35)>0,LOOKUP(AW187,'Master 2012 Pay Sheet'!$C$5:$C$35,'Master 2012 Pay Sheet'!$D$5:$D$35),0)) ->  | BA187: =IF(D187="","",IF(LOOKUP(AZ187,'Master 2012 Pay Sheet'!$E$5:$E$35,'Master 2012 Pay Sheet'!$F$5:$F$35)>0,LOOKUP(AZ187,'Master 2012 Pay Sheet'!$E$5:$E$35,'Master 2012 Pay Sheet'!$F$5:$F$35),0)) -> 
B188: 186 | AU188: =IF(D188="","",IF(LOOKUP(AT188,'Master 2012 Pay Sheet'!$A$5:$A$35,'Master 2012 Pay Sheet'!$B$5:$B$35)>0,LOOKUP(AT188,'Master 2012 Pay Sheet'!$A$5:$A$35,'Master 2012 Pay Sheet'!$B$5:$B$35),0)) ->  | AX188: =IF(D188="","",IF(LOOKUP(AW188,'Master 2012 Pay Sheet'!$C$5:$C$35,'Master 2012 Pay Sheet'!$D$5:$D$35)>0,LOOKUP(AW188,'Master 2012 Pay Sheet'!$C$5:$C$35,'Master 2012 Pay Sheet'!$D$5:$D$35),0)) ->  | BA188: =IF(D188="","",IF(LOOKUP(AZ188,'Master 2012 Pay Sheet'!$E$5:$E$35,'Master 2012 Pay Sheet'!$F$5:$F$35)>0,LOOKUP(AZ188,'Master 2012 Pay Sheet'!$E$5:$E$35,'Master 2012 Pay Sheet'!$F$5:$F$35),0)) -> 
B189: 187 | AU189: =IF(D189="","",IF(LOOKUP(AT189,'Master 2012 Pay Sheet'!$A$5:$A$35,'Master 2012 Pay Sheet'!$B$5:$B$35)>0,LOOKUP(AT189,'Master 2012 Pay Sheet'!$A$5:$A$35,'Master 2012 Pay Sheet'!$B$5:$B$35),0)) ->  | AX189: =IF(D189="","",IF(LOOKUP(AW189,'Master 2012 Pay Sheet'!$C$5:$C$35,'Master 2012 Pay Sheet'!$D$5:$D$35)>0,LOOKUP(AW189,'Master 2012 Pay Sheet'!$C$5:$C$35,'Master 2012 Pay Sheet'!$D$5:$D$35),0)) ->  | BA189: =IF(D189="","",IF(LOOKUP(AZ189,'Master 2012 Pay Sheet'!$E$5:$E$35,'Master 2012 Pay Sheet'!$F$5:$F$35)>0,LOOKUP(AZ189,'Master 2012 Pay Sheet'!$E$5:$E$35,'Master 2012 Pay Sheet'!$F$5:$F$35),0)) -> 
B190: 188 | AU190: =IF(D190="","",IF(LOOKUP(AT190,'Master 2012 Pay Sheet'!$A$5:$A$35,'Master 2012 Pay Sheet'!$B$5:$B$35)>0,LOOKUP(AT190,'Master 2012 Pay Sheet'!$A$5:$A$35,'Master 2012 Pay Sheet'!$B$5:$B$35),0)) ->  | AX190: =IF(D190="","",IF(LOOKUP(AW190,'Master 2012 Pay Sheet'!$C$5:$C$35,'Master 2012 Pay Sheet'!$D$5:$D$35)>0,LOOKUP(AW190,'Master 2012 Pay Sheet'!$C$5:$C$35,'Master 2012 Pay Sheet'!$D$5:$D$35),0)) ->  | BA190: =IF(D190="","",IF(LOOKUP(AZ190,'Master 2012 Pay Sheet'!$E$5:$E$35,'Master 2012 Pay Sheet'!$F$5:$F$35)>0,LOOKUP(AZ190,'Master 2012 Pay Sheet'!$E$5:$E$35,'Master 2012 Pay Sheet'!$F$5:$F$35),0)) -> 
B191: 189 | AU191: =IF(D191="","",IF(LOOKUP(AT191,'Master 2012 Pay Sheet'!$A$5:$A$35,'Master 2012 Pay Sheet'!$B$5:$B$35)>0,LOOKUP(AT191,'Master 2012 Pay Sheet'!$A$5:$A$35,'Master 2012 Pay Sheet'!$B$5:$B$35),0)) ->  | AX191: =IF(D191="","",IF(LOOKUP(AW191,'Master 2012 Pay Sheet'!$C$5:$C$35,'Master 2012 Pay Sheet'!$D$5:$D$35)>0,LOOKUP(AW191,'Master 2012 Pay Sheet'!$C$5:$C$35,'Master 2012 Pay Sheet'!$D$5:$D$35),0)) ->  | BA191: =IF(D191="","",IF(LOOKUP(AZ191,'Master 2012 Pay Sheet'!$E$5:$E$35,'Master 2012 Pay Sheet'!$F$5:$F$35)>0,LOOKUP(AZ191,'Master 2012 Pay Sheet'!$E$5:$E$35,'Master 2012 Pay Sheet'!$F$5:$F$35),0)) -> 
B192: 190 | AU192: =IF(D192="","",IF(LOOKUP(AT192,'Master 2012 Pay Sheet'!$A$5:$A$35,'Master 2012 Pay Sheet'!$B$5:$B$35)>0,LOOKUP(AT192,'Master 2012 Pay Sheet'!$A$5:$A$35,'Master 2012 Pay Sheet'!$B$5:$B$35),0)) ->  | AX192: =IF(D192="","",IF(LOOKUP(AW192,'Master 2012 Pay Sheet'!$C$5:$C$35,'Master 2012 Pay Sheet'!$D$5:$D$35)>0,LOOKUP(AW192,'Master 2012 Pay Sheet'!$C$5:$C$35,'Master 2012 Pay Sheet'!$D$5:$D$35),0)) ->  | BA192: =IF(D192="","",IF(LOOKUP(AZ192,'Master 2012 Pay Sheet'!$E$5:$E$35,'Master 2012 Pay Sheet'!$F$5:$F$35)>0,LOOKUP(AZ192,'Master 2012 Pay Sheet'!$E$5:$E$35,'Master 2012 Pay Sheet'!$F$5:$F$35),0)) -> 
B193: 191 | AU193: =IF(D193="","",IF(LOOKUP(AT193,'Master 2012 Pay Sheet'!$A$5:$A$35,'Master 2012 Pay Sheet'!$B$5:$B$35)>0,LOOKUP(AT193,'Master 2012 Pay Sheet'!$A$5:$A$35,'Master 2012 Pay Sheet'!$B$5:$B$35),0)) ->  | AX193: =IF(D193="","",IF(LOOKUP(AW193,'Master 2012 Pay Sheet'!$C$5:$C$35,'Master 2012 Pay Sheet'!$D$5:$D$35)>0,LOOKUP(AW193,'Master 2012 Pay Sheet'!$C$5:$C$35,'Master 2012 Pay Sheet'!$D$5:$D$35),0)) ->  | BA193: =IF(D193="","",IF(LOOKUP(AZ193,'Master 2012 Pay Sheet'!$E$5:$E$35,'Master 2012 Pay Sheet'!$F$5:$F$35)>0,LOOKUP(AZ193,'Master 2012 Pay Sheet'!$E$5:$E$35,'Master 2012 Pay Sheet'!$F$5:$F$35),0)) -> 
B194: 192 | AU194: =IF(D194="","",IF(LOOKUP(AT194,'Master 2012 Pay Sheet'!$A$5:$A$35,'Master 2012 Pay Sheet'!$B$5:$B$35)>0,LOOKUP(AT194,'Master 2012 Pay Sheet'!$A$5:$A$35,'Master 2012 Pay Sheet'!$B$5:$B$35),0)) ->  | AX194: =IF(D194="","",IF(LOOKUP(AW194,'Master 2012 Pay Sheet'!$C$5:$C$35,'Master 2012 Pay Sheet'!$D$5:$D$35)>0,LOOKUP(AW194,'Master 2012 Pay Sheet'!$C$5:$C$35,'Master 2012 Pay Sheet'!$D$5:$D$35),0)) ->  | BA194: =IF(D194="","",IF(LOOKUP(AZ194,'Master 2012 Pay Sheet'!$E$5:$E$35,'Master 2012 Pay Sheet'!$F$5:$F$35)>0,LOOKUP(AZ194,'Master 2012 Pay Sheet'!$E$5:$E$35,'Master 2012 Pay Sheet'!$F$5:$F$35),0)) -> 
B195: 193 | Y195: =IF(N195>0,VLOOKUP(N195,$DY$8:$DZ$95,2)," ") ->  | Z195: =IF(O195>0,VLOOKUP(O195,$DY$8:$DZ$95,2)," ") ->  | AA195: =IF(P195>0,VLOOKUP(P195,$DY$8:$DZ$95,2)," ") ->  | AB195: =IF(Q195>0,VLOOKUP(Q195,$DY$8:$DZ$95,2)," ") ->  | AT195: =IF(D195="","",RANK(AS195,$AS$3:$AS$202,0)) ->  | AU195: =IF(D195="","",IF(LOOKUP(AT195,'Master 2012 Pay Sheet'!$A$5:$A$35,'Master 2012 Pay Sheet'!$B$5:$B$35)>0,LOOKUP(AT195,'Master 2012 Pay Sheet'!$A$5:$A$35,'Master 2012 Pay Sheet'!$B$5:$B$35),0)) ->  | AW195: =IF(D195="","",RANK(AV195,$AV$3:$AV$202,0)) ->  | AX195: =IF(D195="","",IF(LOOKUP(AW195,'Master 2012 Pay Sheet'!$C$5:$C$35,'Master 2012 Pay Sheet'!$D$5:$D$35)>0,LOOKUP(AW195,'Master 2012 Pay Sheet'!$C$5:$C$35,'Master 2012 Pay Sheet'!$D$5:$D$35),0)) ->  | AY195: =IF(D195="","",AS195+AV195) ->  | AZ195: =IF(D195="","",RANK(AY195,$AY$3:$AY$202,0)) ->  | BA195: =IF(D195="","",IF(LOOKUP(AZ195,'Master 2012 Pay Sheet'!$E$5:$E$35,'Master 2012 Pay Sheet'!$F$5:$F$35)>0,LOOKUP(AZ195,'Master 2012 Pay Sheet'!$E$5:$E$35,'Master 2012 Pay Sheet'!$F$5:$F$35),0)) ->  | BB195: =IF(D195="","",SUM(AU195+AX195+BA195)) ->  | BC195: =IF(D195="","",AT195-AZ195) ->  | BD195: =IF(D195="","",IF(BC195=MAX($BC$3:$BC$202),B195,"")) ->  | BE195: =IF(D195="","",COUNT(M195:Q195)) ->  | BG195: =IF(BF195=MAX($BF$3:$BF$202),B195,"") ->  | BH195: =IF(D195="","",COUNT(AC195:AG195)) ->  | BJ195: =IF(BI195=MAX($BI$3:$BI$202),B195,"") ->  | BL195: =IF(D195="","",IF(S195=MAX($S$3:$S$202),S195,"")) ->  | BM195: =IF(BL195=MAX($BL$3:$BL$202),B195,"") ->  | BN195: =IF(D195="","",IF(AN195=MAX($AN$3:$AN$202),AN195,"")) ->  | BO195: =IF(BN195=MAX($BN$3:$BN$202),B195,"") ->  | BP195: =IF(D195="","",IF(R195=MAX($R$3:$R$202),R195,"")) ->  | BQ195: =IF(BP195=MAX($BP$3:$BP$202),B195,"") ->  | BR195: =IF(D195="","",IF(AM195=MAX($AM$3:$AM$202),AM195,"")) ->  | BS195: =IF(BR195=MAX($BR$3:$BR$202),B195,"") ->  | BT195: =IF(D195="","",IF(V195=MAX($V$3:$V$202),V195,"")) ->  | BU195: =IF(BT195=MAX($BT$3:$BT$202),B195,"") ->  | BV195: =IF(D195="","",IF(W195=MAX($W$3:$W$202), W195,"")) ->  | BW195: =IF(BV195=MAX($BV$3:$BV$202),B195,"") ->  | BX195: =IF(D195="","",IF(AQ195=MAX($AQ$3:$AQ$202),AQ195,"")) ->  | BY195: =IF(BX195=MAX($BX$3:$BX$202),B195,"") ->  | BZ195: =IF(D195="","",IF(AR195=MAX($AR$3:$AR$202), AR195,"")) ->  | CA195: =IF(BZ195=MAX($BZ$3:$BZ$202),B195,"") ->  | CB195: =IF(D195="","",IF(U195=MAX($U$3:$U$202), U195,"")) ->  | CC195: =IF(CB195=MAX($CB$3:$CB$202),B195,"") ->  | CD195: =IF(D195="","",IF(AP195=MAX($AP$3:$AP$202),AP195,"")) ->  | CE195: =IF(CD195=MAX($CD$3:$CD$202),B195,"") ->  | CF195: =IF(D195="","",IF(T195=MAX($T$3:$T$202), T195,"")) ->  | CG195: =IF(CF195=MAX($CF$3:$CF$202),B195,"") ->  | CH195: =IF(D195="","",IF(AO195=MAX($AO$3:$AO$202),AO195,"")) ->  | CI195: =IF(CH195=MAX($CH$3:$CH$202),B195,"") ->  | CJ195: =IF(I195="AC",AZ195,"") ->  | CK195: =IF(CJ195="","",RANK(CJ195,$CJ$3:$CJ$202,1)) ->  | CL195: =IF(CK195=1,B195,"") ->  | CM195: =IF(CK195=2,B195,"") ->  | CN195: =IF(CK195=3,B195,"") ->  | CO195: =IF(I195="MC",AZ195,"") ->  | CP195: =IF(CO195="","",RANK(CO195,$CO$3:$CO$202,1)) ->  | CQ195: =IF(CP195=1,B195,"") ->  | CR195: =IF(CP195=2,B195,"") ->  | CS195: =IF(CP195=3,B195,"") ->  | DQ195: =IF(J195="Lund",AZ195,"") ->  | DR195: =IF(DQ195="","",RANK(DQ195,$DQ$3:$DQ$202,1)) ->  | DS195: =IF(DR195=1,B195,"") ->  | DT195: =IF(I195="AT",B195,"") ->  | DU195: =IF(I195="MC",B195,"") ->  | DV195: =IF(I195="AC",B195,"") ->  | DW195: =IF(BK195=0,0,IF(D195="","",$D$203-AZ195+1)/$D$203*100) -> 
B196: 194 | X196: =IF(M196>0,VLOOKUP(M196,$DY$8:$DZ$95,2)," ") ->  | AH196: =IF(AC196>0,VLOOKUP(AC196,$DY$8:$DZ$95,2)," ") ->  | AS196: =IF(D196="","",SUM(X196:AB196)) ->  | AU196: =IF(D196="","",IF(LOOKUP(AT196,'Master 2012 Pay Sheet'!$A$5:$A$35,'Master 2012 Pay Sheet'!$B$5:$B$35)>0,LOOKUP(AT196,'Master 2012 Pay Sheet'!$A$5:$A$35,'Master 2012 Pay Sheet'!$B$5:$B$35),0)) ->  | AV196: =IF(D196="","",SUM(AH196:AL196)) ->  | AX196: =IF(D196="","",IF(LOOKUP(AW196,'Master 2012 Pay Sheet'!$C$5:$C$35,'Master 2012 Pay Sheet'!$D$5:$D$35)>0,LOOKUP(AW196,'Master 2012 Pay Sheet'!$C$5:$C$35,'Master 2012 Pay Sheet'!$D$5:$D$35),0)) ->  | BA196: =IF(D196="","",IF(LOOKUP(AZ196,'Master 2012 Pay Sheet'!$E$5:$E$35,'Master 2012 Pay Sheet'!$F$5:$F$35)>0,LOOKUP(AZ196,'Master 2012 Pay Sheet'!$E$5:$E$35,'Master 2012 Pay Sheet'!$F$5:$F$35),0)) ->  | BF196: =IF(D196="","",MAX(X196:AB196)) ->  | BI196: =IF(D196="","",MAX(AH196:AL196)) ->  | BK196: =IF(BE196="","",BE196+BH196) ->  | CT196: =IF(BE196=0,BE196,"") ->  | CU196: =IF(BE196=1,1,"") ->  | CV196: =IF(BE196=2,2,"") ->  | CW196: =IF(BE196=3,3,"") ->  | CX196: =IF(BE196=4,4,"") ->  | CY196: =IF(BE196=5,5,"") ->  | CZ196: =IF(BH196=0,BH196,"") ->  | DA196: =IF(BH196=1,1,"") ->  | DB196: =IF(BH196=2,2,"") ->  | DC196: =IF(BH196=3,3,"") ->  | DD196: =IF(BH196=4,4,"") ->  | DE196: =IF(BH196=5,5,"") ->  | DF196: =IF(BK196=0,BK196,"") ->  | DG196: =IF(BK196=1,1,"") ->  | DH196: =IF(BK196=2,2,"") ->  | DI196: =IF(BK196=3,3,"") ->  | DJ196: =IF(BK196=4,4,"") ->  | DK196: =IF(BK196=5,5,"") ->  | DL196: =IF(BK196=6,6,"") ->  | DM196: =IF(BK196=7,7,"") ->  | DN196: =IF(BK196=8,8,"") ->  | DO196: =IF(BK196=9,9,"") ->  | DP196: =IF(BK196=10,10,"") ->  | DX196: =IF(AS196 = 0,AV196 - AS196,"") -> 
B197: 195 | AU197: =IF(D197="","",IF(LOOKUP(AT197,'Master 2012 Pay Sheet'!$A$5:$A$35,'Master 2012 Pay Sheet'!$B$5:$B$35)>0,LOOKUP(AT197,'Master 2012 Pay Sheet'!$A$5:$A$35,'Master 2012 Pay Sheet'!$B$5:$B$35),0)) ->  | AX197: =IF(D197="","",IF(LOOKUP(AW197,'Master 2012 Pay Sheet'!$C$5:$C$35,'Master 2012 Pay Sheet'!$D$5:$D$35)>0,LOOKUP(AW197,'Master 2012 Pay Sheet'!$C$5:$C$35,'Master 2012 Pay Sheet'!$D$5:$D$35),0)) ->  | BA197: =IF(D197="","",IF(LOOKUP(AZ197,'Master 2012 Pay Sheet'!$E$5:$E$35,'Master 2012 Pay Sheet'!$F$5:$F$35)>0,LOOKUP(AZ197,'Master 2012 Pay Sheet'!$E$5:$E$35,'Master 2012 Pay Sheet'!$F$5:$F$35),0)) -> 
B198: 196 | AU198: =IF(D198="","",IF(LOOKUP(AT198,'Master 2012 Pay Sheet'!$A$5:$A$35,'Master 2012 Pay Sheet'!$B$5:$B$35)>0,LOOKUP(AT198,'Master 2012 Pay Sheet'!$A$5:$A$35,'Master 2012 Pay Sheet'!$B$5:$B$35),0)) ->  | AX198: =IF(D198="","",IF(LOOKUP(AW198,'Master 2012 Pay Sheet'!$C$5:$C$35,'Master 2012 Pay Sheet'!$D$5:$D$35)>0,LOOKUP(AW198,'Master 2012 Pay Sheet'!$C$5:$C$35,'Master 2012 Pay Sheet'!$D$5:$D$35),0)) ->  | BA198: =IF(D198="","",IF(LOOKUP(AZ198,'Master 2012 Pay Sheet'!$E$5:$E$35,'Master 2012 Pay Sheet'!$F$5:$F$35)>0,LOOKUP(AZ198,'Master 2012 Pay Sheet'!$E$5:$E$35,'Master 2012 Pay Sheet'!$F$5:$F$35),0)) -> 
B199: 197 | AU199: =IF(D199="","",IF(LOOKUP(AT199,'Master 2012 Pay Sheet'!$A$5:$A$35,'Master 2012 Pay Sheet'!$B$5:$B$35)>0,LOOKUP(AT199,'Master 2012 Pay Sheet'!$A$5:$A$35,'Master 2012 Pay Sheet'!$B$5:$B$35),0)) ->  | AX199: =IF(D199="","",IF(LOOKUP(AW199,'Master 2012 Pay Sheet'!$C$5:$C$35,'Master 2012 Pay Sheet'!$D$5:$D$35)>0,LOOKUP(AW199,'Master 2012 Pay Sheet'!$C$5:$C$35,'Master 2012 Pay Sheet'!$D$5:$D$35),0)) ->  | BA199: =IF(D199="","",IF(LOOKUP(AZ199,'Master 2012 Pay Sheet'!$E$5:$E$35,'Master 2012 Pay Sheet'!$F$5:$F$35)>0,LOOKUP(AZ199,'Master 2012 Pay Sheet'!$E$5:$E$35,'Master 2012 Pay Sheet'!$F$5:$F$35),0)) -> 
B200: 198 | AU200: =IF(D200="","",IF(LOOKUP(AT200,'Master 2012 Pay Sheet'!$A$5:$A$35,'Master 2012 Pay Sheet'!$B$5:$B$35)>0,LOOKUP(AT200,'Master 2012 Pay Sheet'!$A$5:$A$35,'Master 2012 Pay Sheet'!$B$5:$B$35),0)) ->  | AX200: =IF(D200="","",IF(LOOKUP(AW200,'Master 2012 Pay Sheet'!$C$5:$C$35,'Master 2012 Pay Sheet'!$D$5:$D$35)>0,LOOKUP(AW200,'Master 2012 Pay Sheet'!$C$5:$C$35,'Master 2012 Pay Sheet'!$D$5:$D$35),0)) ->  | BA200: =IF(D200="","",IF(LOOKUP(AZ200,'Master 2012 Pay Sheet'!$E$5:$E$35,'Master 2012 Pay Sheet'!$F$5:$F$35)>0,LOOKUP(AZ200,'Master 2012 Pay Sheet'!$E$5:$E$35,'Master 2012 Pay Sheet'!$F$5:$F$35),0)) -> 
... 21 more rows

Sheet Master 2012 Pay Sheet
A3: First Day of Tournament | C3: Second Day of Tournament | E3: Combined Days of Tournament | H3: Amount | I3: Catagories to Pay
A4: Place | B4: Pay | C4: Place | D4: Pay | E4: Place | F4: Pay | H4: 0 | I4: Largest Walleye Day 1
A5: 1 | B5: 0 | C5: 1 | D5: 0 | E5: 1 | F5: 0 | H5: 0 | I5: Largest Walleye Day 2
A6: 2 | B6: 0 | C6: 2 | D6: 0 | E6: 2 | F6: 0
A7: 3 | B7: 0 | C7: 3 | D7: 0 | E7: 3 | F7: 0
A8: 4 | B8: 0 | C8: 4 | D8: 0 | E8: 4 | F8: 0
A9: 5 | B9: 0 | C9: 5 | D9: 0 | E9: 5 | F9: 0
A10: 6 | B10: 0 | C10: 6 | D10: 0 | E10: 6 | F10: 0
A11: 7 | B11: 0 | C11: 7 | D11: 0 | E11: 7 | F11: 0
A12: 8 | B12: 0 | C12: 8 | D12: 0 | E12: 8 | F12: 0
A13: 9 | B13: 0 | C13: 9 | D13: 0 | E13: 9 | F13: 0
A14: 10 | B14: 0 | C14: 10 | D14: 0 | E14: 10 | F14: 0
A15: 11 | B15: 0 | C15: 11 | D15: 0 | E15: 11 | F15: 0
A16: 12 | B16: 0 | C16: 12 | D16: 0 | E16: 12 | F16: 0 | H16: 0 | I16: Adult Child First Place
A17: 13 | B17: 0 | C17: 13 | D17: 0 | E17: 13 | F17: 0 | H17: 0 | I17: Adult Child Second Place
A18: 14 | B18: 0 | C18: 14 | D18: 0 | E18: 14 | F18: 0 | H18: 0 | I18: Adult Child Third Place
A19: 15 | B19: 0 | C19: 15 | D19: 0 | E19: 15 | F19: 0 | H19: 0 | I19: Mixed Couples First Place
A20: 16 | B20: 0 | C20: 16 | D20: 0 | E20: 16 | F20: 0 | H20: 0 | I20: Mixed Couples Second Place
A21: 17 | B21: 0 | C21: 17 | D21: 0 | E21: 17 | F21: 0 | H21: 0 | I21: Mixed Couples Third Place
A22: 18 | B22: 0 | C22: 18 | D22: 0 | E22: 18 | F22: 0 | H22: 0 | I22: Cool Under Pressure
A23: 19 | B23: 0 | C23: 19 | D23: 0 | E23: 19 | F23: 0 | H23: 0 | I23: Lund Boats Award
A24: 20 | B24: 0 | C24: 20 | D24: 0 | E24: 20 | F24: 0
A25: 21 | B25: 0 | C25: 21 | D25: 0 | E25: 21 | F25: 0
A26: 22 | B26: 0 | C26: 22 | D26: 0 | E26: 22 | F26: 0
A27: 23 | B27: 0 | C27: 23 | D27: 0 | E27: 23 | F27: 0
A28: 24 | B28: 0 | C28: 24 | D28: 0 | E28: 24 | F28: 0
A29: 25 | B29: 0 | C29: 25 | D29: 0 | E29: 25 | F29: 0
A30: 26 | B30: 0 | C30: 26 | D30: 0 | E30: 26 | F30: 0
A31: 27 | B31: 0 | C31: 27 | D31: 0 | E31: 27 | F31: 0
A32: 28 | B32: 0 | C32: 28 | D32: 0 | E32: 28 | F32: 0
A33: 29 | B33: 0 | C33: 29 | D33: 0 | E33: 29 | F33: 0
A34: 30 | B34: 0 | C34: 30 | D34: 0 | E34: 30 | F34: 0
A35: 31 | B35: 0 | C35: 31 | D35: 0 | E35: 31 | F35: 0

Sheet Print Final Results
D1: Team Member 1 | G1: Team Member 2 | M1: Day 1 Input Data Fish Length ",s | Z1: Day 1 Input Data Converted Weights | AC1: Day 2 Input Data Lenth "'s | AJ1: Day 2 Input Data Converted Weights | BD1: Team # | BG1: Team # | BJ1: Team # | CL1: Team #'s | CQ1: Team #'s | DS1: Team #'s
A2: Final Place | B2: Team # | C2: ALS # | D2: Name | E2: Home Town | F2: ALS # | G2: Name | H2: Home Town | I2: Type AT=Adult Team, MC=Mixed Couple AC=Adult Child | J2: Boat Brand | K2: Motor Brand | L2: Tow vehicle | M2: 1st Fish | N2: 2nd Fish | O2: 3rd Fish | P2: 4th Fish | Q2: 5th Fish | R2: Northern lb | S2: Northern No | T2: Species No | U2: Carp inches | V2: Perch lb | W2: Perch No | X2: 1st Fish #'s | Y2: 2nd Fish #'s | Z2: 3rd Fish #'s | AA2: 4th Fish #'s | AB2: 5th Fish #'s | AC2: 1st Fish | AD2: 2nd Fish | AE2: 3rd Fish | AF2: 4th Fish | AG2: 5th Fish | AH2: 1st Fish #'s | AI2: 2nd Fish #'s | AJ2: 3rd Fish #'s | AK2: 4th Fish #'s | AL2: 5th Fish #'s | AM2: D2 Northern lb | AN2: D2 Northern No | AO2: Species No | AP2: Carp inches | AQ2: Perch lb | AR2: Perch No | AS2: Total Day 1 | AT2: Place Day 1 | AU2: Pay Day 1 | AV2: Total Day 2 | AW2: Place Day 2 | AX2: Pay Day 2 | AY2: Total Wt | AZ2: Final Place | BA2: Final Place Pay | BB2: Total Tourney Pay | BC2: Improve places | BD2: Cool Under Pressure | BE2: Count D1eye | BF2: Large D1 eye | BG2: Team Large D1 eye | BH2: Count D2 eye | BI2: Large D2 eye | BJ2: Team Large D2 eye | BK2: Count eye total | BL2: North No D1 | BM2: North No Team D1 | BN2: North No D2 | BO2: North No Team D2 | BP2: Large North D1 | BQ2: Team Max North D1 | BR2: Large North D2 | BS2: Team Max North D2 | BT2: Large perch D1 | BU2: Large Perch team D1 | BV2: Most perch D1 | BW2: Most perch team D1 | BX2: Large perch D2 | BY2: Large perch team D2 | BZ2: Most perch D2 | CA2: Most perch team D2 | CB2: Carp in. D! | CC2: Carp team D1 | CD2: Carp in. D2 | CE2: Carp team D2 | CF2: Most species D1 | CG2: Team Most Sp D1 | CH2: Most Species D2 | CI2: Team Most Sp D2 | CJ2: Adult Child Place | CK2: AC Rank | CL2: AC 1st | CM2: AC 2nd | CN2: AC 3rd | CO2: Mixed Couple Place | CP2: MC Rank | CQ2: MC 1st | CR2: MC 2nd | CS2: MC 3rd | CT2: D1=0 | CU2: D1=1 | CV2: D1=2 | CW2: D1=3 | CX2: D1=4 | CY2: D1=5 | CZ2: D2=0 | DA2: D2=1 | DB2: D2=2 | DC2: D2=3 | DD2: D2=4 | DE2: D2=5 | DF2: T=0 | DG2: T=1 | DH2: T=2 | DI2: T=3 | DJ2: T=4 | DK2: T=5 | DL2: T=6 | DM2: T=7 | DN2: T=8 | DO2: T=9 | DP2: T=10 | DQ2: Lund Place | DR2: Lund Rank | DS2: Lund 1st | DT2: Adult Team | DU2: Mixed Couples | DV2: Adult Child | DW2: Circuit Points | DX2: Scheels Hardest Charger
A3: 1 | B3: 16 | D3: Quast, Doug | E3: Billings, MT | G3: Martinez, Cody | H3: Billings, MT | I3: AT | M3: 25.25 | N3: 31.75 | O3: 17.25 | P3: 16.75 | Q3: 18.5 | X3: =IF(M3>0,VLOOKUP(M3,$DY$8:$DZ$95,2)," ") -> 6.06 | Y3: =IF(N3>0,VLOOKUP(N3,$DY$8:$DZ$95,2)," ") -> 13.02 | Z3: =IF(O3>0,VLOOKUP(O3,$DY$8:$DZ$95,2)," ") -> 1.72 | AA3: =IF(P3>0,VLOOKUP(P3,$DY$8:$DZ$95,2)," ") -> 1.58 | AB3: =IF(Q3>0,VLOOKUP(Q3,$DY$8:$DZ$95,2)," ") -> 2.12 | AC3: 17.5 | AD3: 18 | AE3: 16.5 | AF3: 17.75 | AG3: 29.25 | AH3: =IF(AC3>0,VLOOKUP(AC3,$DY$8:$DZ$95,2)," ") -> 1.78 | AI3: =IF(AD3>0,VLOOKUP(AD3,$DY$8:$DZ$95,2)," ") -> 1.94 | AJ3: =IF(AE3>0,VLOOKUP(AE3,$DY$8:$DZ$95,2)," ") -> 1.5 | AK3: =IF(AF3>0,VLOOKUP(AF3,$DY$8:$DZ$95,2)," ") -> 1.86 | AL3: =IF(AG3>0,VLOOKUP(AG3,$DY$8:$DZ$95,2)," ") -> 9.94 | AS3: =IF(D3="","",SUM(X3:AB3)) -> 24.5 | AT3: =IF(D3="","",RANK(AS3,$AS$3:$AS$202,0)) -> 2 | AU3: =IF(D3="","",IF(LOOKUP(AT3,'Master 2012 Pay Sheet'!$A$5:$A$35,'Master 2012 Pay Sheet'!$B$5:$B$35)>0,LOOKUP(AT3,'Master 2012 Pay Sheet'!$A$5:$A$35,'Master 2012 Pay Sheet'!$B$5:$B$35),0)) -> 0 | AV3: =IF(D3="","",SUM(AH3:AL3)) -> 17.02 | AW3: =IF(D3="","",RANK(AV3,$AV$3:$AV$202,0)) -> 11 | AX3: =IF(D3="","",IF(LOOKUP(AW3,'Master 2012 Pay Sheet'!$C$5:$C$35,'Master 2012 Pay Sheet'!$D$5:$D$35)>0,LOOKUP(AW3,'Master 2012 Pay Sheet'!$C$5:$C$35,'Master 2012 Pay Sheet'!$D$5:$D$35),0)) -> 0 | AY3: =IF(D3="","",AS3+AV3) -> 41.52 | AZ3: =IF(D3="","",RANK(AY3,$AY$3:$AY$202,0)) -> 1 | BA3: =IF(D3="","",IF(LOOKUP(AZ3,'Master 2012 Pay Sheet'!$E$5:$E$35,'Master 2012 Pay Sheet'!$F$5:$F$35)>0,LOOKUP(AZ3,'Master 2012 Pay Sheet'!$E$5:$E$35,'Master 2012 Pay Sheet'!$F$5:$F$35),0)) -> 0 | BB3: =IF(D3="","",SUM(AU3+AX3+BA3)) -> 0 | BC3: =IF(D3="","",AT3-AZ3) -> 1 | BD3: =IF(D3="","",IF(BC3=MAX($BC$3:$BC$202),B3,"")) ->  | BE3: =IF(D3="","",COUNT(M3:Q3)) -> 5 | BF3: =IF(D3="","",MAX(X3:AB3)) -> 13.02 | BG3: =IF(BF3=MAX($BF$3:$BF$202),B3,"") -> 16 | BH3: =IF(D3="","",COUNT(AC3:AG3)) -> 5 | BI3: =IF(D3="","",MAX(AH3:AL3)) -> 9.94 | BJ3: =IF(BI3=MAX($BI$3:$BI$202),B3,"") ->  | BK3: =IF(BE3="","",BE3+BH3) -> 10 | BL3: =IF(D3="","",IF(S3=MAX($S$3:$S$202),S3,"")) -> 0 | BM3: =IF(BL3=MAX($BL$3:$BL$202),B3,"") -> 16 | BN3: =IF(D3="","",IF(AN3=MAX($AN$3:$AN$202),AN3,"")) -> 0 | BO3: =IF(BN3=MAX($BN$3:$BN$202),B3,"") -> 16 | BP3: =IF(D3="","",IF(R3=MAX($R$3:$R$202),R3,"")) -> 0 | BQ3: =IF(BP3=MAX($BP$3:$BP$202),B3,"") -> 16 | BR3: =IF(D3="","",IF(AM3=MAX($AM$3:$AM$202),AM3,"")) -> 0 | BS3: =IF(BR3=MAX($BR$3:$BR$202),B3,"") -> 16 | BT3: =IF(D3="","",IF(V3=MAX($V$3:$V$202),V3,"")) -> 0 | BU3: =IF(BT3=MAX($BT$3:$BT$202),B3,"") -> 16 | BV3: =IF(D3="","",IF(W3=MAX($W$3:$W$202), W3,"")) -> 0 | BW3: =IF(BV3=MAX($BV$3:$BV$202),B3,"") -> 16 | BX3: =IF(D3="","",IF(AQ3=MAX($AQ$3:$AQ$202),AQ3,"")) -> 0 | BY3: =IF(BX3=MAX($BX$3:$BX$202),B3,"") -> 16 | BZ3: =IF(D3="","",IF(AR3=MAX($AR$3:$AR$202), AR3,"")) -> 0 | CA3: =IF(BZ3=MAX($BZ$3:$BZ$202),B3,"") -> 16 | CB3: =IF(D3="","",IF(U3=MAX($U$3:$U$202), U3,"")) -> 0 | CC3: =IF(CB3=MAX($CB$3:$CB$202),B3,"") -> 16 | CD3: =IF(D3="","",IF(AP3=MAX($AP$3:$AP$202),AP3,"")) -> 0 | CE3: =IF(CD3=MAX($CD$3:$CD$202),B3,"") -> 16 | CF3: =IF(D3="","",IF(T3=MAX($T$3:$T$202), T3,"")) -> 0 | CG3: =IF(CF3=MAX($CF$3:$CF$202),B3,"") -> 16 | CH3: =IF(D3="","",IF(AO3=MAX($AO$3:$AO$202),AO3,"")) -> 0 | CI3: =IF(CH3=MAX($CH$3:$CH$202),B3,"") -> 16 | CJ3: =IF(I3="AC",AZ3,"") ->  | CK3: =IF(CJ3="","",RANK(CJ3,$CJ$3:$CJ$202,1)) ->  | CL3: =IF(CK3=1,B3,"") ->  | CM3: =IF(CK3=2,B3,"") ->  | CN3: =IF(CK3=3,B3,"") ->  | CO3: =IF(I3="MC",AZ3,"") ->  | CP3: =IF(CO3="","",RANK(CO3,$CO$3:$CO$202,1)) ->  | CQ3: =IF(CP3=1,B3,"") ->  | CR3: =IF(CP3=2,B3,"") ->  | CS3: =IF(CP3=3,B3,"") ->  | CT3: =IF(BE3=0,BE3,"") ->  | CU3: =IF(BE3=1,1,"") ->  | CV3: =IF(BE3=2,2,"") ->  | CW3: =IF(BE3=3,3,"") ->  | CX3: =IF(BE3=4,4,"") ->  | CY3: =IF(BE3=5,5,"") -> 5 | CZ3: =IF(BH3=0,BH3,"") ->  | DA3: =IF(BH3=1,1,"") ->  | DB3: =IF(BH3=2,2,"") ->  | DC3: =IF(BH3=3,3,"") ->  | DD3: =IF(BH3=4,4,"") ->  | DE3: =IF(BH3=5,5,"") -> 5 | DF3: =IF(BK3=0,BK3,"") ->  | DG3: =IF(BK3=1,1,"") ->  | DH3: =IF(BK3=2,2,"") ->  | DI3: =IF(BK3=3,3,"") ->  | DJ3: =IF(BK3=4,4,"") ->  | DK3: =IF(BK3=5,5,"") ->  | DL3: =IF(BK3=6,6,"") ->  | DM3: =IF(BK3=7,7,"") ->  | DN3: =IF(BK3=8,8,"") ->  | DO3: =IF(BK3=9,9,"") ->  | DP3: =IF(BK3=10,10,"") -> 10 | DQ3: =IF(J3="Lund",AZ3,"") ->  | DR3: =IF(DQ3="","",RANK(DQ3,$DQ$3:$DQ$202,1)) ->  | DS3: =IF(DR3=1,B3,"") ->  | DT3: =IF(I3="AT",B3,"") -> 16 | DU3: =IF(I3="MC",B3,"") ->  | DV3: =IF(I3="AC",B3,"") ->  | DW3: =IF(BK3=0,0,IF(D3="","",$D$203-AZ3+1)/$D$203*100) -> 100 | DX3: =IF(AS3 = 0,AV3 - AS3,"") ->  | DY3: Montana Walleyes Unlimited Formula
A4: 2 | B4: 50 | D4: Murie, Randy | E4: Alexander,ND | G4: Redfield, William | H4: Sidney, MT | I4: AT | M4: 16.75 | N4: 29.25 | O4: 17.5 | P4: 17.75 | Q4: 17.75 | X4: =IF(M4>0,VLOOKUP(M4,$DY$8:$DZ$95,2)," ") -> 1.58 | Y4: =IF(N4>0,VLOOKUP(N4,$DY$8:$DZ$95,2)," ") -> 9.94 | Z4: =IF(O4>0,VLOOKUP(O4,$DY$8:$DZ$95,2)," ") -> 1.78 | AA4: =IF(P4>0,VLOOKUP(P4,$DY$8:$DZ$95,2)," ") -> 1.86 | AB4: =IF(Q4>0,VLOOKUP(Q4,$DY$8:$DZ$95,2)," ") -> 1.86 | AC4: 31.5 | AD4: 21.25 | AE4: 18 | AF4: 17.25 | AG4: 17.25 | AH4: =IF(AC4>0,VLOOKUP(AC4,$DY$8:$DZ$95,2)," ") -> 12.7 | AI4: =IF(AD4>0,VLOOKUP(AD4,$DY$8:$DZ$95,2)," ") -> 3.38 | AJ4: =IF(AE4>0,VLOOKUP(AE4,$DY$8:$DZ$95,2)," ") -> 1.94 | AK4: =IF(AF4>0,VLOOKUP(AF4,$DY$8:$DZ$95,2)," ") -> 1.72 | AL4: =IF(AG4>0,VLOOKUP(AG4,$DY$8:$DZ$95,2)," ") -> 1.72 | AS4: =IF(D4="","",SUM(X4:AB4)) -> 17.02 | AT4: =IF(D4="","",RANK(AS4,$AS$3:$AS$202,0)) -> 14 | AU4: =IF(D4="","",IF(LOOKUP(AT4,'Master 2012 Pay Sheet'!$A$5:$A$35,'Master 2012 Pay Sheet'!$B$5:$B$35)>0,LOOKUP(AT4,'Master 2012 Pay Sheet'!$A$5:$A$35,'Master 2012 Pay Sheet'!$B$5:$B$35),0)) -> 0 | AV4: =IF(D4="","",SUM(AH4:AL4)) -> 21.46 | AW4: =IF(D4="","",RANK(AV4,$AV$3:$AV$202,0)) -> 3 | AX4: =IF(D4="","",IF(LOOKUP(AW4,'Master 2012 Pay Sheet'!$C$5:$C$35,'Master 2012 Pay Sheet'!$D$5:$D$35)>0,LOOKUP(AW4,'Master 2012 Pay Sheet'!$C$5:$C$35,'Master 2012 Pay Sheet'!$D$5:$D$35),0)) -> 0 | AY4: =IF(D4="","",AS4+AV4) -> 38.48 | AZ4: =IF(D4="","",RANK(AY4,$AY$3:$AY$202,0)) -> 2 | BA4: =IF(D4="","",IF(LOOKUP(AZ4,'Master 2012 Pay Sheet'!$E$5:$E$35,'Master 2012 Pay Sheet'!$F$5:$F$35)>0,LOOKUP(AZ4,'Master 2012 Pay Sheet'!$E$5:$E$35,'Master 2012 Pay Sheet'!$F$5:$F$35),0)) -> 0 | BB4: =IF(D4="","",SUM(AU4+AX4+BA4)) -> 0 | BC4: =IF(D4="","",AT4-AZ4) -> 12 | BD4: =IF(D4="","",IF(BC4=MAX($BC$3:$BC$202),B4,"")) ->  | BE4: =IF(D4="","",COUNT(M4:Q4)) -> 5 | BF4: =IF(D4="","",MAX(X4:AB4)) -> 9.94 | BG4: =IF(BF4=MAX($BF$3:$BF$202),B4,"") ->  | BH4: =IF(D4="","",COUNT(AC4:AG4)) -> 5 | BI4: =IF(D4="","",MAX(AH4:AL4)) -> 12.7 | BJ4: =IF(BI4=MAX($BI$3:$BI$202),B4,"") -> 50 | BK4: =IF(BE4="","",BE4+BH4) -> 10 | BL4: =IF(D4="","",IF(S4=MAX($S$3:$S$202),S4,"")) -> 0 | BM4: =IF(BL4=MAX($BL$3:$BL$202),B4,"") -> 50 | BN4: =IF(D4="","",IF(AN4=MAX($AN$3:$AN$202),AN4,"")) -> 0 | BO4: =IF(BN4=MAX($BN$3:$BN$202),B4,"") -> 50 | BP4: =IF(D4="","",IF(R4=MAX($R$3:$R$202),R4,"")) -> 0 | BQ4: =IF(BP4=MAX($BP$3:$BP$202),B4,"") -> 50 | BR4: =IF(D4="","",IF(AM4=MAX($AM$3:$AM$202),AM4,"")) -> 0 | BS4: =IF(BR4=MAX($BR$3:$BR$202),B4,"") -> 50 | BT4: =IF(D4="","",IF(V4=MAX($V$3:$V$202),V4,"")) -> 0 | BU4: =IF(BT4=MAX($BT$3:$BT$202),B4,"") -> 50 | BV4: =IF(D4="","",IF(W4=MAX($W$3:$W$202), W4,"")) -> 0 | BW4: =IF(BV4=MAX($BV$3:$BV$202),B4,"") -> 50 | BX4: =IF(D4="","",IF(AQ4=MAX($AQ$3:$AQ$202),AQ4,"")) -> 0 | BY4: =IF(BX4=MAX($BX$3:$BX$202),B4,"") -> 50 | BZ4: =IF(D4="","",IF(AR4=MAX($AR$3:$AR$202), AR4,"")) -> 0 | CA4: =IF(BZ4=MAX($BZ$3:$BZ$202),B4,"") -> 50 | CB4: =IF(D4="","",IF(U4=MAX($U$3:$U$202), U4,"")) -> 0 | CC4: =IF(CB4=MAX($CB$3:$CB$202),B4,"") -> 50 | CD4: =IF(D4="","",IF(AP4=MAX($AP$3:$AP$202),AP4,"")) -> 0 | CE4: =IF(CD4=MAX($CD$3:$CD$202),B4,"") -> 50 | CF4: =IF(D4="","",IF(T4=MAX($T$3:$T$202), T4,"")) -> 0 | CG4: =IF(CF4=MAX($CF$3:$CF$202),B4,"") -> 50 | CH4: =IF(D4="","",IF(AO4=MAX($AO$3:$AO$202),AO4,"")) -> 0 | CI4: =IF(CH4=MAX($CH$3:$CH$202),B4,"") -> 50 | CJ4: =IF(I4="AC",AZ4,"") ->  | CK4: =IF(CJ4="","",RANK(CJ4,$CJ$3:$CJ$202,1)) ->  | CL4: =IF(CK4=1,B4,"") ->  | CM4: =IF(CK4=2,B4,"") ->  | CN4: =IF(CK4=3,B4,"") ->  | CO4: =IF(I4="MC",AZ4,"") ->  | CP4: =IF(CO4="","",RANK(CO4,$CO$3:$CO$202,1)) ->  | CQ4: =IF(CP4=1,B4,"") ->  | CR4: =IF(CP4=2,B4,"") ->  | CS4: =IF(CP4=3,B4,"") ->  | CT4: =IF(BE4=0,BE4,"") ->  | CU4: =IF(BE4=1,1,"") ->  | CV4: =IF(BE4=2,2,"") ->  | CW4: =IF(BE4=3,3,"") ->  | CX4: =IF(BE4=4,4,"") ->  | CY4: =IF(BE4=5,5,"") -> 5 | CZ4: =IF(BH4=0,BH4,"") ->  | DA4: =IF(BH4=1,1,"") ->  | DB4: =IF(BH4=2,2,"") ->  | DC4: =IF(BH4=3,3,"") ->  | DD4: =IF(BH4=4,4,"") ->  | DE4: =IF(BH4=5,5,"") -> 5 | DF4: =IF(BK4=0,BK4,"") ->  | DG4: =IF(BK4=1,1,"") ->  | DH4: =IF(BK4=2,2,"") ->  | DI4: =IF(BK4=3,3,"") ->  | DJ4: =IF(BK4=4,4,"") ->  | DK4: =IF(BK4=5,5,"") ->  | DL4: =IF(BK4=6,6,"") ->  | DM4: =IF(BK4=7,7,"") ->  | DN4: =IF(BK4=8,8,"") ->  | DO4: =IF(BK4=9,9,"") ->  | DP4: =IF(BK4=10,10,"") -> 10 | DQ4: =IF(J4="Lund",AZ4,"") ->  | DR4: =IF(DQ4="","",RANK(DQ4,$DQ$3:$DQ$202,1)) ->  | DS4: =IF(DR4=1,B4,"") ->  | DT4: =IF(I4="AT",B4,"") -> 50 | DU4: =IF(I4="MC",B4,"") ->  | DV4: =IF(I4="AC",B4,"") ->  | DW4: =IF(BK4=0,0,IF(D4="","",$D$203-AZ4+1)/$D$203*100) -> 98.5915493 | DX4: =IF(AS4 = 0,AV4 - AS4,"") ->  | DY4: Montana Walleyes Unlimited
A5: 3 | B5: 2 | D5: Sillerud, Norm | E5: Glasgow, MT | G5: Rasmusan, JR | H5: Glasgow, MT | I5: AT | M5: 16.5 | N5: 18.5 | O5: 17.5 | P5: 19 | Q5: 29.5 | X5: =IF(M5>0,VLOOKUP(M5,$DY$8:$DZ$95,2)," ") -> 1.5 | Y5: =IF(N5>0,VLOOKUP(N5,$DY$8:$DZ$95,2)," ") -> 2.12 | Z5: =IF(O5>0,VLOOKUP(O5,$DY$8:$DZ$95,2)," ") -> 1.78 | AA5: =IF(P5>0,VLOOKUP(P5,$DY$8:$DZ$95,2)," ") -> 2.32 | AB5: =IF(Q5>0,VLOOKUP(Q5,$DY$8:$DZ$95,2)," ") -> 10.22 | AC5: 23 | AD5: 26 | AE5: 20.5 | AF5: 20 | AG5: 21 | AH5: =IF(AC5>0,VLOOKUP(AC5,$DY$8:$DZ$95,2)," ") -> 4.42 | AI5: =IF(AD5>0,VLOOKUP(AD5,$DY$8:$DZ$95,2)," ") -> 6.68 | AJ5: =IF(AE5>0,VLOOKUP(AE5,$DY$8:$DZ$95,2)," ") -> 3 | AK5: =IF(AF5>0,VLOOKUP(AF5,$DY$8:$DZ$95,2)," ") -> 2.76 | AL5: =IF(AG5>0,VLOOKUP(AG5,$DY$8:$DZ$95,2)," ") -> 3.24 | AS5: =IF(D5="","",SUM(X5:AB5)) -> 17.94 | AT5: =IF(D5="","",RANK(AS5,$AS$3:$AS$202,0)) -> 10 | AU5: =IF(D5="","",IF(LOOKUP(AT5,'Master 2012 Pay Sheet'!$A$5:$A$35,'Master 2012 Pay Sheet'!$B$5:$B$35)>0,LOOKUP(AT5,'Master 2012 Pay Sheet'!$A$5:$A$35,'Master 2012 Pay Sheet'!$B$5:$B$35),0)) -> 0 | AV5: =IF(D5="","",SUM(AH5:AL5)) -> 20.1 | AW5: =IF(D5="","",RANK(AV5,$AV$3:$AV$202,0)) -> 4 | AX5: =IF(D5="","",IF(LOOKUP(AW5,'Master 2012 Pay Sheet'!$C$5:$C$35,'Master 2012 Pay Sheet'!$D$5:$D$35)>0,LOOKUP(AW5,'Master 2012 Pay Sheet'!$C$5:$C$35,'Master 2012 Pay Sheet'!$D$5:$D$35),0)) -> 0 | AY5: =IF(D5="","",AS5+AV5) -> 38.04 | AZ5: =IF(D5="","",RANK(AY5,$AY$3:$AY$202,0)) -> 3 | BA5: =IF(D5="","",IF(LOOKUP(AZ5,'Master 2012 Pay Sheet'!$E$5:$E$35,'Master 2012 Pay Sheet'!$F$5:$F$35)>0,LOOKUP(AZ5,'Master 2012 Pay Sheet'!$E$5:$E$35,'Master 2012 Pay Sheet'!$F$5:$F$35),0)) -> 0 | BB5: =IF(D5="","",SUM(AU5+AX5+BA5)) -> 0 | BC5: =IF(D5="","",AT5-AZ5) -> 7 | BD5: =IF(D5="","",IF(BC5=MAX($BC$3:$BC$202),B5,"")) ->  | BE5: =IF(D5="","",COUNT(M5:Q5)) -> 5 | BF5: =IF(D5="","",MAX(X5:AB5)) -> 10.22 | BG5: =IF(BF5=MAX($BF$3:$BF$202),B5,"") ->  | BH5: =IF(D5="","",COUNT(AC5:AG5)) -> 5 | BI5: =IF(D5="","",MAX(AH5:AL5)) -> 6.68 | BJ5: =IF(BI5=MAX($BI$3:$BI$202),B5,"") ->  | BK5: =IF(BE5="","",BE5+BH5) -> 10 | BL5: =IF(D5="","",IF(S5=MAX($S$3:$S$202),S5,"")) -> 0 | BM5: =IF(BL5=MAX($BL$3:$BL$202),B5,"") -> 2 | BN5: =IF(D5="","",IF(AN5=MAX($AN$3:$AN$202),AN5,"")) -> 0 | BO5: =IF(BN5=MAX($BN$3:$BN$202),B5,"") -> 2 | BP5: =IF(D5="","",IF(R5=MAX($R$3:$R$202),R5,"")) -> 0 | BQ5: =IF(BP5=MAX($BP$3:$BP$202),B5,"") -> 2 | BR5: =IF(D5="","",IF(AM5=MAX($AM$3:$AM$202),AM5,"")) -> 0 | BS5: =IF(BR5=MAX($BR$3:$BR$202),B5,"") -> 2 | BT5: =IF(D5="","",IF(V5=MAX($V$3:$V$202),V5,"")) -> 0 | BU5: =IF(BT5=MAX($BT$3:$BT$202),B5,"") -> 2 | BV5: =IF(D5="","",IF(W5=MAX($W$3:$W$202), W5,"")) -> 0 | BW5: =IF(BV5=MAX($BV$3:$BV$202),B5,"") -> 2 | BX5: =IF(D5="","",IF(AQ5=MAX($AQ$3:$AQ$202),AQ5,"")) -> 0 | BY5: =IF(BX5=MAX($BX$3:$BX$202),B5,"") -> 2 | BZ5: =IF(D5="","",IF(AR5=MAX($AR$3:$AR$202), AR5,"")) -> 0 | CA5: =IF(BZ5=MAX($BZ$3:$BZ$202),B5,"") -> 2 | CB5: =IF(D5="","",IF(U5=MAX($U$3:$U$202), U5,"")) -> 0 | CC5: =IF(CB5=MAX($CB$3:$CB$202),B5,"") -> 2 | CD5: =IF(D5="","",IF(AP5=MAX($AP$3:$AP$202),AP5,"")) -> 0 | CE5: =IF(CD5=MAX($CD$3:$CD$202),B5,"") -> 2 | CF5: =IF(D5="","",IF(T5=MAX($T$3:$T$202), T5,"")) -> 0 | CG5: =IF(CF5=MAX($CF$3:$CF$202),B5,"") -> 2 | CH5: =IF(D5="","",IF(AO5=MAX($AO$3:$AO$202),AO5,"")) -> 0 | CI5: =IF(CH5=MAX($CH$3:$CH$202),B5,"") -> 2 | CJ5: =IF(I5="AC",AZ5,"") ->  | CK5: =IF(CJ5="","",RANK(CJ5,$CJ$3:$CJ$202,1)) ->  | CL5: =IF(CK5=1,B5,"") ->  | CM5: =IF(CK5=2,B5,"") ->  | CN5: =IF(CK5=3,B5,"") ->  | CO5: =IF(I5="MC",AZ5,"") ->  | CP5: =IF(CO5="","",RANK(CO5,$CO$3:$CO$202,1)) ->  | CQ5: =IF(CP5=1,B5,"") ->  | CR5: =IF(CP5=2,B5,"") ->  | CS5: =IF(CP5=3,B5,"") ->  | CT5: =IF(BE5=0,BE5,"") ->  | CU5: =IF(BE5=1,1,"") ->  | CV5: =IF(BE5=2,2,"") ->  | CW5: =IF(BE5=3,3,"") ->  | CX5: =IF(BE5=4,4,"") ->  | CY5: =IF(BE5=5,5,"") -> 5 | CZ5: =IF(BH5=0,BH5,"") ->  | DA5: =IF(BH5=1,1,"") ->  | DB5: =IF(BH5=2,2,"") ->  | DC5: =IF(BH5=3,3,"") ->  | DD5: =IF(BH5=4,4,"") ->  | DE5: =IF(BH5=5,5,"") -> 5 | DF5: =IF(BK5=0,BK5,"") ->  | DG5: =IF(BK5=1,1,"") ->  | DH5: =IF(BK5=2,2,"") ->  | DI5: =IF(BK5=3,3,"") ->  | DJ5: =IF(BK5=4,4,"") ->  | DK5: =IF(BK5=5,5,"") ->  | DL5: =IF(BK5=6,6,"") ->  | DM5: =IF(BK5=7,7,"") ->  | DN5: =IF(BK5=8,8,"") ->  | DO5: =IF(BK5=9,9,"") ->  | DP5: =IF(BK5=10,10,"") -> 10 | DQ5: =IF(J5="Lund",AZ5,"") ->  | DR5: =IF(DQ5="","",RANK(DQ5,$DQ$3:$DQ$202,1)) ->  | DS5: =IF(DR5=1,B5,"") ->  | DT5: =IF(I5="AT",B5,"") -> 2 | DU5: =IF(I5="MC",B5,"") ->  | DV5: =IF(I5="AC",B5,"") ->  | DW5: =IF(BK5=0,0,IF(D5="","",$D$203-AZ5+1)/$D$203*100) -> 97.18309859 | DX5: =IF(AS5 = 0,AV5 - AS5,"") ->  | DY5: Fish Length to Weight Conversion Lookup Table
A6: 4 | B6: 58 | D6: Sundby, Luke | E6: Williston, ND | G6: Hatzenbiler, Jake | H6: BelleFourche, SD | I6: AT | M6: 27 | N6: 29 | O6: 18.25 | P6: 22.5 | Q6: 17.5 | X6: =IF(M6>0,VLOOKUP(M6,$DY$8:$DZ$95,2)," ") -> 7.58 | Y6: =IF(N6>0,VLOOKUP(N6,$DY$8:$DZ$95,2)," ") -> 9.64 | Z6: =IF(O6>0,VLOOKUP(O6,$DY$8:$DZ$95,2)," ") -> 2.02 | AA6: =IF(P6>0,VLOOKUP(P6,$DY$8:$DZ$95,2)," ") -> 4.1 | AB6: =IF(Q6>0,VLOOKUP(Q6,$DY$8:$DZ$95,2)," ") -> 1.78 | AC6: 22.5 | AD6: 17.5 | AE6: 16.5 | AF6: 19.25 | AG6: 17.5 | AH6: =IF(AC6>0,VLOOKUP(AC6,$DY$8:$DZ$95,2)," ") -> 4.1 | AI6: =IF(AD6>0,VLOOKUP(AD6,$DY$8:$DZ$95,2)," ") -> 1.78 | AJ6: =IF(AE6>0,VLOOKUP(AE6,$DY$8:$DZ$95,2)," ") -> 1.5 | AK6: =IF(AF6>0,VLOOKUP(AF6,$DY$8:$DZ$95,2)," ") -> 2.42 | AL6: =IF(AG6>0,VLOOKUP(AG6,$DY$8:$DZ$95,2)," ") -> 1.78 | AS6: =IF(D6="","",SUM(X6:AB6)) -> 25.12 | AT6: =IF(D6="","",RANK(AS6,$AS$3:$AS$202,0)) -> 1 | AU6: =IF(D6="","",IF(LOOKUP(AT6,'Master 2012 Pay Sheet'!$A$5:$A$35,'Master 2012 Pay Sheet'!$B$5:$B$35)>0,LOOKUP(AT6,'Master 2012 Pay Sheet'!$A$5:$A$35,'Master 2012 Pay Sheet'!$B$5:$B$35),0)) -> 0 | AV6: =IF(D6="","",SUM(AH6:AL6)) -> 11.58 | AW6: =IF(D6="","",RANK(AV6,$AV$3:$AV$202,0)) -> 21 | AX6: =IF(D6="","",IF(LOOKUP(AW6,'Master 2012 Pay Sheet'!$C$5:$C$35,'Master 2012 Pay Sheet'!$D$5:$D$35)>0,LOOKUP(AW6,'Master 2012 Pay Sheet'!$C$5:$C$35,'Master 2012 Pay Sheet'!$D$5:$D$35),0)) -> 0 | AY6: =IF(D6="","",AS6+AV6) -> 36.7 | AZ6: =IF(D6="","",RANK(AY6,$AY$3:$AY$202,0)) -> 4 | BA6: =IF(D6="","",IF(LOOKUP(AZ6,'Master 2012 Pay Sheet'!$E$5:$E$35,'Master 2012 Pay Sheet'!$F$5:$F$35)>0,LOOKUP(AZ6,'Master 2012 Pay Sheet'!$E$5:$E$35,'Master 2012 Pay Sheet'!$F$5:$F$35),0)) -> 0 | BB6: =IF(D6="","",SUM(AU6+AX6+BA6)) -> 0 | BC6: =IF(D6="","",AT6-AZ6) -> -3 | BD6: =IF(D6="","",IF(BC6=MAX($BC$3:$BC$202),B6,"")) ->  | BE6: =IF(D6="","",COUNT(M6:Q6)) -> 5 | BF6: =IF(D6="","",MAX(X6:AB6)) -> 9.64 | BG6: =IF(BF6=MAX($BF$3:$BF$202),B6,"") ->  | BH6: =IF(D6="","",COUNT(AC6:AG6)) -> 5 | BI6: =IF(D6="","",MAX(AH6:AL6)) -> 4.1 | BJ6: =IF(BI6=MAX($BI$3:$BI$202),B6,"") ->  | BK6: =IF(BE6="","",BE6+BH6) -> 10 | BL6: =IF(D6="","",IF(S6=MAX($S$3:$S$202),S6,"")) -> 0 | BM6: =IF(BL6=MAX($BL$3:$BL$202),B6,"") -> 58 | BN6: =IF(D6="","",IF(AN6=MAX($AN$3:$AN$202),AN6,"")) -> 0 | BO6: =IF(BN6=MAX($BN$3:$BN$202),B6,"") -> 58 | BP6: =IF(D6="","",IF(R6=MAX($R$3:$R$202),R6,"")) -> 0 | BQ6: =IF(BP6=MAX($BP$3:$BP$202),B6,"") -> 58 | BR6: =IF(D6="","",IF(AM6=MAX($AM$3:$AM$202),AM6,"")) -> 0 | BS6: =IF(BR6=MAX($BR$3:$BR$202),B6,"") -> 58 | BT6: =IF(D6="","",IF(V6=MAX($V$3:$V$202),V6,"")) -> 0 | BU6: =IF(BT6=MAX($BT$3:$BT$202),B6,"") -> 58 | BV6: =IF(D6="","",IF(W6=MAX($W$3:$W$202), W6,"")) -> 0 | BW6: =IF(BV6=MAX($BV$3:$BV$202),B6,"") -> 58 | BX6: =IF(D6="","",IF(AQ6=MAX($AQ$3:$AQ$202),AQ6,"")) -> 0 | BY6: =IF(BX6=MAX($BX$3:$BX$202),B6,"") -> 58 | BZ6: =IF(D6="","",IF(AR6=MAX($AR$3:$AR$202), AR6,"")) -> 0 | CA6: =IF(BZ6=MAX($BZ$3:$BZ$202),B6,"") -> 58 | CB6: =IF(D6="","",IF(U6=MAX($U$3:$U$202), U6,"")) -> 0 | CC6: =IF(CB6=MAX($CB$3:$CB$202),B6,"") -> 58 | CD6: =IF(D6="","",IF(AP6=MAX($AP$3:$AP$202),AP6,"")) -> 0 | CE6: =IF(CD6=MAX($CD$3:$CD$202),B6,"") -> 58 | CF6: =IF(D6="","",IF(T6=MAX($T$3:$T$202), T6,"")) -> 0 | CG6: =IF(CF6=MAX($CF$3:$CF$202),B6,"") -> 58 | CH6: =IF(D6="","",IF(AO6=MAX($AO$3:$AO$202),AO6,"")) -> 0 | CI6: =IF(CH6=MAX($CH$3:$CH$202),B6,"") -> 58 | CJ6: =IF(I6="AC",AZ6,"") ->  | CK6: =IF(CJ6="","",RANK(CJ6,$CJ$3:$CJ$202,1)) ->  | CL6: =IF(CK6=1,B6,"") ->  | CM6: =IF(CK6=2,B6,"") ->  | CN6: =IF(CK6=3,B6,"") ->  | CO6: =IF(I6="MC",AZ6,"") ->  | CP6: =IF(CO6="","",RANK(CO6,$CO$3:$CO$202,1)) ->  | CQ6: =IF(CP6=1,B6,"") ->  | CR6: =IF(CP6=2,B6,"") ->  | CS6: =IF(CP6=3,B6,"") ->  | CT6: =IF(BE6=0,BE6,"") ->  | CU6: =IF(BE6=1,1,"") ->  | CV6: =IF(BE6=2,2,"") ->  | CW6: =IF(BE6=3,3,"") ->  | CX6: =IF(BE6=4,4,"") ->  | CY6: =IF(BE6=5,5,"") -> 5 | CZ6: =IF(BH6=0,BH6,"") ->  | DA6: =IF(BH6=1,1,"") ->  | DB6: =IF(BH6=2,2,"") ->  | DC6: =IF(BH6=3,3,"") ->  | DD6: =IF(BH6=4,4,"") ->  | DE6: =IF(BH6=5,5,"") -> 5 | DF6: =IF(BK6=0,BK6,"") ->  | DG6: =IF(BK6=1,1,"") ->  | DH6: =IF(BK6=2,2,"") ->  | DI6: =IF(BK6=3,3,"") ->  | DJ6: =IF(BK6=4,4,"") ->  | DK6: =IF(BK6=5,5,"") ->  | DL6: =IF(BK6=6,6,"") ->  | DM6: =IF(BK6=7,7,"") ->  | DN6: =IF(BK6=8,8,"") ->  | DO6: =IF(BK6=9,9,"") ->  | DP6: =IF(BK6=10,10,"") -> 10 | DQ6: =IF(J6="Lund",AZ6,"") ->  | DR6: =IF(DQ6="","",RANK(DQ6,$DQ$3:$DQ$202,1)) ->  | DS6: =IF(DR6=1,B6,"") ->  | DT6: =IF(I6="AT",B6,"") -> 58 | DU6: =IF(I6="MC",B6,"") ->  | DV6: =IF(I6="AC",B6,"") ->  | DW6: =IF(BK6=0,0,IF(D6="","",$D$203-AZ6+1)/$D$203*100) -> 95.77464789 | DX6: =IF(AS6 = 0,AV6 - AS6,"") -> 
A7: 5 | B7: 39 | D7: Pronto, Gene | E7: Wolf Point, MT | G7: Pronto, Tanner | H7: Harlem, MT | I7: AT | M7: 19.75 | N7: 17.5 | O7: 16.5 | P7: 28.5 | Q7: 17.75 | X7: =IF(M7>0,VLOOKUP(M7,$DY$8:$DZ$95,2)," ") -> 2.64 | Y7: =IF(N7>0,VLOOKUP(N7,$DY$8:$DZ$95,2)," ") -> 1.78 | Z7: =IF(O7>0,VLOOKUP(O7,$DY$8:$DZ$95,2)," ") -> 1.5 | AA7: =IF(P7>0,VLOOKUP(P7,$DY$8:$DZ$95,2)," ") -> 9.1 | AB7: =IF(Q7>0,VLOOKUP(Q7,$DY$8:$DZ$95,2)," ") -> 1.86 | AC7: 29 | AD7: 18 | AE7: 19.25 | AF7: 19 | AG7: 19.75 | AH7: =IF(AC7>0,VLOOKUP(AC7,$DY$8:$DZ$95,2)," ") -> 9.64 | AI7: =IF(AD7>0,VLOOKUP(AD7,$DY$8:$DZ$95,2)," ") -> 1.94 | AJ7: =IF(AE7>0,VLOOKUP(AE7,$DY$8:$DZ$95,2)," ") -> 2.42 | AK7: =IF(AF7>0,VLOOKUP(AF7,$DY$8:$DZ$95,2)," ") -> 2.32 | AL7: =IF(AG7>0,VLOOKUP(AG7,$DY$8:$DZ$95,2)," ") -> 2.64 | AS7: =IF(D7="","",SUM(X7:AB7)) -> 16.88 | AT7: =IF(D7="","",RANK(AS7,$AS$3:$AS$202,0)) -> 15 | AU7: =IF(D7="","",IF(LOOKUP(AT7,'Master 2012 Pay Sheet'!$A$5:$A$35,'Master 2012 Pay Sheet'!$B$5:$B$35)>0,LOOKUP(AT7,'Master 2012 Pay Sheet'!$A$5:$A$35,'Master 2012 Pay Sheet'!$B$5:$B$35),0)) -> 0 | AV7: =IF(D7="","",SUM(AH7:AL7)) -> 18.96 | AW7: =IF(D7="","",RANK(AV7,$AV$3:$AV$202,0)) -> 6 | AX7: =IF(D7="","",IF(LOOKUP(AW7,'Master 2012 Pay Sheet'!$C$5:$C$35,'Master 2012 Pay Sheet'!$D$5:$D$35)>0,LOOKUP(AW7,'Master 2012 Pay Sheet'!$C$5:$C$35,'Master 2012 Pay Sheet'!$D$5:$D$35),0)) -> 0 | AY7: =IF(D7="","",AS7+AV7) -> 35.84 | AZ7: =IF(D7="","",RANK(AY7,$AY$3:$AY$202,0)) -> 5 | BA7: =IF(D7="","",IF(LOOKUP(AZ7,'Master 2012 Pay Sheet'!$E$5:$E$35,'Master 2012 Pay Sheet'!$F$5:$F$35)>0,LOOKUP(AZ7,'Master 2012 Pay Sheet'!$E$5:$E$35,'Master 2012 Pay Sheet'!$F$5:$F$35),0)) -> 0 | BB7: =IF(D7="","",SUM(AU7+AX7+BA7)) -> 0 | BC7: =IF(D7="","",AT7-AZ7) -> 10 | BD7: =IF(D7="","",IF(BC7=MAX($BC$3:$BC$202),B7,"")) ->  | BE7: =IF(D7="","",COUNT(M7:Q7)) -> 5 | BF7: =IF(D7="","",MAX(X7:AB7)) -> 9.1 | BG7: =IF(BF7=MAX($BF$3:$BF$202),B7,"") ->  | BH7: =IF(D7="","",COUNT(AC7:AG7)) -> 5 | BI7: =IF(D7="","",MAX(AH7:AL7)) -> 9.64 | BJ7: =IF(BI7=MAX($BI$3:$BI$202),B7,"") ->  | BK7: =IF(BE7="","",BE7+BH7) -> 10 | BL7: =IF(D7="","",IF(S7=MAX($S$3:$S$202),S7,"")) -> 0 | BM7: =IF(BL7=MAX($BL$3:$BL$202),B7,"") -> 39 | BN7: =IF(D7="","",IF(AN7=MAX($AN$3:$AN$202),AN7,"")) -> 0 | BO7: =IF(BN7=MAX($BN$3:$BN$202),B7,"") -> 39 | BP7: =IF(D7="","",IF(R7=MAX($R$3:$R$202),R7,"")) -> 0 | BQ7: =IF(BP7=MAX($BP$3:$BP$202),B7,"") -> 39 | BR7: =IF(D7="","",IF(AM7=MAX($AM$3:$AM$202),AM7,"")) -> 0 | BS7: =IF(BR7=MAX($BR$3:$BR$202),B7,"") -> 39 | BT7: =IF(D7="","",IF(V7=MAX($V$3:$V$202),V7,"")) -> 0 | BU7: =IF(BT7=MAX($BT$3:$BT$202),B7,"") -> 39 | BV7: =IF(D7="","",IF(W7=MAX($W$3:$W$202), W7,"")) -> 0 | BW7: =IF(BV7=MAX($BV$3:$BV$202),B7,"") -> 39 | BX7: =IF(D7="","",IF(AQ7=MAX($AQ$3:$AQ$202),AQ7,"")) -> 0 | BY7: =IF(BX7=MAX($BX$3:$BX$202),B7,"") -> 39 | BZ7: =IF(D7="","",IF(AR7=MAX($AR$3:$AR$202), AR7,"")) -> 0 | CA7: =IF(BZ7=MAX($BZ$3:$BZ$202),B7,"") -> 39 | CB7: =IF(D7="","",IF(U7=MAX($U$3:$U$202), U7,"")) -> 0 | CC7: =IF(CB7=MAX($CB$3:$CB$202),B7,"") -> 39 | CD7: =IF(D7="","",IF(AP7=MAX($AP$3:$AP$202),AP7,"")) -> 0 | CE7: =IF(CD7=MAX($CD$3:$CD$202),B7,"") -> 39 | CF7: =IF(D7="","",IF(T7=MAX($T$3:$T$202), T7,"")) -> 0 | CG7: =IF(CF7=MAX($CF$3:$CF$202),B7,"") -> 39 | CH7: =IF(D7="","",IF(AO7=MAX($AO$3:$AO$202),AO7,"")) -> 0 | CI7: =IF(CH7=MAX($CH$3:$CH$202),B7,"") -> 39 | CJ7: =IF(I7="AC",AZ7,"") ->  | CK7: =IF(CJ7="","",RANK(CJ7,$CJ$3:$CJ$202,1)) ->  | CL7: =IF(CK7=1,B7,"") ->  | CM7: =IF(CK7=2,B7,"") ->  | CN7: =IF(CK7=3,B7,"") ->  | CO7: =IF(I7="MC",AZ7,"") ->  | CP7: =IF(CO7="","",RANK(CO7,$CO$3:$CO$202,1)) ->  | CQ7: =IF(CP7=1,B7,"") ->  | CR7: =IF(CP7=2,B7,"") ->  | CS7: =IF(CP7=3,B7,"") ->  | CT7: =IF(BE7=0,BE7,"") ->  | CU7: =IF(BE7=1,1,"") ->  | CV7: =IF(BE7=2,2,"") ->  | CW7: =IF(BE7=3,3,"") ->  | CX7: =IF(BE7=4,4,"") ->  | CY7: =IF(BE7=5,5,"") -> 5 | CZ7: =IF(BH7=0,BH7,"") ->  | DA7: =IF(BH7=1,1,"") ->  | DB7: =IF(BH7=2,2,"") ->  | DC7: =IF(BH7=3,3,"") ->  | DD7: =IF(BH7=4,4,"") ->  | DE7: =IF(BH7=5,5,"") -> 5 | DF7: =IF(BK7=0,BK7,"") ->  | DG7: =IF(BK7=1,1,"") ->  | DH7: =IF(BK7=2,2,"") ->  | DI7: =IF(BK7=3,3,"") ->  | DJ7: =IF(BK7=4,4,"") ->  | DK7: =IF(BK7=5,5,"") ->  | DL7: =IF(BK7=6,6,"") ->  | DM7: =IF(BK7=7,7,"") ->  | DN7: =IF(BK7=8,8,"") ->  | DO7: =IF(BK7=9,9,"") ->  | DP7: =IF(BK7=10,10,"") -> 10 | DQ7: =IF(J7="Lund",AZ7,"") ->  | DR7: =IF(DQ7="","",RANK(DQ7,$DQ$3:$DQ$202,1)) ->  | DS7: =IF(DR7=1,B7,"") ->  | DT7: =IF(I7="AT",B7,"") -> 39 | DU7: =IF(I7="MC",B7,"") ->  | DV7: =IF(I7="AC",B7,"") ->  | DW7: =IF(BK7=0,0,IF(D7="","",$D$203-AZ7+1)/$D$203*100) -> 94.36619718 | DX7: =IF(AS7 = 0,AV7 - AS7,"") ->  | DY7: length in. | DZ7: Weight in lbs.
A8: 6 | B8: 63 | D8: Woodward, Scott | E8: Glendive, MT | G8: Knudson, Kim | H8: Glendive,MT | I8: AT | M8: 21 | N8: 19.75 | O8: 17.25 | P8: 21 | Q8: 31.5 | X8: =IF(M8>0,VLOOKUP(M8,$DY$8:$DZ$95,2)," ") -> 3.24 | Y8: =IF(N8>0,VLOOKUP(N8,$DY$8:$DZ$95,2)," ") -> 2.64 | Z8: =IF(O8>0,VLOOKUP(O8,$DY$8:$DZ$95,2)," ") -> 1.72 | AA8: =IF(P8>0,VLOOKUP(P8,$DY$8:$DZ$95,2)," ") -> 3.24 | AB8: =IF(Q8>0,VLOOKUP(Q8,$DY$8:$DZ$95,2)," ") -> 12.7 | AC8: 17.75 | AD8: 23 | AE8: 17.5 | AF8: 17 | AG8: 16.75 | AH8: =IF(AC8>0,VLOOKUP(AC8,$DY$8:$DZ$95,2)," ") -> 1.86 | AI8: =IF(AD8>0,VLOOKUP(AD8,$DY$8:$DZ$95,2)," ") -> 4.42 | AJ8: =IF(AE8>0,VLOOKUP(AE8,$DY$8:$DZ$95,2)," ") -> 1.78 | AK8: =IF(AF8>0,VLOOKUP(AF8,$DY$8:$DZ$95,2)," ") -> 1.64 | AL8: =IF(AG8>0,VLOOKUP(AG8,$DY$8:$DZ$95,2)," ") -> 1.58 | AS8: =IF(D8="","",SUM(X8:AB8)) -> 23.54 | AT8: =IF(D8="","",RANK(AS8,$AS$3:$AS$202,0)) -> 3 | AU8: =IF(D8="","",IF(LOOKUP(AT8,'Master 2012 Pay Sheet'!$A$5:$A$35,'Master 2012 Pay Sheet'!$B$5:$B$35)>0,LOOKUP(AT8,'Master 2012 Pay Sheet'!$A$5:$A$35,'Master 2012 Pay Sheet'!$B$5:$B$35),0)) -> 0 | AV8: =IF(D8="","",SUM(AH8:AL8)) -> 11.28 | AW8: =IF(D8="","",RANK(AV8,$AV$3:$AV$202,0)) -> 24 | AX8: =IF(D8="","",IF(LOOKUP(AW8,'Master 2012 Pay Sheet'!$C$5:$C$35,'Master 2012 Pay Sheet'!$D$5:$D$35)>0,LOOKUP(AW8,'Master 2012 Pay Sheet'!$C$5:$C$35,'Master 2012 Pay Sheet'!$D$5:$D$35),0)) -> 0 | AY8: =IF(D8="","",AS8+AV8) -> 34.82 | AZ8: =IF(D8="","",RANK(AY8,$AY$3:$AY$202,0)) -> 6 | BA8: =IF(D8="","",IF(LOOKUP(AZ8,'Master 2012 Pay Sheet'!$E$5:$E$35,'Master 2012 Pay Sheet'!$F$5:$F$35)>0,LOOKUP(AZ8,'Master 2012 Pay Sheet'!$E$5:$E$35,'Master 2012 Pay Sheet'!$F$5:$F$35),0)) -> 0 | BB8: =IF(D8="","",SUM(AU8+AX8+BA8)) -> 0 | BC8: =IF(D8="","",AT8-AZ8) -> -3 | BD8: =IF(D8="","",IF(BC8=MAX($BC$3:$BC$202),B8,"")) ->  | BE8: =IF(D8="","",COUNT(M8:Q8)) -> 5 | BF8: =IF(D8="","",MAX(X8:AB8)) -> 12.7 | BG8: =IF(BF8=MAX($BF$3:$BF$202),B8,"") ->  | BH8: =IF(D8="","",COUNT(AC8:AG8)) -> 5 | BI8: =IF(D8="","",MAX(AH8:AL8)) -> 4.42 | BJ8: =IF(BI8=MAX($BI$3:$BI$202),B8,"") ->  | BK8: =IF(BE8="","",BE8+BH8) -> 10 | BL8: =IF(D8="","",IF(S8=MAX($S$3:$S$202),S8,"")) -> 0 | BM8: =IF(BL8=MAX($BL$3:$BL$202),B8,"") -> 63 | BN8: =IF(D8="","",IF(AN8=MAX($AN$3:$AN$202),AN8,"")) -> 0 | BO8: =IF(BN8=MAX($BN$3:$BN$202),B8,"") -> 63 | BP8: =IF(D8="","",IF(R8=MAX($R$3:$R$202),R8,"")) -> 0 | BQ8: =IF(BP8=MAX($BP$3:$BP$202),B8,"") -> 63 | BR8: =IF(D8="","",IF(AM8=MAX($AM$3:$AM$202),AM8,"")) -> 0 | BS8: =IF(BR8=MAX($BR$3:$BR$202),B8,"") -> 63 | BT8: =IF(D8="","",IF(V8=MAX($V$3:$V$202),V8,"")) -> 0 | BU8: =IF(BT8=MAX($BT$3:$BT$202),B8,"") -> 63 | BV8: =IF(D8="","",IF(W8=MAX($W$3:$W$202), W8,"")) -> 0 | BW8: =IF(BV8=MAX($BV$3:$BV$202),B8,"") -> 63 | BX8: =IF(D8="","",IF(AQ8=MAX($AQ$3:$AQ$202),AQ8,"")) -> 0 | BY8: =IF(BX8=MAX($BX$3:$BX$202),B8,"") -> 63 | BZ8: =IF(D8="","",IF(AR8=MAX($AR$3:$AR$202), AR8,"")) -> 0 | CA8: =IF(BZ8=MAX($BZ$3:$BZ$202),B8,"") -> 63 | CB8: =IF(D8="","",IF(U8=MAX($U$3:$U$202), U8,"")) -> 0 | CC8: =IF(CB8=MAX($CB$3:$CB$202),B8,"") -> 63 | CD8: =IF(D8="","",IF(AP8=MAX($AP$3:$AP$202),AP8,"")) -> 0 | CE8: =IF(CD8=MAX($CD$3:$CD$202),B8,"") -> 63 | CF8: =IF(D8="","",IF(T8=MAX($T$3:$T$202), T8,"")) -> 0 | CG8: =IF(CF8=MAX($CF$3:$CF$202),B8,"") -> 63 | CH8: =IF(D8="","",IF(AO8=MAX($AO$3:$AO$202),AO8,"")) -> 0 | CI8: =IF(CH8=MAX($CH$3:$CH$202),B8,"") -> 63 | CJ8: =IF(I8="AC",AZ8,"") ->  | CK8: =IF(CJ8="","",RANK(CJ8,$CJ$3:$CJ$202,1)) ->  | CL8: =IF(CK8=1,B8,"") ->  | CM8: =IF(CK8=2,B8,"") ->  | CN8: =IF(CK8=3,B8,"") ->  | CO8: =IF(I8="MC",AZ8,"") ->  | CP8: =IF(CO8="","",RANK(CO8,$CO$3:$CO$202,1)) ->  | CQ8: =IF(CP8=1,B8,"") ->  | CR8: =IF(CP8=2,B8,"") ->  | CS8: =IF(CP8=3,B8,"") ->  | CT8: =IF(BE8=0,BE8,"") ->  | CU8: =IF(BE8=1,1,"") ->  | CV8: =IF(BE8=2,2,"") ->  | CW8: =IF(BE8=3,3,"") ->  | CX8: =IF(BE8=4,4,"") ->  | CY8: =IF(BE8=5,5,"") -> 5 | CZ8: =IF(BH8=0,BH8,"") ->  | DA8: =IF(BH8=1,1,"") ->  | DB8: =IF(BH8=2,2,"") ->  | DC8: =IF(BH8=3,3,"") ->  | DD8: =IF(BH8=4,4,"") ->  | DE8: =IF(BH8=5,5,"") -> 5 | DF8: =IF(BK8=0,BK8,"") ->  | DG8: =IF(BK8=1,1,"") ->  | DH8: =IF(BK8=2,2,"") ->  | DI8: =IF(BK8=3,3,"") ->  | DJ8: =IF(BK8=4,4,"") ->  | DK8: =IF(BK8=5,5,"") ->  | DL8: =IF(BK8=6,6,"") ->  | DM8: =IF(BK8=7,7,"") ->  | DN8: =IF(BK8=8,8,"") ->  | DO8: =IF(BK8=9,9,"") ->  | DP8: =IF(BK8=10,10,"") -> 10 | DQ8: =IF(J8="Lund",AZ8,"") ->  | DR8: =IF(DQ8="","",RANK(DQ8,$DQ$3:$DQ$202,1)) ->  | DS8: =IF(DR8=1,B8,"") ->  | DT8: =IF(I8="AT",B8,"") -> 63 | DU8: =IF(I8="MC",B8,"") ->  | DV8: =IF(I8="AC",B8,"") ->  | DW8: =IF(BK8=0,0,IF(D8="","",$D$203-AZ8+1)/$D$203*100) -> 92.95774648 | DX8: =IF(AS8 = 0,AV8 - AS8,"") ->  | DY8: 14.25 | DZ8: 1.03
A9: 7 | B9: 65 | D9: Cowen, Matt | E9: Billings, MT | G9: Cowen, Blake | H9: Billings, MT | I9: AC | M9: 21 | N9: 18.25 | O9: 19.5 | P9: 19.75 | Q9: 18.25 | X9: =IF(M9>0,VLOOKUP(M9,$DY$8:$DZ$95,2)," ") -> 3.24 | Y9: =IF(N9>0,VLOOKUP(N9,$DY$8:$DZ$95,2)," ") -> 2.02 | Z9: =IF(O9>0,VLOOKUP(O9,$DY$8:$DZ$95,2)," ") -> 2.52 | AA9: =IF(P9>0,VLOOKUP(P9,$DY$8:$DZ$95,2)," ") -> 2.64 | AB9: =IF(Q9>0,VLOOKUP(Q9,$DY$8:$DZ$95,2)," ") -> 2.02 | AC9: 18.5 | AD9: 27 | AE9: 26.75 | AF9: 18.5 | AG9: 19 | AH9: =IF(AC9>0,VLOOKUP(AC9,$DY$8:$DZ$95,2)," ") -> 2.12 | AI9: =IF(AD9>0,VLOOKUP(AD9,$DY$8:$DZ$95,2)," ") -> 7.58 | AJ9: =IF(AE9>0,VLOOKUP(AE9,$DY$8:$DZ$95,2)," ") -> 7.36 | AK9: =IF(AF9>0,VLOOKUP(AF9,$DY$8:$DZ$95,2)," ") -> 2.12 | AL9: =IF(AG9>0,VLOOKUP(AG9,$DY$8:$DZ$95,2)," ") -> 2.32 | AS9: =IF(D9="","",SUM(X9:AB9)) -> 12.44 | AT9: =IF(D9="","",RANK(AS9,$AS$3:$AS$202,0)) -> 30 | AU9: =IF(D9="","",IF(LOOKUP(AT9,'Master 2012 Pay Sheet'!$A$5:$A$35,'Master 2012 Pay Sheet'!$B$5:$B$35)>0,LOOKUP(AT9,'Master 2012 Pay Sheet'!$A$5:$A$35,'Master 2012 Pay Sheet'!$B$5:$B$35),0)) -> 0 | AV9: =IF(D9="","",SUM(AH9:AL9)) -> 21.5 | AW9: =IF(D9="","",RANK(AV9,$AV$3:$AV$202,0)) -> 2 | AX9: =IF(D9="","",IF(LOOKUP(AW9,'Master 2012 Pay Sheet'!$C$5:$C$35,'Master 2012 Pay Sheet'!$D$5:$D$35)>0,LOOKUP(AW9,'Master 2012 Pay Sheet'!$C$5:$C$35,'Master 2012 Pay Sheet'!$D$5:$D$35),0)) -> 0 | AY9: =IF(D9="","",AS9+AV9) -> 33.94 | AZ9: =IF(D9="","",RANK(AY9,$AY$3:$AY$202,0)) -> 7 | BA9: =IF(D9="","",IF(LOOKUP(AZ9,'Master 2012 Pay Sheet'!$E$5:$E$35,'Master 2012 Pay Sheet'!$F$5:$F$35)>0,LOOKUP(AZ9,'Master 2012 Pay Sheet'!$E$5:$E$35,'Master 2012 Pay Sheet'!$F$5:$F$35),0)) -> 0 | BB9: =IF(D9="","",SUM(AU9+AX9+BA9)) -> 0 | BC9: =IF(D9="","",AT9-AZ9) -> 23 | BD9: =IF(D9="","",IF(BC9=MAX($BC$3:$BC$202),B9,"")) ->  | BE9: =IF(D9="","",COUNT(M9:Q9)) -> 5 | BF9: =IF(D9="","",MAX(X9:AB9)) -> 3.24 | BG9: =IF(BF9=MAX($BF$3:$BF$202),B9,"") ->  | BH9: =IF(D9="","",COUNT(AC9:AG9)) -> 5 | BI9: =IF(D9="","",MAX(AH9:AL9)) -> 7.58 | BJ9: =IF(BI9=MAX($BI$3:$BI$202),B9,"") ->  | BK9: =IF(BE9="","",BE9+BH9) -> 10 | BL9: =IF(D9="","",IF(S9=MAX($S$3:$S$202),S9,"")) -> 0 | BM9: =IF(BL9=MAX($BL$3:$BL$202),B9,"") -> 65 | BN9: =IF(D9="","",IF(AN9=MAX($AN$3:$AN$202),AN9,"")) -> 0 | BO9: =IF(BN9=MAX($BN$3:$BN$202),B9,"") -> 65 | BP9: =IF(D9="","",IF(R9=MAX($R$3:$R$202),R9,"")) -> 0 | BQ9: =IF(BP9=MAX($BP$3:$BP$202),B9,"") -> 65 | BR9: =IF(D9="","",IF(AM9=MAX($AM$3:$AM$202),AM9,"")) -> 0 | BS9: =IF(BR9=MAX($BR$3:$BR$202),B9,"") -> 65 | BT9: =IF(D9="","",IF(V9=MAX($V$3:$V$202),V9,"")) -> 0 | BU9: =IF(BT9=MAX($BT$3:$BT$202),B9,"") -> 65 | BV9: =IF(D9="","",IF(W9=MAX($W$3:$W$202), W9,"")) -> 0 | BW9: =IF(BV9=MAX($BV$3:$BV$202),B9,"") -> 65 | BX9: =IF(D9="","",IF(AQ9=MAX($AQ$3:$AQ$202),AQ9,"")) -> 0 | BY9: =IF(BX9=MAX($BX$3:$BX$202),B9,"") -> 65 | BZ9: =IF(D9="","",IF(AR9=MAX($AR$3:$AR$202), AR9,"")) -> 0 | CA9: =IF(BZ9=MAX($BZ$3:$BZ$202),B9,"") -> 65 | CB9: =IF(D9="","",IF(U9=MAX($U$3:$U$202), U9,"")) -> 0 | CC9: =IF(CB9=MAX($CB$3:$CB$202),B9,"") -> 65 | CD9: =IF(D9="","",IF(AP9=MAX($AP$3:$AP$202),AP9,"")) -> 0 | CE9: =IF(CD9=MAX($CD$3:$CD$202),B9,"") -> 65 | CF9: =IF(D9="","",IF(T9=MAX($T$3:$T$202), T9,"")) -> 0 | CG9: =IF(CF9=MAX($CF$3:$CF$202),B9,"") -> 65 | CH9: =IF(D9="","",IF(AO9=MAX($AO$3:$AO$202),AO9,"")) -> 0 | CI9: =IF(CH9=MAX($CH$3:$CH$202),B9,"") -> 65 | CJ9: =IF(I9="AC",AZ9,"") -> 7 | CK9: =IF(CJ9="","",RANK(CJ9,$CJ$3:$CJ$202,1)) -> 1 | CL9: =IF(CK9=1,B9,"") -> 65 | CM9: =IF(CK9=2,B9,"") ->  | CN9: =IF(CK9=3,B9,"") ->  | CO9: =IF(I9="MC",AZ9,"") ->  | CP9: =IF(CO9="","",RANK(CO9,$CO$3:$CO$202,1)) ->  | CQ9: =IF(CP9=1,B9,"") ->  | CR9: =IF(CP9=2,B9,"") ->  | CS9: =IF(CP9=3,B9,"") ->  | CT9: =IF(BE9=0,BE9,"") ->  | CU9: =IF(BE9=1,1,"") ->  | CV9: =IF(BE9=2,2,"") ->  | CW9: =IF(BE9=3,3,"") ->  | CX9: =IF(BE9=4,4,"") ->  | CY9: =IF(BE9=5,5,"") -> 5 | CZ9: =IF(BH9=0,BH9,"") ->  | DA9: =IF(BH9=1,1,"") ->  | DB9: =IF(BH9=2,2,"") ->  | DC9: =IF(BH9=3,3,"") ->  | DD9: =IF(BH9=4,4,"") ->  | DE9: =IF(BH9=5,5,"") -> 5 | DF9: =IF(BK9=0,BK9,"") ->  | DG9: =IF(BK9=1,1,"") ->  | DH9: =IF(BK9=2,2,"") ->  | DI9: =IF(BK9=3,3,"") ->  | DJ9: =IF(BK9=4,4,"") ->  | DK9: =IF(BK9=5,5,"") ->  | DL9: =IF(BK9=6,6,"") ->  | DM9: =IF(BK9=7,7,"") ->  | DN9: =IF(BK9=8,8,"") ->  | DO9: =IF(BK9=9,9,"") ->  | DP9: =IF(BK9=10,10,"") -> 10 | DQ9: =IF(J9="Lund",AZ9,"") ->  | DR9: =IF(DQ9="","",RANK(DQ9,$DQ$3:$DQ$202,1)) ->  | DS9: =IF(DR9=1,B9,"") ->  | DT9: =IF(I9="AT",B9,"") ->  | DU9: =IF(I9="MC",B9,"") ->  | DV9: =IF(I9="AC",B9,"") -> 65 | DW9: =IF(BK9=0,0,IF(D9="","",$D$203-AZ9+1)/$D$203*100) -> 91.54929577 | DX9: =IF(AS9 = 0,AV9 - AS9,"") ->  | DY9: 14.5 | DZ9: 1.06
A10: 8 | B10: 20 | D10: Wemmer, Paul | E10: Nashua, MT | G10: Toavs, Ted | H10: Wolf Point, MT | I10: AT | M10: 19 | N10: 19.25 | O10: 26.5 | P10: 18 | Q10: 28 | X10: =IF(M10>0,VLOOKUP(M10,$DY$8:$DZ$95,2)," ") -> 2.32 | Y10: =IF(N10>0,VLOOKUP(N10,$DY$8:$DZ$95,2)," ") -> 2.42 | Z10: =IF(O10>0,VLOOKUP(O10,$DY$8:$DZ$95,2)," ") -> 7.12 | AA10: =IF(P10>0,VLOOKUP(P10,$DY$8:$DZ$95,2)," ") -> 1.94 | AB10: =IF(Q10>0,VLOOKUP(Q10,$DY$8:$DZ$95,2)," ") -> 8.58 | AC10: 17 | AD10: 18.25 | AE10: 19.5 | AF10: 19.75 | AG10: 19 | AH10: =IF(AC10>0,VLOOKUP(AC10,$DY$8:$DZ$95,2)," ") -> 1.64 | AI10: =IF(AD10>0,VLOOKUP(AD10,$DY$8:$DZ$95,2)," ") -> 2.02 | AJ10: =IF(AE10>0,VLOOKUP(AE10,$DY$8:$DZ$95,2)," ") -> 2.52 | AK10: =IF(AF10>0,VLOOKUP(AF10,$DY$8:$DZ$95,2)," ") -> 2.64 | AL10: =IF(AG10>0,VLOOKUP(AG10,$DY$8:$DZ$95,2)," ") -> 2.32 | AS10: =IF(D10="","",SUM(X10:AB10)) -> 22.38 | AT10: =IF(D10="","",RANK(AS10,$AS$3:$AS$202,0)) -> 5 | AU10: =IF(D10="","",IF(LOOKUP(AT10,'Master 2012 Pay Sheet'!$A$5:$A$35,'Master 2012 Pay Sheet'!$B$5:$B$35)>0,LOOKUP(AT10,'Master 2012 Pay Sheet'!$A$5:$A$35,'Master 2012 Pay Sheet'!$B$5:$B$35),0)) -> 0 | AV10: =IF(D10="","",SUM(AH10:AL10)) -> 11.14 | AW10: =IF(D10="","",RANK(AV10,$AV$3:$AV$202,0)) -> 28 | AX10: =IF(D10="","",IF(LOOKUP(AW10,'Master 2012 Pay Sheet'!$C$5:$C$35,'Master 2012 Pay Sheet'!$D$5:$D$35)>0,LOOKUP(AW10,'Master 2012 Pay Sheet'!$C$5:$C$35,'Master 2012 Pay Sheet'!$D$5:$D$35),0)) -> 0 | AY10: =IF(D10="","",AS10+AV10) -> 33.52 | AZ10: =IF(D10="","",RANK(AY10,$AY$3:$AY$202,0)) -> 8 | BA10: =IF(D10="","",IF(LOOKUP(AZ10,'Master 2012 Pay Sheet'!$E$5:$E$35,'Master 2012 Pay Sheet'!$F$5:$F$35)>0,LOOKUP(AZ10,'Master 2012 Pay Sheet'!$E$5:$E$35,'Master 2012 Pay Sheet'!$F$5:$F$35),0)) -> 0 | BB10: =IF(D10="","",SUM(AU10+AX10+BA10)) -> 0 | BC10: =IF(D10="","",AT10-AZ10) -> -3 | BD10: =IF(D10="","",IF(BC10=MAX($BC$3:$BC$202),B10,"")) ->  | BE10: =IF(D10="","",COUNT(M10:Q10)) -> 5 | BF10: =IF(D10="","",MAX(X10:AB10)) -> 8.58 | BG10: =IF(BF10=MAX($BF$3:$BF$202),B10,"") ->  | BH10: =IF(D10="","",COUNT(AC10:AG10)) -> 5 | BI10: =IF(D10="","",MAX(AH10:AL10)) -> 2.64 | BJ10: =IF(BI10=MAX($BI$3:$BI$202),B10,"") ->  | BK10: =IF(BE10="","",BE10+BH10) -> 10 | BL10: =IF(D10="","",IF(S10=MAX($S$3:$S$202),S10,"")) -> 0 | BM10: =IF(BL10=MAX($BL$3:$BL$202),B10,"") -> 20 | BN10: =IF(D10="","",IF(AN10=MAX($AN$3:$AN$202),AN10,"")) -> 0 | BO10: =IF(BN10=MAX($BN$3:$BN$202),B10,"") -> 20 | BP10: =IF(D10="","",IF(R10=MAX($R$3:$R$202),R10,"")) -> 0 | BQ10: =IF(BP10=MAX($BP$3:$BP$202),B10,"") -> 20 | BR10: =IF(D10="","",IF(AM10=MAX($AM$3:$AM$202),AM10,"")) -> 0 | BS10: =IF(BR10=MAX($BR$3:$BR$202),B10,"") -> 20 | BT10: =IF(D10="","",IF(V10=MAX($V$3:$V$202),V10,"")) -> 0 | BU10: =IF(BT10=MAX($BT$3:$BT$202),B10,"") -> 20 | BV10: =IF(D10="","",IF(W10=MAX($W$3:$W$202), W10,"")) -> 0 | BW10: =IF(BV10=MAX($BV$3:$BV$202),B10,"") -> 20 | BX10: =IF(D10="","",IF(AQ10=MAX($AQ$3:$AQ$202),AQ10,"")) -> 0 | BY10: =IF(BX10=MAX($BX$3:$BX$202),B10,"") -> 20 | BZ10: =IF(D10="","",IF(AR10=MAX($AR$3:$AR$202), AR10,"")) -> 0 | CA10: =IF(BZ10=MAX($BZ$3:$BZ$202),B10,"") -> 20 | CB10: =IF(D10="","",IF(U10=MAX($U$3:$U$202), U10,"")) -> 0 | CC10: =IF(CB10=MAX($CB$3:$CB$202),B10,"") -> 20 | CD10: =IF(D10="","",IF(AP10=MAX($AP$3:$AP$202),AP10,"")) -> 0 | CE10: =IF(CD10=MAX($CD$3:$CD$202),B10,"") -> 20 | CF10: =IF(D10="","",IF(T10=MAX($T$3:$T$202), T10,"")) -> 0 | CG10: =IF(CF10=MAX($CF$3:$CF$202),B10,"") -> 20 | CH10: =IF(D10="","",IF(AO10=MAX($AO$3:$AO$202),AO10,"")) -> 0 | CI10: =IF(CH10=MAX($CH$3:$CH$202),B10,"") -> 20 | CJ10: =IF(I10="AC",AZ10,"") ->  | CK10: =IF(CJ10="","",RANK(CJ10,$CJ$3:$CJ$202,1)) ->  | CL10: =IF(CK10=1,B10,"") ->  | CM10: =IF(CK10=2,B10,"") ->  | CN10: =IF(CK10=3,B10,"") ->  | CO10: =IF(I10="MC",AZ10,"") ->  | CP10: =IF(CO10="","",RANK(CO10,$CO$3:$CO$202,1)) ->  | CQ10: =IF(CP10=1,B10,"") ->  | CR10: =IF(CP10=2,B10,"") ->  | CS10: =IF(CP10=3,B10,"") ->  | CT10: =IF(BE10=0,BE10,"") ->  | CU10: =IF(BE10=1,1,"") ->  | CV10: =IF(BE10=2,2,"") ->  | CW10: =IF(BE10=3,3,"") ->  | CX10: =IF(BE10=4,4,"") ->  | CY10: =IF(BE10=5,5,"") -> 5 | CZ10: =IF(BH10=0,BH10,"") ->  | DA10: =IF(BH10=1,1,"") ->  | DB10: =IF(BH10=2,2,"") ->  | DC10: =IF(BH10=3,3,"") ->  | DD10: =IF(BH10=4,4,"") ->  | DE10: =IF(BH10=5,5,"") -> 5 | DF10: =IF(BK10=0,BK10,"") ->  | DG10: =IF(BK10=1,1,"") ->  | DH10: =IF(BK10=2,2,"") ->  | DI10: =IF(BK10=3,3,"") ->  | DJ10: =IF(BK10=4,4,"") ->  | DK10: =IF(BK10=5,5,"") ->  | DL10: =IF(BK10=6,6,"") ->  | DM10: =IF(BK10=7,7,"") ->  | DN10: =IF(BK10=8,8,"") ->  | DO10: =IF(BK10=9,9,"") ->  | DP10: =IF(BK10=10,10,"") -> 10 | DQ10: =IF(J10="Lund",AZ10,"") ->  | DR10: =IF(DQ10="","",RANK(DQ10,$DQ$3:$DQ$202,1)) ->  | DS10: =IF(DR10=1,B10,"") ->  | DT10: =IF(I10="AT",B10,"") -> 20 | DU10: =IF(I10="MC",B10,"") ->  | DV10: =IF(I10="AC",B10,"") ->  | DW10: =IF(BK10=0,0,IF(D10="","",$D$203-AZ10+1)/$D$203*100) -> 90.14084507 | DX10: =IF(AS10 = 0,AV10 - AS10,"") ->  | DY10: 14.75 | DZ10: 1.09
A11: 9 | B11: 62 | D11: Hooks, Shawn | E11: Fort Peck, MT | G11: Jaeger, Eric | H11: Parshall, ND | I11: AT | M11: 30 | N11: 17.75 | O11: 17.75 | P11: 16.5 | Q11: 16.75 | X11: =IF(M11>0,VLOOKUP(M11,$DY$8:$DZ$95,2)," ") -> 10.82 | Y11: =IF(N11>0,VLOOKUP(N11,$DY$8:$DZ$95,2)," ") -> 1.86 | Z11: =IF(O11>0,VLOOKUP(O11,$DY$8:$DZ$95,2)," ") -> 1.86 | AA11: =IF(P11>0,VLOOKUP(P11,$DY$8:$DZ$95,2)," ") -> 1.5 | AB11: =IF(Q11>0,VLOOKUP(Q11,$DY$8:$DZ$95,2)," ") -> 1.58 | AC11: 19.25 | AD11: 20 | AE11: 20.25 | AF11: 23.25 | AG11: 21 | AH11: =IF(AC11>0,VLOOKUP(AC11,$DY$8:$DZ$95,2)," ") -> 2.42 | AI11: =IF(AD11>0,VLOOKUP(AD11,$DY$8:$DZ$95,2)," ") -> 2.76 | AJ11: =IF(AE11>0,VLOOKUP(AE11,$DY$8:$DZ$95,2)," ") -> 2.88 | AK11: =IF(AF11>0,VLOOKUP(AF11,$DY$8:$DZ$95,2)," ") -> 4.58 | AL11: =IF(AG11>0,VLOOKUP(AG11,$DY$8:$DZ$95,2)," ") -> 3.24 | AS11: =IF(D11="","",SUM(X11:AB11)) -> 17.62 | AT11: =IF(D11="","",RANK(AS11,$AS$3:$AS$202,0)) -> 13 | AU11: =IF(D11="","",IF(LOOKUP(AT11,'Master 2012 Pay Sheet'!$A$5:$A$35,'Master 2012 Pay Sheet'!$B$5:$B$35)>0,LOOKUP(AT11,'Master 2012 Pay Sheet'!$A$5:$A$35,'Master 2012 Pay Sheet'!$B$5:$B$35),0)) -> 0 | AV11: =IF(D11="","",SUM(AH11:AL11)) -> 15.88 | AW11: =IF(D11="","",RANK(AV11,$AV$3:$AV$202,0)) -> 13 | AX11: =IF(D11="","",IF(LOOKUP(AW11,'Master 2012 Pay Sheet'!$C$5:$C$35,'Master 2012 Pay Sheet'!$D$5:$D$35)>0,LOOKUP(AW11,'Master 2012 Pay Sheet'!$C$5:$C$35,'Master 2012 Pay Sheet'!$D$5:$D$35),0)) -> 0 | AY11: =IF(D11="","",AS11+AV11) -> 33.5 | AZ11: =IF(D11="","",RANK(AY11,$AY$3:$AY$202,0)) -> 9 | BA11: =IF(D11="","",IF(LOOKUP(AZ11,'Master 2012 Pay Sheet'!$E$5:$E$35,'Master 2012 Pay Sheet'!$F$5:$F$35)>0,LOOKUP(AZ11,'Master 2012 Pay Sheet'!$E$5:$E$35,'Master 2012 Pay Sheet'!$F$5:$F$35),0)) -> 0 | BB11: =IF(D11="","",SUM(AU11+AX11+BA11)) -> 0 | BC11: =IF(D11="","",AT11-AZ11) -> 4 | BD11: =IF(D11="","",IF(BC11=MAX($BC$3:$BC$202),B11,"")) ->  | BE11: =IF(D11="","",COUNT(M11:Q11)) -> 5 | BF11: =IF(D11="","",MAX(X11:AB11)) -> 10.82 | BG11: =IF(BF11=MAX($BF$3:$BF$202),B11,"") ->  | BH11: =IF(D11="","",COUNT(AC11:AG11)) -> 5 | BI11: =IF(D11="","",MAX(AH11:AL11)) -> 4.58 | BJ11: =IF(BI11=MAX($BI$3:$BI$202),B11,"") ->  | BK11: =IF(BE11="","",BE11+BH11) -> 10 | BL11: =IF(D11="","",IF(S11=MAX($S$3:$S$202),S11,"")) -> 0 | BM11: =IF(BL11=MAX($BL$3:$BL$202),B11,"") -> 62 | BN11: =IF(D11="","",IF(AN11=MAX($AN$3:$AN$202),AN11,"")) -> 0 | BO11: =IF(BN11=MAX($BN$3:$BN$202),B11,"") -> 62 | BP11: =IF(D11="","",IF(R11=MAX($R$3:$R$202),R11,"")) -> 0 | BQ11: =IF(BP11=MAX($BP$3:$BP$202),B11,"") -> 62 | BR11: =IF(D11="","",IF(AM11=MAX($AM$3:$AM$202),AM11,"")) -> 0 | BS11: =IF(BR11=MAX($BR$3:$BR$202),B11,"") -> 62 | BT11: =IF(D11="","",IF(V11=MAX($V$3:$V$202),V11,"")) -> 0 | BU11: =IF(BT11=MAX($BT$3:$BT$202),B11,"") -> 62 | BV11: =IF(D11="","",IF(W11=MAX($W$3:$W$202), W11,"")) -> 0 | BW11: =IF(BV11=MAX($BV$3:$BV$202),B11,"") -> 62 | BX11: =IF(D11="","",IF(AQ11=MAX($AQ$3:$AQ$202),AQ11,"")) -> 0 | BY11: =IF(BX11=MAX($BX$3:$BX$202),B11,"") -> 62 | BZ11: =IF(D11="","",IF(AR11=MAX($AR$3:$AR$202), AR11,"")) -> 0 | CA11: =IF(BZ11=MAX($BZ$3:$BZ$202),B11,"") -> 62 | CB11: =IF(D11="","",IF(U11=MAX($U$3:$U$202), U11,"")) -> 0 | CC11: =IF(CB11=MAX($CB$3:$CB$202),B11,"") -> 62 | CD11: =IF(D11="","",IF(AP11=MAX($AP$3:$AP$202),AP11,"")) -> 0 | CE11: =IF(CD11=MAX($CD$3:$CD$202),B11,"") -> 62 | CF11: =IF(D11="","",IF(T11=MAX($T$3:$T$202), T11,"")) -> 0 | CG11: =IF(CF11=MAX($CF$3:$CF$202),B11,"") -> 62 | CH11: =IF(D11="","",IF(AO11=MAX($AO$3:$AO$202),AO11,"")) -> 0 | CI11: =IF(CH11=MAX($CH$3:$CH$202),B11,"") -> 62 | CJ11: =IF(I11="AC",AZ11,"") ->  | CK11: =IF(CJ11="","",RANK(CJ11,$CJ$3:$CJ$202,1)) ->  | CL11: =IF(CK11=1,B11,"") ->  | CM11: =IF(CK11=2,B11,"") ->  | CN11: =IF(CK11=3,B11,"") ->  | CO11: =IF(I11="MC",AZ11,"") ->  | CP11: =IF(CO11="","",RANK(CO11,$CO$3:$CO$202,1)) ->  | CQ11: =IF(CP11=1,B11,"") ->  | CR11: =IF(CP11=2,B11,"") ->  | CS11: =IF(CP11=3,B11,"") ->  | CT11: =IF(BE11=0,BE11,"") ->  | CU11: =IF(BE11=1,1,"") ->  | CV11: =IF(BE11=2,2,"") ->  | CW11: =IF(BE11=3,3,"") ->  | CX11: =IF(BE11=4,4,"") ->  | CY11: =IF(BE11=5,5,"") -> 5 | CZ11: =IF(BH11=0,BH11,"") ->  | DA11: =IF(BH11=1,1,"") ->  | DB11: =IF(BH11=2,2,"") ->  | DC11: =IF(BH11=3,3,"") ->  | DD11: =IF(BH11=4,4,"") ->  | DE11: =IF(BH11=5,5,"") -> 5 | DF11: =IF(BK11=0,BK11,"") ->  | DG11: =IF(BK11=1,1,"") ->  | DH11: =IF(BK11=2,2,"") ->  | DI11: =IF(BK11=3,3,"") ->  | DJ11: =IF(BK11=4,4,"") ->  | DK11: =IF(BK11=5,5,"") ->  | DL11: =IF(BK11=6,6,"") ->  | DM11: =IF(BK11=7,7,"") ->  | DN11: =IF(BK11=8,8,"") ->  | DO11: =IF(BK11=9,9,"") ->  | DP11: =IF(BK11=10,10,"") -> 10 | DQ11: =IF(J11="Lund",AZ11,"") ->  | DR11: =IF(DQ11="","",RANK(DQ11,$DQ$3:$DQ$202,1)) ->  | DS11: =IF(DR11=1,B11,"") ->  | DT11: =IF(I11="AT",B11,"") -> 62 | DU11: =IF(I11="MC",B11,"") ->  | DV11: =IF(I11="AC",B11,"") ->  | DW11: =IF(BK11=0,0,IF(D11="","",$D$203-AZ11+1)/$D$203*100) -> 88.73239437 | DX11: =IF(AS11 = 0,AV11 - AS11,"") ->  | DY11: 15 | DZ11: 1.12
A12: 10 | B12: 59 | D12: Poole, Matt | E12: Glasgow, MT | G12: Bertram, Pete | H12: Sartell, MN | I12: AT | M12: 24.25 | N12: 19.5 | O12: 22.75 | P12: 15 | Q12: 15.5 | X12: =IF(M12>0,VLOOKUP(M12,$DY$8:$DZ$95,2)," ") -> 5.28 | Y12: =IF(N12>0,VLOOKUP(N12,$DY$8:$DZ$95,2)," ") -> 2.52 | Z12: =IF(O12>0,VLOOKUP(O12,$DY$8:$DZ$95,2)," ") -> 4.26 | AA12: =IF(P12>0,VLOOKUP(P12,$DY$8:$DZ$95,2)," ") -> 1.12 | AB12: =IF(Q12>0,VLOOKUP(Q12,$DY$8:$DZ$95,2)," ") -> 1.24 | AC12: 31.5 | AD12: 22 | AE12: 15.75 | AH12: =IF(AC12>0,VLOOKUP(AC12,$DY$8:$DZ$95,2)," ") -> 12.7 | AI12: =IF(AD12>0,VLOOKUP(AD12,$DY$8:$DZ$95,2)," ") -> 3.8 | AJ12: =IF(AE12>0,VLOOKUP(AE12,$DY$8:$DZ$95,2)," ") -> 1.32 | AK12: =IF(AF12>0,VLOOKUP(AF12,$DY$8:$DZ$95,2)," ") ->  | AL12: =IF(AG12>0,VLOOKUP(AG12,$DY$8:$DZ$95,2)," ") ->  | AS12: =IF(D12="","",SUM(X12:AB12)) -> 14.42 | AT12: =IF(D12="","",RANK(AS12,$AS$3:$AS$202,0)) -> 21 | AU12: =IF(D12="","",IF(LOOKUP(AT12,'Master 2012 Pay Sheet'!$A$5:$A$35,'Master 2012 Pay Sheet'!$B$5:$B$35)>0,LOOKUP(AT12,'Master 2012 Pay Sheet'!$A$5:$A$35,'Master 2012 Pay Sheet'!$B$5:$B$35),0)) -> 0 | AV12: =IF(D12="","",SUM(AH12:AL12)) -> 17.82 | AW12: =IF(D12="","",RANK(AV12,$AV$3:$AV$202,0)) -> 8 | AX12: =IF(D12="","",IF(LOOKUP(AW12,'Master 2012 Pay Sheet'!$C$5:$C$35,'Master 2012 Pay Sheet'!$D$5:$D$35)>0,LOOKUP(AW12,'Master 2012 Pay Sheet'!$C$5:$C$35,'Master 2012 Pay Sheet'!$D$5:$D$35),0)) -> 0 | AY12: =IF(D12="","",AS12+AV12) -> 32.24 | AZ12: =IF(D12="","",RANK(AY12,$AY$3:$AY$202,0)) -> 10 | BA12: =IF(D12="","",IF(LOOKUP(AZ12,'Master 2012 Pay Sheet'!$E$5:$E$35,'Master 2012 Pay Sheet'!$F$5:$F$35)>0,LOOKUP(AZ12,'Master 2012 Pay Sheet'!$E$5:$E$35,'Master 2012 Pay Sheet'!$F$5:$F$35),0)) -> 0 | BB12: =IF(D12="","",SUM(AU12+AX12+BA12)) -> 0 | BC12: =IF(D12="","",AT12-AZ12) -> 11 | BD12: =IF(D12="","",IF(BC12=MAX($BC$3:$BC$202),B12,"")) ->  | BE12: =IF(D12="","",COUNT(M12:Q12)) -> 5 | BF12: =IF(D12="","",MAX(X12:AB12)) -> 5.28 | BG12: =IF(BF12=MAX($BF$3:$BF$202),B12,"") ->  | BH12: =IF(D12="","",COUNT(AC12:AG12)) -> 3 | BI12: =IF(D12="","",MAX(AH12:AL12)) -> 12.7 | BJ12: =IF(BI12=MAX($BI$3:$BI$202),B12,"") -> 59 | BK12: =IF(BE12="","",BE12+BH12) -> 8 | BL12: =IF(D12="","",IF(S12=MAX($S$3:$S$202),S12,"")) -> 0 | BM12: =IF(BL12=MAX($BL$3:$BL$202),B12,"") -> 59 | BN12: =IF(D12="","",IF(AN12=MAX($AN$3:$AN$202),AN12,"")) -> 0 | BO12: =IF(BN12=MAX($BN$3:$BN$202),B12,"") -> 59 | BP12: =IF(D12="","",IF(R12=MAX($R$3:$R$202),R12,"")) -> 0 | BQ12: =IF(BP12=MAX($BP$3:$BP$202),B12,"") -> 59 | BR12: =IF(D12="","",IF(AM12=MAX($AM$3:$AM$202),AM12,"")) -> 0 | BS12: =IF(BR12=MAX($BR$3:$BR$202),B12,"") -> 59 | BT12: =IF(D12="","",IF(V12=MAX($V$3:$V$202),V12,"")) -> 0 | BU12: =IF(BT12=MAX($BT$3:$BT$202),B12,"") -> 59 | BV12: =IF(D12="","",IF(W12=MAX($W$3:$W$202), W12,"")) -> 0 | BW12: =IF(BV12=MAX($BV$3:$BV$202),B12,"") -> 59 | BX12: =IF(D12="","",IF(AQ12=MAX($AQ$3:$AQ$202),AQ12,"")) -> 0 | BY12: =IF(BX12=MAX($BX$3:$BX$202),B12,"") -> 59 | BZ12: =IF(D12="","",IF(AR12=MAX($AR$3:$AR$202), AR12,"")) -> 0 | CA12: =IF(BZ12=MAX($BZ$3:$BZ$202),B12,"") -> 59 | CB12: =IF(D12="","",IF(U12=MAX($U$3:$U$202), U12,"")) -> 0 | CC12: =IF(CB12=MAX($CB$3:$CB$202),B12,"") -> 59 | CD12: =IF(D12="","",IF(AP12=MAX($AP$3:$AP$202),AP12,"")) -> 0 | CE12: =IF(CD12=MAX($CD$3:$CD$202),B12,"") -> 59 | CF12: =IF(D12="","",IF(T12=MAX($T$3:$T$202), T12,"")) -> 0 | CG12: =IF(CF12=MAX($CF$3:$CF$202),B12,"") -> 59 | CH12: =IF(D12="","",IF(AO12=MAX($AO$3:$AO$202),AO12,"")) -> 0 | CI12: =IF(CH12=MAX($CH$3:$CH$202),B12,"") -> 59 | CJ12: =IF(I12="AC",AZ12,"") ->  | CK12: =IF(CJ12="","",RANK(CJ12,$CJ$3:$CJ$202,1)) ->  | CL12: =IF(CK12=1,B12,"") ->  | CM12: =IF(CK12=2,B12,"") ->  | CN12: =IF(CK12=3,B12,"") ->  | CO12: =IF(I12="MC",AZ12,"") ->  | CP12: =IF(CO12="","",RANK(CO12,$CO$3:$CO$202,1)) ->  | CQ12: =IF(CP12=1,B12,"") ->  | CR12: =IF(CP12=2,B12,"") ->  | CS12: =IF(CP12=3,B12,"") ->  | CT12: =IF(BE12=0,BE12,"") ->  | CU12: =IF(BE12=1,1,"") ->  | CV12: =IF(BE12=2,2,"") ->  | CW12: =IF(BE12=3,3,"") ->  | CX12: =IF(BE12=4,4,"") ->  | CY12: =IF(BE12=5,5,"") -> 5 | CZ12: =IF(BH12=0,BH12,"") ->  | DA12: =IF(BH12=1,1,"") ->  | DB12: =IF(BH12=2,2,"") ->  | DC12: =IF(BH12=3,3,"") -> 3 | DD12: =IF(BH12=4,4,"") ->  | DE12: =IF(BH12=5,5,"") ->  | DF12: =IF(BK12=0,BK12,"") ->  | DG12: =IF(BK12=1,1,"") ->  | DH12: =IF(BK12=2,2,"") ->  | DI12: =IF(BK12=3,3,"") ->  | DJ12: =IF(BK12=4,4,"") ->  | DK12: =IF(BK12=5,5,"") ->  | DL12: =IF(BK12=6,6,"") ->  | DM12: =IF(BK12=7,7,"") ->  | DN12: =IF(BK12=8,8,"") -> 8 | DO12: =IF(BK12=9,9,"") ->  | DP12: =IF(BK12=10,10,"") ->  | DQ12: =IF(J12="Lund",AZ12,"") ->  | DR12: =IF(DQ12="","",RANK(DQ12,$DQ$3:$DQ$202,1)) ->  | DS12: =IF(DR12=1,B12,"") ->  | DT12: =IF(I12="AT",B12,"") -> 59 | DU12: =IF(I12="MC",B12,"") ->  | DV12: =IF(I12="AC",B12,"") ->  | DW12: =IF(BK12=0,0,IF(D12="","",$D$203-AZ12+1)/$D$203*100) -> 87.32394366 | DX12: =IF(AS12 = 0,AV12 - AS12,"") ->  | DY12: 15.25 | DZ12: 1.18
A13: 11 | B13: 48 | D13: Dooley, Todd | E13: Sidney, MT | G13: Hurst, Randy | H13: Fairview, MT | I13: AT | M13: 20 | N13: 21.25 | O13: 19.75 | P13: 17 | Q13: 17 | X13: =IF(M13>0,VLOOKUP(M13,$DY$8:$DZ$95,2)," ") -> 2.76 | Y13: =IF(N13>0,VLOOKUP(N13,$DY$8:$DZ$95,2)," ") -> 3.38 | Z13: =IF(O13>0,VLOOKUP(O13,$DY$8:$DZ$95,2)," ") -> 2.64 | AA13: =IF(P13>0,VLOOKUP(P13,$DY$8:$DZ$95,2)," ") -> 1.64 | AB13: =IF(Q13>0,VLOOKUP(Q13,$DY$8:$DZ$95,2)," ") -> 1.64 | AC13: 18.5 | AD13: 16.75 | AE13: 19.25 | AF13: 23.75 | AG13: 27.5 | AH13: =IF(AC13>0,VLOOKUP(AC13,$DY$8:$DZ$95,2)," ") -> 2.12 | AI13: =IF(AD13>0,VLOOKUP(AD13,$DY$8:$DZ$95,2)," ") -> 1.58 | AJ13: =IF(AE13>0,VLOOKUP(AE13,$DY$8:$DZ$95,2)," ") -> 2.42 | AK13: =IF(AF13>0,VLOOKUP(AF13,$DY$8:$DZ$95,2)," ") -> 4.88 | AL13: =IF(AG13>0,VLOOKUP(AG13,$DY$8:$DZ$95,2)," ") -> 8.08 | AS13: =IF(D13="","",SUM(X13:AB13)) -> 12.06 | AT13: =IF(D13="","",RANK(AS13,$AS$3:$AS$202,0)) -> 32 | AU13: =IF(D13="","",IF(LOOKUP(AT13,'Master 2012 Pay Sheet'!$A$5:$A$35,'Master 2012 Pay Sheet'!$B$5:$B$35)>0,LOOKUP(AT13,'Master 2012 Pay Sheet'!$A$5:$A$35,'Master 2012 Pay Sheet'!$B$5:$B$35),0)) -> 0 | AV13: =IF(D13="","",SUM(AH13:AL13)) -> 19.08 | AW13: =IF(D13="","",RANK(AV13,$AV$3:$AV$202,0)) -> 5 | AX13: =IF(D13="","",IF(LOOKUP(AW13,'Master 2012 Pay Sheet'!$C$5:$C$35,'Master 2012 Pay Sheet'!$D$5:$D$35)>0,LOOKUP(AW13,'Master 2012 Pay Sheet'!$C$5:$C$35,'Master 2012 Pay Sheet'!$D$5:$D$35),0)) -> 0 | AY13: =IF(D13="","",AS13+AV13) -> 31.14 | AZ13: =IF(D13="","",RANK(AY13,$AY$3:$AY$202,0)) -> 11 | BA13: =IF(D13="","",IF(LOOKUP(AZ13,'Master 2012 Pay Sheet'!$E$5:$E$35,'Master 2012 Pay Sheet'!$F$5:$F$35)>0,LOOKUP(AZ13,'Master 2012 Pay Sheet'!$E$5:$E$35,'Master 2012 Pay Sheet'!$F$5:$F$35),0)) -> 0 | BB13: =IF(D13="","",SUM(AU13+AX13+BA13)) -> 0 | BC13: =IF(D13="","",AT13-AZ13) -> 21 | BD13: =IF(D13="","",IF(BC13=MAX($BC$3:$BC$202),B13,"")) ->  | BE13: =IF(D13="","",COUNT(M13:Q13)) -> 5 | BF13: =IF(D13="","",MAX(X13:AB13)) -> 3.38 | BG13: =IF(BF13=MAX($BF$3:$BF$202),B13,"") ->  | BH13: =IF(D13="","",COUNT(AC13:AG13)) -> 5 | BI13: =IF(D13="","",MAX(AH13:AL13)) -> 8.08 | BJ13: =IF(BI13=MAX($BI$3:$BI$202),B13,"") ->  | BK13: =IF(BE13="","",BE13+BH13) -> 10 | BL13: =IF(D13="","",IF(S13=MAX($S$3:$S$202),S13,"")) -> 0 | BM13: =IF(BL13=MAX($BL$3:$BL$202),B13,"") -> 48 | BN13: =IF(D13="","",IF(AN13=MAX($AN$3:$AN$202),AN13,"")) -> 0 | BO13: =IF(BN13=MAX($BN$3:$BN$202),B13,"") -> 48 | BP13: =IF(D13="","",IF(R13=MAX($R$3:$R$202),R13,"")) -> 0 | BQ13: =IF(BP13=MAX($BP$3:$BP$202),B13,"") -> 48 | BR13: =IF(D13="","",IF(AM13=MAX($AM$3:$AM$202),AM13,"")) -> 0 | BS13: =IF(BR13=MAX($BR$3:$BR$202),B13,"") -> 48 | BT13: =IF(D13="","",IF(V13=MAX($V$3:$V$202),V13,"")) -> 0 | BU13: =IF(BT13=MAX($BT$3:$BT$202),B13,"") -> 48 | BV13: =IF(D13="","",IF(W13=MAX($W$3:$W$202), W13,"")) -> 0 | BW13: =IF(BV13=MAX($BV$3:$BV$202),B13,"") -> 48 | BX13: =IF(D13="","",IF(AQ13=MAX($AQ$3:$AQ$202),AQ13,"")) -> 0 | BY13: =IF(BX13=MAX($BX$3:$BX$202),B13,"") -> 48 | BZ13: =IF(D13="","",IF(AR13=MAX($AR$3:$AR$202), AR13,"")) -> 0 | CA13: =IF(BZ13=MAX($BZ$3:$BZ$202),B13,"") -> 48 | CB13: =IF(D13="","",IF(U13=MAX($U$3:$U$202), U13,"")) -> 0 | CC13: =IF(CB13=MAX($CB$3:$CB$202),B13,"") -> 48 | CD13: =IF(D13="","",IF(AP13=MAX($AP$3:$AP$202),AP13,"")) -> 0 | CE13: =IF(CD13=MAX($CD$3:$CD$202),B13,"") -> 48 | CF13: =IF(D13="","",IF(T13=MAX($T$3:$T$202), T13,"")) -> 0 | CG13: =IF(CF13=MAX($CF$3:$CF$202),B13,"") -> 48 | CH13: =IF(D13="","",IF(AO13=MAX($AO$3:$AO$202),AO13,"")) -> 0 | CI13: =IF(CH13=MAX($CH$3:$CH$202),B13,"") -> 48 | CJ13: =IF(I13="AC",AZ13,"") ->  | CK13: =IF(CJ13="","",RANK(CJ13,$CJ$3:$CJ$202,1)) ->  | CL13: =IF(CK13=1,B13,"") ->  | CM13: =IF(CK13=2,B13,"") ->  | CN13: =IF(CK13=3,B13,"") ->  | CO13: =IF(I13="MC",AZ13,"") ->  | CP13: =IF(CO13="","",RANK(CO13,$CO$3:$CO$202,1)) ->  | CQ13: =IF(CP13=1,B13,"") ->  | CR13: =IF(CP13=2,B13,"") ->  | CS13: =IF(CP13=3,B13,"") ->  | CT13: =IF(BE13=0,BE13,"") ->  | CU13: =IF(BE13=1,1,"") ->  | CV13: =IF(BE13=2,2,"") ->  | CW13: =IF(BE13=3,3,"") ->  | CX13: =IF(BE13=4,4,"") ->  | CY13: =IF(BE13=5,5,"") -> 5 | CZ13: =IF(BH13=0,BH13,"") ->  | DA13: =IF(BH13=1,1,"") ->  | DB13: =IF(BH13=2,2,"") ->  | DC13: =IF(BH13=3,3,"") ->  | DD13: =IF(BH13=4,4,"") ->  | DE13: =IF(BH13=5,5,"") -> 5 | DF13: =IF(BK13=0,BK13,"") ->  | DG13: =IF(BK13=1,1,"") ->  | DH13: =IF(BK13=2,2,"") ->  | DI13: =IF(BK13=3,3,"") ->  | DJ13: =IF(BK13=4,4,"") ->  | DK13: =IF(BK13=5,5,"") ->  | DL13: =IF(BK13=6,6,"") ->  | DM13: =IF(BK13=7,7,"") ->  | DN13: =IF(BK13=8,8,"") ->  | DO13: =IF(BK13=9,9,"") ->  | DP13: =IF(BK13=10,10,"") -> 10 | DQ13: =IF(J13="Lund",AZ13,"") ->  | DR13: =IF(DQ13="","",RANK(DQ13,$DQ$3:$DQ$202,1)) ->  | DS13: =IF(DR13=1,B13,"") ->  | DT13: =IF(I13="AT",B13,"") -> 48 | DU13: =IF(I13="MC",B13,"") ->  | DV13: =IF(I13="AC",B13,"") ->  | DW13: =IF(BK13=0,0,IF(D13="","",$D$203-AZ13+1)/$D$203*100) -> 85.91549296 | DX13: =IF(AS13 = 0,AV13 - AS13,"") ->  | DY13: 15.5 | DZ13: 1.24
A14: 12 | B14: 57 | D14: Linder, Tim | E14: Glendive, MT | G14: Linder, Steve | H14: Glendive,MT | I14: AT | M14: 19.25 | N14: 19 | O14: 18.5 | P14: 18 | Q14: 21.5 | X14: =IF(M14>0,VLOOKUP(M14,$DY$8:$DZ$95,2)," ") -> 2.42 | Y14: =IF(N14>0,VLOOKUP(N14,$DY$8:$DZ$95,2)," ") -> 2.32 | Z14: =IF(O14>0,VLOOKUP(O14,$DY$8:$DZ$95,2)," ") -> 2.12 | AA14: =IF(P14>0,VLOOKUP(P14,$DY$8:$DZ$95,2)," ") -> 1.94 | AB14: =IF(Q14>0,VLOOKUP(Q14,$DY$8:$DZ$95,2)," ") -> 3.52 | AC14: 29 | AD14: 19 | AE14: 19.5 | AF14: 19.5 | AG14: 17 | AH14: =IF(AC14>0,VLOOKUP(AC14,$DY$8:$DZ$95,2)," ") -> 9.64 | AI14: =IF(AD14>0,VLOOKUP(AD14,$DY$8:$DZ$95,2)," ") -> 2.32 | AJ14: =IF(AE14>0,VLOOKUP(AE14,$DY$8:$DZ$95,2)," ") -> 2.52 | AK14: =IF(AF14>0,VLOOKUP(AF14,$DY$8:$DZ$95,2)," ") -> 2.52 | AL14: =IF(AG14>0,VLOOKUP(AG14,$DY$8:$DZ$95,2)," ") -> 1.64 | AS14: =IF(D14="","",SUM(X14:AB14)) -> 12.32 | AT14: =IF(D14="","",RANK(AS14,$AS$3:$AS$202,0)) -> 31 | AU14: =IF(D14="","",IF(LOOKUP(AT14,'Master 2012 Pay Sheet'!$A$5:$A$35,'Master 2012 Pay Sheet'!$B$5:$B$35)>0,LOOKUP(AT14,'Master 2012 Pay Sheet'!$A$5:$A$35,'Master 2012 Pay Sheet'!$B$5:$B$35),0)) -> 0 | AV14: =IF(D14="","",SUM(AH14:AL14)) -> 18.64 | AW14: =IF(D14="","",RANK(AV14,$AV$3:$AV$202,0)) -> 7 | AX14: =IF(D14="","",IF(LOOKUP(AW14,'Master 2012 Pay Sheet'!$C$5:$C$35,'Master 2012 Pay Sheet'!$D$5:$D$35)>0,LOOKUP(AW14,'Master 2012 Pay Sheet'!$C$5:$C$35,'Master 2012 Pay Sheet'!$D$5:$D$35),0)) -> 0 | AY14: =IF(D14="","",AS14+AV14) -> 30.96 | AZ14: =IF(D14="","",RANK(AY14,$AY$3:$AY$202,0)) -> 12 | BA14: =IF(D14="","",IF(LOOKUP(AZ14,'Master 2012 Pay Sheet'!$E$5:$E$35,'Master 2012 Pay Sheet'!$F$5:$F$35)>0,LOOKUP(AZ14,'Master 2012 Pay Sheet'!$E$5:$E$35,'Master 2012 Pay Sheet'!$F$5:$F$35),0)) -> 0 | BB14: =IF(D14="","",SUM(AU14+AX14+BA14)) -> 0 | BC14: =IF(D14="","",AT14-AZ14) -> 19 | BD14: =IF(D14="","",IF(BC14=MAX($BC$3:$BC$202),B14,"")) ->  | BE14: =IF(D14="","",COUNT(M14:Q14)) -> 5 | BF14: =IF(D14="","",MAX(X14:AB14)) -> 3.52 | BG14: =IF(BF14=MAX($BF$3:$BF$202),B14,"") ->  | BH14: =IF(D14="","",COUNT(AC14:AG14)) -> 5 | BI14: =IF(D14="","",MAX(AH14:AL14)) -> 9.64 | BJ14: =IF(BI14=MAX($BI$3:$BI$202),B14,"") ->  | BK14: =IF(BE14="","",BE14+BH14) -> 10 | BL14: =IF(D14="","",IF(S14=MAX($S$3:$S$202),S14,"")) -> 0 | BM14: =IF(BL14=MAX($BL$3:$BL$202),B14,"") -> 57 | BN14: =IF(D14="","",IF(AN14=MAX($AN$3:$AN$202),AN14,"")) -> 0 | BO14: =IF(BN14=MAX($BN$3:$BN$202),B14,"") -> 57 | BP14: =IF(D14="","",IF(R14=MAX($R$3:$R$202),R14,"")) -> 0 | BQ14: =IF(BP14=MAX($BP$3:$BP$202),B14,"") -> 57 | BR14: =IF(D14="","",IF(AM14=MAX($AM$3:$AM$202),AM14,"")) -> 0 | BS14: =IF(BR14=MAX($BR$3:$BR$202),B14,"") -> 57 | BT14: =IF(D14="","",IF(V14=MAX($V$3:$V$202),V14,"")) -> 0 | BU14: =IF(BT14=MAX($BT$3:$BT$202),B14,"") -> 57 | BV14: =IF(D14="","",IF(W14=MAX($W$3:$W$202), W14,"")) -> 0 | BW14: =IF(BV14=MAX($BV$3:$BV$202),B14,"") -> 57 | BX14: =IF(D14="","",IF(AQ14=MAX($AQ$3:$AQ$202),AQ14,"")) -> 0 | BY14: =IF(BX14=MAX($BX$3:$BX$202),B14,"") -> 57 | BZ14: =IF(D14="","",IF(AR14=MAX($AR$3:$AR$202), AR14,"")) -> 0 | CA14: =IF(BZ14=MAX($BZ$3:$BZ$202),B14,"") -> 57 | CB14: =IF(D14="","",IF(U14=MAX($U$3:$U$202), U14,"")) -> 0 | CC14: =IF(CB14=MAX($CB$3:$CB$202),B14,"") -> 57 | CD14: =IF(D14="","",IF(AP14=MAX($AP$3:$AP$202),AP14,"")) -> 0 | CE14: =IF(CD14=MAX($CD$3:$CD$202),B14,"") -> 57 | CF14: =IF(D14="","",IF(T14=MAX($T$3:$T$202), T14,"")) -> 0 | CG14: =IF(CF14=MAX($CF$3:$CF$202),B14,"") -> 57 | CH14: =IF(D14="","",IF(AO14=MAX($AO$3:$AO$202),AO14,"")) -> 0 | CI14: =IF(CH14=MAX($CH$3:$CH$202),B14,"") -> 57 | CJ14: =IF(I14="AC",AZ14,"") ->  | CK14: =IF(CJ14="","",RANK(CJ14,$CJ$3:$CJ$202,1)) ->  | CL14: =IF(CK14=1,B14,"") ->  | CM14: =IF(CK14=2,B14,"") ->  | CN14: =IF(CK14=3,B14,"") ->  | CO14: =IF(I14="MC",AZ14,"") ->  | CP14: =IF(CO14="","",RANK(CO14,$CO$3:$CO$202,1)) ->  | CQ14: =IF(CP14=1,B14,"") ->  | CR14: =IF(CP14=2,B14,"") ->  | CS14: =IF(CP14=3,B14,"") ->  | CT14: =IF(BE14=0,BE14,"") ->  | CU14: =IF(BE14=1,1,"") ->  | CV14: =IF(BE14=2,2,"") ->  | CW14: =IF(BE14=3,3,"") ->  | CX14: =IF(BE14=4,4,"") ->  | CY14: =IF(BE14=5,5,"") -> 5 | CZ14: =IF(BH14=0,BH14,"") ->  | DA14: =IF(BH14=1,1,"") ->  | DB14: =IF(BH14=2,2,"") ->  | DC14: =IF(BH14=3,3,"") ->  | DD14: =IF(BH14=4,4,"") ->  | DE14: =IF(BH14=5,5,"") -> 5 | DF14: =IF(BK14=0,BK14,"") ->  | DG14: =IF(BK14=1,1,"") ->  | DH14: =IF(BK14=2,2,"") ->  | DI14: =IF(BK14=3,3,"") ->  | DJ14: =IF(BK14=4,4,"") ->  | DK14: =IF(BK14=5,5,"") ->  | DL14: =IF(BK14=6,6,"") ->  | DM14: =IF(BK14=7,7,"") ->  | DN14: =IF(BK14=8,8,"") ->  | DO14: =IF(BK14=9,9,"") ->  | DP14: =IF(BK14=10,10,"") -> 10 | DQ14: =IF(J14="Lund",AZ14,"") ->  | DR14: =IF(DQ14="","",RANK(DQ14,$DQ$3:$DQ$202,1)) ->  | DS14: =IF(DR14=1,B14,"") ->  | DT14: =IF(I14="AT",B14,"") -> 57 | DU14: =IF(I14="MC",B14,"") ->  | DV14: =IF(I14="AC",B14,"") ->  | DW14: =IF(BK14=0,0,IF(D14="","",$D$203-AZ14+1)/$D$203*100) -> 84.50704225 | DX14: =IF(AS14 = 0,AV14 - AS14,"") ->  | DY14: 15.75 | DZ14: 1.32
A15: 13 | B15: 26 | D15: Meier, Kristofer | E15: Townsend, MT | G15: Vogl, Dewey | H15: Townsend, MT | I15: AT | M15: 18.75 | N15: 21.5 | O15: 30.75 | P15: 17.5 | Q15: 18 | X15: =IF(M15>0,VLOOKUP(M15,$DY$8:$DZ$95,2)," ") -> 2.22 | Y15: =IF(N15>0,VLOOKUP(N15,$DY$8:$DZ$95,2)," ") -> 3.52 | Z15: =IF(O15>0,VLOOKUP(O15,$DY$8:$DZ$95,2)," ") -> 11.74 | AA15: =IF(P15>0,VLOOKUP(P15,$DY$8:$DZ$95,2)," ") -> 1.78 | AB15: =IF(Q15>0,VLOOKUP(Q15,$DY$8:$DZ$95,2)," ") -> 1.94 | AC15: 18.25 | AD15: 16.5 | AE15: 17 | AF15: 17.75 | AG15: 19 | AH15: =IF(AC15>0,VLOOKUP(AC15,$DY$8:$DZ$95,2)," ") -> 2.02 | AI15: =IF(AD15>0,VLOOKUP(AD15,$DY$8:$DZ$95,2)," ") -> 1.5 | AJ15: =IF(AE15>0,VLOOKUP(AE15,$DY$8:$DZ$95,2)," ") -> 1.64 | AK15: =IF(AF15>0,VLOOKUP(AF15,$DY$8:$DZ$95,2)," ") -> 1.86 | AL15: =IF(AG15>0,VLOOKUP(AG15,$DY$8:$DZ$95,2)," ") -> 2.32 | AS15: =IF(D15="","",SUM(X15:AB15)) -> 21.2 | AT15: =IF(D15="","",RANK(AS15,$AS$3:$AS$202,0)) -> 7 | AU15: =IF(D15="","",IF(LOOKUP(AT15,'Master 2012 Pay Sheet'!$A$5:$A$35,'Master 2012 Pay Sheet'!$B$5:$B$35)>0,LOOKUP(AT15,'Master 2012 Pay Sheet'!$A$5:$A$35,'Master 2012 Pay Sheet'!$B$5:$B$35),0)) -> 0 | AV15: =IF(D15="","",SUM(AH15:AL15)) -> 9.34 | AW15: =IF(D15="","",RANK(AV15,$AV$3:$AV$202,0)) -> 36 | AX15: =IF(D15="","",IF(LOOKUP(AW15,'Master 2012 Pay Sheet'!$C$5:$C$35,'Master 2012 Pay Sheet'!$D$5:$D$35)>0,LOOKUP(AW15,'Master 2012 Pay Sheet'!$C$5:$C$35,'Master 2012 Pay Sheet'!$D$5:$D$35),0)) -> 0 | AY15: =IF(D15="","",AS15+AV15) -> 30.54 | AZ15: =IF(D15="","",RANK(AY15,$AY$3:$AY$202,0)) -> 13 | BA15: =IF(D15="","",IF(LOOKUP(AZ15,'Master 2012 Pay Sheet'!$E$5:$E$35,'Master 2012 Pay Sheet'!$F$5:$F$35)>0,LOOKUP(AZ15,'Master 2012 Pay Sheet'!$E$5:$E$35,'Master 2012 Pay Sheet'!$F$5:$F$35),0)) -> 0 | BB15: =IF(D15="","",SUM(AU15+AX15+BA15)) -> 0 | BC15: =IF(D15="","",AT15-AZ15) -> -6 | BD15: =IF(D15="","",IF(BC15=MAX($BC$3:$BC$202),B15,"")) ->  | BE15: =IF(D15="","",COUNT(M15:Q15)) -> 5 | BF15: =IF(D15="","",MAX(X15:AB15)) -> 11.74 | BG15: =IF(BF15=MAX($BF$3:$BF$202),B15,"") ->  | BH15: =IF(D15="","",COUNT(AC15:AG15)) -> 5 | BI15: =IF(D15="","",MAX(AH15:AL15)) -> 2.32 | BJ15: =IF(BI15=MAX($BI$3:$BI$202),B15,"") ->  | BK15: =IF(BE15="","",BE15+BH15) -> 10 | BL15: =IF(D15="","",IF(S15=MAX($S$3:$S$202),S15,"")) -> 0 | BM15: =IF(BL15=MAX($BL$3:$BL$202),B15,"") -> 26 | BN15: =IF(D15="","",IF(AN15=MAX($AN$3:$AN$202),AN15,"")) -> 0 | BO15: =IF(BN15=MAX($BN$3:$BN$202),B15,"") -> 26 | BP15: =IF(D15="","",IF(R15=MAX($R$3:$R$202),R15,"")) -> 0 | BQ15: =IF(BP15=MAX($BP$3:$BP$202),B15,"") -> 26 | BR15: =IF(D15="","",IF(AM15=MAX($AM$3:$AM$202),AM15,"")) -> 0 | BS15: =IF(BR15=MAX($BR$3:$BR$202),B15,"") -> 26 | BT15: =IF(D15="","",IF(V15=MAX($V$3:$V$202),V15,"")) -> 0 | BU15: =IF(BT15=MAX($BT$3:$BT$202),B15,"") -> 26 | BV15: =IF(D15="","",IF(W15=MAX($W$3:$W$202), W15,"")) -> 0 | BW15: =IF(BV15=MAX($BV$3:$BV$202),B15,"") -> 26 | BX15: =IF(D15="","",IF(AQ15=MAX($AQ$3:$AQ$202),AQ15,"")) -> 0 | BY15: =IF(BX15=MAX($BX$3:$BX$202),B15,"") -> 26 | BZ15: =IF(D15="","",IF(AR15=MAX($AR$3:$AR$202), AR15,"")) -> 0 | CA15: =IF(BZ15=MAX($BZ$3:$BZ$202),B15,"") -> 26 | CB15: =IF(D15="","",IF(U15=MAX($U$3:$U$202), U15,"")) -> 0 | CC15: =IF(CB15=MAX($CB$3:$CB$202),B15,"") -> 26 | CD15: =IF(D15="","",IF(AP15=MAX($AP$3:$AP$202),AP15,"")) -> 0 | CE15: =IF(CD15=MAX($CD$3:$CD$202),B15,"") -> 26 | CF15: =IF(D15="","",IF(T15=MAX($T$3:$T$202), T15,"")) -> 0 | CG15: =IF(CF15=MAX($CF$3:$CF$202),B15,"") -> 26 | CH15: =IF(D15="","",IF(AO15=MAX($AO$3:$AO$202),AO15,"")) -> 0 | CI15: =IF(CH15=MAX($CH$3:$CH$202),B15,"") -> 26 | CJ15: =IF(I15="AC",AZ15,"") ->  | CK15: =IF(CJ15="","",RANK(CJ15,$CJ$3:$CJ$202,1)) ->  | CL15: =IF(CK15=1,B15,"") ->  | CM15: =IF(CK15=2,B15,"") ->  | CN15: =IF(CK15=3,B15,"") ->  | CO15: =IF(I15="MC",AZ15,"") ->  | CP15: =IF(CO15="","",RANK(CO15,$CO$3:$CO$202,1)) ->  | CQ15: =IF(CP15=1,B15,"") ->  | CR15: =IF(CP15=2,B15,"") ->  | CS15: =IF(CP15=3,B15,"") ->  | CT15: =IF(BE15=0,BE15,"") ->  | CU15: =IF(BE15=1,1,"") ->  | CV15: =IF(BE15=2,2,"") ->  | CW15: =IF(BE15=3,3,"") ->  | CX15: =IF(BE15=4,4,"") ->  | CY15: =IF(BE15=5,5,"") -> 5 | CZ15: =IF(BH15=0,BH15,"") ->  | DA15: =IF(BH15=1,1,"") ->  | DB15: =IF(BH15=2,2,"") ->  | DC15: =IF(BH15=3,3,"") ->  | DD15: =IF(BH15=4,4,"") ->  | DE15: =IF(BH15=5,5,"") -> 5 | DF15: =IF(BK15=0,BK15,"") ->  | DG15: =IF(BK15=1,1,"") ->  | DH15: =IF(BK15=2,2,"") ->  | DI15: =IF(BK15=3,3,"") ->  | DJ15: =IF(BK15=4,4,"") ->  | DK15: =IF(BK15=5,5,"") ->  | DL15: =IF(BK15=6,6,"") ->  | DM15: =IF(BK15=7,7,"") ->  | DN15: =IF(BK15=8,8,"") ->  | DO15: =IF(BK15=9,9,"") ->  | DP15: =IF(BK15=10,10,"") -> 10 | DQ15: =IF(J15="Lund",AZ15,"") ->  | DR15: =IF(DQ15="","",RANK(DQ15,$DQ$3:$DQ$202,1)) ->  | DS15: =IF(DR15=1,B15,"") ->  | DT15: =IF(I15="AT",B15,"") -> 26 | DU15: =IF(I15="MC",B15,"") ->  | DV15: =IF(I15="AC",B15,"") ->  | DW15: =IF(BK15=0,0,IF(D15="","",$D$203-AZ15+1)/$D$203*100) -> 83.09859155 | DX15: =IF(AS15 = 0,AV15 - AS15,"") ->  | DY15: 16 | DZ15: 1.38
A16: 14 | B16: 13 | D16: McElvain, Mike | E16: Billings, MT | G16: McElvain, Bobby | H16: Billings, MT | I16: AA | M16: 20 | N16: 24.25 | O16: 18 | P16: 22.25 | Q16: 22.5 | X16: =IF(M16>0,VLOOKUP(M16,$DY$8:$DZ$95,2)," ") -> 2.76 | Y16: =IF(N16>0,VLOOKUP(N16,$DY$8:$DZ$95,2)," ") -> 5.28 | Z16: =IF(O16>0,VLOOKUP(O16,$DY$8:$DZ$95,2)," ") -> 1.94 | AA16: =IF(P16>0,VLOOKUP(P16,$DY$8:$DZ$95,2)," ") -> 3.94 | AB16: =IF(Q16>0,VLOOKUP(Q16,$DY$8:$DZ$95,2)," ") -> 4.1 | AC16: 18.5 | AD16: 17 | AE16: 16.25 | AF16: 17 | AG16: 23.5 | AH16: =IF(AC16>0,VLOOKUP(AC16,$DY$8:$DZ$95,2)," ") -> 2.12 | AI16: =IF(AD16>0,VLOOKUP(AD16,$DY$8:$DZ$95,2)," ") -> 1.64 | AJ16: =IF(AE16>0,VLOOKUP(AE16,$DY$8:$DZ$95,2)," ") -> 1.44 | AK16: =IF(AF16>0,VLOOKUP(AF16,$DY$8:$DZ$95,2)," ") -> 1.64 | AL16: =IF(AG16>0,VLOOKUP(AG16,$DY$8:$DZ$95,2)," ") -> 4.74 | AS16: =IF(D16="","",SUM(X16:AB16)) -> 18.02 | AT16: =IF(D16="","",RANK(AS16,$AS$3:$AS$202,0)) -> 9 | AU16: =IF(D16="","",IF(LOOKUP(AT16,'Master 2012 Pay Sheet'!$A$5:$A$35,'Master 2012 Pay Sheet'!$B$5:$B$35)>0,LOOKUP(AT16,'Master 2012 Pay Sheet'!$A$5:$A$35,'Master 2012 Pay Sheet'!$B$5:$B$35),0)) -> 0 | AV16: =IF(D16="","",SUM(AH16:AL16)) -> 11.58 | AW16: =IF(D16="","",RANK(AV16,$AV$3:$AV$202,0)) -> 22 | AX16: =IF(D16="","",IF(LOOKUP(AW16,'Master 2012 Pay Sheet'!$C$5:$C$35,'Master 2012 Pay Sheet'!$D$5:$D$35)>0,LOOKUP(AW16,'Master 2012 Pay Sheet'!$C$5:$C$35,'Master 2012 Pay Sheet'!$D$5:$D$35),0)) -> 0 | AY16: =IF(D16="","",AS16+AV16) -> 29.6 | AZ16: =IF(D16="","",RANK(AY16,$AY$3:$AY$202,0)) -> 14 | BA16: =IF(D16="","",IF(LOOKUP(AZ16,'Master 2012 Pay Sheet'!$E$5:$E$35,'Master 2012 Pay Sheet'!$F$5:$F$35)>0,LOOKUP(AZ16,'Master 2012 Pay Sheet'!$E$5:$E$35,'Master 2012 Pay Sheet'!$F$5:$F$35),0)) -> 0 | BB16: =IF(D16="","",SUM(AU16+AX16+BA16)) -> 0 | BC16: =IF(D16="","",AT16-AZ16) -> -5 | BD16: =IF(D16="","",IF(BC16=MAX($BC$3:$BC$202),B16,"")) ->  | BE16: =IF(D16="","",COUNT(M16:Q16)) -> 5 | BF16: =IF(D16="","",MAX(X16:AB16)) -> 5.28 | BG16: =IF(BF16=MAX($BF$3:$BF$202),B16,"") ->  | BH16: =IF(D16="","",COUNT(AC16:AG16)) -> 5 | BI16: =IF(D16="","",MAX(AH16:AL16)) -> 4.74 | BJ16: =IF(BI16=MAX($BI$3:$BI$202),B16,"") ->  | BK16: =IF(BE16="","",BE16+BH16) -> 10 | BL16: =IF(D16="","",IF(S16=MAX($S$3:$S$202),S16,"")) -> 0 | BM16: =IF(BL16=MAX($BL$3:$BL$202),B16,"") -> 13 | BN16: =IF(D16="","",IF(AN16=MAX($AN$3:$AN$202),AN16,"")) -> 0 | BO16: =IF(BN16=MAX($BN$3:$BN$202),B16,"") -> 13 | BP16: =IF(D16="","",IF(R16=MAX($R$3:$R$202),R16,"")) -> 0 | BQ16: =IF(BP16=MAX($BP$3:$BP$202),B16,"") -> 13 | BR16: =IF(D16="","",IF(AM16=MAX($AM$3:$AM$202),AM16,"")) -> 0 | BS16: =IF(BR16=MAX($BR$3:$BR$202),B16,"") -> 13 | BT16: =IF(D16="","",IF(V16=MAX($V$3:$V$202),V16,"")) -> 0 | BU16: =IF(BT16=MAX($BT$3:$BT$202),B16,"") -> 13 | BV16: =IF(D16="","",IF(W16=MAX($W$3:$W$202), W16,"")) -> 0 | BW16: =IF(BV16=MAX($BV$3:$BV$202),B16,"") -> 13 | BX16: =IF(D16="","",IF(AQ16=MAX($AQ$3:$AQ$202),AQ16,"")) -> 0 | BY16: =IF(BX16=MAX($BX$3:$BX$202),B16,"") -> 13 | BZ16: =IF(D16="","",IF(AR16=MAX($AR$3:$AR$202), AR16,"")) -> 0 | CA16: =IF(BZ16=MAX($BZ$3:$BZ$202),B16,"") -> 13 | CB16: =IF(D16="","",IF(U16=MAX($U$3:$U$202), U16,"")) -> 0 | CC16: =IF(CB16=MAX($CB$3:$CB$202),B16,"") -> 13 | CD16: =IF(D16="","",IF(AP16=MAX($AP$3:$AP$202),AP16,"")) -> 0 | CE16: =IF(CD16=MAX($CD$3:$CD$202),B16,"") -> 13 | CF16: =IF(D16="","",IF(T16=MAX($T$3:$T$202), T16,"")) -> 0 | CG16: =IF(CF16=MAX($CF$3:$CF$202),B16,"") -> 13 | CH16: =IF(D16="","",IF(AO16=MAX($AO$3:$AO$202),AO16,"")) -> 0 | CI16: =IF(CH16=MAX($CH$3:$CH$202),B16,"") -> 13 | CJ16: =IF(I16="AC",AZ16,"") ->  | CK16: =IF(CJ16="","",RANK(CJ16,$CJ$3:$CJ$202,1)) ->  | CL16: =IF(CK16=1,B16,"") ->  | CM16: =IF(CK16=2,B16,"") ->  | CN16: =IF(CK16=3,B16,"") ->  | CO16: =IF(I16="MC",AZ16,"") ->  | CP16: =IF(CO16="","",RANK(CO16,$CO$3:$CO$202,1)) ->  | CQ16: =IF(CP16=1,B16,"") ->  | CR16: =IF(CP16=2,B16,"") ->  | CS16: =IF(CP16=3,B16,"") ->  | CT16: =IF(BE16=0,BE16,"") ->  | CU16: =IF(BE16=1,1,"") ->  | CV16: =IF(BE16=2,2,"") ->  | CW16: =IF(BE16=3,3,"") ->  | CX16: =IF(BE16=4,4,"") ->  | CY16: =IF(BE16=5,5,"") -> 5 | CZ16: =IF(BH16=0,BH16,"") ->  | DA16: =IF(BH16=1,1,"") ->  | DB16: =IF(BH16=2,2,"") ->  | DC16: =IF(BH16=3,3,"") ->  | DD16: =IF(BH16=4,4,"") ->  | DE16: =IF(BH16=5,5,"") -> 5 | DF16: =IF(BK16=0,BK16,"") ->  | DG16: =IF(BK16=1,1,"") ->  | DH16: =IF(BK16=2,2,"") ->  | DI16: =IF(BK16=3,3,"") ->  | DJ16: =IF(BK16=4,4,"") ->  | DK16: =IF(BK16=5,5,"") ->  | DL16: =IF(BK16=6,6,"") ->  | DM16: =IF(BK16=7,7,"") ->  | DN16: =IF(BK16=8,8,"") ->  | DO16: =IF(BK16=9,9,"") ->  | DP16: =IF(BK16=10,10,"") -> 10 | DQ16: =IF(J16="Lund",AZ16,"") ->  | DR16: =IF(DQ16="","",RANK(DQ16,$DQ$3:$DQ$202,1)) ->  | DS16: =IF(DR16=1,B16,"") ->  | DT16: =IF(I16="AT",B16,"") ->  | DU16: =IF(I16="MC",B16,"") ->  | DV16: =IF(I16="AC",B16,"") ->  | DW16: =IF(BK16=0,0,IF(D16="","",$D$203-AZ16+1)/$D$203*100) -> 81.69014085 | DX16: =IF(AS16 = 0,AV16 - AS16,"") ->  | DY16: 16.25 | DZ16: 1.44
A17: 15 | B17: 70 | D17: Seilstad, Carl | E17: Lewistown, MT | G17: Seilstad, Cathy | H17: Lewistown, MT | I17: MC | M17: 18 | N17: 18.25 | O17: 18.5 | P17: 21.75 | Q17: 27.5 | X17: =IF(M17>0,VLOOKUP(M17,$DY$8:$DZ$95,2)," ") -> 1.94 | Y17: =IF(N17>0,VLOOKUP(N17,$DY$8:$DZ$95,2)," ") -> 2.02 | Z17: =IF(O17>0,VLOOKUP(O17,$DY$8:$DZ$95,2)," ") -> 2.12 | AA17: =IF(P17>0,VLOOKUP(P17,$DY$8:$DZ$95,2)," ") -> 3.66 | AB17: =IF(Q17>0,VLOOKUP(Q17,$DY$8:$DZ$95,2)," ") -> 8.08 | AC17: 17.5 | AD17: 25 | AE17: 16 | AF17: 15.5 | AG17: 15 | AH17: =IF(AC17>0,VLOOKUP(AC17,$DY$8:$DZ$95,2)," ") -> 1.78 | AI17: =IF(AD17>0,VLOOKUP(AD17,$DY$8:$DZ$95,2)," ") -> 5.84 | AJ17: =IF(AE17>0,VLOOKUP(AE17,$DY$8:$DZ$95,2)," ") -> 1.38 | AK17: =IF(AF17>0,VLOOKUP(AF17,$DY$8:$DZ$95,2)," ") -> 1.24 | AL17: =IF(AG17>0,VLOOKUP(AG17,$DY$8:$DZ$95,2)," ") -> 1.12 | AS17: =IF(D17="","",SUM(X17:AB17)) -> 17.82 | AT17: =IF(D17="","",RANK(AS17,$AS$3:$AS$202,0)) -> 11 | AU17: =IF(D17="","",IF(LOOKUP(AT17,'Master 2012 Pay Sheet'!$A$5:$A$35,'Master 2012 Pay Sheet'!$B$5:$B$35)>0,LOOKUP(AT17,'Master 2012 Pay Sheet'!$A$5:$A$35,'Master 2012 Pay Sheet'!$B$5:$B$35),0)) -> 0 | AV17: =IF(D17="","",SUM(AH17:AL17)) -> 11.36 | AW17: =IF(D17="","",RANK(AV17,$AV$3:$AV$202,0)) -> 23 | AX17: =IF(D17="","",IF(LOOKUP(AW17,'Master 2012 Pay Sheet'!$C$5:$C$35,'Master 2012 Pay Sheet'!$D$5:$D$35)>0,LOOKUP(AW17,'Master 2012 Pay Sheet'!$C$5:$C$35,'Master 2012 Pay Sheet'!$D$5:$D$35),0)) -> 0 | AY17: =IF(D17="","",AS17+AV17) -> 29.18 | AZ17: =IF(D17="","",RANK(AY17,$AY$3:$AY$202,0)) -> 15 | BA17: =IF(D17="","",IF(LOOKUP(AZ17,'Master 2012 Pay Sheet'!$E$5:$E$35,'Master 2012 Pay Sheet'!$F$5:$F$35)>0,LOOKUP(AZ17,'Master 2012 Pay Sheet'!$E$5:$E$35,'Master 2012 Pay Sheet'!$F$5:$F$35),0)) -> 0 | BB17: =IF(D17="","",SUM(AU17+AX17+BA17)) -> 0 | BC17: =IF(D17="","",AT17-AZ17) -> -4 | BD17: =IF(D17="","",IF(BC17=MAX($BC$3:$BC$202),B17,"")) ->  | BE17: =IF(D17="","",COUNT(M17:Q17)) -> 5 | BF17: =IF(D17="","",MAX(X17:AB17)) -> 8.08 | BG17: =IF(BF17=MAX($BF$3:$BF$202),B17,"") ->  | BH17: =IF(D17="","",COUNT(AC17:AG17)) -> 5 | BI17: =IF(D17="","",MAX(AH17:AL17)) -> 5.84 | BJ17: =IF(BI17=MAX($BI$3:$BI$202),B17,"") ->  | BK17: =IF(BE17="","",BE17+BH17) -> 10 | BL17: =IF(D17="","",IF(S17=MAX($S$3:$S$202),S17,"")) -> 0 | BM17: =IF(BL17=MAX($BL$3:$BL$202),B17,"") -> 70 | BN17: =IF(D17="","",IF(AN17=MAX($AN$3:$AN$202),AN17,"")) -> 0 | BO17: =IF(BN17=MAX($BN$3:$BN$202),B17,"") -> 70 | BP17: =IF(D17="","",IF(R17=MAX($R$3:$R$202),R17,"")) -> 0 | BQ17: =IF(BP17=MAX($BP$3:$BP$202),B17,"") -> 70 | BR17: =IF(D17="","",IF(AM17=MAX($AM$3:$AM$202),AM17,"")) -> 0 | BS17: =IF(BR17=MAX($BR$3:$BR$202),B17,"") -> 70 | BT17: =IF(D17="","",IF(V17=MAX($V$3:$V$202),V17,"")) -> 0 | BU17: =IF(BT17=MAX($BT$3:$BT$202),B17,"") -> 70 | BV17: =IF(D17="","",IF(W17=MAX($W$3:$W$202), W17,"")) -> 0 | BW17: =IF(BV17=MAX($BV$3:$BV$202),B17,"") -> 70 | BX17: =IF(D17="","",IF(AQ17=MAX($AQ$3:$AQ$202),AQ17,"")) -> 0 | BY17: =IF(BX17=MAX($BX$3:$BX$202),B17,"") -> 70 | BZ17: =IF(D17="","",IF(AR17=MAX($AR$3:$AR$202), AR17,"")) -> 0 | CA17: =IF(BZ17=MAX($BZ$3:$BZ$202),B17,"") -> 70 | CB17: =IF(D17="","",IF(U17=MAX($U$3:$U$202), U17,"")) -> 0 | CC17: =IF(CB17=MAX($CB$3:$CB$202),B17,"") -> 70 | CD17: =IF(D17="","",IF(AP17=MAX($AP$3:$AP$202),AP17,"")) -> 0 | CE17: =IF(CD17=MAX($CD$3:$CD$202),B17,"") -> 70 | CF17: =IF(D17="","",IF(T17=MAX($T$3:$T$202), T17,"")) -> 0 | CG17: =IF(CF17=MAX($CF$3:$CF$202),B17,"") -> 70 | CH17: =IF(D17="","",IF(AO17=MAX($AO$3:$AO$202),AO17,"")) -> 0 | CI17: =IF(CH17=MAX($CH$3:$CH$202),B17,"") -> 70 | CJ17: =IF(I17="AC",AZ17,"") ->  | CK17: =IF(CJ17="","",RANK(CJ17,$CJ$3:$CJ$202,1)) ->  | CL17: =IF(CK17=1,B17,"") ->  | CM17: =IF(CK17=2,B17,"") ->  | CN17: =IF(CK17=3,B17,"") ->  | CO17: =IF(I17="MC",AZ17,"") -> 15 | CP17: =IF(CO17="","",RANK(CO17,$CO$3:$CO$202,1)) -> 1 | CQ17: =IF(CP17=1,B17,"") -> 70 | CR17: =IF(CP17=2,B17,"") ->  | CS17: =IF(CP17=3,B17,"") ->  | CT17: =IF(BE17=0,BE17,"") ->  | CU17: =IF(BE17=1,1,"") ->  | CV17: =IF(BE17=2,2,"") ->  | CW17: =IF(BE17=3,3,"") ->  | CX17: =IF(BE17=4,4,"") ->  | CY17: =IF(BE17=5,5,"") -> 5 | CZ17: =IF(BH17=0,BH17,"") ->  | DA17: =IF(BH17=1,1,"") ->  | DB17: =IF(BH17=2,2,"") ->  | DC17: =IF(BH17=3,3,"") ->  | DD17: =IF(BH17=4,4,"") ->  | DE17: =IF(BH17=5,5,"") -> 5 | DF17: =IF(BK17=0,BK17,"") ->  | DG17: =IF(BK17=1,1,"") ->  | DH17: =IF(BK17=2,2,"") ->  | DI17: =IF(BK17=3,3,"") ->  | DJ17: =IF(BK17=4,4,"") ->  | DK17: =IF(BK17=5,5,"") ->  | DL17: =IF(BK17=6,6,"") ->  | DM17: =IF(BK17=7,7,"") ->  | DN17: =IF(BK17=8,8,"") ->  | DO17: =IF(BK17=9,9,"") ->  | DP17: =IF(BK17=10,10,"") -> 10 | DQ17: =IF(J17="Lund",AZ17,"") ->  | DR17: =IF(DQ17="","",RANK(DQ17,$DQ$3:$DQ$202,1)) ->  | DS17: =IF(DR17=1,B17,"") ->  | DT17: =IF(I17="AT",B17,"") ->  | DU17: =IF(I17="MC",B17,"") -> 70 | DV17: =IF(I17="AC",B17,"") ->  | DW17: =IF(BK17=0,0,IF(D17="","",$D$203-AZ17+1)/$D$203*100) -> 80.28169014 | DX17: =IF(AS17 = 0,AV17 - AS17,"") ->  | DY17: 16.5 | DZ17: 1.5
A18: 16 | B18: 35 | D18: Glasoe, Rodney | E18: Nashua, MT | G18: Johnson, Tyler | H18: Nashua, MT | I18: AT | M18: 26.5 | N18: 30.5 | O18: 14.5 | P18: 15.75 | Q18: 16.75 | X18: =IF(M18>0,VLOOKUP(M18,$DY$8:$DZ$95,2)," ") -> 7.12 | Y18: =IF(N18>0,VLOOKUP(N18,$DY$8:$DZ$95,2)," ") -> 11.42 | Z18: =IF(O18>0,VLOOKUP(O18,$DY$8:$DZ$95,2)," ") -> 1.06 | AA18: =IF(P18>0,VLOOKUP(P18,$DY$8:$DZ$95,2)," ") -> 1.32 | AB18: =IF(Q18>0,VLOOKUP(Q18,$DY$8:$DZ$95,2)," ") -> 1.58 | AC18: 19 | AD18: 15.75 | AE18: 15.5 | AF18: 16 | AH18: =IF(AC18>0,VLOOKUP(AC18,$DY$8:$DZ$95,2)," ") -> 2.32 | AI18: =IF(AD18>0,VLOOKUP(AD18,$DY$8:$DZ$95,2)," ") -> 1.32 | AJ18: =IF(AE18>0,VLOOKUP(AE18,$DY$8:$DZ$95,2)," ") -> 1.24 | AK18: =IF(AF18>0,VLOOKUP(AF18,$DY$8:$DZ$95,2)," ") -> 1.38 | AL18: =IF(AG18>0,VLOOKUP(AG18,$DY$8:$DZ$95,2)," ") ->  | AS18: =IF(D18="","",SUM(X18:AB18)) -> 22.5 | AT18: =IF(D18="","",RANK(AS18,$AS$3:$AS$202,0)) -> 4 | AU18: =IF(D18="","",IF(LOOKUP(AT18,'Master 2012 Pay Sheet'!$A$5:$A$35,'Master 2012 Pay Sheet'!$B$5:$B$35)>0,LOOKUP(AT18,'Master 2012 Pay Sheet'!$A$5:$A$35,'Master 2012 Pay Sheet'!$B$5:$B$35),0)) -> 0 | AV18: =IF(D18="","",SUM(AH18:AL18)) -> 6.26 | AW18: =IF(D18="","",RANK(AV18,$AV$3:$AV$202,0)) -> 52 | AX18: =IF(D18="","",IF(LOOKUP(AW18,'Master 2012 Pay Sheet'!$C$5:$C$35,'Master 2012 Pay Sheet'!$D$5:$D$35)>0,LOOKUP(AW18,'Master 2012 Pay Sheet'!$C$5:$C$35,'Master 2012 Pay Sheet'!$D$5:$D$35),0)) -> 0 | AY18: =IF(D18="","",AS18+AV18) -> 28.76 | AZ18: =IF(D18="","",RANK(AY18,$AY$3:$AY$202,0)) -> 16 | BA18: =IF(D18="","",IF(LOOKUP(AZ18,'Master 2012 Pay Sheet'!$E$5:$E$35,'Master 2012 Pay Sheet'!$F$5:$F$35)>0,LOOKUP(AZ18,'Master 2012 Pay Sheet'!$E$5:$E$35,'Master 2012 Pay Sheet'!$F$5:$F$35),0)) -> 0 | BB18: =IF(D18="","",SUM(AU18+AX18+BA18)) -> 0 | BC18: =IF(D18="","",AT18-AZ18) -> -12 | BD18: =IF(D18="","",IF(BC18=MAX($BC$3:$BC$202),B18,"")) ->  | BE18: =IF(D18="","",COUNT(M18:Q18)) -> 5 | BF18: =IF(D18="","",MAX(X18:AB18)) -> 11.42 | BG18: =IF(BF18=MAX($BF$3:$BF$202),B18,"") ->  | BH18: =IF(D18="","",COUNT(AC18:AG18)) -> 4 | BI18: =IF(D18="","",MAX(AH18:AL18)) -> 2.32 | BJ18: =IF(BI18=MAX($BI$3:$BI$202),B18,"") ->  | BK18: =IF(BE18="","",BE18+BH18) -> 9 | BL18: =IF(D18="","",IF(S18=MAX($S$3:$S$202),S18,"")) -> 0 | BM18: =IF(BL18=MAX($BL$3:$BL$202),B18,"") -> 35 | BN18: =IF(D18="","",IF(AN18=MAX($AN$3:$AN$202),AN18,"")) -> 0 | BO18: =IF(BN18=MAX($BN$3:$BN$202),B18,"") -> 35 | BP18: =IF(D18="","",IF(R18=MAX($R$3:$R$202),R18,"")) -> 0 | BQ18: =IF(BP18=MAX($BP$3:$BP$202),B18,"") -> 35 | BR18: =IF(D18="","",IF(AM18=MAX($AM$3:$AM$202),AM18,"")) -> 0 | BS18: =IF(BR18=MAX($BR$3:$BR$202),B18,"") -> 35 | BT18: =IF(D18="","",IF(V18=MAX($V$3:$V$202),V18,"")) -> 0 | BU18: =IF(BT18=MAX($BT$3:$BT$202),B18,"") -> 35 | BV18: =IF(D18="","",IF(W18=MAX($W$3:$W$202), W18,"")) -> 0 | BW18: =IF(BV18=MAX($BV$3:$BV$202),B18,"") -> 35 | BX18: =IF(D18="","",IF(AQ18=MAX($AQ$3:$AQ$202),AQ18,"")) -> 0 | BY18: =IF(BX18=MAX($BX$3:$BX$202),B18,"") -> 35 | BZ18: =IF(D18="","",IF(AR18=MAX($AR$3:$AR$202), AR18,"")) -> 0 | CA18: =IF(BZ18=MAX($BZ$3:$BZ$202),B18,"") -> 35 | CB18: =IF(D18="","",IF(U18=MAX($U$3:$U$202), U18,"")) -> 0 | CC18: =IF(CB18=MAX($CB$3:$CB$202),B18,"") -> 35 | CD18: =IF(D18="","",IF(AP18=MAX($AP$3:$AP$202),AP18,"")) -> 0 | CE18: =IF(CD18=MAX($CD$3:$CD$202),B18,"") -> 35 | CF18: =IF(D18="","",IF(T18=MAX($T$3:$T$202), T18,"")) -> 0 | CG18: =IF(CF18=MAX($CF$3:$CF$202),B18,"") -> 35 | CH18: =IF(D18="","",IF(AO18=MAX($AO$3:$AO$202),AO18,"")) -> 0 | CI18: =IF(CH18=MAX($CH$3:$CH$202),B18,"") -> 35 | CJ18: =IF(I18="AC",AZ18,"") ->  | CK18: =IF(CJ18="","",RANK(CJ18,$CJ$3:$CJ$202,1)) ->  | CL18: =IF(CK18=1,B18,"") ->  | CM18: =IF(CK18=2,B18,"") ->  | CN18: =IF(CK18=3,B18,"") ->  | CO18: =IF(I18="MC",AZ18,"") ->  | CP18: =IF(CO18="","",RANK(CO18,$CO$3:$CO$202,1)) ->  | CQ18: =IF(CP18=1,B18,"") ->  | CR18: =IF(CP18=2,B18,"") ->  | CS18: =IF(CP18=3,B18,"") ->  | CT18: =IF(BE18=0,BE18,"") ->  | CU18: =IF(BE18=1,1,"") ->  | CV18: =IF(BE18=2,2,"") ->  | CW18: =IF(BE18=3,3,"") ->  | CX18: =IF(BE18=4,4,"") ->  | CY18: =IF(BE18=5,5,"") -> 5 | CZ18: =IF(BH18=0,BH18,"") ->  | DA18: =IF(BH18=1,1,"") ->  | DB18: =IF(BH18=2,2,"") ->  | DC18: =IF(BH18=3,3,"") ->  | DD18: =IF(BH18=4,4,"") -> 4 | DE18: =IF(BH18=5,5,"") ->  | DF18: =IF(BK18=0,BK18,"") ->  | DG18: =IF(BK18=1,1,"") ->  | DH18: =IF(BK18=2,2,"") ->  | DI18: =IF(BK18=3,3,"") ->  | DJ18: =IF(BK18=4,4,"") ->  | DK18: =IF(BK18=5,5,"") ->  | DL18: =IF(BK18=6,6,"") ->  | DM18: =IF(BK18=7,7,"") ->  | DN18: =IF(BK18=8,8,"") ->  | DO18: =IF(BK18=9,9,"") -> 9 | DP18: =IF(BK18=10,10,"") ->  | DQ18: =IF(J18="Lund",AZ18,"") ->  | DR18: =IF(DQ18="","",RANK(DQ18,$DQ$3:$DQ$202,1)) ->  | DS18: =IF(DR18=1,B18,"") ->  | DT18: =IF(I18="AT",B18,"") -> 35 | DU18: =IF(I18="MC",B18,"") ->  | DV18: =IF(I18="AC",B18,"") ->  | DW18: =IF(BK18=0,0,IF(D18="","",$D$203-AZ18+1)/$D$203*100) -> 78.87323944 | DX18: =IF(AS18 = 0,AV18 - AS18,"") ->  | DY18: 16.75 | DZ18: 1.58
A19: 17 | B19: 6 | D19: McNary, Ron | E19: Williston, ND | G19: Papineau, Jerome | H19: Miles City, MT | I19: AT | M19: 16.25 | N19: 18 | O19: 17.5 | P19: 30 | Q19: 17 | X19: =IF(M19>0,VLOOKUP(M19,$DY$8:$DZ$95,2)," ") -> 1.44 | Y19: =IF(N19>0,VLOOKUP(N19,$DY$8:$DZ$95,2)," ") -> 1.94 | Z19: =IF(O19>0,VLOOKUP(O19,$DY$8:$DZ$95,2)," ") -> 1.78 | AA19: =IF(P19>0,VLOOKUP(P19,$DY$8:$DZ$95,2)," ") -> 10.82 | AB19: =IF(Q19>0,VLOOKUP(Q19,$DY$8:$DZ$95,2)," ") -> 1.64 | AC19: 17 | AD19: 18.5 | AE19: 19.5 | AF19: 17.5 | AG19: 19 | AH19: =IF(AC19>0,VLOOKUP(AC19,$DY$8:$DZ$95,2)," ") -> 1.64 | AI19: =IF(AD19>0,VLOOKUP(AD19,$DY$8:$DZ$95,2)," ") -> 2.12 | AJ19: =IF(AE19>0,VLOOKUP(AE19,$DY$8:$DZ$95,2)," ") -> 2.52 | AK19: =IF(AF19>0,VLOOKUP(AF19,$DY$8:$DZ$95,2)," ") -> 1.78 | AL19: =IF(AG19>0,VLOOKUP(AG19,$DY$8:$DZ$95,2)," ") -> 2.32 | AS19: =IF(D19="","",SUM(X19:AB19)) -> 17.62 | AT19: =IF(D19="","",RANK(AS19,$AS$3:$AS$202,0)) -> 12 | AU19: =IF(D19="","",IF(LOOKUP(AT19,'Master 2012 Pay Sheet'!$A$5:$A$35,'Master 2012 Pay Sheet'!$B$5:$B$35)>0,LOOKUP(AT19,'Master 2012 Pay Sheet'!$A$5:$A$35,'Master 2012 Pay Sheet'!$B$5:$B$35),0)) -> 0 | AV19: =IF(D19="","",SUM(AH19:AL19)) -> 10.38 | AW19: =IF(D19="","",RANK(AV19,$AV$3:$AV$202,0)) -> 31 | AX19: =IF(D19="","",IF(LOOKUP(AW19,'Master 2012 Pay Sheet'!$C$5:$C$35,'Master 2012 Pay Sheet'!$D$5:$D$35)>0,LOOKUP(AW19,'Master 2012 Pay Sheet'!$C$5:$C$35,'Master 2012 Pay Sheet'!$D$5:$D$35),0)) -> 0 | AY19: =IF(D19="","",AS19+AV19) -> 28 | AZ19: =IF(D19="","",RANK(AY19,$AY$3:$AY$202,0)) -> 17 | BA19: =IF(D19="","",IF(LOOKUP(AZ19,'Master 2012 Pay Sheet'!$E$5:$E$35,'Master 2012 Pay Sheet'!$F$5:$F$35)>0,LOOKUP(AZ19,'Master 2012 Pay Sheet'!$E$5:$E$35,'Master 2012 Pay Sheet'!$F$5:$F$35),0)) -> 0 | BB19: =IF(D19="","",SUM(AU19+AX19+BA19)) -> 0 | BC19: =IF(D19="","",AT19-AZ19) -> -5 | BD19: =IF(D19="","",IF(BC19=MAX($BC$3:$BC$202),B19,"")) ->  | BE19: =IF(D19="","",COUNT(M19:Q19)) -> 5 | BF19: =IF(D19="","",MAX(X19:AB19)) -> 10.82 | BG19: =IF(BF19=MAX($BF$3:$BF$202),B19,"") ->  | BH19: =IF(D19="","",COUNT(AC19:AG19)) -> 5 | BI19: =IF(D19="","",MAX(AH19:AL19)) -> 2.52 | BJ19: =IF(BI19=MAX($BI$3:$BI$202),B19,"") ->  | BK19: =IF(BE19="","",BE19+BH19) -> 10 | BL19: =IF(D19="","",IF(S19=MAX($S$3:$S$202),S19,"")) -> 0 | BM19: =IF(BL19=MAX($BL$3:$BL$202),B19,"") -> 6 | BN19: =IF(D19="","",IF(AN19=MAX($AN$3:$AN$202),AN19,"")) -> 0 | BO19: =IF(BN19=MAX($BN$3:$BN$202),B19,"") -> 6 | BP19: =IF(D19="","",IF(R19=MAX($R$3:$R$202),R19,"")) -> 0 | BQ19: =IF(BP19=MAX($BP$3:$BP$202),B19,"") -> 6 | BR19: =IF(D19="","",IF(AM19=MAX($AM$3:$AM$202),AM19,"")) -> 0 | BS19: =IF(BR19=MAX($BR$3:$BR$202),B19,"") -> 6 | BT19: =IF(D19="","",IF(V19=MAX($V$3:$V$202),V19,"")) -> 0 | BU19: =IF(BT19=MAX($BT$3:$BT$202),B19,"") -> 6 | BV19: =IF(D19="","",IF(W19=MAX($W$3:$W$202), W19,"")) -> 0 | BW19: =IF(BV19=MAX($BV$3:$BV$202),B19,"") -> 6 | BX19: =IF(D19="","",IF(AQ19=MAX($AQ$3:$AQ$202),AQ19,"")) -> 0 | BY19: =IF(BX19=MAX($BX$3:$BX$202),B19,"") -> 6 | BZ19: =IF(D19="","",IF(AR19=MAX($AR$3:$AR$202), AR19,"")) -> 0 | CA19: =IF(BZ19=MAX($BZ$3:$BZ$202),B19,"") -> 6 | CB19: =IF(D19="","",IF(U19=MAX($U$3:$U$202), U19,"")) -> 0 | CC19: =IF(CB19=MAX($CB$3:$CB$202),B19,"") -> 6 | CD19: =IF(D19="","",IF(AP19=MAX($AP$3:$AP$202),AP19,"")) -> 0 | CE19: =IF(CD19=MAX($CD$3:$CD$202),B19,"") -> 6 | CF19: =IF(D19="","",IF(T19=MAX($T$3:$T$202), T19,"")) -> 0 | CG19: =IF(CF19=MAX($CF$3:$CF$202),B19,"") -> 6 | CH19: =IF(D19="","",IF(AO19=MAX($AO$3:$AO$202),AO19,"")) -> 0 | CI19: =IF(CH19=MAX($CH$3:$CH$202),B19,"") -> 6 | CJ19: =IF(I19="AC",AZ19,"") ->  | CK19: =IF(CJ19="","",RANK(CJ19,$CJ$3:$CJ$202,1)) ->  | CL19: =IF(CK19=1,B19,"") ->  | CM19: =IF(CK19=2,B19,"") ->  | CN19: =IF(CK19=3,B19,"") ->  | CO19: =IF(I19="MC",AZ19,"") ->  | CP19: =IF(CO19="","",RANK(CO19,$CO$3:$CO$202,1)) ->  | CQ19: =IF(CP19=1,B19,"") ->  | CR19: =IF(CP19=2,B19,"") ->  | CS19: =IF(CP19=3,B19,"") ->  | CT19: =IF(BE19=0,BE19,"") ->  | CU19: =IF(BE19=1,1,"") ->  | CV19: =IF(BE19=2,2,"") ->  | CW19: =IF(BE19=3,3,"") ->  | CX19: =IF(BE19=4,4,"") ->  | CY19: =IF(BE19=5,5,"") -> 5 | CZ19: =IF(BH19=0,BH19,"") ->  | DA19: =IF(BH19=1,1,"") ->  | DB19: =IF(BH19=2,2,"") ->  | DC19: =IF(BH19=3,3,"") ->  | DD19: =IF(BH19=4,4,"") ->  | DE19: =IF(BH19=5,5,"") -> 5 | DF19: =IF(BK19=0,BK19,"") ->  | DG19: =IF(BK19=1,1,"") ->  | DH19: =IF(BK19=2,2,"") ->  | DI19: =IF(BK19=3,3,"") ->  | DJ19: =IF(BK19=4,4,"") ->  | DK19: =IF(BK19=5,5,"") ->  | DL19: =IF(BK19=6,6,"") ->  | DM19: =IF(BK19=7,7,"") ->  | DN19: =IF(BK19=8,8,"") ->  | DO19: =IF(BK19=9,9,"") ->  | DP19: =IF(BK19=10,10,"") -> 10 | DQ19: =IF(J19="Lund",AZ19,"") ->  | DR19: =IF(DQ19="","",RANK(DQ19,$DQ$3:$DQ$202,1)) ->  | DS19: =IF(DR19=1,B19,"") ->  | DT19: =IF(I19="AT",B19,"") -> 6 | DU19: =IF(I19="MC",B19,"") ->  | DV19: =IF(I19="AC",B19,"") ->  | DW19: =IF(BK19=0,0,IF(D19="","",$D$203-AZ19+1)/$D$203*100) -> 77.46478873 | DX19: =IF(AS19 = 0,AV19 - AS19,"") ->  | DY19: 17 | DZ19: 1.64
A20: 18 | B20: 55 | D20: Cayko, Gary | E20: Bismarck, ND | G20: Babb, Brandon | H20: Wolf Point, MT | I20: AT | M20: 18.75 | N20: 18 | O20: 18 | P20: 18.25 | Q20: 18 | X20: =IF(M20>0,VLOOKUP(M20,$DY$8:$DZ$95,2)," ") -> 2.22 | Y20: =IF(N20>0,VLOOKUP(N20,$DY$8:$DZ$95,2)," ") -> 1.94 | Z20: =IF(O20>0,VLOOKUP(O20,$DY$8:$DZ$95,2)," ") -> 1.94 | AA20: =IF(P20>0,VLOOKUP(P20,$DY$8:$DZ$95,2)," ") -> 2.02 | AB20: =IF(Q20>0,VLOOKUP(Q20,$DY$8:$DZ$95,2)," ") -> 1.94 | AC20: 21.25 | AD20: 18 | AE20: 18.5 | AF20: 28 | AG20: 16.5 | AH20: =IF(AC20>0,VLOOKUP(AC20,$DY$8:$DZ$95,2)," ") -> 3.38 | AI20: =IF(AD20>0,VLOOKUP(AD20,$DY$8:$DZ$95,2)," ") -> 1.94 | AJ20: =IF(AE20>0,VLOOKUP(AE20,$DY$8:$DZ$95,2)," ") -> 2.12 | AK20: =IF(AF20>0,VLOOKUP(AF20,$DY$8:$DZ$95,2)," ") -> 8.58 | AL20: =IF(AG20>0,VLOOKUP(AG20,$DY$8:$DZ$95,2)," ") -> 1.5 | AS20: =IF(D20="","",SUM(X20:AB20)) -> 10.06 | AT20: =IF(D20="","",RANK(AS20,$AS$3:$AS$202,0)) -> 43 | AU20: =IF(D20="","",IF(LOOKUP(AT20,'Master 2012 Pay Sheet'!$A$5:$A$35,'Master 2012 Pay Sheet'!$B$5:$B$35)>0,LOOKUP(AT20,'Master 2012 Pay Sheet'!$A$5:$A$35,'Master 2012 Pay Sheet'!$B$5:$B$35),0)) -> 0 | AV20: =IF(D20="","",SUM(AH20:AL20)) -> 17.52 | AW20: =IF(D20="","",RANK(AV20,$AV$3:$AV$202,0)) -> 9 | AX20: =IF(D20="","",IF(LOOKUP(AW20,'Master 2012 Pay Sheet'!$C$5:$C$35,'Master 2012 Pay Sheet'!$D$5:$D$35)>0,LOOKUP(AW20,'Master 2012 Pay Sheet'!$C$5:$C$35,'Master 2012 Pay Sheet'!$D$5:$D$35),0)) -> 0 | AY20: =IF(D20="","",AS20+AV20) -> 27.58 | AZ20: =IF(D20="","",RANK(AY20,$AY$3:$AY$202,0)) -> 18 | BA20: =IF(D20="","",IF(LOOKUP(AZ20,'Master 2012 Pay Sheet'!$E$5:$E$35,'Master 2012 Pay Sheet'!$F$5:$F$35)>0,LOOKUP(AZ20,'Master 2012 Pay Sheet'!$E$5:$E$35,'Master 2012 Pay Sheet'!$F$5:$F$35),0)) -> 0 | BB20: =IF(D20="","",SUM(AU20+AX20+BA20)) -> 0 | BC20: =IF(D20="","",AT20-AZ20) -> 25 | BD20: =IF(D20="","",IF(BC20=MAX($BC$3:$BC$202),B20,"")) ->  | BE20: =IF(D20="","",COUNT(M20:Q20)) -> 5 | BF20: =IF(D20="","",MAX(X20:AB20)) -> 2.22 | BG20: =IF(BF20=MAX($BF$3:$BF$202),B20,"") ->  | BH20: =IF(D20="","",COUNT(AC20:AG20)) -> 5 | BI20: =IF(D20="","",MAX(AH20:AL20)) -> 8.58 | BJ20: =IF(BI20=MAX($BI$3:$BI$202),B20,"") ->  | BK20: =IF(BE20="","",BE20+BH20) -> 10 | BL20: =IF(D20="","",IF(S20=MAX($S$3:$S$202),S20,"")) -> 0 | BM20: =IF(BL20=MAX($BL$3:$BL$202),B20,"") -> 55 | BN20: =IF(D20="","",IF(AN20=MAX($AN$3:$AN$202),AN20,"")) -> 0 | BO20: =IF(BN20=MAX($BN$3:$BN$202),B20,"") -> 55 | BP20: =IF(D20="","",IF(R20=MAX($R$3:$R$202),R20,"")) -> 0 | BQ20: =IF(BP20=MAX($BP$3:$BP$202),B20,"") -> 55 | BR20: =IF(D20="","",IF(AM20=MAX($AM$3:$AM$202),AM20,"")) -> 0 | BS20: =IF(BR20=MAX($BR$3:$BR$202),B20,"") -> 55 | BT20: =IF(D20="","",IF(V20=MAX($V$3:$V$202),V20,"")) -> 0 | BU20: =IF(BT20=MAX($BT$3:$BT$202),B20,"") -> 55 | BV20: =IF(D20="","",IF(W20=MAX($W$3:$W$202), W20,"")) -> 0 | BW20: =IF(BV20=MAX($BV$3:$BV$202),B20,"") -> 55 | BX20: =IF(D20="","",IF(AQ20=MAX($AQ$3:$AQ$202),AQ20,"")) -> 0 | BY20: =IF(BX20=MAX($BX$3:$BX$202),B20,"") -> 55 | BZ20: =IF(D20="","",IF(AR20=MAX($AR$3:$AR$202), AR20,"")) -> 0 | CA20: =IF(BZ20=MAX($BZ$3:$BZ$202),B20,"") -> 55 | CB20: =IF(D20="","",IF(U20=MAX($U$3:$U$202), U20,"")) -> 0 | CC20: =IF(CB20=MAX($CB$3:$CB$202),B20,"") -> 55 | CD20: =IF(D20="","",IF(AP20=MAX($AP$3:$AP$202),AP20,"")) -> 0 | CE20: =IF(CD20=MAX($CD$3:$CD$202),B20,"") -> 55 | CF20: =IF(D20="","",IF(T20=MAX($T$3:$T$202), T20,"")) -> 0 | CG20: =IF(CF20=MAX($CF$3:$CF$202),B20,"") -> 55 | CH20: =IF(D20="","",IF(AO20=MAX($AO$3:$AO$202),AO20,"")) -> 0 | CI20: =IF(CH20=MAX($CH$3:$CH$202),B20,"") -> 55 | CJ20: =IF(I20="AC",AZ20,"") ->  | CK20: =IF(CJ20="","",RANK(CJ20,$CJ$3:$CJ$202,1)) ->  | CL20: =IF(CK20=1,B20,"") ->  | CM20: =IF(CK20=2,B20,"") ->  | CN20: =IF(CK20=3,B20,"") ->  | CO20: =IF(I20="MC",AZ20,"") ->  | CP20: =IF(CO20="","",RANK(CO20,$CO$3:$CO$202,1)) ->  | CQ20: =IF(CP20=1,B20,"") ->  | CR20: =IF(CP20=2,B20,"") ->  | CS20: =IF(CP20=3,B20,"") ->  | CT20: =IF(BE20=0,BE20,"") ->  | CU20: =IF(BE20=1,1,"") ->  | CV20: =IF(BE20=2,2,"") ->  | CW20: =IF(BE20=3,3,"") ->  | CX20: =IF(BE20=4,4,"") ->  | CY20: =IF(BE20=5,5,"") -> 5 | CZ20: =IF(BH20=0,BH20,"") ->  | DA20: =IF(BH20=1,1,"") ->  | DB20: =IF(BH20=2,2,"") ->  | DC20: =IF(BH20=3,3,"") ->  | DD20: =IF(BH20=4,4,"") ->  | DE20: =IF(BH20=5,5,"") -> 5 | DF20: =IF(BK20=0,BK20,"") ->  | DG20: =IF(BK20=1,1,"") ->  | DH20: =IF(BK20=2,2,"") ->  | DI20: =IF(BK20=3,3,"") ->  | DJ20: =IF(BK20=4,4,"") ->  | DK20: =IF(BK20=5,5,"") ->  | DL20: =IF(BK20=6,6,"") ->  | DM20: =IF(BK20=7,7,"") ->  | DN20: =IF(BK20=8,8,"") ->  | DO20: =IF(BK20=9,9,"") ->  | DP20: =IF(BK20=10,10,"") -> 10 | DQ20: =IF(J20="Lund",AZ20,"") ->  | DR20: =IF(DQ20="","",RANK(DQ20,$DQ$3:$DQ$202,1)) ->  | DS20: =IF(DR20=1,B20,"") ->  | DT20: =IF(I20="AT",B20,"") -> 55 | DU20: =IF(I20="MC",B20,"") ->  | DV20: =IF(I20="AC",B20,"") ->  | DW20: =IF(BK20=0,0,IF(D20="","",$D$203-AZ20+1)/$D$203*100) -> 76.05633803 | DX20: =IF(AS20 = 0,AV20 - AS20,"") ->  | DY20: 17.25 | DZ20: 1.72
